Workbook

Sheet Interactive Sawing
A3: LORCAT: LOg ReCovery Analysis Tool: version 3.00
B6: Input Variables | F6: Projected Sawing Results
B7: Species | D7: ROAK
B8: Log Grade | D8: Factory-2 | F8: Boards Sawn | H8: =InteractiveProcess!G3 -> 26 | I8: Cant | J8: =IF(K8>0,InteractiveProcess!G5, 0) -> 0 | K8: =InteractiveProcess!G6 -> 0
B9: Small End Diameter | D9: 20 | E9: =D9/2 -> 10 | F9: Board Feet | H9: =InteractiveProcess!G4 -> 300.855723 | I9: Volume | K9: =IF(K8>1,J8/12*D11*K8,0) -> 0
B10: Large End Diameter | D10: 23.5
B11: Log Length | D11: 16
B12: Opening Face Width | D12: 6 | E12: =D12/2 -> 3 | F12: Grade Recovery | I12: Total BDFT | K12: =H9+K9 -> 300.855723
B13: Opening Face Length | D13: 8 | F13: FAS | H13: ='Grade Yield Lookup'!L10 -> 40.64624759
B14: Cant Height | D14: 6 | F14: =IF(D7="YPOP","SAP","F1F") -> F1F | H14: ='Grade Yield Lookup'!M10 -> 30.61266155 | J14: LRF | K14: =$K$12/(((3.145926*POWER(($D$9/24),2) + 3.145926*POWER(($D$10/24),2))/2)*$D$11) -> 7.230882254
B15: Cant Width | D15: 0 | F15: Selects | H15: ='Grade Yield Lookup'!N10 -> 5.025001647
B16: Green Allowance | D16: 0.125 | F16: 1 Com. | H16: ='Grade Yield Lookup'!O10 -> 114.721413 | J16: Int 1/4 | K16: =LogScale!J5 -> 290
A17: Headrig | B17: Thickness | D17: 1 | F17: 2 Com. | H17: ='Grade Yield Lookup'!P10 -> 62.87682301 | J17: Doyle | K17: =LogScale!K5 -> 256
B18: Sawing Variation | D18: 0.03 | F18: 3A Com. | H18: ='Grade Yield Lookup'!Q10 -> 29.05481118 | J18: Scribner | K18: =LogScale!L5 -> 270
B19: Saw Kerf | D19: 0.125 | E19: 99 | F19: 3B Com. | H19: ='Grade Yield Lookup'!R10 -> 17.91876508
B20: Target Thickness | D20: =D17+(D17*D16)+1.97*D18 -> 1.1841 | E20: =D20+D19 -> 1.3091
A21: Resaw | B21: Thickness | D21: 1 | F21: Processing Cost / Product Value Analysis
B22: Sawing Variation | D22: 0.03
B23: Saw Kerf | D23: 0.125 | F23: Log Cost | H23: =(IF(Costs!D4="International 1/4",K16*'Cost Lookup'!C6,IF(Costs!D4="Doyle",'Interactive Sawing'!K17*'Cost Lookup'!C6,IF(Costs!D4="Scribner",'Interactive Sawing'!K18*'Cost Lookup'!C6,0)))) -> 58.58 | J23: Lumber Value
B24: Target Thickness | D24: =D21+D21*D16+1.97*D22 -> 1.1841 | E24: =D24+D23 -> 1.3091 | F24: Cost to Process | H24: =IF(Costs!N1=1,InteractiveProcess!I14,InteractiveProcess!I15) -> 61.97627894 | J24: by NHLA Grade
B25: Full / Split Taper | D25: SPLIT | F25: Total Costs | H25: =SUM(H23:H24) -> 120.5562789 | J25: FAS | K25: =H13*'Cost Lookup'!C8 -> 38.00424149
B26: Sawing Method | D26: GRADE | J26: F1F | K26: =H14*'Cost Lookup'!C9 -> 28.16364862
C27: =IF(OR(D14=0,D26="LIVE"),"Livesaw", IF(D26="Grade",(IF($D$15=0,"Grade_Saw_With_Cant_Resaw", "Grade_saw_With_Cant")), IF(D26="Slab",IF($D$15=0,"Slab_Saw_With_Cant_Resaw", "Slab_Saw_With_Cant"), "Livesaw"))) -> Grade_Saw_With_Cant_Resaw | F27: Lumber Value | H27: =SUM(K25:K31) -> 195.863927 | J27: Selects | K27: =H15*'Cost Lookup'!C10 -> 4.452151459
B28: Sawing Pattern | F28: Cant Value | H28: =K9*'Cost Lookup'!C7 -> 0 | J28: 1 Com. | K28: =H16*'Cost Lookup'!C11 -> 73.76586854
F29: Total Product Value | H29: =SUM(H27:H28) -> 195.863927 | J29: 2 Com. | K29: =H17*'Cost Lookup'!C12 -> 30.80964328
J30: 3A Com. | K30: =H18*'Cost Lookup'!C13 -> 12.78411692
F31: Profit/Loss | H31: =H29-(H23+H24) -> 75.30764801 | J31: 3B Com. | K31: =H19*'Cost Lookup'!C14 -> 7.884256636
F34: LORCAT Status
F35: =IF(H27=0,"Warning: No lumber values by NHLA grade. The log species/diameter/length combination is not included in the Forest Service log recovery prediction data"," ") -> 
F38: =IF(D10<D9,"Warning: Log LED is less than the SED.",IF(D10-D9>6,"Warning: Current log has excessive taper!"," ")) -> 
F39: =IF(AND(D26<>"LIVE",D14=0),"Warning: Zero inch cant height. Set sawing method to LIVE to perform live or flitch sawing.",IF(AND(D26="LIVE",D14<>0),"WARNING: To use live sawing method, also set the cant height to 0. ", " ")) -> 
F42: =IF(ROUND(D17*4,0)/4 <> D17,"Warning: Non-standard thickness. Market values will be estimated using prices of nearest standard 1/4 thickness.", " ") -> 
B45: Saved Interactive Sawing Results
Q46: Total
F47: Small | G47: Large | I47: Opening | J47: Opening | M47: ------- Headrig ------- | Q47: Number | T47: Total
C48: Log | D48: Sawing | E48: Taper | F48: End | G48: End | H48: Log | I48: Face | J48: Face | K48: Cant | L48: Cant | N48: Sawing | O48: Saw | P48: Green | Q48: Boards | S48: Total | T48: Recovery | U48: Profit / | X48: Total | Y48: ------------------- Lumber Recovery by NHLA Grade -------------------
B49: Species | C49: Grade | D49: Method | E49: Method | F49: Diameter | G49: Diameter | H49: Length | I49: Width | J49: Length | K49: Height | L49: Width | M49: Thickness | N49: Variation | O49: Kerf | P49: Allowance | Q49: Sawn | R49: LRF | S49: Costs | T49: Value | U49: Loss | V49: Lumber | W49: Cant | X49: Recovery | Y49: FAS | Z49: F1F | AA49: Selects | AB49: 1 Com. | AC49: 2 Com. | AD49: 3A Com | AE49: 3B Com
F50: (inch) | G50: (inch) | H50: (feet) | I50: (inch) | J50: (feet) | K50: (inch) | L50: (inch) | M50: (inch) | N50: (inch) | O50: (inch) | P50: (inch) | S50: ($) | T50: ($) | U50: ($) | V50: (bdft) | W50: (bdft) | X50: (bdft) | Y50: (bdft) | Z50: (bdft) | AA50: (bdft) | AB50: (bdft) | AC50: (bdft) | AD50: (bdft) | AE50: (bdft)
B51: ROAK | C51: Factory-2 | D51: SPLIT | E51: GRADE | F51: 20 | G51: 23.5 | H51: 16 | I51: 6 | J51: 8 | K51: 6 | L51: 0 | M51: 1 | N51: 0.03 | O51: 0.125 | P51: 0.125 | Q51: 26 | R51: 7.230882254 | S51: 169.3235 | T51: 234.4644 | U51: 65.1409 | V51: 300.855723 | W51: 0 | X51: 300.855723 | Y51: 32.19156236 | Z51: 35.20011959 | AA51: 3.610268676 | AB51: 97.77810999 | AC51: 65.2856919 | AD51: 34.89926387 | AE51: 31.89070664
B52: WOAK | C52: 2-Clear-Face | D52: SPLIT | E52: GRADE | F52: 22 | G52: 26 | H52: 16 | I52: 6 | J52: 8 | K52: 6 | L52: 0 | M52: 1 | N52: 0.03 | O52: 0.125 | P52: 0.125 | Q52: 30 | R52: 7.344034253 | S52: 205.4171 | T52: 252.3574 | U52: 46.9403 | V52: 372.2277004 | W52: 0 | X52: 372.2277004 | Y52: 30.52267144 | Z52: 23.45034513 | AA52: 6.700098608 | AB52: 150.0077633 | AC52: 62.53425367 | AD52: 16.37801882 | AE52: 20.10029582
B53: WOAK | C53: 3-Clear-Face | D53: SPLIT | E53: GRADE | F53: 22 | G53: 26 | H53: 16 | I53: 6 | J53: 8 | K53: 6 | L53: 0 | M53: 1 | N53: 0.03 | O53: 0.125 | P53: 0.125 | Q53: 30 | R53: 7.344034253 | S53: 249.7921 | T53: 328.1466 | U53: 78.3546 | V53: 372.2277004 | W53: 0 | X53: 372.2277004 | Y53: 52.85633346 | Z53: 72.21217388 | AA53: 11.91128641 | AB53: 150.0077633 | AC53: 62.53425367 | AD53: 16.37801882 | AE53: 6.327870907
B54: ROAK | C54: Factory-2 | D54: SPLIT | E54: GRADE | F54: 20 | G54: 23.5 | H54: 16 | I54: 6 | J54: 8 | K54: 6 | L54: 0 | M54: 1 | N54: 0.03 | O54: 0.125 | P54: 0.125 | Q54: 26 | R54: 7.230882254 | S54: 132.6999 | T54: 146.9942 | U54: 14.2943 | V54: 300.855723 | W54: 0 | X54: 300.855723 | Y54: 40.64624759 | Z54: 30.61266155 | AA54: 5.025001647 | AB54: 114.721413 | AC54: 62.87682301 | AD54: 29.05481118 | AE54: 17.91876508
B55: ROAK | C55: Factory-2 | D55: SPLIT | E55: GRADE | F55: 20 | G55: 23.5 | H55: 16 | I55: 6 | J55: 8 | K55: 6 | L55: 0 | M55: 1 | N55: 0.03 | O55: 0.125 | P55: 0.125 | Q55: 26 | R55: 7.230882254 | S55: 132.6999 | T55: 143.0148 | U55: 10.3149 | V55: 300.855723 | W55: 0 | X55: 300.855723 | Y55: 32.19156236 | Z55: 35.20011959 | AA55: 3.610268676 | AB55: 97.77810999 | AC55: 65.2856919 | AD55: 34.89926387 | AE55: 31.89070664

Sheet Batch Sawing
A1: Batch Sawing Input Variables | S1: Batch Sawing Output
A4: Processing Setup | F4: Log Size Distribution Setup
A5: Opening Face Width | D5: 6 | F5: Number of Samples | J5: 125
A6: Opening Face Length | D6: 8 | F6: Mean Small End Diameter | J6: 17
A7: Cant Height | D7: 6 | F7: Small End Diameter Std Deviation | J7: 2.5
A8: Cant Width | D8: 0 | F8: Mean Taper | J8: 2
A9: Lumber Thickness | D9: 1 | E9: Headrig | F9: Taper Std Deviation | J9: 1
A10: Kerf Thickness | D10: 0.13 | F10: Log Length | J10: 16
A11: Sawing Variation | D11: 0.035 | F11: Log Grade | J11: Factory-2
A12: Target Thickness | D12: =D9+(D10*D9)+1.97*D11 -> 1.19895 | F12: Species | J12: ROAK
A13: Lumber Thickness | D13: 1 | E13: Resaw | F13: SED Under 8" Protection | J13: YES
A14: Kerf Thickness | D14: 0.13 | F14: Profit Loss Analysis uses | J14: Clear Face Grades
A15: Sawing Variation | D15: 0.035
A16: Target Thickness | D16: =D13+(D14*D9)+1.97*D15 -> 1.19895 | F16: SED Range | H16: =J6-2*J7 -> 12 | I16: to | J16: =J6+2*J7 -> 22
A17: Green Allowance | D17: 0.125 | F17: LED Range | H17: =H16+J8-2*J9 -> 12 | I17: to | J17: =J16+J8+2*J9 -> 26
A18: Sawing Method | D18: GRADE | F18: Taper Range | H18: =J8-2*J9 -> 0 | I18: to | J18: =J8+2*J9 -> 4
A19: Split or Full Taper? | D19: SPLIT
A20: =IF(AND(OR(D18="GRADE",D18="SLAB"),D7=0),"Warning!: A cant height of 0 will override the sawing method and force live-sawing to be performed.","No warnings or errors. Check out the 'About' tab for more information about LORCAT and how to contact the authors.") -> No warnings or errors. Check out the 'About' tab for more information about LORCAT and how to contact the authors.
AC21: Revenue Cost Analysis | AJ21: Over-run Analysis | AP21: LRF Statistics | AR21: Board Width Distribution Summary
A22: Small | B22: Large | F22: Opening | G22: Opening | I22: Split or | M22: --------- Headrig --------- | P22: --------- Resaw -------- | T22: Total | AC22: Total | AE22: Total | AQ22: Log
A23: End | B23: End | C23: Log | D23: Log | F23: Face | G23: Face | H23: Sawing | I23: Full | J23: Cant | K23: Cant | L23: Green | M23: Lumber | N23: Kerf | O23: Sawing | P23: Lumber | Q23: Kerf | R23: Sawing | S23: Board | T23: Recovery | U23: Cant | V23: FAS | W23: F1F | X23: Selects | Y23: 1C | Z23: 2AC | AA23: 3AC | AB23: 3BC | AC23: Product | AD23: Cant | AE23: Lumber | AF23: Total | AG23: Log | AH23: Processing | AI23: Profit | AJ23: Int 1/4 | AK23: Int 1/4 | AL23: Scribner | AM23: Scriber | AN23: Doyle | AO23: Doyle | AP23: Log | AQ23: Recovery | AR23: =SUM(AR25:AR1997) -> 0 | AS23: =SUM(AS25:AS1997) -> 0 | AT23: 8 | AU23: 1003 | AV23: 339 | AW23: 362 | AX23: 282 | AY23: 202 | AZ23: 78 | BA23: 49 | BB23: 110 | BC23: 89 | BD23: 31 | BE23: 0 | BF23: 0 | BG23: 0
A24: Diameter | B24: Diameter | C24: Length | D24: Grade | E24: Species | F24: Width | G24: Length | H24: Method | I24: Taper | J24: Height | K24: Width | L24: Allowance | M24: Thickness | N24: Thickness | O24: Variation | P24: Thickness | Q24: Thickness | R24: Variation | S24: Count | T24: BDFT | U24: BDFT | V24: BDFT | W24: BDFT | X24: BDFT | Y24: BDFT | Z24: BDFT | AA24: BDFT | AB24: BDFT | AC24: Value | AD24: Value | AE24: Value | AF24: Costs | AG24: Cost | AH24: Cost | AI24: Loss | AJ24: Volume | AK24: Over-run | AL24: Volume | AM24: Over-run | AN24: Volume | AO24: Over-run | AP24: Cubic Feet | AQ24: Factor | AR24: =BatchProcess!S68 -> < 4 | AS24: =BatchProcess!S69 -> 4<= wid <5 | AT24: =BatchProcess!S70 -> 5<= wid <6 | AU24: =BatchProcess!S71 -> 6<= wid <7 | AV24: =BatchProcess!S72 -> 7<= wid <8 | AW24: =BatchProcess!S73 -> 8<= wid <9 | AX24: =BatchProcess!S74 -> 9<= wid <10 | AY24: =BatchProcess!S75 -> 10<= wid <11 | AZ24: =BatchProcess!S76 -> 11<= wid <12 | BA24: =BatchProcess!S77 -> 12<= wid <13 | BB24: =BatchProcess!S78 -> 13<= wid <14 | BC24: =BatchProcess!S79 -> 14<= wid <15 | BD24: =BatchProcess!S80 -> 15<= wid <16 | BE24: =BatchProcess!S81 -> 16<= wid <17 | BF24: =BatchProcess!S82 -> 17<= wid <18 | BG24: =BatchProcess!S83 -> 18<= wid <30
A25: 21.34788884 | B25: 24.02528255 | C25: 16 | D25: Factory-2 | E25: ROAK | F25: 6 | G25: 8 | H25: GRADE | I25: SPLIT | J25: 6 | K25: 0 | L25: 0.125 | M25: 1 | N25: 0.13 | O25: 0.035 | P25: 1 | Q25: 0.13 | R25: 0.035 | S25: 27 | T25: 335.5755189 | U25: 0 | V25: 48.1577101 | W25: 35.08763482 | X25: 5.425583765 | Y25: 130.7760133 | Z25: 67.45031759 | AA25: 29.44232209 | AB25: 19.23593724 | AC25: 220.6732164 | AD25: 0 | AE25: 220.6732164 | AF25: 133.7685569 | AG25: 64.64 | AH25: 69.12855689 | AI25: 86.90465956 | AJ25: 320 | AK25: 0.04867349644 | AL25: 300 | AM25: 0.1185850629 | AN25: 289 | AO25: 0.1611609649 | AP25: 45.13296442 | AQ25: 7.435264295 | AR25: 0 | AS25: 0 | AT25: 0 | AU25: 4 | AV25: 6 | AW25: 2 | AX25: 6 | AY25: 0 | AZ25: 2 | BA25: 2 | BB25: 1 | BC25: 4 | BD25: 0 | BE25: 0 | BF25: 0 | BG25: 0
A26: 15.73189308 | B26: 15.92947365 | C26: 16 | D26: Factory-2 | E26: ROAK | F26: 6 | G26: 8 | H26: GRADE | I26: SPLIT | J26: 6 | K26: 0 | L26: 0.125 | M26: 1 | N26: 0.13 | O26: 0.035 | P26: 1 | Q26: 0.13 | R26: 0.035 | S26: 17 | T26: 157.7777859 | U26: 0 | V26: 14.06732475 | W26: 13.0712028 | X26: 4.177344348 | Y26: 51.26428202 | Z26: 41.52131431 | AA26: 24.17202969 | AB26: 9.504287959 | AC26: 97.00553943 | AD26: 0 | AE26: 97.00553943 | AF26: 63.81222389 | AG26: 31.31 | AH26: 32.50222389 | AI26: 33.19331554 | AJ26: 155 | AK26: 0.01792119925 | AL26: 140 | AM26: 0.1269841849 | AN26: 121 | AO26: 0.3039486437 | AP26: 21.90091398 | AQ26: 7.204164447 | AR26: 0 | AS26: 0 | AT26: 0 | AU26: 10 | AV26: 0 | AW26: 2 | AX26: 1 | AY26: 4 | AZ26: 0 | BA26: 0 | BB26: 0 | BC26: 0 | BD26: 0 | BE26: 0 | BF26: 0 | BG26: 0
A27: 13.78357079 | B27: 16.7722993 | C27: 16 | D27: Factory-2 | E27: ROAK | F27: 6 | G27: 8 | H27: GRADE | I27: SPLIT | J27: 6 | K27: 0 | L27: 0.125 | M27: 1 | N27: 0.13 | O27: 0.035 | P27: 1 | Q27: 0.13 | R27: 0.035 | S27: 16 | T27: 129.5007863 | U27: 0 | V27: 8.971735623 | W27: 9.472016079 | X27: 4.355762668 | Y27: 38.33222358 | Z27: 37.69522515 | AA27: 23.4741946 | AB27: 7.199628633 | AC27: 77.57679563 | AD27: 0 | AE27: 77.57679563 | AF27: 49.90716198 | AG27: 23.23 | AH27: 26.67716198 | AI27: 27.66963365 | AJ27: 115 | AK27: 0.1260937942 | AL27: 100 | AM27: 0.2950078633 | AN27: 81 | AO27: 0.5987751399 | AP27: 20.59256953 | AQ27: 6.288714292 | AR27: 0 | AS27: 0 | AT27: 0 | AU27: 9 | AV27: 6 | AW27: 1 | AX27: 0 | AY27: 0 | AZ27: 0 | BA27: 0 | BB27: 0 | BC27: 0 | BD27: 0 | BE27: 0 | BF27: 0 | BG27: 0
A28: 18.83710403 | B28: 21.41958958 | C28: 16 | D28: Factory-2 | E28: ROAK | F28: 6 | G28: 8 | H28: GRADE | I28: SPLIT | J28: 6 | K28: 0 | L28: 0.125 | M28: 1 | N28: 0.13 | O28: 0.035 | P28: 1 | Q28: 0.13 | R28: 0.035 | S28: 23 | T28: 261.3050852 | U28: 0 | V28: 30.69270528 | W28: 24.86228582 | X28: 5.015789655 | Y28: 94.48727092 | Z28: 59.5432305 | AA28: 30.51746227 | AB28: 16.18634075 | AC28: 166.4961435 | AD28: 0 | AE28: 166.4961435 | AF28: 100.2888476 | AG28: 46.46 | AH28: 53.82884755 | AI28: 66.20729595 | AJ28: 230 | AK28: 0.1361090661 | AL28: 220 | AM28: 0.1877503873 | AN28: 196 | AO28: 0.3331892102 | AP28: 35.55050644 | AQ28: 7.350249302 | AR28: 0 | AS28: 0 | AT28: 0 | AU28: 4 | AV28: 6 | AW28: 6 | AX28: 2 | AY28: 0 | AZ28: 1 | BA28: 0 | BB28: 4 | BC28: 0 | BD28: 0 | BE28: 0 | BF28: 0 | BG28: 0
A29: 13.47332857 | B29: 13.83849319 | C29: 16 | D29: Factory-2 | E29: ROAK | F29: 6 | G29: 8 | H29: GRADE | I29: SPLIT | J29: 6 | K29: 0 | L29: 0.125 | M29: 1 | N29: 0.13 | O29: 0.035 | P29: 1 | Q29: 0.13 | R29: 0.035 | S29: 13 | T29: 112.7904524 | U29: 0 | V29: 7.814053865 | W29: 8.24977986 | X29: 3.793710108 | Y29: 33.38596593 | Z29: 32.83116357 | AA29: 20.44516566 | AB29: 6.270613437 | AC29: 67.56655403 | AD29: 0 | AE29: 67.56655403 | AF29: 46.4648332 | AG29: 23.23 | AH29: 23.2348332 | AI29: 21.10172083 | AJ29: 115 | AK29: -0.01921345715 | AL29: 100 | AM29: 0.1279045243 | AN29: 81 | AO29: 0.3924747213 | AP29: 16.29915081 | AQ29: 6.920020172 | AR29: 0 | AS29: 0 | AT29: 0 | AU29: 9 | AV29: 0 | AW29: 0 | AX29: 4 | AY29: 0 | AZ29: 0 | BA29: 0 | BB29: 0 | BC29: 0 | BD29: 0 | BE29: 0 | BF29: 0 | BG29: 0
A30: 20.57600254 | B30: 21.44211172 | C30: 16 | D30: Factory-2 | E30: ROAK | F30: 6 | G30: 8 | H30: GRADE | I30: SPLIT | J30: 6 | K30: 0 | L30: 0.125 | M30: 1 | N30: 0.13 | O30: 0.035 | P30: 1 | Q30: 0.13 | R30: 0.035 | S30: 25 | T30: 299.9466486 | U30: 0 | V30: 40.52342969 | W30: 30.52016143 | X30: 5.009817955 | Y30: 114.3747674 | Z30: 62.68683256 | AA30: 28.96701831 | AB30: 17.86462122 | AC30: 195.2720988 | AD30: 0 | AE30: 195.2720988 | AF30: 120.3690096 | AG30: 58.58 | AH30: 61.78900961 | AI30: 74.90308917 | AJ30: 290 | AK30: 0.03429878817 | AL30: 270 | AM30: 0.1109135132 | AN30: 256 | AO30: 0.171666596 | AP30: 38.58723076 | AQ30: 7.773210015 | AR30: 0 | AS30: 0 | AT30: 0 | AU30: 10 | AV30: 0 | AW30: 2 | AX30: 2 | AY30: 6 | AZ30: 0 | BA30: 1 | BB30: 0 | BC30: 4 | BD30: 0 | BE30: 0 | BF30: 0 | BG30: 0
A31: 16.89768912 | B31: 18.04580843 | C31: 16 | D31: Factory-2 | E31: ROAK | F31: 6 | G31: 8 | H31: GRADE | I31: SPLIT | J31: 6 | K31: 0 | L31: 0.125 | M31: 1 | N31: 0.13 | O31: 0.035 | P31: 1 | Q31: 0.13 | R31: 0.035 | S31: 19 | T31: 188.9290756 | U31: 0 | V31: 18.66883306 | W31: 16.48511472 | X31: 4.455238437 | Y31: 63.86959081 | Z31: 47.32569702 | AA31: 26.50313956 | AB31: 11.62146198 | AC31: 117.6015688 | AD31: 0 | AE31: 117.6015688 | AF31: 75.27938957 | AG31: 36.36 | AH31: 38.91938957 | AI31: 42.32217925 | AJ31: 180 | AK31: 0.04960597548 | AL31: 170 | AM31: 0.1113475035 | AN31: 144 | AO31: 0.3120074694 | AP31: 26.70467784 | AQ31: 7.074755844 | AR31: 0 | AS31: 0 | AT31: 0 | AU31: 4 | AV31: 6 | AW31: 2 | AX31: 6 | AY31: 0 | AZ31: 1 | BA31: 0 | BB31: 0 | BC31: 0 | BD31: 0 | BE31: 0 | BF31: 0 | BG31: 0
A32: 18.00763992 | B32: 20.43777163 | C32: 16 | D32: Factory-2 | E32: ROAK | F32: 6 | G32: 8 | H32: GRADE | I32: SPLIT | J32: 6 | K32: 0 | L32: 0.125 | M32: 1 | N32: 0.13 | O32: 0.035 | P32: 1 | Q32: 0.13 | R32: 0.035 | S32: 22 | T32: 237.1240599 | U32: 0 | V32: 27.85241963 | W32: 22.56154391 | X32: 4.551631307 | Y32: 85.74347212 | Z32: 54.0331335 | AA32: 27.69339352 | AB32: 14.6884659 | AC32: 151.0886842 | AD32: 0 | AE32: 151.0886842 | AF32: 95.30755634 | AG32: 46.46 | AH32: 48.84755634 | AI32: 55.78112788 | AJ32: 230 | AK32: 0.03097417342 | AL32: 220 | AM32: 0.07783663585 | AN32: 196 | AO32: 0.2098166321 | AP32: 32.41953663 | AQ32: 7.31423347 | AR32: 0 | AS32: 0 | AT32: 0 | AU32: 9 | AV32: 2 | AW32: 6 | AX32: 0 | AY32: 1 | AZ32: 0 | BA32: 0 | BB32: 4 | BC32: 0 | BD32: 0 | BE32: 0 | BF32: 0 | BG32: 0
A33: 20.34991158 | B33: 20.68243784 | C33: 16 | D33: Factory-2 | E33: ROAK | F33: 6 | G33: 8 | H33: GRADE | I33: SPLIT | J33: 6 | K33: 0 | L33: 0.125 | M33: 1 | N33: 0.13 | O33: 0.035 | P33: 1 | Q33: 0.13 | R33: 0.035 | S33: 24 | T33: 275.5388235 | U33: 0 | V33: 37.22588066 | W33: 28.03661723 | X33: 4.602149589 | Y33: 105.0676479 | Z33: 57.58576126 | AA33: 26.60985941 | AB33: 16.41090753 | AC33: 179.3820489 | AD33: 0 | AE33: 179.3820489 | AF33: 115.3409977 | AG33: 58.58 | AH33: 56.76099765 | AI33: 64.0410512 | AJ33: 290 | AK33: -0.04986612571 | AL33: 270 | AM33: 0.02051416128 | AN33: 256 | AO33: 0.07632352947 | AP33: 36.78470697 | AQ33: 7.490580904 | AR33: 0 | AS33: 0 | AT33: 0 | AU33: 9 | AV33: 2 | AW33: 0 | AX33: 2 | AY33: 2 | AZ33: 6 | BA33: 2 | BB33: 0 | BC33: 1 | BD33: 0 | BE33: 0 | BF33: 0 | BG33: 0
A34: 21.60921049 | B34: 23.34624032 | C34: 16 | D34: Factory-2 | E34: ROAK | F34: 6 | G34: 8 | H34: GRADE | I34: SPLIT | J34: 6 | K34: 0 | L34: 0.125 | M34: 1 | N34: 0.13 | O34: 0.035 | P34: 1 | Q34: 0.13 | R34: 0.035 | S34: 27 | T34: 337.1791813 | U34: 0 | V34: 48.3878482 | W34: 35.25531309 | X34: 5.451511774 | Y34: 131.4009712 | Z34: 67.77265201 | AA34: 29.5830223 | AB34: 19.32786275 | AC34: 221.7277789 | AD34: 0 | AE34: 221.7277789 | AF34: 134.0989114 | AG34: 64.64 | AH34: 69.45891135 | AI34: 87.62886758 | AJ34: 320 | AK34: 0.05368494163 | AL34: 300 | AM34: 0.1239306044 | AN34: 289 | AO34: 0.16670997 | AP34: 44.21795243 | AQ34: 7.625391109 | AR34: 0 | AS34: 0 | AT34: 0 | AU34: 4 | AV34: 6 | AW34: 2 | AX34: 2 | AY34: 4 | AZ34: 2 | BA34: 2 | BB34: 1 | BC34: 0 | BD34: 4 | BE34: 0 | BF34: 0 | BG34: 0
A35: 22.31816008 | B35: 23.76069169 | C35: 16 | D35: Factory-2 | E35: ROAK | F35: 6 | G35: 8 | H35: GRADE | I35: SPLIT | J35: 6 | K35: 0 | L35: 0.125 | M35: 1 | N35: 0.13 | O35: 0.035 | P35: 1 | Q35: 0.13 | R35: 0.035 | S35: 28 | T35: 353.8487103 | U35: 0 | V35: 53.64959187 | W35: 37.87339523 | X35: 5.698992369 | Y35: 140.5144169 | Z35: 68.63928132 | AA35: 28.22362579 | AB35: 19.24940687 | AC35: 234.9273515 | AD35: 0 | AE35: 234.9273515 | AF35: 144.6028343 | AG35: 71.71 | AH35: 72.89283433 | AI35: 90.32451719 | AJ35: 355 | AK35: -0.003243069508 | AL35: 330 | AM35: 0.07226881917 | AN35: 324 | AO35: 0.09212564915 | AP35: 46.43171537 | AQ35: 7.620840787 | AR35: 0 | AS35: 0 | AT35: 0 | AU35: 9 | AV35: 2 | AW35: 0 | AX35: 2 | AY35: 6 | AZ35: 2 | BA35: 2 | BB35: 0 | BC35: 1 | BD35: 4 | BE35: 0 | BF35: 0 | BG35: 0
A36: 13.94904016 | B36: 16.24298177 | C36: 16 | D36: Factory-2 | E36: ROAK | F36: 6 | G36: 8 | H36: GRADE | I36: SPLIT | J36: 6 | K36: 0 | L36: 0.125 | M36: 1 | N36: 0.13 | O36: 0.035 | P36: 1 | Q36: 0.13 | R36: 0.035 | S36: 15 | T36: 129.5832402 | U36: 0 | V36: 8.977447977 | W36: 9.478046964 | X36: 4.358536007 | Y36: 38.35662992 | Z36: 37.71922591 | AA36: 23.48914075 | AB36: 7.204212677 | AC36: 77.62618921 | AD36: 0 | AE36: 77.62618921 | AF36: 49.92414748 | AG36: 23.23 | AH36: 26.69414748 | AI36: 27.70204173 | AJ36: 115 | AK36: 0.1268107844 | AL36: 100 | AM36: 0.295832402 | AN36: 81 | AO36: 0.5997930889 | AP36: 20.02950692 | AQ36: 6.469617086 | AR36: 0 | AS36: 0 | AT36: 0 | AU36: 4 | AV36: 6 | AW36: 5 | AX36: 0 | AY36: 0 | AZ36: 0 | BA36: 0 | BB36: 0 | BC36: 0 | BD36: 0 | BE36: 0 | BF36: 0 | BG36: 0
A37: 17.78645693 | B37: 20.38073545 | C37: 16 | D37: Factory-2 | E37: ROAK | F37: 6 | G37: 8 | H37: GRADE | I37: SPLIT | J37: 6 | K37: 0 | L37: 0.125 | M37: 1 | N37: 0.13 | O37: 0.035 | P37: 1 | Q37: 0.13 | R37: 0.035 | S37: 22 | T37: 233.6507889 | U37: 0 | V37: 25.29349765 | W37: 21.34599605 | X37: 4.942401101 | Y37: 81.84712534 | Z37: 55.77758704 | AA37: 29.93882414 | AB37: 14.50535759 | AC37: 147.1808632 | AD37: 0 | AE37: 147.1808632 | AF37: 89.54206251 | AG37: 41.41 | AH37: 48.13206251 | AI37: 57.63880073 | AJ37: 205 | AK37: 0.1397599459 | AL37: 190 | AM37: 0.2297409942 | AN37: 169 | AO37: 0.3825490468 | AP37: 31.97188985 | AQ37: 7.308006814 | AR37: 0 | AS37: 0 | AT37: 0 | AU37: 9 | AV37: 2 | AW37: 6 | AX37: 0 | AY37: 1 | AZ37: 0 | BA37: 0 | BB37: 4 | BC37: 0 | BD37: 0 | BE37: 0 | BF37: 0 | BG37: 0
A38: 22.66881524 | B38: 25.15203729 | C38: 16 | D38: Factory-2 | E38: ROAK | F38: 6 | G38: 8 | H38: GRADE | I38: SPLIT | J38: 6 | K38: 0 | L38: 0.125 | M38: 1 | N38: 0.13 | O38: 0.035 | P38: 1 | Q38: 0.13 | R38: 0.035 | S38: 29 | T38: 377.9850499 | U38: 0 | V38: 57.3090789 | W38: 40.45677366 | X38: 6.087725776 | Y38: 150.0990319 | Z38: 73.32122857 | AA38: 30.14878475 | AB38: 20.56242627 | AC38: 250.951958 | AD38: 0 | AE38: 250.951958 | AF38: 149.5749203 | AG38: 71.71 | AH38: 77.86492027 | AI38: 101.3770377 | AJ38: 355 | AK38: 0.06474661933 | AL38: 330 | AM38: 0.145409242 | AN38: 324 | AO38: 0.1666205243 | AP38: 50.09450939 | AQ38: 7.545438702 | AR38: 0 | AS38: 0 | AT38: 0 | AU38: 4 | AV38: 6 | AW38: 2 | AX38: 6 | AY38: 0 | AZ38: 2 | BA38: 2 | BB38: 2 | BC38: 0 | BD38: 5 | BE38: 0 | BF38: 0 | BG38: 0
A39: 17.37372218 | B39: 19.98265453 | C39: 16 | D39: Factory-2 | E39: ROAK | F39: 6 | G39: 8 | H39: GRADE | I39: SPLIT | J39: 6 | K39: 0 | L39: 0.125 | M39: 1 | N39: 0.13 | O39: 0.035 | P39: 1 | Q39: 0.13 | R39: 0.035 | S39: 21 | T39: 225.939471 | U39: 0 | V39: 24.4587211 | W39: 20.64150127 | X39: 4.779284058 | Y39: 79.14587532 | Z39: 53.9367257 | AA39: 28.95073508 | AB39: 14.02662853 | AC39: 142.3233645 | AD39: 0 | AE39: 142.3233645 | AF39: 87.95353104 | AG39: 41.41 | AH39: 46.54353104 | AI39: 54.36983344 | AJ39: 205 | AK39: 0.1021437612 | AL39: 190 | AM39: 0.1891551108 | AN39: 169 | AO39: 0.336919947 | AP39: 30.63575727 | AQ39: 7.375024845 | AR39: 0 | AS39: 0 | AT39: 0 | AU39: 4 | AV39: 6 | AW39: 6 | AX39: 1 | AY39: 0 | AZ39: 0 | BA39: 0 | BB39: 4 | BC39: 0 | BD39: 0 | BE39: 0 | BF39: 0 | BG39: 0
A40: 18.97686321 | B40: 19.74408914 | C40: 16 | D40: Factory-2 | E40: ROAK | F40: 6 | G40: 8 | H40: GRADE | I40: SPLIT | J40: 6 | K40: 0 | L40: 0.125 | M40: 1 | N40: 0.13 | O40: 0.035 | P40: 1 | Q40: 0.13 | R40: 0.035 | S40: 22 | T40: 237.6936652 | U40: 0 | V40: 27.91932506 | W40: 22.6157399 | X40: 4.562564965 | Y40: 85.94943999 | Z40: 54.16292868 | AA40: 27.75991694 | AB40: 14.72374966 | AC40: 151.4516205 | AD40: 0 | AE40: 151.4516205 | AF40: 95.42489503 | AG40: 46.46 | AH40: 48.96489503 | AI40: 56.02672544 | AJ40: 230 | AK40: 0.03345071827 | AL40: 220 | AM40: 0.08042575092 | AN40: 196 | AO40: 0.2127227816 | AP40: 32.76789501 | AQ40: 7.25385824 | AR40: 0 | AS40: 0 | AT40: 0 | AU40: 9 | AV40: 2 | AW40: 0 | AX40: 2 | AY40: 6 | AZ40: 2 | BA40: 0 | BB40: 1 | BC40: 0 | BD40: 0 | BE40: 0 | BF40: 0 | BG40: 0
A41: 13.72985821 | B41: 17.40409342 | C41: 16 | D41: Factory-2 | E41: ROAK | F41: 6 | G41: 8 | H41: GRADE | I41: SPLIT | J41: 6 | K41: 0 | L41: 0.125 | M41: 1 | N41: 0.13 | O41: 0.035 | P41: 1 | Q41: 0.13 | R41: 0.035 | S41: 16 | T41: 129.7225662 | U41: 0 | V41: 8.987100397 | W41: 9.488237622 | X41: 4.363222241 | Y41: 38.39787041 | Z41: 37.75978107 | AA41: 23.51439593 | AB41: 7.211958541 | AC41: 77.70965175 | AD41: 0 | AE41: 77.70965175 | AF41: 49.95284864 | AG41: 23.23 | AH41: 26.72284864 | AI41: 27.75680311 | AJ41: 115 | AK41: 0.1280223148 | AL41: 100 | AM41: 0.2972256621 | AN41: 81 | AO41: 0.601513163 | AP41: 21.47144629 | AQ41: 6.041631498 | AR41: 0 | AS41: 0 | AT41: 0 | AU41: 9 | AV41: 6 | AW41: 0 | AX41: 1 | AY41: 0 | AZ41: 0 | BA41: 0 | BB41: 0 | BC41: 0 | BD41: 0 | BE41: 0 | BF41: 0 | BG41: 0
A42: 19.76804503 | B42: 22.83928445 | C42: 16 | D42: Factory-2 | E42: ROAK | F42: 6 | G42: 8 | H42: GRADE | I42: SPLIT | J42: 6 | K42: 0 | L42: 0.125 | M42: 1 | N42: 0.13 | O42: 0.035 | P42: 1 | Q42: 0.13 | R42: 0.035 | S42: 25 | T42: 291.4708239 | U42: 0 | V42: 36.84606404 | W42: 28.74278185 | X42: 5.16230136 | Y42: 108.4105625 | Z42: 63.52717467 | AA42: 30.97242622 | AB42: 17.80951325 | AC42: 187.7685888 | AD42: 0 | AE42: 187.7685888 | AF42: 112.5629897 | AG42: 52.52 | AH42: 60.04298972 | AI42: 75.20559911 | AJ42: 260 | AK42: 0.1210416304 | AL42: 240 | AM42: 0.2144617663 | AN42: 225 | AO42: 0.295425884 | AP42: 39.86624557 | AQ42: 7.311218294 | AR42: 0 | AS42: 0 | AT42: 0 | AU42: 4 | AV42: 6 | AW42: 6 | AX42: 2 | AY42: 0 | AZ42: 2 | BA42: 1 | BB42: 0 | BC42: 4 | BD42: 0 | BE42: 0 | BF42: 0 | BG42: 0
A43: 14.14316203 | B43: 15.54186993 | C43: 16 | D43: Factory-2 | E43: ROAK | F43: 6 | G43: 8 | H43: GRADE | I43: SPLIT | J43: 6 | K43: 0 | L43: 0.125 | M43: 1 | N43: 0.13 | O43: 0.035 | P43: 1 | Q43: 0.13 | R43: 0.035 | S43: 15 | T43: 130.5724989 | U43: 0 | V43: 10.35540318 | W43: 10.20265824 | X43: 3.894987027 | Y43: 40.59288311 | Z43: 36.12966307 | AA43: 21.78924825 | AB43: 7.607656053 | AC43: 79.2591027 | AD43: 0 | AE43: 79.2591027 | AF43: 54.16793478 | AG43: 27.27 | AH43: 26.89793478 | AI43: 25.09116792 | AJ43: 135 | AK43: -0.0327963042 | AL43: 120 | AM43: 0.08810415777 | AN43: 100 | AO43: 0.3057249893 | AP43: 19.29408446 | AQ43: 6.767488721 | AR43: 0 | AS43: 0 | AT43: 0 | AU43: 10 | AV43: 0 | AW43: 5 | AX43: 0 | AY43: 0 | AZ43: 0 | BA43: 0 | BB43: 0 | BC43: 0 | BD43: 0 | BE43: 0 | BF43: 0 | BG43: 0
A44: 20.35783166 | B44: 24.03528307 | C44: 16 | D44: Factory-2 | E44: ROAK | F44: 6 | G44: 8 | H44: GRADE | I44: SPLIT | J44: 6 | K44: 0 | L44: 0.125 | M44: 1 | N44: 0.13 | O44: 0.035 | P44: 1 | Q44: 0.13 | R44: 0.035 | S44: 27 | T44: 316.5211449 | U44: 0 | V44: 42.76267937 | W44: 32.20664903 | X44: 5.286651217 | Y44: 120.6949052 | Z44: 66.15079083 | AA44: 30.5676821 | AB44: 18.8517871 | AC44: 206.0624733 | AD44: 0 | AE44: 206.0624733 | AF44: 123.7833558 | AG44: 58.58 | AH44: 65.20335584 | AI44: 82.27911746 | AJ44: 290 | AK44: 0.09145222365 | AL44: 270 | AM44: 0.1723005365 | AN44: 256 | AO44: 0.2364107221 | AP44: 43.34981785 | AQ44: 7.301556513 | AR44: 0 | AS44: 0 | AT44: 0 | AU44: 10 | AV44: 4 | AW44: 2 | AX44: 2 | AY44: 2 | AZ44: 0 | BA44: 2 | BB44: 1 | BC44: 4 | BD44: 0 | BE44: 0 | BF44: 0 | BG44: 0
A45: 16.39495856 | B45: 21.56293151 | C45: 16 | D45: Factory-2 | E45: ROAK | F45: 6 | G45: 8 | H45: GRADE | I45: SPLIT | J45: 6 | K45: 0 | L45: 0.125 | M45: 1 | N45: 0.13 | O45: 0.035 | P45: 1 | Q45: 0.13 | R45: 0.035 | S45: 22 | T45: 214.8846038 | U45: 0 | V45: 21.23360199 | W45: 18.74987921 | X45: 5.067309748 | Y45: 72.64414793 | Z45: 53.82741446 | AA45: 30.14420426 | AB45: 13.21804621 | AC45: 133.7579536 | AD45: 0 | AE45: 133.7579536 | AF45: 80.62622838 | AG45: 36.36 | AH45: 44.26622838 | AI45: 53.1317252 | AJ45: 180 | AK45: 0.1938033545 | AL45: 170 | AM45: 0.2640270812 | AN45: 144 | AO45: 0.4922541931 | AP45: 32.06024903 | AQ45: 6.702524476 | AR45: 0 | AS45: 0 | AT45: 0 | AU45: 13 | AV45: 2 | AW45: 2 | AX45: 0 | AY45: 1 | AZ45: 0 | BA45: 4 | BB45: 0 | BC45: 0 | BD45: 0 | BE45: 0 | BF45: 0 | BG45: 0
A46: 15.74364088 | B46: 17.19329951 | C46: 16 | D46: Factory-2 | E46: ROAK | F46: 6 | G46: 8 | H46: GRADE | I46: SPLIT | J46: 6 | K46: 0 | L46: 0.125 | M46: 1 | N46: 0.13 | O46: 0.035 | P46: 1 | Q46: 0.13 | R46: 0.035 | S46: 18 | T46: 162.5123055 | U46: 0 | V46: 14.48945024 | W46: 13.46343714 | X46: 4.30269608 | Y46: 52.80259583 | Z46: 42.76726586 | AA46: 24.89737229 | AB46: 9.789488042 | AC46: 99.91643481 | AD46: 0 | AE46: 99.91643481 | AF46: 64.78753493 | AG46: 31.31 | AH46: 33.47753493 | AI46: 35.12889988 | AJ46: 155 | AK46: 0.048466487 | AL46: 140 | AM46: 0.160802182 | AN46: 121 | AO46: 0.3430769048 | AP46: 23.74613877 | AQ46: 6.843736031 | AR46: 0 | AS46: 0 | AT46: 0 | AU46: 9 | AV46: 2 | AW46: 2 | AX46: 4 | AY46: 1 | AZ46: 0 | BA46: 0 | BB46: 0 | BC46: 0 | BD46: 0 | BE46: 0 | BF46: 0 | BG46: 0
A47: 12.9461601 | B47: 14.48097226 | C47: 16 | D47: Factory-2 | E47: ROAK | F47: 6 | G47: 8 | H47: GRADE | I47: SPLIT | J47: 6 | K47: 0 | L47: 0.125 | M47: 1 | N47: 0.13 | O47: 0.035 | P47: 1 | Q47: 0.13 | R47: 0.035 | S47: 13 | T47: 108.7311948 | U47: 0 | V47: 6.425399871 | W47: 7.379681064 | X47: 4.118847269 | Y47: 30.47692372 | Z47: 33.30090717 | AA47: 21.34910149 | AB47: 5.68033422 | AC47: 64.25341232 | AD47: 0 | AE47: 64.25341232 | AF47: 41.58862613 | AG47: 19.19 | AH47: 22.39862613 | AI47: 22.66478619 | AJ47: 95 | AK47: 0.1445388927 | AL47: 90 | AM47: 0.2081243867 | AN47: 64 | AO47: 0.6989249188 | AP47: 16.48559685 | AQ47: 6.595526739 | AR47: 0 | AS47: 0 | AT47: 0 | AU47: 4 | AV47: 5 | AW47: 4 | AX47: 0 | AY47: 0 | AZ47: 0 | BA47: 0 | BB47: 0 | BC47: 0 | BD47: 0 | BE47: 0 | BF47: 0 | BG47: 0
A48: 19.06006098 | B48: 21.64790403 | C48: 16 | D48: Factory-2 | E48: ROAK | F48: 6 | G48: 8 | H48: GRADE | I48: SPLIT | J48: 6 | K48: 0 | L48: 0.125 | M48: 1 | N48: 0.13 | O48: 0.035 | P48: 1 | Q48: 0.13 | R48: 0.035 | S48: 24 | T48: 266.6319683 | U48: 0 | V48: 33.70607887 | W48: 26.29335038 | X48: 4.722375139 | Y48: 99.17192149 | Z48: 58.11345161 | AA48: 28.33298666 | AB48: 16.29180413 | AC48: 171.7671352 | AD48: 0 | AE48: 171.7671352 | AF48: 107.4461855 | AG48: 52.52 | AH48: 54.92618547 | AI48: 64.32094976 | AJ48: 260 | AK48: 0.02550757032 | AL48: 240 | AM48: 0.1109665345 | AN48: 225 | AO48: 0.1850309701 | AP48: 36.34932553 | AQ48: 7.335265907 | AR48: 0 | AS48: 0 | AT48: 0 | AU48: 9 | AV48: 2 | AW48: 6 | AX48: 0 | AY48: 2 | AZ48: 1 | BA48: 0 | BB48: 0 | BC48: 4 | BD48: 0 | BE48: 0 | BF48: 0 | BG48: 0
A49: 15.9144815 | B49: 15.80487704 | C49: 16 | D49: Factory-2 | E49: ROAK | F49: 6 | G49: 8 | H49: GRADE | I49: SPLIT | J49: 6 | K49: 0 | L49: 0.125 | M49: 1 | N49: 0.13 | O49: 0.035 | P49: 1 | Q49: 0.13 | R49: 0.035 | S49: 17 | T49: 159.0080011 | U49: 0 | V49: 14.17700963 | W49: 13.17312078 | X49: 4.209915681 | Y49: 51.66399672 | Z49: 41.84506175 | AA49: 24.36050236 | AB49: 9.578394208 | AC49: 97.76190505 | AD49: 0 | AE49: 97.76190505 | AF49: 64.06564823 | AG49: 31.31 | AH49: 32.75564823 | AI49: 33.69625682 | AJ49: 155 | AK49: 0.02585807178 | AL49: 140 | AM49: 0.1357714366 | AN49: 121 | AO49: 0.3141157118 | AP49: 21.98062253 | AQ49: 7.234008087 | AR49: 0 | AS49: 0 | AT49: 0 | AU49: 10 | AV49: 0 | AW49: 2 | AX49: 1 | AY49: 4 | AZ49: 0 | BA49: 0 | BB49: 0 | BC49: 0 | BD49: 0 | BE49: 0 | BF49: 0 | BG49: 0
A50: 16.03124795 | B50: 17.72003121 | C50: 16 | D50: Factory-2 | E50: ROAK | F50: 6 | G50: 8 | H50: GRADE | I50: SPLIT | J50: 6 | K50: 0 | L50: 0.125 | M50: 1 | N50: 0.13 | O50: 0.035 | P50: 1 | Q50: 0.13 | R50: 0.035 | S50: 18 | T50: 167.7188598 | U50: 0 | V50: 16.57296731 | W50: 14.63440519 | X50: 3.955068898 | Y50: 56.69923971 | Z50: 42.01265431 | AA50: 23.52775153 | AB50: 10.31677282 | AC50: 104.3989707 | AD50: 0 | AE50: 104.3989707 | AF50: 70.91008511 | AG50: 36.36 | AH50: 34.55008511 | AI50: 33.4888856 | AJ50: 180 | AK50: -0.06822855681 | AL50: 170 | AM50: -0.01341847191 | AN50: 144 | AO50: 0.164714304 | AP50: 24.94895912 | AQ50: 6.72247924 | AR50: 0 | AS50: 0 | AT50: 0 | AU50: 9 | AV50: 2 | AW50: 0 | AX50: 6 | AY50: 1 | AZ50: 0 | BA50: 0 | BB50: 0 | BC50: 0 | BD50: 0 | BE50: 0 | BF50: 0 | BG50: 0
A51: 18.01649332 | B51: 19.78261639 | C51: 16 | D51: Factory-2 | E51: ROAK | F51: 6 | G51: 8 | H51: GRADE | I51: SPLIT | J51: 6 | K51: 0 | L51: 0.125 | M51: 1 | N51: 0.13 | O51: 0.035 | P51: 1 | Q51: 0.13 | R51: 0.035 | S51: 22 | T51: 223.2100845 | U51: 0 | V51: 26.2180942 | W51: 21.2376767 | X51: 4.284550498 | Y51: 80.71221313 | Z51: 50.86257507 | AA51: 26.06839943 | AB51: 13.82657549 | AC51: 142.2230962 | AD51: 0 | AE51: 142.2230962 | AF51: 92.44127741 | AG51: 46.46 | AH51: 45.98127741 | AI51: 49.78181877 | AJ51: 230 | AK51: -0.02952137159 | AL51: 220 | AM51: 0.01459129334 | AN51: 196 | AO51: 0.1388269619 | AP51: 31.28212438 | AQ51: 7.135387667 | AR51: 0 | AS51: 0 | AT51: 0 | AU51: 9 | AV51: 2 | AW51: 2 | AX51: 6 | AY51: 0 | AZ51: 2 | BA51: 1 | BB51: 0 | BC51: 0 | BD51: 0 | BE51: 0 | BF51: 0 | BG51: 0
A52: 15.87680589 | B52: 17.20995545 | C52: 16 | D52: Factory-2 | E52: ROAK | F52: 6 | G52: 8 | H52: GRADE | I52: SPLIT | J52: 6 | K52: 0 | L52: 0.125 | M52: 1 | N52: 0.13 | O52: 0.035 | P52: 1 | Q52: 0.13 | R52: 0.035 | S52: 18 | T52: 164.1997263 | U52: 0 | V52: 14.63989915 | W52: 13.60323261 | X52: 4.347372443 | Y52: 53.35086322 | Z52: 43.21133299 | AA52: 25.15589021 | AB52: 9.89113564 | AC52: 100.9539013 | AD52: 0 | AE52: 100.9539013 | AF52: 65.13514361 | AG52: 31.31 | AH52: 33.82514361 | AI52: 35.81875767 | AJ52: 155 | AK52: 0.05935307265 | AL52: 140 | AM52: 0.1728551876 | AN52: 121 | AO52: 0.3570225311 | AP52: 23.9551574 | AQ52: 6.854462425 | AR52: 0 | AS52: 0 | AT52: 0 | AU52: 9 | AV52: 2 | AW52: 2 | AX52: 4 | AY52: 1 | AZ52: 0 | BA52: 0 | BB52: 0 | BC52: 0 | BD52: 0 | BE52: 0 | BF52: 0 | BG52: 0
A53: 19.73869202 | B53: 21.87195984 | C53: 16 | D53: Factory-2 | E53: ROAK | F53: 6 | G53: 8 | H53: GRADE | I53: SPLIT | J53: 6 | K53: 0 | L53: 0.125 | M53: 1 | N53: 0.13 | O53: 0.035 | P53: 1 | Q53: 0.13 | R53: 0.035 | S53: 25 | T53: 287.5132976 | U53: 0 | V53: 36.34577634 | W53: 28.35251872 | X53: 5.092208775 | Y53: 106.9385879 | Z53: 62.66461674 | AA53: 30.55188947 | AB53: 17.56769962 | AC53: 185.2191085 | AD53: 0 | AE53: 185.2191085 | AF53: 111.7477393 | AG53: 52.52 | AH53: 59.2277393 | AI53: 73.47136919 | AJ53: 260 | AK53: 0.1058203752 | AL53: 240 | AM53: 0.1979720731 | AN53: 225 | AO53: 0.277836878 | AP53: 37.92582406 | AQ53: 7.580937387 | AR53: 0 | AS53: 0 | AT53: 0 | AU53: 10 | AV53: 0 | AW53: 2 | AX53: 6 | AY53: 2 | AZ53: 1 | BA53: 0 | BB53: 0 | BC53: 4 | BD53: 0 | BE53: 0 | BF53: 0 | BG53: 0
A54: 19.63785895 | B54: 19.71080447 | C54: 16 | D54: Factory-2 | E54: ROAK | F54: 6 | G54: 8 | H54: GRADE | I54: SPLIT | J54: 6 | K54: 0 | L54: 0.125 | M54: 1 | N54: 0.13 | O54: 0.035 | P54: 1 | Q54: 0.13 | R54: 0.035 | S54: 23 | T54: 256.6150816 | U54: 0 | V54: 32.4398017 | W54: 25.30555618 | X54: 4.544963942 | Y54: 95.44620957 | Z54: 55.93023305 | AA54: 27.26856697 | AB54: 15.67975015 | AC54: 165.3141508 | AD54: 0 | AE54: 165.3141508 | AF54: 105.3827068 | AG54: 52.52 | AH54: 52.8627068 | AI54: 59.93144401 | AJ54: 260 | AK54: -0.01301891705 | AL54: 240 | AM54: 0.06922950652 | AN54: 225 | AO54: 0.1405114736 | AP54: 33.82575299 | AQ54: 7.58638194 | AR54: 0 | AS54: 0 | AT54: 0 | AU54: 10 | AV54: 0 | AW54: 2 | AX54: 2 | AY54: 2 | AZ54: 4 | BA54: 2 | BB54: 1 | BC54: 0 | BD54: 0 | BE54: 0 | BF54: 0 | BG54: 0
A55: 18.43259341 | B55: 20.99174465 | C55: 16 | D55: Factory-2 | E55: ROAK | F55: 6 | G55: 8 | H55: GRADE | I55: SPLIT | J55: 6 | K55: 0 | L55: 0.125 | M55: 1 | N55: 0.13 | O55: 0.035 | P55: 1 | Q55: 0.13 | R55: 0.035 | S55: 23 | T55: 253.7942429 | U55: 0 | V55: 29.8104872 | W55: 24.14765484 | X55: 4.871617929 | Y55: 91.77136896 | Z55: 57.83174518 | AA55: 29.64028131 | AB55: 15.72108745 | AC55: 161.7104491 | AD55: 0 | AE55: 161.7104491 | AF55: 98.74161403 | AG55: 46.46 | AH55: 52.28161403 | AI55: 62.96883507 | AJ55: 230 | AK55: 0.1034532298 | AL55: 220 | AM55: 0.1536101948 | AN55: 196 | AO55: 0.294868586 | AP55: 34.09894722 | AQ55: 7.442876205 | AR55: 0 | AS55: 0 | AT55: 0 | AU55: 10 | AV55: 0 | AW55: 6 | AX55: 2 | AY55: 1 | AZ55: 0 | BA55: 0 | BB55: 4 | BC55: 0 | BD55: 0 | BE55: 0 | BF55: 0 | BG55: 0
A56: 16.81467293 | B56: 17.7762421 | C56: 16 | D56: Factory-2 | E56: ROAK | F56: 6 | G56: 8 | H56: GRADE | I56: SPLIT | J56: 6 | K56: 0 | L56: 0.125 | M56: 1 | N56: 0.13 | O56: 0.035 | P56: 1 | Q56: 0.13 | R56: 0.035 | S56: 19 | T56: 186.8055416 | U56: 0 | V56: 18.45899822 | W56: 16.29982455 | X56: 4.405162237 | Y56: 63.15170635 | Z56: 46.79376341 | AA56: 26.20524832 | AB56: 11.49083852 | AC56: 116.2797451 | AD56: 0 | AE56: 116.2797451 | AF56: 74.84194157 | AG56: 36.36 | AH56: 38.48194157 | AI56: 41.43780356 | AJ56: 180 | AK56: 0.03780856449 | AL56: 170 | AM56: 0.09885612711 | AN56: 144 | AO56: 0.2972607056 | AP56: 26.16047238 | AQ56: 7.140755676 | AR56: 0 | AS56: 0 | AT56: 0 | AU56: 10 | AV56: 0 | AW56: 2 | AX56: 6 | AY56: 1 | AZ56: 0 | BA56: 0 | BB56: 0 | BC56: 0 | BD56: 0 | BE56: 0 | BF56: 0 | BG56: 0
A57: 18.2127936 | B57: 18.48437503 | C57: 16 | D57: Factory-2 | E57: ROAK | F57: 6 | G57: 8 | H57: GRADE | I57: SPLIT | J57: 6 | K57: 0 | L57: 0.125 | M57: 1 | N57: 0.13 | O57: 0.035 | P57: 1 | Q57: 0.13 | R57: 0.035 | S57: 21 | T57: 218.6191917 | U57: 0 | V57: 25.67885127 | W57: 20.80086894 | X57: 4.196427633 | Y57: 79.05215767 | Z57: 49.81645463 | AA57: 25.53223536 | AB57: 13.5421962 | AC57: 139.2979103 | AD57: 0 | AE57: 139.2979103 | AF57: 91.49555349 | AG57: 46.46 | AH57: 45.03555349 | AI57: 47.80235679 | AJ57: 230 | AK57: -0.04948177525 | AL57: 220 | AM57: -0.006276401395 | AN57: 196 | AO57: 0.1154040393 | AP57: 29.42218426 | AQ57: 7.430420181 | AR57: 0 | AS57: 0 | AT57: 0 | AU57: 10 | AV57: 0 | AW57: 2 | AX57: 2 | AY57: 6 | AZ57: 0 | BA57: 1 | BB57: 0 | BC57: 0 | BD57: 0 | BE57: 0 | BF57: 0 | BG57: 0
A58: 11.56944097 | B58: 12.58668795 | C58: 16 | D58: Factory-2 | E58: ROAK | F58: 6 | G58: 8 | H58: GRADE | I58: SPLIT | J58: 6 | K58: 0 | L58: 0.125 | M58: 1 | N58: 0.13 | O58: 0.035 | P58: 1 | Q58: 0.13 | R58: 0.035 | S58: 10 | T58: 69.84925888 | U58: 0 | V58: 3.406767545 | W58: 4.354058972 | X58: 2.972536345 | Y58: 18.42683746 | Z58: 22.50738992 | AA58: 14.81382491 | AB58: 3.367843734 | AC58: 40.70174086 | AD58: 0 | AE58: 40.70174086 | AF58: 30.54894733 | AG58: 16.16 | AH58: 14.38894733 | AI58: 10.15279353 | AJ58: 80 | AK58: -0.126884264 | AL58: 70 | AM58: -0.002153444578 | AN58: 49 | AO58: 0.4254950792 | AP58: 12.77056667 | AQ58: 5.469550465 | AR58: 0 | AS58: 0 | AT58: 0 | AU58: 9 | AV58: 1 | AW58: 0 | AX58: 0 | AY58: 0 | AZ58: 0 | BA58: 0 | BB58: 0 | BC58: 0 | BD58: 0 | BE58: 0 | BF58: 0 | BG58: 0
A59: 21.26587948 | B59: 23.39921906 | C59: 16 | D59: Factory-2 | E59: ROAK | F59: 6 | G59: 8 | H59: GRADE | I59: SPLIT | J59: 6 | K59: 0 | L59: 0.125 | M59: 1 | N59: 0.13 | O59: 0.035 | P59: 1 | Q59: 0.13 | R59: 0.035 | S59: 27 | T59: 331.0556308 | U59: 0 | V59: 47.50907083 | W59: 34.61503723 | X59: 5.352506232 | Y59: 129.0145828 | Z59: 66.54182496 | AA59: 29.04576157 | AB59: 18.97684717 | AC59: 217.7009548 | AD59: 0 | AE59: 217.7009548 | AF59: 132.8374599 | AG59: 64.64 | AH59: 68.19745995 | AI59: 84.86349488 | AJ59: 320 | AK59: 0.03454884629 | AL59: 300 | AM59: 0.1035187694 | AN59: 289 | AO59: 0.1455212139 | AP59: 43.68297755 | AQ59: 7.578595814 | AR59: 0 | AS59: 0 | AT59: 0 | AU59: 10 | AV59: 0 | AW59: 2 | AX59: 6 | AY59: 2 | AZ59: 0 | BA59: 2 | BB59: 1 | BC59: 4 | BD59: 0 | BE59: 0 | BF59: 0 | BG59: 0
A60: 18.84717095 | B60: 20.27207398 | C60: 16 | D60: Factory-2 | E60: ROAK | F60: 6 | G60: 8 | H60: GRADE | I60: SPLIT | J60: 6 | K60: 0 | L60: 0.125 | M60: 1 | N60: 0.13 | O60: 0.035 | P60: 1 | Q60: 0.13 | R60: 0.035 | S60: 23 | T60: 247.5440145 | U60: 0 | V60: 29.07633993 | W60: 23.55296698 | X60: 4.751643874 | Y60: 89.51130189 | Z60: 56.40751424 | AA60: 28.91032572 | AB60: 15.3339219 | AC60: 157.727982 | AD60: 0 | AE60: 157.727982 | AF60: 97.45406699 | AG60: 46.46 | AH60: 50.99406699 | AI60: 60.27391498 | AJ60: 230 | AK60: 0.07627832404 | AL60: 220 | AM60: 0.125200066 | AN60: 196 | AO60: 0.262979666 | AP60: 33.47670897 | AQ60: 7.394514638 | AR60: 0 | AS60: 0 | AT60: 0 | AU60: 10 | AV60: 0 | AW60: 2 | AX60: 2 | AY60: 6 | AZ60: 2 | BA60: 0 | BB60: 1 | BC60: 0 | BD60: 0 | BE60: 0 | BF60: 0 | BG60: 0
A61: 18.25207306 | B61: 19.75890961 | C61: 16 | D61: Factory-2 | E61: ROAK | F61: 6 | G61: 8 | H61: GRADE | I61: SPLIT | J61: 6 | K61: 0 | L61: 0.125 | M61: 1 | N61: 0.13 | O61: 0.035 | P61: 1 | Q61: 0.13 | R61: 0.035 | S61: 22 | T61: 226.70422 | U61: 0 | V61: 26.62851282 | W61: 21.57013175 | X61: 4.351620944 | Y61: 81.97568387 | Z61: 51.65877892 | AA61: 26.47647472 | AB61: 14.043017 | AC61: 144.4494596 | AD61: 0 | AE61: 144.4494596 | AF61: 93.16106933 | AG61: 46.46 | AH61: 46.70106933 | AI61: 51.28839029 | AJ61: 230 | AK61: -0.01432947811 | AL61: 220 | AM61: 0.03047372743 | AN61: 196 | AO61: 0.1566541839 | AP61: 31.61448871 | AQ61: 7.170896297 | AR61: 0 | AS61: 0 | AT61: 0 | AU61: 9 | AV61: 2 | AW61: 2 | AX61: 4 | AY61: 2 | AZ61: 2 | BA61: 1 | BB61: 0 | BC61: 0 | BD61: 0 | BE61: 0 | BF61: 0 | BG61: 0
A62: 19.60193704 | B62: 20.84783373 | C62: 16 | D62: Factory-2 | E62: ROAK | F62: 6 | G62: 8 | H62: GRADE | I62: SPLIT | J62: 6 | K62: 0 | L62: 0.125 | M62: 1 | N62: 0.13 | O62: 0.035 | P62: 1 | Q62: 0.13 | R62: 0.035 | S62: 24 | T62: 272.7957129 | U62: 0 | V62: 34.48526399 | W62: 26.90117508 | X62: 4.831542522 | Y62: 101.4644838 | Z62: 59.45686319 | AA62: 28.98796174 | AB62: 16.66842259 | AC62: 175.7378847 | AD62: 0 | AE62: 175.7378847 | AF62: 108.7159169 | AG62: 52.52 | AH62: 56.19591685 | AI62: 67.02196786 | AJ62: 260 | AK62: 0.04921428033 | AL62: 240 | AM62: 0.1366488037 | AN62: 225 | AO62: 0.2124253906 | AP62: 35.7791454 | AQ62: 7.624433448 | AR62: 0 | AS62: 0 | AT62: 0 | AU62: 9 | AV62: 2 | AW62: 2 | AX62: 0 | AY62: 6 | AZ62: 1 | BA62: 0 | BB62: 0 | BC62: 4 | BD62: 0 | BE62: 0 | BF62: 0 | BG62: 0
A63: 17.35233586 | B63: 20.57999982 | C63: 16 | D63: Factory-2 | E63: ROAK | F63: 6 | G63: 8 | H63: GRADE | I63: SPLIT | J63: 6 | K63: 0 | L63: 0.125 | M63: 1 | N63: 0.13 | O63: 0.035 | P63: 1 | Q63: 0.13 | R63: 0.035 | S63: 22 | T63: 227.3362048 | U63: 0 | V63: 24.60992231 | W63: 20.76910484 | X63: 4.808829084 | Y63: 79.63514671 | Z63: 54.27015681 | AA63: 29.12970544 | AB63: 14.11333965 | AC63: 143.2031924 | AD63: 0 | AE63: 143.2031924 | AF63: 88.2412582 | AG63: 41.41 | AH63: 46.8312582 | AI63: 54.96193419 | AJ63: 205 | AK63: 0.1089570968 | AL63: 190 | AM63: 0.1965063413 | AN63: 169 | AO63: 0.345184644 | AP63: 31.66199538 | AQ63: 7.180097215 | AR63: 0 | AS63: 0 | AT63: 0 | AU63: 9 | AV63: 2 | AW63: 6 | AX63: 0 | AY63: 1 | AZ63: 0 | BA63: 0 | BB63: 4 | BC63: 0 | BD63: 0 | BE63: 0 | BF63: 0 | BG63: 0
A64: 19.55762509 | B64: 20.9952259 | C64: 16 | D64: Factory-2 | E64: ROAK | F64: 6 | G64: 8 | H64: GRADE | I64: SPLIT | J64: 6 | K64: 0 | L64: 0.125 | M64: 1 | N64: 0.13 | O64: 0.035 | P64: 1 | Q64: 0.13 | R64: 0.035 | S64: 24 | T64: 272.6226715 | U64: 0 | V64: 34.46338909 | W64: 26.88411097 | X64: 4.82847775 | Y64: 101.4001222 | Z64: 59.41914816 | AA64: 28.96957392 | AB64: 16.65784937 | AC64: 175.6264096 | AD64: 0 | AE64: 175.6264096 | AF64: 108.6802703 | AG64: 52.52 | AH64: 56.16027033 | AI64: 66.94613929 | AJ64: 260 | AK64: 0.0485487365 | AL64: 240 | AM64: 0.1359277979 | AN64: 225 | AO64: 0.2116563177 | AP64: 35.97279911 | AQ64: 7.57857821 | AR64: 0 | AS64: 0 | AT64: 0 | AU64: 9 | AV64: 2 | AW64: 2 | AX64: 0 | AY64: 6 | AZ64: 1 | BA64: 0 | BB64: 0 | BC64: 4 | BD64: 0 | BE64: 0 | BF64: 0 | BG64: 0
A65: 16.83844174 | B65: 17.41476621 | C65: 16 | D65: Factory-2 | E65: ROAK | F65: 6 | G65: 8 | H65: GRADE | I65: SPLIT | J65: 6 | K65: 0 | L65: 0.125 | M65: 1 | N65: 0.13 | O65: 0.035 | P65: 1 | Q65: 0.13 | R65: 0.035 | S65: 19 | T65: 185.6623506 | U65: 0 | V65: 18.34603498 | W65: 16.20007477 | X65: 4.378204035 | Y65: 62.76523784 | Z65: 46.50740035 | AA65: 26.04488047 | AB65: 11.42051821 | AC65: 115.5681498 | AD65: 0 | AE65: 115.5681498 | AF65: 74.60644423 | AG65: 36.36 | AH65: 38.24644423 | AI65: 40.96170555 | AJ65: 180 | AK65: 0.0314575036 | AL65: 170 | AM65: 0.0921314744 | AN65: 144 | AO65: 0.2893218795 | AP65: 25.6396116 | AQ65: 7.241231012 | AR65: 0 | AS65: 0 | AT65: 0 | AU65: 10 | AV65: 0 | AW65: 2 | AX65: 2 | AY65: 5 | AZ65: 0 | BA65: 0 | BB65: 0 | BC65: 0 | BD65: 0 | BE65: 0 | BF65: 0 | BG65: 0
A66: 18.38884322 | B66: 20.82914324 | C66: 16 | D66: Factory-2 | E66: ROAK | F66: 6 | G66: 8 | H66: GRADE | I66: SPLIT | J66: 6 | K66: 0 | L66: 0.125 | M66: 1 | N66: 0.13 | O66: 0.035 | P66: 1 | Q66: 0.13 | R66: 0.035 | S66: 23 | T66: 252.6804557 | U66: 0 | V66: 29.67966257 | W66: 24.0416818 | X66: 4.850238619 | Y66: 91.36862627 | Z66: 57.57794802 | AA66: 29.51020363 | AB66: 15.65209477 | AC66: 161.0007757 | AD66: 0 | AE66: 161.0007757 | AF66: 98.51217387 | AG66: 46.46 | AH66: 52.05217387 | AI66: 62.48860182 | AJ66: 230 | AK66: 0.09861067684 | AL66: 220 | AM66: 0.1485475258 | AN66: 196 | AO66: 0.2891859983 | AP66: 33.73143841 | AQ66: 7.490948137 | AR66: 0 | AS66: 0 | AT66: 0 | AU66: 10 | AV66: 0 | AW66: 2 | AX66: 6 | AY66: 1 | AZ66: 0 | BA66: 0 | BB66: 4 | BC66: 0 | BD66: 0 | BE66: 0 | BF66: 0 | BG66: 0
A67: 17.96345147 | B67: 20.89260772 | C67: 16 | D67: Factory-2 | E67: ROAK | F67: 6 | G67: 8 | H67: GRADE | I67: SPLIT | J67: 6 | K67: 0 | L67: 0.125 | M67: 1 | N67: 0.13 | O67: 0.035 | P67: 1 | Q67: 0.13 | R67: 0.035 | S67: 22 | T67: 237.2867769 | U67: 0 | V67: 25.68710579 | W67: 21.67817462 | X67: 5.019312936 | Y67: 83.12080031 | Z67: 56.64557741 | AA67: 30.40472115 | AB67: 14.73108465 | AC67: 149.4712379 | AD67: 0 | AE67: 149.4712379 | AF67: 90.29107603 | AG67: 41.41 | AH67: 48.88107603 | AI67: 59.18016187 | AJ67: 205 | AK67: 0.1574964725 | AL67: 190 | AM67: 0.2488777729 | AN67: 169 | AO67: 0.4040637684 | AP67: 33.17145844 | AQ67: 7.153341698 | AR67: 0 | AS67: 0 | AT67: 0 | AU67: 9 | AV67: 2 | AW67: 4 | AX67: 2 | AY67: 1 | AZ67: 0 | BA67: 0 | BB67: 4 | BC67: 0 | BD67: 0 | BE67: 0 | BF67: 0 | BG67: 0
A68: 20.21408057 | B68: 20.68676436 | C68: 16 | D68: Factory-2 | E68: ROAK | F68: 6 | G68: 8 | H68: GRADE | I68: SPLIT | J68: 6 | K68: 0 | L68: 0.125 | M68: 1 | N68: 0.13 | O68: 0.035 | P68: 1 | Q68: 0.13 | R68: 0.035 | S68: 24 | T68: 273.3116644 | U68: 0 | V68: 36.92498673 | W68: 27.80999941 | X68: 4.564950768 | Y68: 104.2183941 | Z68: 57.12029998 | AA68: 26.39477396 | AB68: 16.27825942 | AC68: 177.9321175 | AD68: 0 | AE68: 177.9321175 | AF68: 114.8822029 | AG68: 58.58 | AH68: 56.30220287 | AI68: 63.04991467 | AJ68: 290 | AK68: -0.05754598478 | AL68: 270 | AM68: 0.01226542375 | AN68: 256 | AO68: 0.06762368911 | AP68: 36.55178334 | AQ68: 7.477382482 | AR68: 0 | AS68: 0 | AT68: 0 | AU68: 9 | AV68: 2 | AW68: 2 | AX68: 0 | AY68: 2 | AZ68: 6 | BA68: 2 | BB68: 0 | BC68: 1 | BD68: 0 | BE68: 0 | BF68: 0 | BG68: 0
A69: 19.39545628 | B69: 21.26684277 | C69: 16 | D69: Factory-2 | E69: ROAK | F69: 6 | G69: 8 | H69: GRADE | I69: SPLIT | J69: 6 | K69: 0 | L69: 0.125 | M69: 1 | N69: 0.13 | O69: 0.035 | P69: 1 | Q69: 0.13 | R69: 0.035 | S69: 24 | T69: 270.9401872 | U69: 0 | V69: 34.25069911 | W69: 26.71819632 | X69: 4.798678915 | Y69: 100.7743338 | Z69: 59.05244431 | AA69: 28.79078889 | AB69: 16.55504585 | AC69: 174.5425354 | AD69: 0 | AE69: 174.5425354 | AF69: 108.3336786 | AG69: 52.52 | AH69: 55.81367856 | AI69: 66.20885687 | AJ69: 260 | AK69: 0.04207764307 | AL69: 240 | AM69: 0.1289174467 | AN69: 225 | AO69: 0.2041786098 | AP69: 36.19834959 | AQ69: 7.484876804 | AR69: 0 | AS69: 0 | AT69: 0 | AU69: 9 | AV69: 2 | AW69: 2 | AX69: 4 | AY69: 2 | AZ69: 1 | BA69: 0 | BB69: 0 | BC69: 4 | BD69: 0 | BE69: 0 | BF69: 0 | BG69: 0
A70: 18.8501501 | B70: 20.77059461 | C70: 16 | D70: Factory-2 | E70: ROAK | F70: 6 | G70: 8 | H70: GRADE | I70: SPLIT | J70: 6 | K70: 0 | L70: 0.125 | M70: 1 | N70: 0.13 | O70: 0.035 | P70: 1 | Q70: 0.13 | R70: 0.035 | S70: 23 | T70: 259.8052799 | U70: 0 | V70: 30.51653924 | W70: 24.71958447 | X70: 4.987000671 | Y70: 93.94494504 | Z70: 59.20147192 | AA70: 30.34230207 | AB70: 16.09343647 | AC70: 165.5405104 | AD70: 0 | AE70: 165.5405104 | AF70: 99.97988766 | AG70: 46.46 | AH70: 53.51988766 | AI70: 65.5606227 | AJ70: 230 | AK70: 0.1295881734 | AL70: 220 | AM70: 0.1809330904 | AN70: 196 | AO70: 0.3255371423 | AP70: 34.37561027 | AQ70: 7.557837602 | AR70: 0 | AS70: 0 | AT70: 0 | AU70: 10 | AV70: 0 | AW70: 2 | AX70: 6 | AY70: 1 | AZ70: 0 | BA70: 0 | BB70: 4 | BC70: 0 | BD70: 0 | BE70: 0 | BF70: 0 | BG70: 0
A71: 19.33069924 | B71: 20.01363039 | C71: 16 | D71: Factory-2 | E71: ROAK | F71: 6 | G71: 8 | H71: GRADE | I71: SPLIT | J71: 6 | K71: 0 | L71: 0.125 | M71: 1 | N71: 0.13 | O71: 0.035 | P71: 1 | Q71: 0.13 | R71: 0.035 | S71: 23 | T71: 253.6827614 | U71: 0 | V71: 32.06911467 | W71: 25.0163916 | X71: 4.493029 | Y71: 94.35555331 | Z71: 55.29112272 | AA71: 26.95697122 | AB71: 15.50057889 | AC71: 163.4251191 | AD71: 0 | AE71: 163.4251191 | AF71: 104.7786489 | AG71: 52.52 | AH71: 52.25864885 | AI71: 58.64647029 | AJ71: 260 | AK71: -0.02429707151 | AL71: 240 | AM71: 0.05701150587 | AN71: 225 | AO71: 0.1274789396 | AP71: 33.82837537 | AQ71: 7.499111579 | AR71: 0 | AS71: 0 | AT71: 0 | AU71: 10 | AV71: 0 | AW71: 2 | AX71: 2 | AY71: 6 | AZ71: 0 | BA71: 2 | BB71: 1 | BC71: 0 | BD71: 0 | BE71: 0 | BF71: 0 | BG71: 0
A72: 14.9788046 | B72: 16.3911267 | C72: 16 | D72: Factory-2 | E72: ROAK | F72: 6 | G72: 8 | H72: GRADE | I72: SPLIT | J72: 6 | K72: 0 | L72: 0.125 | M72: 1 | N72: 0.13 | O72: 0.035 | P72: 1 | Q72: 0.13 | R72: 0.035 | S72: 16 | T72: 141.8142368 | U72: 0 | V72: 11.24695944 | W72: 11.0810638 | X72: 4.230328875 | Y72: 44.08775803 | Z72: 39.24027368 | AA72: 23.66521003 | AB72: 8.262642944 | AC72: 86.08297498 | AD72: 0 | AE72: 86.08297498 | AF72: 56.48373278 | AG72: 27.27 | AH72: 29.21373278 | AI72: 29.5992422 | AJ72: 135 | AK72: 0.05047582814 | AL72: 120 | AM72: 0.1817853067 | AN72: 100 | AO72: 0.418142368 | AP72: 21.54232347 | AQ72: 6.583052056 | AR72: 0 | AS72: 0 | AT72: 0 | AU72: 9 | AV72: 2 | AW72: 0 | AX72: 5 | AY72: 0 | AZ72: 0 | BA72: 0 | BB72: 0 | BC72: 0 | BD72: 0 | BE72: 0 | BF72: 0 | BG72: 0
A73: 15.41143744 | B73: 17.22019618 | C73: 16 | D73: Factory-2 | E73: ROAK | F73: 6 | G73: 8 | H73: GRADE | I73: SPLIT | J73: 6 | K73: 0 | L73: 0.125 | M73: 1 | N73: 0.13 | O73: 0.035 | P73: 1 | Q73: 0.13 | R73: 0.035 | S73: 17 | T73: 157.7020688 | U73: 0 | V73: 14.06057389 | W73: 13.06492997 | X73: 4.175339654 | Y73: 51.23968045 | Z73: 41.50138837 | AA73: 24.16042962 | AB73: 9.499726882 | AC73: 96.95898679 | AD73: 0 | AE73: 96.95898679 | AF73: 63.79662618 | AG73: 31.31 | AH73: 32.48662618 | AI73: 33.1623606 | AJ73: 155 | AK73: 0.01743270217 | AL73: 140 | AM73: 0.1264433488 | AN73: 121 | AO73: 0.3033228829 | AP73: 23.33436259 | AQ73: 6.758361976 | AR73: 0 | AS73: 0 | AT73: 0 | AU73: 4 | AV73: 6 | AW73: 6 | AX73: 1 | AY73: 0 | AZ73: 0 | BA73: 0 | BB73: 0 | BC73: 0 | BD73: 0 | BE73: 0 | BF73: 0 | BG73: 0
A74: 17.21520869 | B74: 19.48587439 | C74: 16 | D74: Factory-2 | E74: ROAK | F74: 6 | G74: 8 | H74: GRADE | I74: SPLIT | J74: 6 | K74: 0 | L74: 0.125 | M74: 1 | N74: 0.13 | O74: 0.035 | P74: 1 | Q74: 0.13 | R74: 0.035 | S74: 21 | T74: 209.0863768 | U74: 0 | V74: 22.63431596 | W74: 19.10182711 | X74: 4.422791569 | Y74: 73.24229023 | Z74: 49.9135211 | AA74: 26.79126527 | AB74: 12.9803656 | AC74: 131.7072952 | AD74: 0 | AE74: 131.7072952 | AF74: 84.48179363 | AG74: 41.41 | AH74: 43.07179363 | AI74: 47.22550161 | AJ74: 205 | AK74: 0.01993354559 | AL74: 190 | AM74: 0.100454615 | AN74: 169 | AO74: 0.2371974961 | AP74: 29.53948972 | AQ74: 7.07819867 | AR74: 0 | AS74: 0 | AT74: 0 | AU74: 10 | AV74: 0 | AW74: 6 | AX74: 2 | AY74: 2 | AZ74: 0 | BA74: 1 | BB74: 0 | BC74: 0 | BD74: 0 | BE74: 0 | BF74: 0 | BG74: 0
A75: 17.7554008 | B75: 19.9636853 | C75: 16 | D75: Factory-2 | E75: ROAK | F75: 6 | G75: 8 | H75: GRADE | I75: SPLIT | J75: 6 | K75: 0 | L75: 0.125 | M75: 1 | N75: 0.13 | O75: 0.035 | P75: 1 | Q75: 0.13 | R75: 0.035 | S75: 21 | T75: 231.4198752 | U75: 0 | V75: 25.05199361 | W75: 21.14218302 | X75: 4.895210719 | Y75: 81.06564341 | Z75: 55.24501883 | AA75: 29.6529662 | AB75: 14.36685944 | AC75: 145.7755703 | AD75: 0 | AE75: 145.7755703 | AF75: 89.0824943 | AG75: 41.41 | AH75: 47.6724943 | AI75: 56.69307603 | AJ75: 205 | AK75: 0.1288774402 | AL75: 190 | AM75: 0.2179993434 | AN75: 169 | AO75: 0.3693483742 | AP75: 31.1884914 | AQ75: 7.420040689 | AR75: 0 | AS75: 0 | AT75: 0 | AU75: 4 | AV75: 6 | AW75: 2 | AX75: 5 | AY75: 0 | AZ75: 0 | BA75: 0 | BB75: 4 | BC75: 0 | BD75: 0 | BE75: 0 | BF75: 0 | BG75: 0
A76: 17.82232145 | B76: 20.921478 | C76: 16 | D76: Factory-2 | E76: ROAK | F76: 6 | G76: 8 | H76: GRADE | I76: SPLIT | J76: 6 | K76: 0 | L76: 0.125 | M76: 1 | N76: 0.13 | O76: 0.035 | P76: 1 | Q76: 0.13 | R76: 0.035 | S76: 22 | T76: 235.1551491 | U76: 0 | V76: 25.45634978 | W76: 21.4834322 | X76: 4.974222741 | Y76: 82.3740979 | Z76: 56.13671092 | AA76: 30.1315852 | AB76: 14.5987503 | AC76: 148.1284869 | AD76: 0 | AE76: 148.1284869 | AF76: 89.8519607 | AG76: 41.41 | AH76: 48.4419607 | AI76: 58.27652624 | AJ76: 205 | AK76: 0.1470982881 | AL76: 190 | AM76: 0.2376586792 | AN76: 169 | AO76: 0.3914505861 | AP76: 33.00353317 | AQ76: 7.125150747 | AR76: 0 | AS76: 0 | AT76: 0 | AU76: 9 | AV76: 2 | AW76: 4 | AX76: 2 | AY76: 1 | AZ76: 0 | BA76: 0 | BB76: 4 | BC76: 0 | BD76: 0 | BE76: 0 | BF76: 0 | BG76: 0
A77: 16.82774131 | B77: 18.55477621 | C77: 16 | D77: Factory-2 | E77: ROAK | F77: 6 | G77: 8 | H77: GRADE | I77: SPLIT | J77: 6 | K77: 0 | L77: 0.125 | M77: 1 | N77: 0.13 | O77: 0.035 | P77: 1 | Q77: 0.13 | R77: 0.035 | S77: 20 | T77: 190.8991315 | U77: 0 | V77: 18.86350212 | W77: 16.65701308 | X77: 4.501695389 | Y77: 64.53559028 | Z77: 47.81918522 | AA77: 26.77950077 | AB77: 11.74264465 | AC77: 118.8278579 | AD77: 0 | AE77: 118.8278579 | AF77: 75.68522109 | AG77: 36.36 | AH77: 39.32522109 | AI77: 43.14263683 | AJ77: 180 | AK77: 0.06055073061 | AL77: 170 | AM77: 0.1229360677 | AN77: 144 | AO77: 0.3256884133 | AP77: 27.4155478 | AQ77: 6.963170422 | AR77: 0 | AS77: 0 | AT77: 0 | AU77: 9 | AV77: 2 | AW77: 2 | AX77: 4 | AY77: 2 | AZ77: 1 | BA77: 0 | BB77: 0 | BC77: 0 | BD77: 0 | BE77: 0 | BF77: 0 | BG77: 0
A78: 15.93498117 | B78: 18.15667293 | C78: 16 | D78: Factory-2 | E78: ROAK | F78: 6 | G78: 8 | H78: GRADE | I78: SPLIT | J78: 6 | K78: 0 | L78: 0.125 | M78: 1 | N78: 0.13 | O78: 0.035 | P78: 1 | Q78: 0.13 | R78: 0.035 | S78: 19 | T78: 176.7207574 | U78: 0 | V78: 15.75626297 | W78: 14.64054553 | X78: 4.678880826 | Y78: 57.41912713 | Z78: 46.50640819 | AA78: 27.07414971 | AB78: 10.64538304 | AC78: 108.6521293 | AD78: 0 | AE78: 108.6521293 | AF78: 67.71447603 | AG78: 31.31 | AH78: 36.40447603 | AI78: 40.93765332 | AJ78: 155 | AK78: 0.1401339187 | AL78: 140 | AM78: 0.2622911243 | AN78: 121 | AO78: 0.4605021273 | AP78: 25.49897098 | AQ78: 6.930505452 | AR78: 0 | AS78: 0 | AT78: 0 | AU78: 10 | AV78: 0 | AW78: 6 | AX78: 2 | AY78: 1 | AZ78: 0 | BA78: 0 | BB78: 0 | BC78: 0 | BD78: 0 | BE78: 0 | BF78: 0 | BG78: 0
A79: 12.12932243 | B79: 15.01214906 | C79: 16 | D79: Factory-2 | E79: ROAK | F79: 6 | G79: 8 | H79: GRADE | I79: SPLIT | J79: 6 | K79: 0 | L79: 0.125 | M79: 1 | N79: 0.13 | O79: 0.035 | P79: 1 | Q79: 0.13 | R79: 0.035 | S79: 13 | T79: 101.8988565 | U79: 0 | V79: 6.021647244 | W79: 6.915964303 | X79: 3.860031407 | Y79: 28.56184633 | Z79: 31.20837923 | AA79: 20.00758875 | AB79: 5.323399257 | AC79: 60.2159229 | AD79: 0 | AE79: 60.2159229 | AF79: 40.18116444 | AG79: 19.19 | AH79: 20.99116444 | AI79: 20.03475845 | AJ79: 95 | AK79: 0.07261954233 | AL79: 90 | AM79: 0.1322095169 | AN79: 64 | AO79: 0.5921696331 | AP79: 16.27514589 | AQ79: 6.261010329 | AR79: 0 | AS79: 0 | AT79: 0 | AU79: 9 | AV79: 4 | AW79: 0 | AX79: 0 | AY79: 0 | AZ79: 0 | BA79: 0 | BB79: 0 | BC79: 0 | BD79: 0 | BE79: 0 | BF79: 0 | BG79: 0
A80: 13.69762081 | B80: 15.743816 | C80: 16 | D80: Factory-2 | E80: ROAK | F80: 6 | G80: 8 | H80: GRADE | I80: SPLIT | J80: 6 | K80: 0 | L80: 0.125 | M80: 1 | N80: 0.13 | O80: 0.035 | P80: 1 | Q80: 0.13 | R80: 0.035 | S80: 15 | T80: 126.4157026 | U80: 0 | V80: 8.7580029 | W80: 9.246365227 | X80: 4.251995788 | Y80: 37.41903901 | Z80: 36.79721573 | AA80: 22.91497131 | AB80: 7.028112631 | AC80: 75.72869171 | AD80: 0 | AE80: 75.72869171 | AF80: 49.27163473 | AG80: 23.23 | AH80: 26.04163473 | AI80: 26.45705698 | AJ80: 115 | AK80: 0.09926697909 | AL80: 100 | AM80: 0.264157026 | AN80: 81 | AO80: 0.5606876864 | AP80: 19.02815779 | AQ80: 6.643612271 | AR80: 0 | AS80: 0 | AT80: 0 | AU80: 10 | AV80: 0 | AW80: 5 | AX80: 0 | AY80: 0 | AZ80: 0 | BA80: 0 | BB80: 0 | BC80: 0 | BD80: 0 | BE80: 0 | BF80: 0 | BG80: 0
A81: 19.78809426 | B81: 22.12905144 | C81: 16 | D81: Factory-2 | E81: ROAK | F81: 6 | G81: 8 | H81: GRADE | I81: SPLIT | J81: 6 | K81: 0 | L81: 0.125 | M81: 1 | N81: 0.13 | O81: 0.035 | P81: 1 | Q81: 0.13 | R81: 0.035 | S81: 25 | T81: 289.3506631 | U81: 0 | V81: 36.57804551 | W81: 28.53370665 | X81: 5.124750744 | Y81: 107.6219833 | Z81: 63.06507755 | AA81: 30.74713258 | AB81: 17.67996673 | AC81: 186.4027588 | AD81: 0 | AE81: 186.4027588 | AF81: 112.1262366 | AG81: 52.52 | AH81: 59.60623659 | AI81: 74.2765222 | AJ81: 260 | AK81: 0.1128871657 | AL81: 240 | AM81: 0.2056277628 | AN81: 225 | AO81: 0.286002947 | AP81: 38.50541731 | AQ81: 7.514544272 | AR81: 0 | AS81: 0 | AT81: 0 | AU81: 10 | AV81: 0 | AW81: 2 | AX81: 6 | AY81: 2 | AZ81: 0 | BA81: 1 | BB81: 0 | BC81: 4 | BD81: 0 | BE81: 0 | BF81: 0 | BG81: 0
A82: 19.41788404 | B82: 22.88998552 | C82: 16 | D82: Factory-2 | E82: ROAK | F82: 6 | G82: 8 | H82: GRADE | I82: SPLIT | J82: 6 | K82: 0 | L82: 0.125 | M82: 1 | N82: 0.13 | O82: 0.035 | P82: 1 | Q82: 0.13 | R82: 0.035 | S82: 25 | T82: 285.3801272 | U82: 0 | V82: 36.07611323 | W82: 28.14216061 | X82: 5.054427745 | Y82: 106.1451699 | Z82: 62.19968416 | AA82: 30.3252134 | AB82: 17.43735819 | AC82: 183.8448976 | AD82: 0 | AE82: 183.8448976 | AF82: 111.3083062 | AG82: 52.52 | AH82: 58.78830621 | AI82: 72.53659138 | AJ82: 260 | AK82: 0.09761587397 | AL82: 240 | AM82: 0.1890838635 | AN82: 225 | AO82: 0.268356121 | AP82: 39.36801563 | AQ82: 7.249035102 | AR82: 0 | AS82: 0 | AT82: 0 | AU82: 4 | AV82: 6 | AW82: 6 | AX82: 2 | AY82: 0 | AZ82: 2 | BA82: 1 | BB82: 0 | BC82: 4 | BD82: 0 | BE82: 0 | BF82: 0 | BG82: 0
A83: 22.92161875 | B83: 24.77830389 | C83: 16 | D83: Factory-2 | E83: ROAK | F83: 6 | G83: 8 | H83: GRADE | I83: SPLIT | J83: 6 | K83: 0 | L83: 0.125 | M83: 1 | N83: 0.13 | O83: 0.035 | P83: 1 | Q83: 0.13 | R83: 0.035 | S83: 29 | T83: 380.8518686 | U83: 0 | V83: 57.74373827 | W83: 40.76361711 | X83: 6.13389799 | Y83: 151.2374545 | Z83: 73.87733172 | AA83: 30.3774475 | AB83: 20.71838151 | AC83: 252.8552972 | AD83: 0 | AE83: 252.8552972 | AF83: 150.1654849 | AG83: 71.71 | AH83: 78.45548494 | AI83: 102.6898123 | AJ83: 355 | AK83: 0.07282216517 | AL83: 330 | AM83: 0.1540965716 | AN83: 324 | AO83: 0.1754687304 | AP83: 49.78274748 | AQ83: 7.650278218 | AR83: 0 | AS83: 0 | AT83: 0 | AU83: 4 | AV83: 6 | AW83: 2 | AX83: 2 | AY83: 4 | AZ83: 2 | BA83: 2 | BB83: 2 | BC83: 0 | BD83: 5 | BE83: 0 | BF83: 0 | BG83: 0
A84: 13.99530556 | B84: 15.1699005 | C84: 16 | D84: Factory-2 | E84: ROAK | F84: 6 | G84: 8 | H84: GRADE | I84: SPLIT | J84: 6 | K84: 0 | L84: 0.125 | M84: 1 | N84: 0.13 | O84: 0.035 | P84: 1 | Q84: 0.13 | R84: 0.035 | S84: 15 | T84: 128.5001579 | U84: 0 | V84: 8.902412697 | W84: 9.39882758 | X84: 4.322106504 | Y84: 38.03603765 | Z84: 37.40396118 | AA84: 23.29281388 | AB84: 7.143998448 | AC84: 76.97737422 | AD84: 0 | AE84: 76.97737422 | AF84: 49.70103254 | AG84: 23.23 | AH84: 26.47103254 | AI84: 27.27634169 | AJ84: 115 | AK84: 0.1173926778 | AL84: 100 | AM84: 0.2850015795 | AN84: 81 | AO84: 0.5864217031 | AP84: 18.61315339 | AQ84: 6.903728521 | AR84: 0 | AS84: 0 | AT84: 0 | AU84: 10 | AV84: 1 | AW84: 0 | AX84: 4 | AY84: 0 | AZ84: 0 | BA84: 0 | BB84: 0 | BC84: 0 | BD84: 0 | BE84: 0 | BF84: 0 | BG84: 0
A85: 13.06440827 | B85: 15.97049359 | C85: 16 | D85: Factory-2 | E85: ROAK | F85: 6 | G85: 8 | H85: GRADE | I85: SPLIT | J85: 6 | K85: 0 | L85: 0.125 | M85: 1 | N85: 0.13 | O85: 0.035 | P85: 1 | Q85: 0.13 | R85: 0.035 | S85: 14 | T85: 111.5016368 | U85: 0 | V85: 7.724765502 | W85: 8.155512615 | X85: 3.750360757 | Y85: 33.00447659 | Z85: 32.45601376 | AA85: 20.21154616 | AB85: 6.198961409 | AC85: 66.7944955 | AD85: 0 | AE85: 66.7944955 | AF85: 46.19933718 | AG85: 23.23 | AH85: 22.96933718 | AI85: 20.59515832 | AJ85: 115 | AK85: -0.03042054963 | AL85: 100 | AM85: 0.1150163679 | AN85: 81 | AO85: 0.3765634172 | AP85: 18.60183548 | AQ85: 5.994120146 | AR85: 0 | AS85: 0 | AT85: 0 | AU85: 9 | AV85: 5 | AW85: 0 | AX85: 0 | AY85: 0 | AZ85: 0 | BA85: 0 | BB85: 0 | BC85: 0 | BD85: 0 | BE85: 0 | BF85: 0 | BG85: 0
A86: 17.11104941 | B86: 19.53914129 | C86: 16 | D86: Factory-2 | E86: ROAK | F86: 6 | G86: 8 | H86: GRADE | I86: SPLIT | J86: 6 | K86: 0 | L86: 0.125 | M86: 1 | N86: 0.13 | O86: 0.035 | P86: 1 | Q86: 0.13 | R86: 0.035 | S86: 21 | T86: 207.7843948 | U86: 0 | V86: 22.49337194 | W86: 18.98287992 | X86: 4.39525082 | Y86: 72.78621006 | Z86: 49.60270932 | AA86: 26.62443591 | AB86: 12.89953679 | AC86: 130.8871531 | AD86: 0 | AE86: 130.8871531 | AF86: 84.21358532 | AG86: 41.41 | AH86: 42.80358532 | AI86: 46.67356782 | AJ86: 205 | AK86: 0.01358241344 | AL86: 190 | AM86: 0.09360207766 | AN86: 169 | AO86: 0.2294934601 | AP86: 29.47409569 | AQ86: 7.049729259 | AR86: 0 | AS86: 0 | AT86: 0 | AU86: 10 | AV86: 0 | AW86: 6 | AX86: 2 | AY86: 2 | AZ86: 0 | BA86: 1 | BB86: 0 | BC86: 0 | BD86: 0 | BE86: 0 | BF86: 0 | BG86: 0
A87: 20.41144524 | B87: 23.1862634 | C87: 16 | D87: Factory-2 | E87: ROAK | F87: 6 | G87: 8 | H87: GRADE | I87: SPLIT | J87: 6 | K87: 0 | L87: 0.125 | M87: 1 | N87: 0.13 | O87: 0.035 | P87: 1 | Q87: 0.13 | R87: 0.035 | S87: 26 | T87: 305.4137142 | U87: 0 | V87: 41.26204188 | W87: 31.07644611 | X87: 5.101130873 | Y87: 116.4594527 | Z87: 63.82941252 | AA87: 29.49499418 | AB87: 18.19023598 | AC87: 198.831283 | AD87: 0 | AE87: 198.831283 | AF87: 121.4952251 | AG87: 58.58 | AH87: 62.91522513 | AI87: 77.33605788 | AJ87: 290 | AK87: 0.05315073868 | AL87: 270 | AM87: 0.1311619045 | AN87: 256 | AO87: 0.1930223212 | AP87: 41.69356494 | AQ87: 7.325200295 | AR87: 0 | AS87: 0 | AT87: 0 | AU87: 9 | AV87: 2 | AW87: 0 | AX87: 6 | AY87: 2 | AZ87: 2 | BA87: 0 | BB87: 1 | BC87: 4 | BD87: 0 | BE87: 0 | BF87: 0 | BG87: 0
A88: 15.56930857 | B88: 17.95894829 | C88: 16 | D88: Factory-2 | E88: ROAK | F88: 6 | G88: 8 | H88: GRADE | I88: SPLIT | J88: 6 | K88: 0 | L88: 0.125 | M88: 1 | N88: 0.13 | O88: 0.035 | P88: 1 | Q88: 0.13 | R88: 0.035 | S88: 18 | T88: 162.6811163 | U88: 0 | V88: 14.50450126 | W88: 13.47742238 | X88: 4.307165538 | Y88: 52.85744492 | Z88: 42.81169068 | AA88: 24.92323462 | AB88: 9.799656945 | AC88: 100.0202237 | AD88: 0 | AE88: 100.0202237 | AF88: 64.82230997 | AG88: 31.31 | AH88: 33.51230997 | AI88: 35.19791378 | AJ88: 155 | AK88: 0.04955558931 | AL88: 140 | AM88: 0.1620079739 | AN88: 121 | AO88: 0.3444720359 | AP88: 24.68359923 | AQ88: 6.5906562 | AR88: 0 | AS88: 0 | AT88: 0 | AU88: 9 | AV88: 2 | AW88: 4 | AX88: 2 | AY88: 1 | AZ88: 0 | BA88: 0 | BB88: 0 | BC88: 0 | BD88: 0 | BE88: 0 | BF88: 0 | BG88: 0
A89: 16.07568599 | B89: 18.0903324 | C89: 16 | D89: Factory-2 | E89: ROAK | F89: 6 | G89: 8 | H89: GRADE | I89: SPLIT | J89: 6 | K89: 0 | L89: 0.125 | M89: 1 | N89: 0.13 | O89: 0.035 | P89: 1 | Q89: 0.13 | R89: 0.035 | S89: 19 | T89: 178.3398907 | U89: 0 | V89: 17.6224736 | W89: 15.56114933 | X89: 4.205529156 | Y89: 60.2897982 | Z89: 44.67316429 | AA89: 25.01767924 | AB89: 10.97009686 | AC89: 111.0101813 | AD89: 0 | AE89: 111.0101813 | AF89: 73.09801748 | AG89: 36.36 | AH89: 36.73801748 | AI89: 37.91216378 | AJ89: 180 | AK89: -0.009222829638 | AL89: 170 | AM89: 0.04905818038 | AN89: 144 | AO89: 0.238471463 | AP89: 25.59070137 | AQ89: 6.96893329 | AR89: 0 | AS89: 0 | AT89: 0 | AU89: 10 | AV89: 0 | AW89: 6 | AX89: 2 | AY89: 1 | AZ89: 0 | BA89: 0 | BB89: 0 | BC89: 0 | BD89: 0 | BE89: 0 | BF89: 0 | BG89: 0
A90: 14.94283296 | B90: 17.96080069 | C90: 16 | D90: Factory-2 | E90: ROAK | F90: 6 | G90: 8 | H90: GRADE | I90: SPLIT | J90: 6 | K90: 0 | L90: 0.125 | M90: 1 | N90: 0.13 | O90: 0.035 | P90: 1 | Q90: 0.13 | R90: 0.035 | S90: 18 | T90: 154.8122913 | U90: 0 | V90: 12.27780511 | W90: 12.09670422 | X90: 4.618061775 | Y90: 48.12864345 | Z90: 42.83686051 | AA90: 25.83425664 | AB90: 9.019959598 | AC90: 93.97295292 | AD90: 0 | AE90: 93.97295292 | AF90: 59.16133201 | AG90: 27.27 | AH90: 31.89133201 | AI90: 34.81162092 | AJ90: 135 | AK90: 0.1467577133 | AL90: 120 | AM90: 0.2901024275 | AN90: 100 | AO90: 0.548122913 | AP90: 23.85130192 | AQ90: 6.490727082 | AR90: 0 | AS90: 0 | AT90: 0 | AU90: 9 | AV90: 6 | AW90: 2 | AX90: 0 | AY90: 1 | AZ90: 0 | BA90: 0 | BB90: 0 | BC90: 0 | BD90: 0 | BE90: 0 | BF90: 0 | BG90: 0
A91: 14.36502124 | B91: 15.74751285 | C91: 16 | D91: Factory-2 | E91: ROAK | F91: 6 | G91: 8 | H91: GRADE | I91: SPLIT | J91: 6 | K91: 0 | L91: 0.125 | M91: 1 | N91: 0.13 | O91: 0.035 | P91: 1 | Q91: 0.13 | R91: 0.035 | S91: 15 | T91: 133.096845 | U91: 0 | V91: 10.55560324 | W91: 10.39990529 | X91: 3.970288452 | Y91: 41.37766158 | Z91: 36.82815451 | AA91: 22.21049778 | AB91: 7.754734166 | AC91: 80.79141163 | AD91: 0 | AE91: 80.79141163 | AF91: 54.68795007 | AG91: 27.27 | AH91: 27.41795007 | AI91: 26.10346155 | AJ91: 135 | AK91: -0.01409744429 | AL91: 120 | AM91: 0.1091403752 | AN91: 100 | AO91: 0.3309684502 | AP91: 19.85157937 | AQ91: 6.70459728 | AR91: 0 | AS91: 0 | AT91: 0 | AU91: 4 | AV91: 6 | AW91: 1 | AX91: 4 | AY91: 0 | AZ91: 0 | BA91: 0 | BB91: 0 | BC91: 0 | BD91: 0 | BE91: 0 | BF91: 0 | BG91: 0
A92: 18.83316067 | B92: 21.88749306 | C92: 16 | D92: Factory-2 | E92: ROAK | F92: 6 | G92: 8 | H92: GRADE | I92: SPLIT | J92: 6 | K92: 0 | L92: 0.125 | M92: 1 | N92: 0.13 | O92: 0.035 | P92: 1 | Q92: 0.13 | R92: 0.035 | S92: 24 | T92: 263.5123721 | U92: 0 | V92: 30.95197159 | W92: 25.07230163 | X92: 5.058158853 | Y92: 95.2854204 | Z92: 60.04620193 | AA92: 30.77524828 | AB92: 16.32306943 | AC92: 167.9025637 | AD92: 0 | AE92: 167.9025637 | AF92: 100.7435487 | AG92: 46.46 | AH92: 54.28354866 | AI92: 67.15901508 | AJ92: 230 | AK92: 0.1457059657 | AL92: 220 | AM92: 0.1977835096 | AN92: 196 | AO92: 0.3444508781 | AP92: 36.42939897 | AQ92: 7.233508639 | AR92: 0 | AS92: 0 | AT92: 0 | AU92: 9 | AV92: 2 | AW92: 6 | AX92: 0 | AY92: 2 | AZ92: 1 | BA92: 0 | BB92: 4 | BC92: 0 | BD92: 0 | BE92: 0 | BF92: 0 | BG92: 0
A93: 15.52779573 | B93: 17.91299979 | C93: 16 | D93: Factory-2 | E93: ROAK | F93: 6 | G93: 8 | H93: GRADE | I93: SPLIT | J93: 6 | K93: 0 | L93: 0.125 | M93: 1 | N93: 0.13 | O93: 0.035 | P93: 1 | Q93: 0.13 | R93: 0.035 | S93: 18 | T93: 162.0332778 | U93: 0 | V93: 14.44674056 | W93: 13.42375178 | X93: 4.290013283 | Y93: 52.64695281 | Z93: 42.64120337 | AA93: 24.8239838 | AB93: 9.760632159 | AC93: 99.62191716 | AD93: 0 | AE93: 99.62191716 | AF93: 64.68885522 | AG93: 31.31 | AH93: 33.37885522 | AI93: 34.93306194 | AJ93: 155 | AK93: 0.04537598557 | AL93: 140 | AM93: 0.1573805554 | AN93: 121 | AO93: 0.339117998 | AP93: 24.55517591 | AQ93: 6.598742293 | AR93: 0 | AS93: 0 | AT93: 0 | AU93: 9 | AV93: 2 | AW93: 6 | AX93: 0 | AY93: 1 | AZ93: 0 | BA93: 0 | BB93: 0 | BC93: 0 | BD93: 0 | BE93: 0 | BF93: 0 | BG93: 0
A94: 17.25748555 | B94: 17.43619137 | C94: 16 | D94: Factory-2 | E94: ROAK | F94: 6 | G94: 8 | H94: GRADE | I94: SPLIT | J94: 6 | K94: 0 | L94: 0.125 | M94: 1 | N94: 0.13 | O94: 0.035 | P94: 1 | Q94: 0.13 | R94: 0.035 | S94: 19 | T94: 191.1444457 | U94: 0 | V94: 20.69204051 | W94: 17.4626784 | X94: 4.043266978 | Y94: 66.95728904 | Z94: 45.63038716 | AA94: 24.49227744 | AB94: 11.8665062 | AC94: 120.4053479 | AD94: 0 | AE94: 120.4053479 | AF94: 80.78575582 | AG94: 41.41 | AH94: 39.37575582 | AI94: 39.61959209 | AJ94: 205 | AK94: -0.06758806962 | AL94: 190 | AM94: 0.006023398573 | AN94: 169 | AO94: 0.1310322232 | AP94: 26.29651479 | AQ94: 7.268812893 | AR94: 0 | AS94: 0 | AT94: 0 | AU94: 4 | AV94: 6 | AW94: 2 | AX94: 2 | AY94: 5 | AZ94: 0 | BA94: 0 | BB94: 0 | BC94: 0 | BD94: 0 | BE94: 0 | BF94: 0 | BG94: 0
A95: 16.95398761 | B95: 21.30003943 | C95: 16 | D95: Factory-2 | E95: ROAK | F95: 6 | G95: 8 | H95: GRADE | I95: SPLIT | J95: 6 | K95: 0 | L95: 0.125 | M95: 1 | N95: 0.13 | O95: 0.035 | P95: 1 | Q95: 0.13 | R95: 0.035 | S95: 22 | T95: 221.8090519 | U95: 0 | V95: 21.91783423 | W95: 19.35407589 | X95: 5.230598894 | Y95: 74.98503519 | Z95: 55.56195072 | AA95: 31.11557202 | AB95: 13.64398494 | AC95: 138.068174 | AD95: 0 | AE95: 138.068174 | AF95: 82.05266469 | AG95: 36.36 | AH95: 45.69266469 | AI95: 56.01550931 | AJ95: 180 | AK95: 0.2322725106 | AL95: 170 | AM95: 0.3047591288 | AN95: 144 | AO95: 0.5403406382 | AP95: 32.38247461 | AQ95: 6.849663424 | AR95: 0 | AS95: 0 | AT95: 0 | AU95: 13 | AV95: 2 | AW95: 2 | AX95: 0 | AY95: 1 | AZ95: 0 | BA95: 0 | BB95: 4 | BC95: 0 | BD95: 0 | BE95: 0 | BF95: 0 | BG95: 0
A96: 19.24577313 | B96: 21.42834509 | C96: 16 | D96: Factory-2 | E96: ROAK | F96: 6 | G96: 8 | H96: GRADE | I96: SPLIT | J96: 6 | K96: 0 | L96: 0.125 | M96: 1 | N96: 0.13 | O96: 0.035 | P96: 1 | Q96: 0.13 | R96: 0.035 | S96: 24 | T96: 269.0200077 | U96: 0 | V96: 34.00796108 | W96: 26.52884186 | X96: 4.764670211 | Y96: 100.0601363 | Z96: 58.63393389 | AA96: 28.58674577 | AB96: 16.43771863 | AC96: 173.3055355 | AD96: 0 | AE96: 173.3055355 | AF96: 107.9381216 | AG96: 52.52 | AH96: 55.41812159 | AI96: 65.36741392 | AJ96: 260 | AK96: 0.03469233747 | AL96: 240 | AM96: 0.1209166989 | AN96: 225 | AO96: 0.1956444789 | AP96: 36.24691181 | AQ96: 7.421873873 | AR96: 0 | AS96: 0 | AT96: 0 | AU96: 9 | AV96: 2 | AW96: 2 | AX96: 4 | AY96: 2 | AZ96: 1 | BA96: 0 | BB96: 0 | BC96: 4 | BD96: 0 | BE96: 0 | BF96: 0 | BG96: 0
A97: 12.72099893 | B97: 13.39356058 | C97: 16 | D97: Factory-2 | E97: ROAK | F97: 6 | G97: 8 | H97: GRADE | I97: SPLIT | J97: 6 | K97: 0 | L97: 0.125 | M97: 1 | N97: 0.13 | O97: 0.035 | P97: 1 | Q97: 0.13 | R97: 0.035 | S97: 12 | T97: 90.27485342 | U97: 0 | V97: 5.334734273 | W97: 6.12703307 | X97: 3.419702452 | Y97: 25.30368425 | Z97: 27.64831674 | AA97: 17.72524445 | AB97: 4.716138179 | AC97: 53.34685588 | AD97: 0 | AE97: 53.34685588 | AF97: 37.7866198 | AG97: 19.19 | AH97: 18.5966198 | AI97: 15.56023607 | AJ97: 95 | AK97: -0.04973838506 | AL97: 90 | AM97: 0.003053926881 | AN97: 64 | AO97: 0.4105445847 | AP97: 14.90868658 | AQ97: 6.055184871 | AR97: 0 | AS97: 0 | AT97: 0 | AU97: 9 | AV97: 2 | AW97: 1 | AX97: 0 | AY97: 0 | AZ97: 0 | BA97: 0 | BB97: 0 | BC97: 0 | BD97: 0 | BE97: 0 | BF97: 0 | BG97: 0
A98: 16.98767166 | B98: 19.87354627 | C98: 16 | D98: Factory-2 | E98: ROAK | F98: 6 | G98: 8 | H98: GRADE | I98: SPLIT | J98: 6 | K98: 0 | L98: 0.125 | M98: 1 | N98: 0.13 | O98: 0.035 | P98: 1 | Q98: 0.13 | R98: 0.035 | S98: 21 | T98: 220.1796968 | U98: 0 | V98: 21.75683118 | W98: 19.21190558 | X98: 5.192176193 | Y98: 74.43421345 | Z98: 55.15380621 | AA98: 30.88700464 | AB98: 13.54375956 | AC98: 137.0539589 | AD98: 0 | AE98: 137.0539589 | AF98: 81.71701754 | AG98: 36.36 | AH98: 45.35701754 | AI98: 55.33694139 | AJ98: 180 | AK98: 0.2232205378 | AL98: 170 | AM98: 0.2951746871 | AN98: 144 | AO98: 0.5290256723 | AP98: 29.8661469 | AQ98: 7.372216361 | AR98: 0 | AS98: 0 | AT98: 0 | AU98: 10 | AV98: 0 | AW98: 6 | AX98: 1 | AY98: 0 | AZ98: 0 | BA98: 0 | BB98: 4 | BC98: 0 | BD98: 0 | BE98: 0 | BF98: 0 | BG98: 0
A99: 18.39993508 | B99: 19.45389755 | C99: 16 | D99: Factory-2 | E99: ROAK | F99: 6 | G99: 8 | H99: GRADE | I99: SPLIT | J99: 6 | K99: 0 | L99: 0.125 | M99: 1 | N99: 0.13 | O99: 0.035 | P99: 1 | Q99: 0.13 | R99: 0.035 | S99: 22 | T99: 227.2772762 | U99: 0 | V99: 26.69582358 | W99: 21.62465609 | X99: 4.362620841 | Y99: 82.18289955 | Z99: 51.78936044 | AA99: 26.54340116 | AB99: 14.07851452 | AC99: 144.8145946 | AD99: 0 | AE99: 144.8145946 | AF99: 93.27911889 | AG99: 46.46 | AH99: 46.81911889 | AI99: 51.53547574 | AJ99: 230 | AK99: -0.0118379297 | AL99: 220 | AM99: 0.03307852804 | AN99: 196 | AO99: 0.1595779396 | AP99: 31.32869274 | AQ99: 7.254604526 | AR99: 0 | AS99: 0 | AT99: 0 | AU99: 9 | AV99: 2 | AW99: 2 | AX99: 0 | AY99: 6 | AZ99: 2 | BA99: 1 | BB99: 0 | BC99: 0 | BD99: 0 | BE99: 0 | BF99: 0 | BG99: 0
A100: 15.31251026 | B100: 18.27609423 | C100: 16 | D100: Factory-2 | E100: ROAK | F100: 6 | G100: 8 | H100: GRADE | I100: SPLIT | J100: 6 | K100: 0 | L100: 0.125 | M100: 1 | N100: 0.13 | O100: 0.035 | P100: 1 | Q100: 0.13 | R100: 0.035 | S100: 18 | T100: 160.2917738 | U100: 0 | V100: 14.29146964 | W100: 13.27947575 | X100: 4.243905006 | Y100: 52.08111301 | Z100: 42.18290354 | AA100: 24.55718018 | AB100: 9.655726674 | AC100: 98.55119906 | AD100: 0 | AE100: 98.55119906 | AF100: 64.3301054 | AG100: 31.31 | AH100: 33.0201054 | AI100: 34.22109365 | AJ100: 155 | AK100: 0.03414047613 | AL100: 140 | AM100: 0.1449412414 | AN100: 121 | AO100: 0.3247254033 | AP100: 24.83920887 | AQ100: 6.453175488 | AR100: 0 | AS100: 0 | AT100: 0 | AU100: 9 | AV100: 2 | AW100: 4 | AX100: 2 | AY100: 1 | AZ100: 0 | BA100: 0 | BB100: 0 | BC100: 0 | BD100: 0 | BE100: 0 | BF100: 0 | BG100: 0
A101: 13.39588813 | B101: 13.88515289 | C101: 16 | D101: Factory-2 | E101: ROAK | F101: 6 | G101: 8 | H101: GRADE | I101: SPLIT | J101: 6 | K101: 0 | L101: 0.125 | M101: 1 | N101: 0.13 | O101: 0.035 | P101: 1 | Q101: 0.13 | R101: 0.035 | S101: 13 | T101: 112.1786964 | U101: 0 | V101: 7.771671776 | W101: 8.205034469 | X101: 3.773133674 | Y101: 33.20488617 | Z101: 32.65309297 | AA101: 20.33427458 | AB101: 6.236602705 | AC101: 67.20008463 | AD101: 0 | AE101: 67.20008463 | AF101: 46.33881145 | AG101: 23.23 | AH101: 23.10881145 | AI101: 20.86127318 | AJ101: 115 | AK101: -0.02453307521 | AL101: 100 | AM101: 0.1217869635 | AN101: 81 | AO101: 0.3849221772 | AP101: 16.26475593 | AQ101: 6.897041484 | AR101: 0 | AS101: 0 | AT101: 0 | AU101: 9 | AV101: 0 | AW101: 0 | AX101: 4 | AY101: 0 | AZ101: 0 | BA101: 0 | BB101: 0 | BC101: 0 | BD101: 0 | BE101: 0 | BF101: 0 | BG101: 0
A102: 19.90781494 | B102: 21.31147445 | C102: 16 | D102: Factory-2 | E102: ROAK | F102: 6 | G102: 8 | H102: GRADE | I102: SPLIT | J102: 6 | K102: 0 | L102: 0.125 | M102: 1 | N102: 0.13 | O102: 0.035 | P102: 1 | Q102: 0.13 | R102: 0.035 | S102: 24 | T102: 279.4628356 | U102: 0 | V102: 35.32808327 | W102: 27.55863935 | X102: 4.949625341 | Y102: 103.9442741 | Z102: 60.90998794 | AA102: 29.69642704 | AB102: 17.07579856 | AC102: 180.0329157 | AD102: 0 | AE102: 180.0329157 | AF102: 110.0893441 | AG102: 52.52 | AH102: 57.56934413 | AI102: 69.94357157 | AJ102: 260 | AK102: 0.07485705991 | AL102: 240 | AM102: 0.1644284816 | AN102: 225 | AO102: 0.242057047 | AP102: 37.16125256 | AQ102: 7.520274918 | AR102: 0 | AS102: 0 | AT102: 0 | AU102: 9 | AV102: 2 | AW102: 0 | AX102: 2 | AY102: 6 | AZ102: 1 | BA102: 0 | BB102: 0 | BC102: 4 | BD102: 0 | BE102: 0 | BF102: 0 | BG102: 0
A103: 11.64828966 | B103: 14.11271016 | C103: 16 | D103: Factory-2 | E103: ROAK | F103: 6 | G103: 8 | H103: GRADE | I103: SPLIT | J103: 6 | K103: 0 | L103: 0.125 | M103: 1 | N103: 0.13 | O103: 0.035 | P103: 1 | Q103: 0.13 | R103: 0.035 | S103: 12 | T103: 89.55249241 | U103: 0 | V103: 4.367756073 | W103: 5.582261563 | X103: 3.811035976 | Y103: 23.62472055 | Z103: 28.85632428 | AA103: 18.99254142 | AB103: 4.317852548 | AC103: 52.182978 | AD103: 0 | AE103: 52.182978 | AF103: 34.60781344 | AG103: 16.16 | AH103: 18.44781344 | AI103: 17.57516456 | AJ103: 80 | AK103: 0.1194061551 | AL103: 70 | AM103: 0.2793213201 | AN103: 49 | AO103: 0.8276018859 | AP103: 14.63079475 | AQ103: 6.120822137 | AR103: 0 | AS103: 0 | AT103: 0 | AU103: 8 | AV103: 4 | AW103: 0 | AX103: 0 | AY103: 0 | AZ103: 0 | BA103: 0 | BB103: 0 | BC103: 0 | BD103: 0 | BE103: 0 | BF103: 0 | BG103: 0
A104: 21.86539048 | B104: 23.67743949 | C104: 16 | D104: Factory-2 | E104: ROAK | F104: 6 | G104: 8 | H104: GRADE | I104: SPLIT | J104: 6 | K104: 0 | L104: 0.125 | M104: 1 | N104: 0.13 | O104: 0.035 | P104: 1 | Q104: 0.13 | R104: 0.035 | S104: 28 | T104: 344.6678 | U104: 0 | V104: 49.46252352 | W104: 36.0383199 | X104: 5.572587733 | Y104: 134.3193357 | Z104: 69.27785629 | AA104: 30.24004974 | AB104: 19.75712707 | AC104: 226.6522668 | AD104: 0 | AE104: 226.6522668 | AF104: 135.6415668 | AG104: 64.64 | AH104: 71.0015668 | AI104: 91.01069999 | AJ104: 320 | AK104: 0.07708687498 | AL104: 300 | AM104: 0.1488926666 | AN104: 289 | AO104: 0.1926221453 | AP104: 45.38507028 | AQ104: 7.594299136 | AR104: 0 | AS104: 0 | AT104: 0 | AU104: 9 | AV104: 2 | AW104: 2 | AX104: 0 | AY104: 6 | AZ104: 2 | BA104: 2 | BB104: 0 | BC104: 1 | BD104: 4 | BE104: 0 | BF104: 0 | BG104: 0
A105: 16.98187083 | B105: 19.48689859 | C105: 16 | D105: Factory-2 | E105: ROAK | F105: 6 | G105: 8 | H105: GRADE | I105: SPLIT | J105: 6 | K105: 0 | L105: 0.125 | M105: 1 | N105: 0.13 | O105: 0.035 | P105: 1 | Q105: 0.13 | R105: 0.035 | S105: 21 | T105: 205.634319 | U105: 0 | V105: 20.31954458 | W105: 17.94274031 | X105: 4.849173794 | Y105: 69.51698553 | Z105: 51.51026887 | AA105: 28.84656604 | AB105: 12.64903992 | AC105: 127.9999833 | AD105: 0 | AE105: 127.9999833 | AF105: 78.72066972 | AG105: 36.36 | AH105: 42.36066972 | AI105: 49.27931359 | AJ105: 180 | AK105: 0.1424128836 | AL105: 170 | AM105: 0.2096136414 | AN105: 144 | AO105: 0.4280161045 | AP105: 29.19258334 | AQ105: 7.044060356 | AR105: 0 | AS105: 0 | AT105: 0 | AU105: 10 | AV105: 2 | AW105: 4 | AX105: 2 | AY105: 2 | AZ105: 1 | BA105: 0 | BB105: 0 | BC105: 0 | BD105: 0 | BE105: 0 | BF105: 0 | BG105: 0
A106: 19.18687562 | B106: 21.27735485 | C106: 16 | D106: Factory-2 | E106: ROAK | F106: 6 | G106: 8 | H106: GRADE | I106: SPLIT | J106: 6 | K106: 0 | L106: 0.125 | M106: 1 | N106: 0.13 | O106: 0.035 | P106: 1 | Q106: 0.13 | R106: 0.035 | S106: 24 | T106: 267.5468167 | U106: 0 | V106: 33.82172874 | W106: 26.38356623 | X106: 4.738578212 | Y106: 99.51219304 | Z106: 58.31284629 | AA106: 28.43020076 | AB106: 16.34770339 | AC106: 172.3564902 | AD106: 0 | AE106: 172.3564902 | AF106: 107.6346442 | AG106: 52.52 | AH106: 55.11464423 | AI106: 64.721846 | AJ106: 260 | AK106: 0.02902621793 | AL106: 240 | AM106: 0.1147784028 | AN106: 225 | AO106: 0.1890969629 | AP106: 35.8662665 | AQ106: 7.459566963 | AR106: 0 | AS106: 0 | AT106: 0 | AU106: 9 | AV106: 2 | AW106: 2 | AX106: 4 | AY106: 2 | AZ106: 1 | BA106: 0 | BB106: 0 | BC106: 4 | BD106: 0 | BE106: 0 | BF106: 0 | BG106: 0
A107: 17.43395929 | B107: 19.4769537 | C107: 16 | D107: Factory-2 | E107: ROAK | F107: 6 | G107: 8 | H107: GRADE | I107: SPLIT | J107: 6 | K107: 0 | L107: 0.125 | M107: 1 | N107: 0.13 | O107: 0.035 | P107: 1 | Q107: 0.13 | R107: 0.035 | S107: 21 | T107: 212.2734688 | U107: 0 | V107: 22.97932958 | W107: 19.3929952 | X107: 4.490207934 | Y107: 74.35871838 | Z107: 50.67435013 | AA107: 27.19964304 | AB107: 13.17822459 | AC107: 133.7149022 | AD107: 0 | AE107: 133.7149022 | AF107: 85.13833458 | AG107: 41.41 | AH107: 43.72833458 | AI107: 48.57656762 | AJ107: 205 | AK107: 0.03548033582 | AL107: 190 | AM107: 0.1172287834 | AN107: 169 | AO107: 0.2560560287 | AP107: 29.85547837 | AQ107: 7.110034086 | AR107: 0 | AS107: 0 | AT107: 0 | AU107: 10 | AV107: 0 | AW107: 2 | AX107: 6 | AY107: 2 | AZ107: 0 | BA107: 1 | BB107: 0 | BC107: 0 | BD107: 0 | BE107: 0 | BF107: 0 | BG107: 0
A108: 16.80852684 | B108: 18.57793614 | C108: 16 | D108: Factory-2 | E108: ROAK | F108: 6 | G108: 8 | H108: GRADE | I108: SPLIT | J108: 6 | K108: 0 | L108: 0.125 | M108: 1 | N108: 0.13 | O108: 0.035 | P108: 1 | Q108: 0.13 | R108: 0.035 | S108: 20 | T108: 190.7310848 | U108: 0 | V108: 18.84689676 | W108: 16.64235007 | X108: 4.49773259 | Y108: 64.47878022 | Z108: 47.77709045 | AA108: 26.75592703 | AB108: 11.73230771 | AC108: 118.7232549 | AD108: 0 | AE108: 118.7232549 | AF108: 75.65060348 | AG108: 36.36 | AH108: 39.29060348 | AI108: 43.07265142 | AJ108: 180 | AK108: 0.05961713798 | AL108: 170 | AM108: 0.1219475579 | AN108: 144 | AO108: 0.3245214225 | AP108: 27.42488456 | AQ108: 6.954672296 | AR108: 0 | AS108: 0 | AT108: 0 | AU108: 9 | AV108: 2 | AW108: 2 | AX108: 4 | AY108: 2 | AZ108: 1 | BA108: 0 | BB108: 0 | BC108: 0 | BD108: 0 | BE108: 0 | BF108: 0 | BG108: 0
A109: 17.89157509 | B109: 19.86587715 | C109: 16 | D109: Factory-2 | E109: ROAK | F109: 6 | G109: 8 | H109: GRADE | I109: SPLIT | J109: 6 | K109: 0 | L109: 0.125 | M109: 1 | N109: 0.13 | O109: 0.035 | P109: 1 | Q109: 0.13 | R109: 0.035 | S109: 21 | T109: 220.8059137 | U109: 0 | V109: 23.90299594 | W109: 20.17250694 | X109: 4.670694227 | Y109: 77.34760655 | Z109: 52.71123254 | AA109: 28.29294713 | AB109: 13.70793033 | AC109: 139.0896437 | AD109: 0 | AE109: 139.0896437 | AF109: 86.89601821 | AG109: 41.41 | AH109: 45.48601821 | AI109: 52.1936255 | AJ109: 205 | AK109: 0.07710201781 | AL109: 190 | AM109: 0.1621363876 | AN109: 169 | AO109: 0.3065438678 | AP109: 31.23037352 | AQ109: 7.070229676 | AR109: 0 | AS109: 0 | AT109: 0 | AU109: 4 | AV109: 6 | AW109: 2 | AX109: 6 | AY109: 0 | AZ109: 2 | BA109: 1 | BB109: 0 | BC109: 0 | BD109: 0 | BE109: 0 | BF109: 0 | BG109: 0
A110: 15.31499555 | B110: 16.54724463 | C110: 16 | D110: Factory-2 | E110: ROAK | F110: 6 | G110: 8 | H110: GRADE | I110: SPLIT | J110: 6 | K110: 0 | L110: 0.125 | M110: 1 | N110: 0.13 | O110: 0.035 | P110: 1 | Q110: 0.13 | R110: 0.035 | S110: 17 | T110: 154.8341382 | U110: 0 | V110: 13.80487179 | W110: 12.8273344 | X110: 4.099407966 | Y110: 50.30784837 | Z110: 40.74665444 | AA110: 23.72105405 | AB110: 9.326967211 | AC110: 95.19571476 | AD110: 0 | AE110: 95.19571476 | AF110: 63.20583247 | AG110: 31.31 | AH110: 31.89583247 | AI110: 31.98988228 | AJ110: 155 | AK110: -0.001070075985 | AL110: 140 | AM110: 0.1059581302 | AN110: 121 | AO110: 0.279620977 | AP110: 22.2120025 | AQ110: 6.970741977 | AR110: 0 | AS110: 0 | AT110: 0 | AU110: 10 | AV110: 0 | AW110: 2 | AX110: 5 | AY110: 0 | AZ110: 0 | BA110: 0 | BB110: 0 | BC110: 0 | BD110: 0 | BE110: 0 | BF110: 0 | BG110: 0
A111: 22.65805385 | B111: 24.22915425 | C111: 16 | D111: Factory-2 | E111: ROAK | F111: 6 | G111: 8 | H111: GRADE | I111: SPLIT | J111: 6 | K111: 0 | L111: 0.125 | M111: 1 | N111: 0.13 | O111: 0.035 | P111: 1 | Q111: 0.13 | R111: 0.035 | S111: 29 | T111: 372.1222321 | U111: 0 | V111: 56.4201742 | W111: 39.82926024 | X111: 5.993300806 | Y111: 147.7708889 | Z111: 72.18396401 | AA111: 29.68115559 | AB111: 20.24348837 | AC111: 247.0595141 | AD111: 0 | AE111: 247.0595141 | AF111: 148.3671798 | AG111: 71.71 | AH111: 76.65717981 | AI111: 98.69233425 | AJ111: 355 | AK111: 0.04823163967 | AL111: 330 | AM111: 0.1276431275 | AN111: 324 | AO111: 0.1485254077 | AP111: 48.08195372 | AQ111: 7.739332603 | AR111: 0 | AS111: 0 | AT111: 0 | AU111: 10 | AV111: 0 | AW111: 2 | AX111: 2 | AY111: 6 | AZ111: 0 | BA111: 2 | BB111: 2 | BC111: 1 | BD111: 4 | BE111: 0 | BF111: 0 | BG111: 0
A112: 15.6514652 | B112: 17.91830361 | C112: 16 | D112: Factory-2 | E112: ROAK | F112: 6 | G112: 8 | H112: GRADE | I112: SPLIT | J112: 6 | K112: 0 | L112: 0.125 | M112: 1 | N112: 0.13 | O112: 0.035 | P112: 1 | Q112: 0.13 | R112: 0.035 | S112: 18 | T112: 163.5922132 | U112: 0 | V112: 14.58573383 | W112: 13.55290279 | X112: 4.331287851 | Y112: 53.15347345 | Z112: 43.05145788 | AA112: 25.06281738 | AB112: 9.854539999 | AC112: 100.5803878 | AD112: 0 | AE112: 100.5803878 | AF112: 65.00999592 | AG112: 31.31 | AH112: 33.69999592 | AI112: 35.57039186 | AJ112: 155 | AK112: 0.05543363342 | AL112: 140 | AM112: 0.1685158084 | AN112: 121 | AO112: 0.3520017618 | AP112: 24.73195798 | AQ112: 6.614608246 | AR112: 0 | AS112: 0 | AT112: 0 | AU112: 9 | AV112: 2 | AW112: 4 | AX112: 2 | AY112: 1 | AZ112: 0 | BA112: 0 | BB112: 0 | BC112: 0 | BD112: 0 | BE112: 0 | BF112: 0 | BG112: 0
A113: 17.20744397 | B113: 20.28672839 | C113: 16 | D113: Factory-2 | E113: ROAK | F113: 6 | G113: 8 | H113: GRADE | I113: SPLIT | J113: 6 | K113: 0 | L113: 0.125 | M113: 1 | N113: 0.13 | O113: 0.035 | P113: 1 | Q113: 0.13 | R113: 0.035 | S113: 21 | T113: 223.8743069 | U113: 0 | V113: 24.23516001 | W113: 20.45283088 | X113: 4.735599766 | Y113: 78.42245492 | Z113: 53.44372557 | AA113: 28.68611545 | AB113: 13.89842034 | AC113: 141.0224802 | AD113: 0 | AE113: 141.0224802 | AF113: 87.52810723 | AG113: 41.41 | AH113: 46.11810723 | AI113: 53.49437298 | AJ113: 205 | AK113: 0.09206978994 | AL113: 190 | AM113: 0.178285826 | AN113: 169 | AO113: 0.3247000411 | AP113: 30.91953605 | AQ113: 7.240545479 | AR113: 0 | AS113: 0 | AT113: 0 | AU113: 4 | AV113: 6 | AW113: 6 | AX113: 1 | AY113: 0 | AZ113: 0 | BA113: 0 | BB113: 4 | BC113: 0 | BD113: 0 | BE113: 0 | BF113: 0 | BG113: 0
A114: 16.91403911 | B114: 20.86304531 | C114: 16 | D114: Factory-2 | E114: ROAK | F114: 6 | G114: 8 | H114: GRADE | I114: SPLIT | J114: 6 | K114: 0 | L114: 0.125 | M114: 1 | N114: 0.13 | O114: 0.035 | P114: 1 | Q114: 0.13 | R114: 0.035 | S114: 21 | T114: 219.8892953 | U114: 0 | V114: 21.72813546 | W114: 19.18656644 | X114: 5.185328079 | Y114: 74.33603998 | Z114: 55.08106223 | AA114: 30.84626686 | AB114: 13.5258963 | AC114: 136.8731944 | AD114: 0 | AE114: 136.8731944 | AF114: 81.65719484 | AG114: 36.36 | AH114: 45.29719484 | AI114: 55.2159996 | AJ114: 180 | AK114: 0.2216071964 | AL114: 170 | AM114: 0.2934664432 | AN114: 144 | AO114: 0.5270089955 | AP114: 31.51830634 | AQ114: 6.976558098 | AR114: 0 | AS114: 0 | AT114: 0 | AU114: 4 | AV114: 10 | AW114: 2 | AX114: 1 | AY114: 0 | AZ114: 0 | BA114: 0 | BB114: 4 | BC114: 0 | BD114: 0 | BE114: 0 | BF114: 0 | BG114: 0
A115: 19.53602511 | B115: 22.92105164 | C115: 16 | D115: Factory-2 | E115: ROAK | F115: 6 | G115: 8 | H115: GRADE | I115: SPLIT | J115: 6 | K115: 0 | L115: 0.125 | M115: 1 | N115: 0.13 | O115: 0.035 | P115: 1 | Q115: 0.13 | R115: 0.035 | S115: 25 | T115: 287.5895184 | U115: 0 | V115: 36.35541175 | W115: 28.36003508 | X115: 5.093558739 | Y115: 106.9669377 | Z115: 62.68122938 | AA115: 30.5599889 | AB115: 17.57235689 | AC115: 185.2682108 | AD115: 0 | AE115: 185.2682108 | AF115: 111.7634408 | AG115: 52.52 | AH115: 59.2434408 | AI115: 73.50476999 | AJ115: 260 | AK115: 0.1061135325 | AL115: 240 | AM115: 0.1982896602 | AN115: 225 | AO115: 0.2781756375 | AP115: 39.63127839 | AQ115: 7.256629867 | AR115: 0 | AS115: 0 | AT115: 0 | AU115: 4 | AV115: 6 | AW115: 6 | AX115: 2 | AY115: 0 | AZ115: 2 | BA115: 1 | BB115: 0 | BC115: 4 | BD115: 0 | BE115: 0 | BF115: 0 | BG115: 0
A116: 17.55193315 | B116: 18.28727465 | C116: 16 | D116: Factory-2 | E116: ROAK | F116: 6 | G116: 8 | H116: GRADE | I116: SPLIT | J116: 6 | K116: 0 | L116: 0.125 | M116: 1 | N116: 0.13 | O116: 0.035 | P116: 1 | Q116: 0.13 | R116: 0.035 | S116: 20 | T116: 199.6889498 | U116: 0 | V116: 21.61701232 | W116: 18.24329185 | X116: 4.224008358 | Y116: 69.95040153 | Z116: 47.67014838 | AA116: 25.58712674 | AB116: 12.39696059 | AC116: 125.7876857 | AD116: 0 | AE116: 125.7876857 | AF116: 82.54592365 | AG116: 41.41 | AH116: 41.13592365 | AI116: 43.24176209 | AJ116: 205 | AK116: -0.02590756212 | AL116: 190 | AM116: 0.05099447245 | AN116: 169 | AO116: 0.1815914187 | AP116: 28.07279176 | AQ116: 7.113255833 | AR116: 0 | AS116: 0 | AT116: 0 | AU116: 9 | AV116: 2 | AW116: 2 | AX116: 0 | AY116: 6 | AZ116: 1 | BA116: 0 | BB116: 0 | BC116: 0 | BD116: 0 | BE116: 0 | BF116: 0 | BG116: 0
A117: 16.45182235 | B117: 18.70181027 | C117: 16 | D117: Factory-2 | E117: ROAK | F117: 6 | G117: 8 | H117: GRADE | I117: SPLIT | J117: 6 | K117: 0 | L117: 0.125 | M117: 1 | N117: 0.13 | O117: 0.035 | P117: 1 | Q117: 0.13 | R117: 0.035 | S117: 19 | T117: 185.433003 | U117: 0 | V117: 18.32337223 | W117: 16.18006291 | X117: 4.372795665 | Y117: 62.68770431 | Z117: 46.44995003 | AA117: 26.01270738 | AB117: 11.40641051 | AC117: 115.4253891 | AD117: 0 | AE117: 115.4253891 | AF117: 74.55919862 | AG117: 36.36 | AH117: 38.19919862 | AI117: 40.8661905 | AJ117: 180 | AK117: 0.03018335018 | AL117: 170 | AM117: 0.09078237078 | AN117: 144 | AO117: 0.2877291877 | AP117: 27.10827682 | AQ117: 6.84045704 | AR117: 0 | AS117: 0 | AT117: 0 | AU117: 4 | AV117: 6 | AW117: 6 | AX117: 2 | AY117: 0 | AZ117: 1 | BA117: 0 | BB117: 0 | BC117: 0 | BD117: 0 | BE117: 0 | BF117: 0 | BG117: 0
A118: 17.83828138 | B118: 21.52160133 | C118: 16 | D118: Factory-2 | E118: ROAK | F118: 6 | G118: 8 | H118: GRADE | I118: SPLIT | J118: 6 | K118: 0 | L118: 0.125 | M118: 1 | N118: 0.13 | O118: 0.035 | P118: 1 | Q118: 0.13 | R118: 0.035 | S118: 23 | T118: 245.2917789 | U118: 0 | V118: 26.55367467 | W118: 22.40949996 | X118: 5.188642264 | Y118: 85.92492698 | Z118: 58.55654763 | AA118: 31.43044142 | AB118: 15.22804602 | AC118: 154.5137337 | AD118: 0 | AE118: 154.5137337 | AF118: 91.94010646 | AG118: 41.41 | AH118: 50.53010646 | AI118: 62.57362722 | AJ118: 205 | AK118: 0.1965452631 | AL118: 190 | AM118: 0.2910093629 | AN118: 169 | AO118: 0.4514306446 | AP118: 34.14131949 | AQ118: 7.184601609 | AR118: 0 | AS118: 0 | AT118: 0 | AU118: 10 | AV118: 4 | AW118: 2 | AX118: 2 | AY118: 1 | AZ118: 0 | BA118: 0 | BB118: 4 | BC118: 0 | BD118: 0 | BE118: 0 | BF118: 0 | BG118: 0
A119: 14.54126129 | B119: 17.04936216 | C119: 16 | D119: Factory-2 | E119: ROAK | F119: 6 | G119: 8 | H119: GRADE | I119: SPLIT | J119: 6 | K119: 0 | L119: 0.125 | M119: 1 | N119: 0.13 | O119: 0.035 | P119: 1 | Q119: 0.13 | R119: 0.035 | S119: 17 | T119: 147.1574047 | U119: 0 | V119: 11.67071374 | W119: 11.49856761 | X119: 4.389715958 | Y119: 45.74886272 | Z119: 40.71873858 | AA119: 24.55684964 | AB119: 8.573956459 | AC119: 89.3263432 | AD119: 0 | AE119: 89.3263432 | AF119: 57.58442537 | AG119: 27.27 | AH119: 30.31442537 | AI119: 31.74191783 | AJ119: 135 | AK119: 0.09005484966 | AL119: 120 | AM119: 0.2263117059 | AN119: 100 | AO119: 0.471574047 | AP119: 21.93973292 | AQ119: 6.707347134 | AR119: 0 | AS119: 0 | AT119: 0 | AU119: 10 | AV119: 2 | AW119: 4 | AX119: 1 | AY119: 0 | AZ119: 0 | BA119: 0 | BB119: 0 | BC119: 0 | BD119: 0 | BE119: 0 | BF119: 0 | BG119: 0
A120: 17.39328806 | B120: 20.08742338 | C120: 16 | D120: Factory-2 | E120: ROAK | F120: 6 | G120: 8 | H120: GRADE | I120: SPLIT | J120: 6 | K120: 0 | L120: 0.125 | M120: 1 | N120: 0.13 | O120: 0.035 | P120: 1 | Q120: 0.13 | R120: 0.035 | S120: 21 | T120: 226.3609118 | U120: 0 | V120: 24.50434349 | W120: 20.68000348 | X120: 4.788198768 | Y120: 79.29350465 | Z120: 54.03733288 | AA120: 29.00473635 | AB120: 14.05279214 | AC120: 142.5888376 | AD120: 0 | AE120: 142.5888376 | AF120: 88.04034782 | AG120: 41.41 | AH120: 46.63034782 | AI120: 54.54848979 | AJ120: 205 | AK120: 0.1041995695 | AL120: 190 | AM120: 0.1913732198 | AN120: 169 | AO120: 0.339413679 | AP120: 30.84890874 | AQ120: 7.337728334 | AR120: 0 | AS120: 0 | AT120: 0 | AU120: 4 | AV120: 6 | AW120: 6 | AX120: 1 | AY120: 0 | AZ120: 0 | BA120: 0 | BB120: 4 | BC120: 0 | BD120: 0 | BE120: 0 | BF120: 0 | BG120: 0
A121: 15.05060176 | B121: 16.77800263 | C121: 16 | D121: Factory-2 | E121: ROAK | F121: 6 | G121: 8 | H121: GRADE | I121: SPLIT | J121: 6 | K121: 0 | L121: 0.125 | M121: 1 | N121: 0.13 | O121: 0.035 | P121: 1 | Q121: 0.13 | R121: 0.035 | S121: 17 | T121: 152.408903 | U121: 0 | V121: 13.58864001 | W121: 12.62641422 | X121: 4.035197136 | Y121: 49.51985442 | Z121: 40.10842168 | AA121: 23.34950075 | AB121: 9.180874823 | AC121: 93.70462242 | AD121: 0 | AE121: 93.70462242 | AF121: 62.70623403 | AG121: 31.31 | AH121: 31.39623403 | AI121: 30.9983884 | AJ121: 155 | AK121: -0.01671675461 | AL121: 140 | AM121: 0.08863502168 | AN121: 121 | AO121: 0.259577711 | AP121: 22.19721629 | AQ121: 6.866126862 | AR121: 0 | AS121: 0 | AT121: 0 | AU121: 10 | AV121: 0 | AW121: 6 | AX121: 1 | AY121: 0 | AZ121: 0 | BA121: 0 | BB121: 0 | BC121: 0 | BD121: 0 | BE121: 0 | BF121: 0 | BG121: 0
A122: 14.14959787 | B122: 15.72099538 | C122: 16 | D122: Factory-2 | E122: ROAK | F122: 6 | G122: 8 | H122: GRADE | I122: SPLIT | J122: 6 | K122: 0 | L122: 0.125 | M122: 1 | N122: 0.13 | O122: 0.035 | P122: 1 | Q122: 0.13 | R122: 0.035 | S122: 15 | T122: 130.9077445 | U122: 0 | V122: 10.38199074 | W122: 10.22885362 | X122: 3.904987427 | Y122: 40.69710556 | Z122: 36.22242617 | AA122: 21.84519227 | AB122: 7.627188751 | AC122: 79.46260087 | AD122: 0 | AE122: 79.46260087 | AF122: 54.23699537 | AG122: 27.27 | AH122: 26.96699537 | AI122: 25.2256055 | AJ122: 135 | AK122: -0.03031300351 | AL122: 120 | AM122: 0.09089787106 | AN122: 100 | AO122: 0.3090774453 | AP122: 19.54672251 | AQ122: 6.69717107 | AR122: 0 | AS122: 0 | AT122: 0 | AU122: 4 | AV122: 6 | AW122: 5 | AX122: 0 | AY122: 0 | AZ122: 0 | BA122: 0 | BB122: 0 | BC122: 0 | BD122: 0 | BE122: 0 | BF122: 0 | BG122: 0
A123: 20.49370928 | B123: 21.77070434 | C123: 16 | D123: Factory-2 | E123: ROAK | F123: 6 | G123: 8 | H123: GRADE | I123: SPLIT | J123: 6 | K123: 0 | L123: 0.125 | M123: 1 | N123: 0.13 | O123: 0.035 | P123: 1 | Q123: 0.13 | R123: 0.035 | S123: 25 | T123: 299.9875672 | U123: 0 | V123: 40.52895789 | W123: 30.52432498 | X123: 5.010501393 | Y123: 114.3903704 | Z123: 62.69538428 | AA123: 28.97096998 | AB123: 17.8670583 | AC123: 195.2987377 | AD123: 0 | AE123: 195.2987377 | AF123: 120.3774388 | AG123: 58.58 | AH123: 61.79743884 | AI123: 74.92129889 | AJ123: 290 | AK123: 0.03443988688 | AL123: 270 | AM123: 0.1110650637 | AN123: 256 | AO123: 0.1718264344 | AP123: 39.05997833 | AQ123: 7.680177512 | AR123: 0 | AS123: 0 | AT123: 0 | AU123: 4 | AV123: 6 | AW123: 2 | AX123: 2 | AY123: 6 | AZ123: 0 | BA123: 1 | BB123: 0 | BC123: 4 | BD123: 0 | BE123: 0 | BF123: 0 | BG123: 0
A124: 11.48317833 | B124: 13.96334467 | C124: 16 | D124: Factory-2 | E124: ROAK | F124: 6 | G124: 8 | H124: GRADE | I124: SPLIT | J124: 6 | K124: 0 | L124: 0.125 | M124: 1 | N124: 0.13 | O124: 0.035 | P124: 1 | Q124: 0.13 | R124: 0.035 | S124: 12 | T124: 88.34710072 | U124: 0 | V124: 4.308965338 | W124: 5.507123379 | X124: 3.759738787 | Y124: 23.30672781 | Z124: 28.46791328 | AA124: 18.7368986 | AB124: 4.259733522 | AC124: 51.48058629 | AD124: 0 | AE124: 51.48058629 | AF124: 34.35950275 | AG124: 16.16 | AH124: 18.19950275 | AI124: 17.12108354 | AJ124: 80 | AK124: 0.104338759 | AL124: 70 | AM124: 0.2621014389 | AN124: 49 | AO124: 0.8030020555 | AP124: 14.28068548 | AQ124: 6.186474793 | AR124: 0 | AS124: 0 | AT124: 4 | AU124: 4 | AV124: 4 | AW124: 0 | AX124: 0 | AY124: 0 | AZ124: 0 | BA124: 0 | BB124: 0 | BC124: 0 | BD124: 0 | BE124: 0 | BF124: 0 | BG124: 0
A125: 13.6142305 | B125: 15.14111889 | C125: 16 | D125: Factory-2 | E125: ROAK | F125: 6 | G125: 8 | H125: GRADE | I125: SPLIT | J125: 6 | K125: 0 | L125: 0.125 | M125: 1 | N125: 0.13 | O125: 0.035 | P125: 1 | Q125: 0.13 | R125: 0.035 | S125: 14 | T125: 116.0772628 | U125: 0 | V125: 8.041762087 | W125: 8.490185511 | X125: 3.904262069 | Y125: 34.35886157 | Z125: 33.7878918 | AA125: 21.0409553 | AB125: 6.453344483 | AC125: 69.53550129 | AD125: 0 | AE125: 69.53550129 | AF125: 47.14191614 | AG125: 23.23 | AH125: 23.91191614 | AI125: 22.39358515 | AJ125: 115 | AK125: 0.009367502748 | AL125: 100 | AM125: 0.1607726282 | AN125: 81 | AO125: 0.4330526274 | AP125: 18.11532346 | AQ125: 6.407683696 | AR125: 0 | AS125: 0 | AT125: 0 | AU125: 9 | AV125: 1 | AW125: 4 | AX125: 0 | AY125: 0 | AZ125: 0 | BA125: 0 | BB125: 0 | BC125: 0 | BD125: 0 | BE125: 0 | BF125: 0 | BG125: 0
A126: 15.26401669 | B126: 18.12393375 | C126: 16 | D126: Factory-2 | E126: ROAK | F126: 6 | G126: 8 | H126: GRADE | I126: SPLIT | J126: 6 | K126: 0 | L126: 0.125 | M126: 1 | N126: 0.13 | O126: 0.035 | P126: 1 | Q126: 0.13 | R126: 0.035 | S126: 18 | T126: 159.2910837 | U126: 0 | V126: 14.20224902 | W126: 13.19657293 | X126: 4.21741061 | Y126: 51.75597433 | Z126: 41.91955867 | AA126: 24.40387145 | AB126: 9.59544666 | AC126: 97.93595094 | AD126: 0 | AE126: 97.93595094 | AF126: 64.12396324 | AG126: 31.31 | AH126: 32.81396324 | AI126: 33.8119877 | AJ126: 155 | AK126: 0.0276844108 | AL126: 140 | AM126: 0.1377934548 | AN126: 121 | AO126: 0.316455237 | AP126: 24.53241945 | AQ126: 6.493084956 | AR126: 0 | AS126: 0 | AT126: 0 | AU126: 9 | AV126: 2 | AW126: 6 | AX126: 0 | AY126: 1 | AZ126: 0 | BA126: 0 | BB126: 0 | BC126: 0 | BD126: 0 | BE126: 0 | BF126: 0 | BG126: 0
A127: 17.27335585 | B127: 19.94168944 | C127: 16 | D127: Factory-2 | E127: ROAK | F127: 6 | G127: 8 | H127: GRADE | I127: SPLIT | J127: 6 | K127: 0 | L127: 0.125 | M127: 1 | N127: 0.13 | O127: 0.035 | P127: 1 | Q127: 0.13 | R127: 0.035 | S127: 21 | T127: 224.4281613 | U127: 0 | V127: 24.29511664 | W127: 20.50343021 | X127: 4.747315414 | Y127: 78.61646834 | Z127: 53.5759428 | AA127: 28.75708353 | AB127: 13.93280437 | AC127: 141.3713631 | AD127: 0 | AE127: 141.3713631 | AF127: 87.64220123 | AG127: 41.41 | AH127: 46.23220123 | AI127: 53.72916188 | AJ127: 205 | AK127: 0.09477151859 | AL127: 190 | AM127: 0.181200849 | AN127: 169 | AO127: 0.3279772859 | AP127: 30.41235701 | AQ127: 7.379505681 | AR127: 0 | AS127: 0 | AT127: 0 | AU127: 4 | AV127: 6 | AW127: 6 | AX127: 1 | AY127: 0 | AZ127: 0 | BA127: 0 | BB127: 4 | BC127: 0 | BD127: 0 | BE127: 0 | BF127: 0 | BG127: 0
A128: 19.21732501 | B128: 21.96603216 | C128: 16 | D128: Factory-2 | E128: ROAK | F128: 6 | G128: 8 | H128: GRADE | I128: SPLIT | J128: 6 | K128: 0 | L128: 0.125 | M128: 1 | N128: 0.13 | O128: 0.035 | P128: 1 | Q128: 0.13 | R128: 0.035 | S128: 24 | T128: 270.2094719 | U128: 0 | V128: 34.15832629 | W128: 26.64613837 | X128: 4.785737062 | Y128: 100.5025493 | Z128: 58.89318213 | AA128: 28.71314124 | AB128: 16.51039753 | AC128: 174.0718009 | AD128: 0 | AE128: 174.0718009 | AF128: 108.1831512 | AG128: 52.52 | AH128: 55.66315121 | AI128: 65.8886497 | AJ128: 260 | AK128: 0.03926719964 | AL128: 240 | AM128: 0.1258727996 | AN128: 225 | AO128: 0.2009309863 | AP128: 37.21858317 | AQ128: 7.260068732 | AR128: 0 | AS128: 0 | AT128: 0 | AU128: 9 | AV128: 2 | AW128: 4 | AX128: 2 | AY128: 2 | AZ128: 1 | BA128: 0 | BB128: 0 | BC128: 4 | BD128: 0 | BE128: 0 | BF128: 0 | BG128: 0
A129: 19.78798296 | B129: 21.38218376 | C129: 16 | D129: Factory-2 | E129: ROAK | F129: 6 | G129: 8 | H129: GRADE | I129: SPLIT | J129: 6 | K129: 0 | L129: 0.125 | M129: 1 | N129: 0.13 | O129: 0.035 | P129: 1 | Q129: 0.13 | R129: 0.035 | S129: 24 | T129: 277.7633441 | U129: 0 | V129: 35.11324333 | W129: 27.39104757 | X129: 4.919525288 | Y129: 103.3121599 | Z129: 60.5395773 | AA129: 29.51583478 | AB129: 16.97195586 | AC129: 178.9380853 | AD129: 0 | AE129: 178.9380853 | AF129: 109.7392489 | AG129: 52.52 | AH129: 57.21924888 | AI129: 69.19883641 | AJ129: 260 | AK129: 0.0683205541 | AL129: 240 | AM129: 0.1573472669 | AN129: 225 | AO129: 0.2345037514 | AP129: 37.08531399 | AQ129: 7.489847441 | AR129: 0 | AS129: 0 | AT129: 0 | AU129: 9 | AV129: 2 | AW129: 0 | AX129: 2 | AY129: 6 | AZ129: 1 | BA129: 0 | BB129: 0 | BC129: 4 | BD129: 0 | BE129: 0 | BF129: 0 | BG129: 0
A130: 17.50009326 | B130: 18.04150243 | C130: 16 | D130: Factory-2 | E130: ROAK | F130: 6 | G130: 8 | H130: GRADE | I130: SPLIT | J130: 6 | K130: 0 | L130: 0.125 | M130: 1 | N130: 0.13 | O130: 0.035 | P130: 1 | Q130: 0.13 | R130: 0.035 | S130: 20 | T130: 197.8468455 | U130: 0 | V130: 21.41759822 | W130: 18.07499988 | X130: 4.185042437 | Y130: 69.30511828 | Z130: 47.23039753 | AA130: 25.35108887 | AB130: 12.28260026 | AC130: 124.6273109 | AD130: 0 | AE130: 124.6273109 | AF130: 82.16645017 | AG130: 41.41 | AH130: 40.75645017 | AI130: 42.46086072 | AJ130: 205 | AK130: -0.03489343666 | AL130: 190 | AM130: 0.04129918677 | AN130: 169 | AO130: 0.1706913934 | AP130: 27.60327551 | AQ130: 7.16751334 | AR130: 0 | AS130: 0 | AT130: 0 | AU130: 9 | AV130: 2 | AW130: 2 | AX130: 0 | AY130: 6 | AZ130: 1 | BA130: 0 | BB130: 0 | BC130: 0 | BD130: 0 | BE130: 0 | BF130: 0 | BG130: 0
A131: 16.49519207 | B131: 18.70735507 | C131: 16 | D131: Factory-2 | E131: ROAK | F131: 6 | G131: 8 | H131: GRADE | I131: SPLIT | J131: 6 | K131: 0 | L131: 0.125 | M131: 1 | N131: 0.13 | O131: 0.035 | P131: 1 | Q131: 0.13 | R131: 0.035 | S131: 19 | T131: 186.0271172 | U131: 0 | V131: 18.38207901 | W131: 16.23190268 | X131: 4.386805791 | Y131: 62.88855125 | Z131: 46.59877236 | AA131: 26.09605024 | AB131: 11.44295584 | AC131: 115.7952039 | AD131: 0 | AE131: 115.7952039 | AF131: 74.68158614 | AG131: 36.36 | AH131: 38.32158614 | AI131: 41.11361772 | AJ131: 180 | AK131: 0.03348398425 | AL131: 170 | AM131: 0.09427715979 | AN131: 144 | AO131: 0.2918549803 | AP131: 27.17977364 | AQ131: 6.844321796 | AR131: 0 | AS131: 0 | AT131: 0 | AU131: 4 | AV131: 6 | AW131: 6 | AX131: 2 | AY131: 0 | AZ131: 1 | BA131: 0 | BB131: 0 | BC131: 0 | BD131: 0 | BE131: 0 | BF131: 0 | BG131: 0
A132: 16.42170838 | B132: 17.4781329 | C132: 16 | D132: Factory-2 | E132: ROAK | F132: 6 | G132: 8 | H132: GRADE | I132: SPLIT | J132: 6 | K132: 0 | L132: 0.125 | M132: 1 | N132: 0.13 | O132: 0.035 | P132: 1 | Q132: 0.13 | R132: 0.035 | S132: 18 | T132: 171.752958 | U132: 0 | V132: 16.9715926 | W132: 14.98640275 | X132: 4.050199145 | Y132: 58.06301183 | Z132: 43.0231738 | AA132: 24.09365844 | AB132: 10.56491948 | AC132: 106.9100521 | AD132: 0 | AE132: 106.9100521 | AF132: 71.74110936 | AG132: 36.36 | AH132: 35.38110936 | AI132: 35.16894275 | AJ132: 180 | AK132: -0.04581689977 | AL132: 170 | AM132: 0.01031151789 | AN132: 144 | AO132: 0.1927288753 | AP132: 25.13060223 | AQ132: 6.834414729 | AR132: 0 | AS132: 0 | AT132: 0 | AU132: 9 | AV132: 2 | AW132: 0 | AX132: 6 | AY132: 1 | AZ132: 0 | BA132: 0 | BB132: 0 | BC132: 0 | BD132: 0 | BE132: 0 | BF132: 0 | BG132: 0
A133: 17.6626657 | B133: 20.59193698 | C133: 16 | D133: Factory-2 | E133: ROAK | F133: 6 | G133: 8 | H133: GRADE | I133: SPLIT | J133: 6 | K133: 0 | L133: 0.125 | M133: 1 | N133: 0.13 | O133: 0.035 | P133: 1 | Q133: 0.13 | R133: 0.035 | S133: 22 | T133: 232.1477701 | U133: 0 | V133: 25.13079072 | W133: 21.20868244 | X133: 4.910607835 | Y133: 81.32062265 | Z133: 55.41878336 | AA133: 29.74623495 | AB133: 14.41204814 | AC133: 146.2340845 | AD133: 0 | AE133: 146.2340845 | AF133: 89.23244064 | AG133: 41.41 | AH133: 47.82244064 | AI133: 57.00164384 | AJ133: 205 | AK133: 0.1324281468 | AL133: 190 | AM133: 0.2218303689 | AN133: 169 | AO133: 0.3736554444 | AP133: 32.15825103 | AQ133: 7.21891778 | AR133: 0 | AS133: 0 | AT133: 0 | AU133: 9 | AV133: 2 | AW133: 6 | AX133: 0 | AY133: 1 | AZ133: 0 | BA133: 0 | BB133: 4 | BC133: 0 | BD133: 0 | BE133: 0 | BF133: 0 | BG133: 0
A134: 17.37773172 | B134: 19.01142056 | C134: 16 | D134: Factory-2 | E134: ROAK | F134: 6 | G134: 8 | H134: GRADE | I134: SPLIT | J134: 6 | K134: 0 | L134: 0.125 | M134: 1 | N134: 0.13 | O134: 0.035 | P134: 1 | Q134: 0.13 | R134: 0.035 | S134: 20 | T134: 200.4553507 | U134: 0 | V134: 21.69997784 | W134: 18.31330912 | X134: 4.24021999 | Y134: 70.21886932 | Z134: 47.85310515 | AA134: 25.68532946 | AB134: 12.4445398 | AC134: 126.2704555 | AD134: 0 | AE134: 126.2704555 | AF134: 82.70380224 | AG134: 41.41 | AH134: 41.29380224 | AI134: 43.56665331 | AJ134: 205 | AK134: -0.02216902112 | AL134: 190 | AM134: 0.05502816143 | AN134: 169 | AO134: 0.1861263353 | AP134: 28.98707213 | AQ134: 6.915336251 | AR134: 0 | AS134: 0 | AT134: 0 | AU134: 9 | AV134: 2 | AW134: 0 | AX134: 6 | AY134: 2 | AZ134: 1 | BA134: 0 | BB134: 0 | BC134: 0 | BD134: 0 | BE134: 0 | BF134: 0 | BG134: 0
A135: 16.26679516 | B135: 18.89014382 | C135: 16 | D135: Factory-2 | E135: ROAK | F135: 6 | G135: 8 | H135: GRADE | I135: SPLIT | J135: 6 | K135: 0 | L135: 0.125 | M135: 1 | N135: 0.13 | O135: 0.035 | P135: 1 | Q135: 0.13 | R135: 0.035 | S135: 19 | T135: 183.5811303 | U135: 0 | V135: 18.14038132 | W135: 16.01847669 | X135: 4.329125655 | Y135: 62.06165798 | Z135: 45.98606606 | AA135: 25.75292502 | AB135: 11.29249756 | AC135: 114.2726648 | AD135: 0 | AE135: 114.2726648 | AF135: 74.17771284 | AG135: 36.36 | AH135: 37.81771284 | AI135: 40.09495197 | AJ135: 180 | AK135: 0.01989516831 | AL135: 170 | AM135: 0.07988900174 | AN135: 144 | AO135: 0.2748689604 | AP135: 27.15310594 | AQ135: 6.760962474 | AR135: 0 | AS135: 0 | AT135: 0 | AU135: 4 | AV135: 6 | AW135: 6 | AX135: 2 | AY135: 0 | AZ135: 1 | BA135: 0 | BB135: 0 | BC135: 0 | BD135: 0 | BE135: 0 | BF135: 0 | BG135: 0
A136: 15.898675 | B136: 18.7405816 | C136: 16 | D136: Factory-2 | E136: ROAK | F136: 6 | G136: 8 | H136: GRADE | I136: SPLIT | J136: 6 | K136: 0 | L136: 0.125 | M136: 1 | N136: 0.13 | O136: 0.035 | P136: 1 | Q136: 0.13 | R136: 0.035 | S136: 19 | T136: 178.1775581 | U136: 0 | V136: 15.88615 | W136: 14.76123514 | X136: 4.717451265 | Y136: 57.89246274 | Z136: 46.88978461 | AA136: 27.29733595 | AB136: 10.73313845 | AC136: 109.5478051 | AD136: 0 | AE136: 109.5478051 | AF136: 68.01457698 | AG136: 31.31 | AH136: 36.70457698 | AI136: 41.53322815 | AJ136: 155 | AK136: 0.1495326332 | AL136: 140 | AM136: 0.2726968439 | AN136: 121 | AO136: 0.4725418028 | AP136: 26.38983032 | AQ136: 6.751750806 | AR136: 0 | AS136: 0 | AT136: 0 | AU136: 10 | AV136: 0 | AW136: 6 | AX136: 2 | AY136: 1 | AZ136: 0 | BA136: 0 | BB136: 0 | BC136: 0 | BD136: 0 | BE136: 0 | BF136: 0 | BG136: 0
A137: 12.86395348 | B137: 12.54297252 | C137: 16 | D137: Factory-2 | E137: ROAK | F137: 6 | G137: 8 | H137: GRADE | I137: SPLIT | J137: 6 | K137: 0 | L137: 0.125 | M137: 1 | N137: 0.13 | O137: 0.035 | P137: 1 | Q137: 0.13 | R137: 0.035 | S137: 11 | T137: 85.20215186 | U137: 0 | V137: 5.034966244 | W137: 5.782744389 | X137: 3.227543403 | Y137: 23.88182608 | Z137: 26.09470957 | AA137: 16.72923203 | AB137: 4.451130144 | AC137: 50.34920294 | AD137: 0 | AE137: 50.34920294 | AF137: 36.74164328 | AG137: 19.19 | AH137: 17.55164328 | AI137: 13.60755966 | AJ137: 95 | AK137: -0.1031352436 | AL137: 90 | AM137: -0.0533094238 | AN137: 64 | AO137: 0.3312836228 | AP137: 14.10456079 | AQ137: 6.040751861 | AR137: 0 | AS137: 0 | AT137: 0 | AU137: 4 | AV137: 6 | AW137: 1 | AX137: 0 | AY137: 0 | AZ137: 0 | BA137: 0 | BB137: 0 | BC137: 0 | BD137: 0 | BE137: 0 | BF137: 0 | BG137: 0
A138: 20.8961004 | B138: 24.1556372 | C138: 16 | D138: Factory-2 | E138: ROAK | F138: 6 | G138: 8 | H138: GRADE | I138: SPLIT | J138: 6 | K138: 0 | L138: 0.125 | M138: 1 | N138: 0.13 | O138: 0.035 | P138: 1 | Q138: 0.13 | R138: 0.035 | S138: 27 | T138: 327.4827736 | U138: 0 | V138: 44.24361871 | W138: 33.32201632 | X138: 5.469736325 | Y138: 124.874761 | Z138: 68.44169753 | AA138: 31.62628936 | AB138: 19.50465436 | AC138: 213.1987433 | AD138: 0 | AE138: 213.1987433 | AF138: 126.0414514 | AG138: 58.58 | AH138: 67.46145137 | AI138: 87.15729188 | AJ138: 290 | AK138: 0.1292509435 | AL138: 270 | AM138: 0.2128991616 | AN138: 256 | AO138: 0.2792295845 | AP138: 44.57348162 | AQ138: 7.347031501 | AR138: 0 | AS138: 0 | AT138: 0 | AU138: 4 | AV138: 6 | AW138: 6 | AX138: 2 | AY138: 0 | AZ138: 2 | BA138: 2 | BB138: 1 | BC138: 4 | BD138: 0 | BE138: 0 | BF138: 0 | BG138: 0
A139: 15.12875659 | B139: 16.68268838 | C139: 16 | D139: Factory-2 | E139: ROAK | F139: 6 | G139: 8 | H139: GRADE | I139: SPLIT | J139: 6 | K139: 0 | L139: 0.125 | M139: 1 | N139: 0.13 | O139: 0.035 | P139: 1 | Q139: 0.13 | R139: 0.035 | S139: 17 | T139: 153.0601844 | U139: 0 | V139: 13.64670767 | W139: 12.68037005 | X139: 4.052440543 | Y139: 49.73146515 | Z139: 40.279815 | AA139: 23.44927901 | AB139: 9.220106998 | AC139: 94.10504572 | AD139: 0 | AE139: 94.10504572 | AF139: 62.84039799 | AG139: 31.31 | AH139: 31.53039799 | AI139: 31.26464773 | AJ139: 155 | AK139: -0.01251493921 | AL139: 140 | AM139: 0.09328703159 | AN139: 121 | AO139: 0.2649602018 | AP139: 22.16092374 | AQ139: 6.906760124 | AR139: 0 | AS139: 0 | AT139: 0 | AU139: 10 | AV139: 0 | AW139: 2 | AX139: 5 | AY139: 0 | AZ139: 0 | BA139: 0 | BB139: 0 | BC139: 0 | BD139: 0 | BE139: 0 | BF139: 0 | BG139: 0
A140: 18.18412645 | B140: 21.16743317 | C140: 16 | D140: Factory-2 | E140: ROAK | F140: 6 | G140: 8 | H140: GRADE | I140: SPLIT | J140: 6 | K140: 0 | L140: 0.125 | M140: 1 | N140: 0.13 | O140: 0.035 | P140: 1 | Q140: 0.13 | R140: 0.035 | S140: 23 | T140: 250.2299782 | U140: 0 | V140: 29.39183127 | W140: 23.80852725 | X140: 4.803201343 | Y140: 90.4825397 | Z140: 57.0195611 | AA140: 29.22401573 | AB140: 15.50030184 | AC140: 159.4394014 | AD140: 0 | AE140: 159.4394014 | AF140: 98.00737552 | AG140: 46.46 | AH140: 51.54737552 | AI140: 61.43202588 | AJ140: 230 | AK140: 0.0879564271 | AL140: 220 | AM140: 0.137408992 | AN140: 196 | AO140: 0.2766835624 | AP140: 34.0250546 | AQ140: 7.354285869 | AR140: 0 | AS140: 0 | AT140: 0 | AU140: 10 | AV140: 0 | AW140: 6 | AX140: 2 | AY140: 1 | AZ140: 0 | BA140: 0 | BB140: 4 | BC140: 0 | BD140: 0 | BE140: 0 | BF140: 0 | BG140: 0
A141: 14.45911895 | B141: 16.56247501 | C141: 16 | D141: Factory-2 | E141: ROAK | F141: 6 | G141: 8 | H141: GRADE | I141: SPLIT | J141: 6 | K141: 0 | L141: 0.125 | M141: 1 | N141: 0.13 | O141: 0.035 | P141: 1 | Q141: 0.13 | R141: 0.035 | S141: 16 | T141: 136.5327893 | U141: 0 | V141: 10.82810004 | W141: 10.66838269 | X141: 4.072782918 | Y141: 42.44584123 | Z141: 37.77888695 | AA141: 22.78387 | AB141: 7.954925499 | AC141: 82.87707182 | AD141: 0 | AE141: 82.87707182 | AF141: 55.3957546 | AG141: 27.27 | AH141: 28.1257546 | AI141: 27.48131722 | AJ141: 135 | AK141: 0.01135399508 | AL141: 120 | AM141: 0.1377732445 | AN141: 100 | AO141: 0.3653278934 | AP141: 21.12059799 | AQ141: 6.464437675 | AR141: 0 | AS141: 0 | AT141: 0 | AU141: 9 | AV141: 2 | AW141: 4 | AX141: 1 | AY141: 0 | AZ141: 0 | BA141: 0 | BB141: 0 | BC141: 0 | BD141: 0 | BE141: 0 | BF141: 0 | BG141: 0
A142: 15.71019409 | B142: 17.56385325 | C142: 16 | D142: Factory-2 | E142: ROAK | F142: 6 | G142: 8 | H142: GRADE | I142: SPLIT | J142: 6 | K142: 0 | L142: 0.125 | M142: 1 | N142: 0.13 | O142: 0.035 | P142: 1 | Q142: 0.13 | R142: 0.035 | S142: 18 | T142: 163.2726864 | U142: 0 | V142: 14.55724512 | W142: 13.52643139 | X142: 4.322828021 | Y142: 53.04965459 | Z142: 42.96737018 | AA142: 25.01386493 | AB142: 9.835292206 | AC142: 100.3839351 | AD142: 0 | AE142: 100.3839351 | AF142: 64.94417341 | AG142: 31.31 | AH142: 33.63417341 | AI142: 35.43976172 | AJ142: 155 | AK142: 0.05337217059 | AL142: 140 | AM142: 0.1662334746 | AN142: 121 | AO142: 0.349361045 | AP142: 24.26291666 | AQ142: 6.729309948 | AR142: 0 | AS142: 0 | AT142: 0 | AU142: 9 | AV142: 2 | AW142: 2 | AX142: 4 | AY142: 1 | AZ142: 0 | BA142: 0 | BB142: 0 | BC142: 0 | BD142: 0 | BE142: 0 | BF142: 0 | BG142: 0
A143: 14.80474797 | B143: 15.71941824 | C143: 16 | D143: Factory-2 | E143: ROAK | F143: 6 | G143: 8 | H143: GRADE | I143: SPLIT | J143: 6 | K143: 0 | L143: 0.125 | M143: 1 | N143: 0.13 | O143: 0.035 | P143: 1 | Q143: 0.13 | R143: 0.035 | S143: 16 | T143: 138.4871503 | U143: 0 | V143: 10.9830959 | W143: 10.82109232 | X143: 4.131081647 | Y143: 43.05342053 | Z143: 38.31966242 | AA143: 23.11000344 | AB143: 8.068794089 | AC143: 84.06339283 | AD143: 0 | AE143: 84.06339283 | AF143: 55.79835297 | AG143: 27.27 | AH143: 28.52835297 | AI143: 28.26503986 | AJ143: 135 | AK143: 0.02583074326 | AL143: 120 | AM143: 0.1540595862 | AN143: 100 | AO143: 0.3848715034 | AP143: 20.37339569 | AQ143: 6.797450579 | AR143: 0 | AS143: 0 | AT143: 0 | AU143: 9 | AV143: 2 | AW143: 1 | AX143: 4 | AY143: 0 | AZ143: 0 | BA143: 0 | BB143: 0 | BC143: 0 | BD143: 0 | BE143: 0 | BF143: 0 | BG143: 0
A144: 17.96102599 | B144: 19.22882458 | C144: 16 | D144: Factory-2 | E144: ROAK | F144: 6 | G144: 8 | H144: GRADE | I144: SPLIT | J144: 6 | K144: 0 | L144: 0.125 | M144: 1 | N144: 0.13 | O144: 0.035 | P144: 1 | Q144: 0.13 | R144: 0.035 | S144: 21 | T144: 218.8010609 | U144: 0 | V144: 23.68596376 | W144: 19.98934651 | X144: 4.628285696 | Y144: 76.64531302 | Z144: 52.23263004 | AA144: 28.03605549 | AB144: 13.58346635 | AC144: 137.8267506 | AD144: 0 | AE144: 137.8267506 | AF144: 86.48301854 | AG144: 41.41 | AH144: 45.07301854 | AI144: 51.34373209 | AJ144: 205 | AK144: 0.06732224813 | AL144: 190 | AM144: 0.1515845309 | AN144: 169 | AO144: 0.2946808335 | AP144: 30.25096879 | AQ144: 7.23286128 | AR144: 0 | AS144: 0 | AT144: 0 | AU144: 4 | AV144: 6 | AW144: 2 | AX144: 6 | AY144: 2 | AZ144: 0 | BA144: 1 | BB144: 0 | BC144: 0 | BD144: 0 | BE144: 0 | BF144: 0 | BG144: 0
A145: 17.49442658 | B145: 21.10587067 | C145: 16 | D145: Factory-2 | E145: ROAK | F145: 6 | G145: 8 | H145: GRADE | I145: SPLIT | J145: 6 | K145: 0 | L145: 0.125 | M145: 1 | N145: 0.13 | O145: 0.035 | P145: 1 | Q145: 0.13 | R145: 0.035 | S145: 22 | T145: 230.2913814 | U145: 0 | V145: 24.92983028 | W145: 21.03908547 | X145: 4.871339755 | Y145: 80.6703356 | Z145: 54.9756225 | AA145: 29.50836674 | AB145: 14.29680101 | AC145: 145.0647116 | AD145: 0 | AE145: 145.0647116 | AF145: 88.85002456 | AG145: 41.41 | AH145: 47.44002456 | AI145: 56.21468704 | AJ145: 205 | AK145: 0.123372592 | AL145: 190 | AM145: 0.2120599019 | AN145: 169 | AO145: 0.3626708956 | AP145: 32.8361592 | AQ145: 7.013347085 | AR145: 0 | AS145: 0 | AT145: 0 | AU145: 9 | AV145: 6 | AW145: 0 | AX145: 2 | AY145: 1 | AZ145: 0 | BA145: 0 | BB145: 4 | BC145: 0 | BD145: 0 | BE145: 0 | BF145: 0 | BG145: 0
A146: 17.36633195 | B146: 20.08026631 | C146: 16 | D146: Factory-2 | E146: ROAK | F146: 6 | G146: 8 | H146: GRADE | I146: SPLIT | J146: 6 | K146: 0 | L146: 0.125 | M146: 1 | N146: 0.13 | O146: 0.035 | P146: 1 | Q146: 0.13 | R146: 0.035 | S146: 21 | T146: 225.9597013 | U146: 0 | V146: 24.46091109 | W146: 20.64334948 | X146: 4.779711987 | Y146: 79.1529619 | Z146: 53.9415551 | AA146: 28.95332727 | AB146: 14.02788444 | AC146: 142.3361079 | AD146: 0 | AE146: 142.3361079 | AF146: 87.95769846 | AG146: 41.41 | AH146: 46.54769846 | AI146: 54.3784094 | AJ146: 205 | AK146: 0.1022424452 | AL146: 190 | AM146: 0.1892615856 | AN146: 169 | AO146: 0.3370396525 | AP146: 30.79540759 | AQ146: 7.337447981 | AR146: 0 | AS146: 0 | AT146: 0 | AU146: 4 | AV146: 6 | AW146: 6 | AX146: 1 | AY146: 0 | AZ146: 0 | BA146: 0 | BB146: 4 | BC146: 0 | BD146: 0 | BE146: 0 | BF146: 0 | BG146: 0
A147: 16.80583775 | B147: 17.39679624 | C147: 16 | D147: Factory-2 | E147: ROAK | F147: 6 | G147: 8 | H147: GRADE | I147: SPLIT | J147: 6 | K147: 0 | L147: 0.125 | M147: 1 | N147: 0.13 | O147: 0.035 | P147: 1 | Q147: 0.13 | R147: 0.035 | S147: 19 | T147: 185.1684199 | U147: 0 | V147: 18.29722772 | W147: 16.15697656 | X147: 4.366556388 | Y147: 62.59825902 | Z147: 46.38367341 | AA147: 25.97559142 | AB147: 11.3901354 | AC147: 115.2606956 | AD147: 0 | AE147: 115.2606956 | AF147: 74.5046945 | AG147: 36.36 | AH147: 38.1446945 | AI147: 40.75600113 | AJ147: 180 | AK147: 0.02871344397 | AL147: 170 | AM147: 0.0892259995 | AN147: 144 | AO147: 0.285891805 | AP147: 25.56434967 | AQ147: 7.243228258 | AR147: 0 | AS147: 0 | AT147: 0 | AU147: 10 | AV147: 0 | AW147: 2 | AX147: 2 | AY147: 5 | AZ147: 0 | BA147: 0 | BB147: 0 | BC147: 0 | BD147: 0 | BE147: 0 | BF147: 0 | BG147: 0
A148: 23.37209661 | B148: 24.52227453 | C148: 16 | D148: Factory-2 | E148: ROAK | F148: 6 | G148: 8 | H148: GRADE | I148: SPLIT | J148: 6 | K148: 0 | L148: 0.125 | M148: 1 | N148: 0.13 | O148: 0.035 | P148: 1 | Q148: 0.13 | R148: 0.035 | S148: 29 | T148: 388.1862984 | U148: 0 | V148: 61.88390276 | W148: 42.37823055 | X148: 6.409506377 | Y148: 156.6336896 | Z148: 72.95507521 | AA148: 28.2042026 | AB148: 19.72169131 | AC148: 260.0790864 | AD148: 0 | AE148: 260.0790864 | AF148: 158.7463775 | AG148: 78.78 | AH148: 79.96637747 | AI148: 101.332709 | AJ148: 390 | AK148: -0.004650516873 | AL148: 370 | AM148: 0.04915215789 | AN148: 361 | AO148: 0.07530830587 | AP148: 50.14242724 | AQ148: 7.741673464 | AR148: 0 | AS148: 0 | AT148: 4 | AU148: 0 | AV148: 6 | AW148: 2 | AX148: 2 | AY148: 0 | AZ148: 6 | BA148: 2 | BB148: 2 | BC148: 0 | BD148: 5 | BE148: 0 | BF148: 0 | BG148: 0
A149: 14.71020876 | B149: 15.65842864 | C149: 16 | D149: Factory-2 | E149: ROAK | F149: 6 | G149: 8 | H149: GRADE | I149: SPLIT | J149: 6 | K149: 0 | L149: 0.125 | M149: 1 | N149: 0.13 | O149: 0.035 | P149: 1 | Q149: 0.13 | R149: 0.035 | S149: 16 | T149: 137.3386308 | U149: 0 | V149: 10.89200947 | W149: 10.73134944 | X149: 4.096821228 | Y149: 42.69636435 | Z149: 38.00186486 | AA149: 22.91834457 | AB149: 8.001876925 | AC149: 83.36622747 | AD149: 0 | AE149: 83.36622747 | AF149: 55.56175795 | AG149: 27.27 | AH149: 28.29175795 | AI149: 27.80446951 | AJ149: 135 | AK149: 0.01732319146 | AL149: 120 | AM149: 0.1444885904 | AN149: 100 | AO149: 0.3733863085 | AP149: 20.16785998 | AQ149: 6.80977709 | AR149: 0 | AS149: 0 | AT149: 0 | AU149: 9 | AV149: 2 | AW149: 1 | AX149: 4 | AY149: 0 | AZ149: 0 | BA149: 0 | BB149: 0 | BC149: 0 | BD149: 0 | BE149: 0 | BF149: 0 | BG149: 0

Sheet BatchProcess (hidden)
A3: Species | B3: ROAK | I3: Int 1/4 | L3: =LogScale!$G$5 -> 135
A4: Log Grade | B4: Factory-2 | I4: Doyle | L4: =LogScale!$H$5 -> 100
A5: Small End Diameter | B5: 14.71020876 | C5: =B5/2 -> 7.355104378 | E5: Boards Sawn | G5: =IF(OR($B$22="SLAB",$B$22="LIVE"), IF($B$19="SPLIT",B248, B331+B289),IF($B$22="GRADE",IF($B$19="SPLIT",B449,B570))) -> 16 | I5: Scribner | L5: =LogScale!$I$5 -> 120
A6: Large End Diameter | B6: 15.65842864 | C6: =IF(B5>B6,"ERROR"," ") ->  | E6: Board Feet | G6: =IF(OR($B$22="SLAB",$B$22="LIVE"), IF($B$19="SPLIT",C248, B330+B288),IF($B$22="GRADE",IF($B$19="SPLIT",B450,B571))) -> 137.3386308 | I6: Recovery-Based Processing Cost | L6: =Costs!$H$18/1000*G6 -> 28.29175795
A7: Log Length | B7: 16 | E7: Cant Height | G7: =IF(OR($B$22="SLAB",$B$22="LIVE"), IF($B$19="SPLIT",D248, B292),IF($B$22="GRADE",IF($B$19="SPLIT",B452,B573))) -> 6 | I7: Log-Volume-Based Processing Cost | L7: =IF(Costs!$D$4="International 1/4", L3*(Costs!H23/1000),IF(Costs!$D$4="Doyle",L4*(Costs!H23/1000), IF(Costs!$D$4="Scribner", L5*(Costs!H23/1000), "ERROR" ) ) ) -> 11.14909793
A8: Opening Face Width | B8: 6 | C8: =B8/2 -> 3 | E8: Cant Width | G8: =IF(OR($B$22="SLAB",$B$22="LIVE"), IF($B$19="SPLIT",E248, B334),IF($B$22="GRADE",IF($B$19="SPLIT",B451,B572))) -> 0 | I8: User Selected Processing Cost | L8: =IF(Costs!N1=1,BatchProcess!L6,BatchProcess!L7) -> 28.29175795
A9: Opening Face Length | B9: 8 | E9: Cant Volume | G9: =IF(G8>1,G7/12*$B$7*G8,0) -> 0
A10: Cant Height | B10: 6 | E10: Total BDFT | G10: =G9+G6 -> 137.3386308
A11: Cant Width | B11: 0 | E11: LRF | G11: =$G$10/(((3.145926*POWER(($B$5/24),2) + 3.145926*POWER(($B$6/24),2))/2)*$B$7) -> 6.80977709
A12: Green Allowance | B12: 0.125 | E12: FAS | G12: ='Grade Yield Lookup'!T10 -> 10.89200947
A13: Thickness | B13: 1 | D13: Headrig | E13: F1F | G13: ='Grade Yield Lookup'!U10 -> 10.73134944
A14: Saw Kerf | B14: 0.13 | C14: =B13+(B13*B12)+(B15*1.97) -> 1.19395 | E14: SEL | G14: ='Grade Yield Lookup'!V10 -> 4.096821228
A15: Sawing Variation | B15: 0.035 | C15: =C14+B14 -> 1.32395 | E15: 1C | G15: ='Grade Yield Lookup'!W10 -> 42.69636435
A16: Thickness | B16: 1 | D16: Resaw | E16: 2A | G16: ='Grade Yield Lookup'!X10 -> 38.00186486
A17: Saw Kerf | B17: 0.13 | C17: =B16+(B16*B12)+(B18*1.97) -> 1.19395 | E17: 3A | G17: ='Grade Yield Lookup'!Y10 -> 22.91834457
A18: Sawing Variation | B18: 0.035 | C18: =C17+B17 -> 1.32395 | E18: 3B | G18: ='Grade Yield Lookup'!Z10 -> 8.001876925
A19: Split/Full Taper Mode | B19: SPLIT
A20: Fit Min Length Boards | B20: AUTO
A21: Scrap Board Threshold(bdft) | B21: 2
A22: Sawing Method | B22: GRADE
U23: Second Cut Lookup | AA23: Third Cut Lookup | AF23: Fourth Cut Lookup
A24: Split Taper Sawing Method W/ Min Open Face Cuts | E24: Faces 1 and 3 | J24: Note, the formulas below perform a half-taper or split-taper sawing solution | U24: =T27-M29 -> 5.650351655
D25: Saw | F25: Center | G25: Max Next | J25: Faces 1 and 3 Half Taper Opening Face Calculations | S25: Distance | T25: Radius | U25: Relative Saw | V25: Width | W25: Min Scale | X25: Min Scale | Y25: Radius | Z25: Relative Saw | AA25: Width | AB25: Min Scale | AC25: Min Scale | AD25: Radius | AE25: Relative Saw | AF25: Width | AG25: Min Scale | AH25: Min Scale
A26: Board | B26: Width | C26: Board Feet | D26: Depth | E26: Next | F26: Remaining | G26: Position | J26: Width | K26: Length | L26: Board | M26: Saw | O26: SE Adjusted | P26: SE Adjusted | S26: from LE | T26: @ distance | U26: Depth | V26: @ Depth | W26: Width | X26: Length | Y26: @ distance | Z26: Depth | AA26: @ Depth | AB26: Width | AC26: Length | AD26: @ distance | AE26: Depth | AF26: @ Depth | AG26: Width | AH26: Length
A27: 1 | B27: =2*SQRT(POWER($C$5,2)-POWER($C$5-D27,2)) -> 9.417236662 | C27: =B27/12*$B$13*$B$7 -> 12.55631555 | D27: =$Q$35 -> 1.704752723 | E27: =D27+$C$15 -> 3.028702723 | F27: =$B$5-E27 -> 11.68150603 | G27: =IF(F27>0,D27+$C$15,0) -> 3.028702723 | J27: (inches) | K27: (feet) | L27: Feet | M27: Depth | N27: Next | O27: Depth | P27: Next | S27: =B9 -> 8 | T27: =($B$6-2*$K$35*S27)/2 -> 7.592159349 | U27: =IF(T27-$U$24>0, T27-$U$24, 0) -> 1.941807694 | V27: =IF(U27>0, 2*SQRT(POWER(T27,2)-POWER(T27-U27,2)), 0) -> 10.14187552 | W27: =IF(V27>$B$8, V27, " ") -> 10.14187552 | X27: =IF(V27>$B$8, S27, " ") -> 8 | Y27: =($B$6-2*$K$35*$S27)/2 -> 7.592159349 | Z27: =$M$30 -> 3.265757694 | AA27: =IF(Z27>0, 2*SQRT(POWER(Y27,2)-POWER(Y27-Z27,2)), 0) -> 12.47768124 | AB27: =IF(AA27>$B$8, AA27, " ") -> 12.47768124 | AC27: =IF(AA27>$B$8, S27, " ") -> 8 | AD27: =($B$6-2*$K$35*$S27)/2 -> 7.592159349 | AE27: =$M$31 -> 4.589707694 | AF27: =IF(AE27>0, 2*SQRT(POWER(AD27,2)-POWER(AD27-AE27,2)), 0) -> 13.94649313 | AG27: =IF(AF27>$B$8, AF27, " ") -> 13.94649313 | AH27: =IF(AF27>$B$8, S27, " ") -> 8
A28: =A27+1 -> 2 | B28: =IF((F58-$C$15)>$B$10,(2*SQRT(POWER($C$5,2)-POWER($C$5-D28,2))),0) -> 11.8961858 | C28: =B28/12*$B$13*$B$7 -> 15.86158106 | D28: =D27+$C$15 -> 3.028702723 | E28: 4.352652723 | F28: =IF($B$5-(E28+E58)>$B$10,$B$5-(E28+E58),0) -> 7.328853311 | G28: 4.352652723 | J28: =2*SQRT(POWER($L$37,2)-POWER($L$37-$M$28,2)) -> 6 | K28: =B9 -> 8 | L28: =J28/12*$B$13*K28 -> 4 | M28: =$L$37-SQRT(POWER($L$37,2)-POWER($C$8,2)) -> 0.6178576936 | N28: =M28+$C$15 -> 1.941807694 | O28: =M28-$K$38 -> 0.380802723 | P28: =O28+$C$15 -> 1.704752723 | S28: =IF(AND(S27+1<=$B$7, S27 > 0 ), S27+1, 0) -> 9 | T28: =IF($S28>0,($B$6-2*$K$35*$S28)/2,0) -> 7.562527478 | U28: =IF(T28-$U$24>0, T28-$U$24, 0) -> 1.912175822 | V28: =IF(U28>0, 2*SQRT(POWER(T28,2)-POWER(T28-U28,2)), 0) -> 10.05292953 | W28: =IF(V28>$B$8, V28, " ") -> 10.05292953 | X28: =IF(V28>$B$8, S28, " ") -> 9 | Y28: =IF($S28>0,($B$6-2*$K$35*$S28)/2,0) -> 7.562527478 | Z28: =IF(Y28>0,$M$30,0) -> 3.265757694 | AA28: 12.44662063 | AB28: =IF(AA28>$B$8, AA28, " ") -> 12.44662063 | AC28: =IF(AA28>$B$8, S28, " ") -> 9 | AD28: =IF($S28>0,($B$6-2*$K$35*$S28)/2,0) -> 7.562527478 | AE28: =IF(AD28>0,$M$31,0) -> 4.589707694 | AF28: 13.90743174 | AG28: =IF(AF28>$B$8, AF28, " ") -> 13.90743174 | AH28: =IF(AF28>$B$8, S28, " ") -> 9
A29: 3 | B29: =IF((F57-$C$15)>$B$10,(2*SQRT(POWER($C$5,2)-POWER($C$5-D29,2))),0) -> 0 | C29: 0 | D29: 4.352652723 | E29: 5.676602723 | F29: =IF($B$5-(E29+E57)>$B$10,$B$5-(E29+E57),0) -> 0 | G29: 0 | J29: =MIN(IF(W27:W40>0,W27:W40)) -> 9.417236662 | K29: =MAX(X27:X40) -> 16 | L29: =J29/12*$B$13*K29 -> 12.55631555 | M29: =M28+C15 -> 1.941807694 | N29: =M29+$C$15 -> 3.265757694 | O29: =M29-$K$38 -> 1.704752723 | P29: =O29+$C$15 -> 3.028702723 | S29: =IF(AND(S28+1<=$B$7, S28 > 0 ), S28+1, 0) -> 10 | T29: =IF(S29>0,($B$6-2*$K$35*S29)/2,0) -> 7.532895606 | U29: 1.882543951 | V29: 9.963542018 | W29: =IF(V29>$B$8, V29, " ") -> 9.963542018 | X29: =IF(V29>$B$8, S29, " ") -> 10 | Y29: 7.532895606 | Z29: =IF(Y29>0,$M$30,0) -> 3.265757694 | AA29: 12.41548231 | AB29: =IF(AA29>$B$8, AA29, " ") -> 12.41548231 | AC29: 10 | AD29: 7.532895606 | AE29: =IF(AD29>0,$M$31,0) -> 4.589707694 | AF29: 13.86826033 | AG29: =IF(AF29>$B$8, AF29, " ") -> 13.86826033 | AH29: 10
A30: 4 | B30: =IF((F56-$C$15)>$B$10,(2*SQRT(POWER($C$5,2)-POWER($C$5-D30,2))),0) -> 0 | C30: 0 | D30: 5.676602723 | E30: 7.000552723 | F30: =IF($B$5-(E30+E56)>$B$10,$B$5-(E30+E56),0) -> 0 | G30: 0 | J30: =MIN(IF(AB27:AB40>0,AB27:AB40)) -> 12.22698722 | K30: =MAX(AC27:AC40) -> 16 | L30: 16.30264962 | M30: =M29+C15 -> 3.265757694 | N30: =M30+$C$15 -> 4.589707694 | O30: =M30-$K$38 -> 3.028702723 | P30: =O30+$C$15 -> 4.352652723 | S30: 11 | T30: 7.503263735 | U30: 1.85291208 | V30: 9.873700998 | W30: =IF(V30>$B$8, V30, " ") -> 9.873700998 | X30: =IF(V30>$B$8, S30, " ") -> 11 | Y30: 7.503263735 | Z30: 3.265757694 | AA30: 12.3842657 | AB30: 12.3842657 | AC30: 11 | AD30: 7.503263735 | AE30: 4.589707694 | AF30: 13.82897796 | AG30: 13.82897796 | AH30: 11
A31: 5 | B31: =IF((F55-$C$15)>$B$10,(2*SQRT(POWER($C$5,2)-POWER($C$5-D31,2))),0) -> 0 | C31: 0 | D31: 7.000552723 | E31: 8.324502723 | F31: =IF($B$5-(E31+E55)>$B$10,$B$5-(E31+E55),0) -> 0 | G31: 0 | J31: =MIN(IF(AG27:AG40>0,AG27:AG40)) -> 13.63086814 | K31: =MAX(AH27:AH40) -> 16 | L31: 18.17449086 | M31: =M30+C15 -> 4.589707694 | N31: =M31+$C$15 -> 5.913657694 | O31: =M31-$K$38 -> 4.352652723 | P31: =O31+$C$15 -> 5.676602723 | S31: 12 | T31: 7.473631864 | U31: 1.823280208 | V31: 9.783393972 | W31: =IF(V31>$B$8, V31, " ") -> 9.783393972 | X31: =IF(V31>$B$8, S31, " ") -> 12 | Y31: 7.473631864 | Z31: 3.265757694 | AA31: 12.3529702 | AB31: 12.3529702 | AC31: 12 | AD31: 7.473631864 | AE31: 4.589707694 | AF31: 13.78958369 | AG31: 13.78958369 | AH31: 12
A32: 6 | B32: =IF((F54-$C$15)>$B$10,(2*SQRT(POWER($C$5,2)-POWER($C$5-D32,2))),0) -> 0 | C32: 0 | D32: 8.324502723 | E32: 9.648452723 | F32: =IF($B$5-(E32+E54)>$B$10,$B$5-(E32+E54),0) -> 0 | G32: 0 | S32: 13 | T32: 7.443999992 | U32: 1.793648337 | V32: 9.692607917 | W32: =IF(V32>$B$8, V32, " ") -> 9.692607917 | X32: 13 | Y32: 7.443999992 | Z32: 3.265757694 | AA32: 12.32159522 | AB32: 12.32159522 | AC32: 13 | AD32: 7.443999992 | AE32: 4.589707694 | AF32: 13.75007656 | AG32: 13.75007656 | AH32: 13
A33: 7 | B33: =IF((F53-$C$15)>$B$10,(2*SQRT(POWER($C$5,2)-POWER($C$5-D33,2))),0) -> 0 | C33: 0 | D33: 9.648452723 | E33: 10.97240272 | F33: =IF($B$5-(E33+E53)>$B$10,$B$5-(E33+E53),0) -> 0 | G33: 0 | S33: 14 | T33: 7.414368121 | U33: 1.764016466 | V33: 9.601329242 | W33: 9.601329242 | X33: 14 | Y33: 7.414368121 | Z33: 3.265757694 | AA33: 12.29014014 | AB33: 12.29014014 | AC33: 14 | AD33: 7.414368121 | AE33: 4.589707694 | AF33: 13.71045559 | AG33: 13.71045559 | AH33: 14
A34: 8 | B34: =IF((F52-$C$15)>$B$10,(2*SQRT(POWER($C$5,2)-POWER($C$5-D34,2))),0) -> 0 | C34: 0 | D34: 10.97240272 | E34: 12.29635272 | F34: =IF($B$5-(E34+E52)>$B$10,$B$5-(E34+E52),0) -> 0 | G34: 0 | J34: LE SE difference | K34: =B6-B5 -> 0.9482198824 | P34: Face 1 & 3 Taper Result Summary | S34: 15 | T34: 7.38473625 | U34: 1.734384594 | V34: 9.509543764 | W34: 9.509543764 | X34: 15 | Y34: 7.38473625 | Z34: 3.265757694 | AA34: 12.25860435 | AB34: 12.25860435 | AC34: 15 | AD34: 7.38473625 | AE34: 4.589707694 | AF34: 13.67071978 | AG34: 13.67071978 | AH34: 15
A35: 9 | B35: =IF((F51-$C$15)>$B$10,(2*SQRT(POWER($C$5,2)-POWER($C$5-D35,2))),0) -> 0 | C35: 0 | D35: 12.29635272 | E35: 13.62030272 | F35: =IF($B$5-(E35+E51)>$B$10,$B$5-(E35+E51),0) -> 0 | G35: 0 | J35: '1/2 taper per foot | K35: =((B6-B5)/2)/B7 -> 0.02963187132 | P35: Full Face Depth | Q35: =IF(O29>0, O29, O30) -> 1.704752723 | S35: 16 | T35: 7.355104378 | U35: 1.704752723 | V35: 9.417236662 | W35: 9.417236662 | X35: 16 | Y35: 7.355104378 | Z35: 3.265757694 | AA35: 12.22698722 | AB35: 12.22698722 | AC35: 16 | AD35: 7.355104378 | AE35: 4.589707694 | AF35: 13.63086814 | AG35: 13.63086814 | AH35: 16
A36: 10 | B36: =IF((F50-$C$15)>$B$10,(2*SQRT(POWER($C$5,2)-POWER($C$5-D36,2))),0) -> 0 | C36: 0 | D36: 13.62030272 | E36: 14.94425272 | F36: =IF($B$5-(E36+E50)>$B$10,$B$5-(E36+E50),0) -> 0 | G36: 0 | J36: tot. taper from LE | K36: =B9*K35 -> 0.2370549706 | P36: Board Count | Q36: =IF(O29<0,4, 2) -> 2 | S36: 0 | T36: 0 | U36: 0 | V36: 0 | Y36: 0 | Z36: 0 | AA36: 0 | AD36: 0 | AE36: 0 | AF36: 0
A37: 11 | B37: =IF((F49-$C$15)>$B$10,(2*SQRT(POWER($C$5,2)-POWER($C$5-D37,2))),0) -> 0 | C37: 0 | D37: 14.94425272 | E37: 16.26820272 | F37: =IF($B$5-(E37+E49)>$B$10,$B$5-(E37+E49),0) -> 0 | G37: 0 | J37: Dia @ min face length | K37: =B6-2*K36 -> 15.1843187 | L37: =K37/2 -> 7.592159349 | P37: Board Feet | Q37: =IF(O29<0, 2*SUM(L28:L29), 2*L28) -> 8 | S37: 0 | T37: 0 | U37: 0 | V37: 0 | Y37: 0 | Z37: 0 | AA37: 0 | AD37: 0 | AE37: 0 | AF37: 0
A38: 12 | B38: =IF((F48-$C$15)>$B$10,(2*SQRT(POWER($C$5,2)-POWER($C$5-D38,2))),0) -> 0 | C38: 0 | D38: 16.26820272 | E38: 17.59215272 | F38: =IF($B$5-(E38+E48)>$B$10,$B$5-(E38+E48),0) -> 0 | G38: 0 | J38: SE depth adjustment | K38: =L37-C5 -> 0.2370549706 | S38: 0 | T38: 0 | U38: 0 | V38: 0 | Y38: 0 | Z38: 0 | AA38: 0 | AD38: 0 | AE38: 0 | AF38: 0
A39: 13 | B39: =IF((F47-$C$15)>$B$10,(2*SQRT(POWER($C$5,2)-POWER($C$5-D39,2))),0) -> 0 | C39: 0 | D39: 17.59215272 | E39: 18.91610272 | F39: =IF($B$5-(E39+E47)>$B$10,$B$5-(E39+E47),0) -> 0 | G39: 0 | S39: 0 | T39: 0 | U39: 0 | V39: 0 | Y39: 0 | Z39: 0 | AA39: 0 | AD39: 0 | AE39: 0 | AF39: 0
A40: 14 | B40: =IF((F46-$C$15)>$B$10,(2*SQRT(POWER($C$5,2)-POWER($C$5-D40,2))),0) -> 0 | C40: 0 | D40: 18.91610272 | E40: 20.24005272 | F40: =IF($B$5-(E40+E46)>$B$10,$B$5-(E40+E46),0) -> 0 | G40: 0 | S40: 0 | T40: 0 | U40: 0 | V40: 0 | Y40: 0 | Z40: 0 | AA40: 0 | AD40: 0 | AE40: 0 | AF40: 0
J42: Faces 2 and 4 Half Taper Opening Face Calculations
U43: =T46-M47 -> 5.650351655
J44: Width | K44: Length | L44: Board | M44: Radial | N44: Lower Cant | O44: Upper Cant | Q44: SE Adjusted | R44: SE Adjusted | S44: Distance | T44: Radius | U44: Relative Saw | V44: Width | W44: Min Scale | X44: Min Scale
A45: =A46+1 -> 14 | B45: =IF((F40-$C$15)>=$B$10,2*SQRT(POWER($C$5,2)-POWER($C$5-D45,2)),0) -> 0 | C45: =B45/12*$B$13*$B$7 -> 0 | D45: =D46+$C$15 -> 18.91610272 | E45: =D45+$C$15 -> 20.24005272 | F45: =IF($B$5-(E45+E40)>=$B$10,$B$5-(E45+E40),0) -> 0 | G45: =IF(F45>0,D45+$C$15,0) -> 0 | J45: (inches) | K45: (feet) | L45: Feet | M45: Depth | N45: Face Depth | O45: Face Depth | P45: Next | Q45: Depth | R45: Next | S45: from LE | T45: @ distance | U45: Depth | V45: @ Depth | W45: Width | X45: Length
A46: 13 | B46: =IF((F39-$C$15)>=$B$10,2*SQRT(POWER($C$5,2)-POWER($C$5-D46,2)),0) -> 0 | C46: 0 | D46: 17.59215272 | E46: 18.91610272 | F46: =IF($B$5-(E46+E39)>=$B$10,$B$5-(E46+E39),0) -> 0 | G46: 0 | J46: =2*SQRT(POWER($L$37,2)-POWER($L$37-$M$28,2)) -> 6 | K46: =B9 -> 8 | L46: =J46/12*$B$13*$B$9 -> 4 | M46: =$L$37-SQRT(POWER($L$37,2)-POWER($C$8,2)) -> 0.6178576936 | N46: =($L$37-SQRT(POWER($L$37,2)-POWER(B63,2)))-$K$38 -> 0.3818578148 | O46: =($L$37-SQRT(POWER($L$37,2)-POWER($B$62,2)))-$K$38 -> 0.3818578148 | P46: =MAX(M46:O46)+$C$15 -> 1.941807694 | Q46: =M46-$K$38 -> 0.380802723 | R46: =Q46+$C$15 -> 1.704752723 | S46: =B9 -> 8 | T46: =($B$6-2*$K$35*S46)/2 -> 7.592159349 | U46: =IF(T46-$U$43>0, T46-$U$43, 0) -> 1.941807694 | V46: =IF(U46>0, 2*SQRT(POWER(T46,2)-POWER(T46-U46,2)), 0) -> 10.14187552 | W46: =IF(V46>$B$8, V46, " ") -> 10.14187552 | X46: =IF(V46>$B$8, S46, " ") -> 8
A47: 12 | B47: =IF((F38-$C$15)>=$B$10,2*SQRT(POWER($C$5,2)-POWER($C$5-D47,2)),0) -> 0 | C47: 0 | D47: 16.26820272 | E47: 17.59215272 | F47: =IF($B$5-(E47+E38)>=$B$10,$B$5-(E47+E38),0) -> 0 | G47: 0 | J47: =MIN(W46:W59) -> 9.417236662 | K47: =MAX(X46:X59) -> 16 | L47: =J47/12*$B$13*K47 -> 12.55631555 | M47: =M46+C15 -> 1.941807694 | N47: =($L$37-SQRT(POWER($L$37,2)-POWER(B64,2)))-$K$38 -> 2.703128069 | O47: =($L$37-SQRT(POWER($L$37,2)-POWER($B$62,2)))-$K$38 -> 0.3818578148 | P47: =MAX(M47:O47)+$C$15 -> 4.027078069 | Q47: =M47-$K$38 -> 1.704752723 | R47: =Q47+$C$15 -> 3.028702723 | S47: =IF(AND(S46+1<=$B$7, S46 > 0 ), S46+1, 0) -> 9 | T47: =IF(S47>0,($B$6-2*$K$35*S47)/2,0) -> 7.562527478 | U47: =IF(T47-$U$43>0, T47-$U$43, 0) -> 1.912175822 | V47: =IF(U47>0, 2*SQRT(POWER(T47,2)-POWER(T47-U47,2)), 0) -> 10.05292953 | W47: 10.05292953 | X47: 9
A48: 11 | B48: =IF((F37-$C$15)>=$B$10,2*SQRT(POWER($C$5,2)-POWER($C$5-D48,2)),0) -> 0 | C48: 0 | D48: 14.94425272 | E48: 16.26820272 | F48: =IF($B$5-(E48+E37)>=$B$10,$B$5-(E48+E37),0) -> 0 | G48: 0 | S48: =IF(AND(S47+1<=$B$7, S47 > 0 ), S47+1, 0) -> 10 | T48: 7.532895606 | U48: 1.882543951 | V48: 9.963542018 | W48: 9.963542018 | X48: 10
A49: 10 | B49: =IF((F36-$C$15)>=$B$10,2*SQRT(POWER($C$5,2)-POWER($C$5-D49,2)),0) -> 0 | C49: 0 | D49: 13.62030272 | E49: 14.94425272 | F49: =IF($B$5-(E49+E36)>=$B$10,$B$5-(E49+E36),0) -> 0 | G49: 0 | S49: 11 | T49: 7.503263735 | U49: 1.85291208 | V49: 9.873700998 | W49: 9.873700998 | X49: 11
A50: 9 | B50: =IF((F35-$C$15)>=$B$10,2*SQRT(POWER($C$5,2)-POWER($C$5-D50,2)),0) -> 0 | C50: 0 | D50: 12.29635272 | E50: 13.62030272 | F50: =IF($B$5-(E50+E35)>=$B$10,$B$5-(E50+E35),0) -> 0 | G50: 0 | S50: 12 | T50: 7.473631864 | U50: 1.823280208 | V50: 9.783393972 | W50: 9.783393972 | X50: 12
A51: 8 | B51: =IF((F34-$C$15)>=$B$10,2*SQRT(POWER($C$5,2)-POWER($C$5-D51,2)),0) -> 0 | C51: 0 | D51: 10.97240272 | E51: 12.29635272 | F51: =IF($B$5-(E51+E34)>=$B$10,$B$5-(E51+E34),0) -> 0 | G51: 0 | J51: Faces 2 and 4 Full length Cant opening Face Calculations | P51: Face 2 & 4 Taper Result Summary | S51: 13 | T51: 7.443999992 | U51: 1.793648337 | V51: 9.692607917 | W51: 9.692607917 | X51: 13
A52: 7 | B52: =IF((F33-$C$15)>=$B$10,2*SQRT(POWER($C$5,2)-POWER($C$5-D52,2)),0) -> 0 | C52: 0 | D52: 9.648452723 | E52: 10.97240272 | F52: =IF($B$5-(E52+E33)>=$B$10,$B$5-(E52+E33),0) -> 0 | G52: 0 | P52: Full Face Depth | Q52: =IF(R46>0, R46, R47) -> 1.704752723 | S52: 14 | T52: 7.414368121 | U52: 1.764016466 | V52: 9.601329242 | W52: 9.601329242 | X52: 14
A53: 6 | B53: =IF((F32-$C$15)>=$B$10,2*SQRT(POWER($C$5,2)-POWER($C$5-D53,2)),0) -> 0 | C53: 0 | D53: 8.324502723 | E53: 9.648452723 | F53: =IF($B$5-(E53+E32)>=$B$10,$B$5-(E53+E32),0) -> 0 | G53: 0 | J53: depth | K53: Upper | L53: Lower | M53: Maximum | P53: Board Count | Q53: =IF(R46<0,4, IF(MIN(F45:F58)<0,0,2)) -> 2 | S53: 15 | T53: 7.38473625 | U53: 1.734384594 | V53: 9.509543764 | W53: 9.509543764 | X53: 15
A54: 5 | B54: =IF((F31-$C$15)>=$B$10,2*SQRT(POWER($C$5,2)-POWER($C$5-D54,2)),0) -> 0 | C54: 0 | D54: 7.000552723 | E54: 8.324502723 | F54: =IF($B$5-(E54+E31)>=$B$10,$B$5-(E54+E31),0) -> 0 | G54: 0 | J54: F | K54: T | L54: B | M54: Position | P54: Board Feet | Q54: =IF(R46<0, 2*SUM(L46:L47),IF(MIN(F45:F58)<0,0, 2*L46)) -> 8 | S54: 16 | T54: 7.355104378 | U54: 1.704752723 | V54: 9.417236662 | W54: 9.417236662 | X54: 16
A55: 4 | B55: =IF((F30-$C$15)>=$B$10,2*SQRT(POWER($C$5,2)-POWER($C$5-D55,2)),0) -> 0 | C55: 0 | D55: 5.676602723 | E55: 7.000552723 | F55: =IF($B$5-(E55+E30)>=$B$10,$B$5-(E55+E30),0) -> 0 | G55: 0 | J55: =$C$5-SQRT(POWER($C$5,2)-POWER($C$8,2)) -> 0.6396326588 | K55: =$C$5-SQRT(POWER($C$5,2)-POWER($B$62,2)) -> 0.6407284227 | L55: =$C$5-SQRT(POWER($C$5,2)-POWER($B$63,2)) -> 0.6407284227 | M55: =MAX(J55:L55) -> 0.6407284227 | S55: 0 | T55: 0 | U55: 0 | V55: 0
A56: 3 | B56: =IF((F29-$C$15)>=$B$10,2*SQRT(POWER($C$5,2)-POWER($C$5-D56,2)),0) -> 0 | C56: 0 | D56: 4.352652723 | E56: 5.676602723 | F56: =IF($B$5-(E56+E29)>=$B$10,$B$5-(E56+E29),0) -> 0 | G56: 0 | S56: 0 | T56: 0 | U56: 0 | V56: 0
A57: 2 | B57: =IF((F28-$C$15)>=$B$10,2*SQRT(POWER($C$5,2)-POWER($C$5-D57,2)),0) -> 11.8961858 | C57: 15.86158106 | D57: 3.028702723 | E57: 4.352652723 | F57: =IF($B$5-(E57+E28)>=$B$10,$B$5-(E57+E28),0) -> 6.004903311 | G57: 4.352652723 | S57: 0 | T57: 0 | U57: 0 | V57: 0
A58: 1 | B58: =IF(F58>0,2*SQRT(POWER($C$5,2)-POWER($C$5-D58,2)),0) -> 9.417236662 | C58: =B58/12*$B$13*$B$7 -> 12.55631555 | D58: =$Q$35 -> 1.704752723 | E58: 3.028702723 | F58: =$B$5-(E58+E27) -> 8.652803311 | G58: 3.028702723 | S58: 0 | T58: 0 | U58: 0 | V58: 0
S59: 0 | T59: 0 | U59: 0 | V59: 0
A60: Board Feet | B60: =SUM(C27:C58)+Q37 -> 64.83579323
A61: Boards Sawn | B61: =COUNTIF(B27:B58,">0")+Q36 -> 6
A62: Cant Top Y Position | B62: =$C$5-MAX(G27:G40) -> 3.002451655
A63: Cant Bot Y Position | B63: =$C$5-MAX(G45:G58) -> 3.002451655
A64: Actual Cant Height | B64: =IF(B62+B63 >=B10, B10, IF(B62+B63<B10, 0, B62+B63)) -> 6 | J64: Width Distribution Calculation Table
J65: - - - - - - Slab - - - - - - | N65: - - - - - Grade - - - - - | P65: Active
J66: Split Taper | K66: Split Taper | L66: Split Taper | M66: Full | N66: Split | O66: Full | P66: Sawing | S66: Distribution
J67: Min Open (1) | K67: Cheek Cut (2) | L67: Standard (3) | M67: Taper | N67: Taper | O67: Taper | P67: Solution | Q67: Min | R67: Max | S67: Range | T67: Count
C68: Faces 2 and 4 | J68: =K28 -> 8 | K68: =B114 -> 6 | L68: =B162 -> 6 | M68: =B255 -> 6 | N68: =B350 -> 6 | O68: =B471 -> 6 | P68: =IF(AND($B$22="GRADE",$B$19="SPLIT"), N68, IF(AND($B$22="GRADE",$B$19="FULL"), O68, IF(AND(OR($B$22="SLAB",$B$22="LIVE"), $G$247=1), J68, IF(AND($B$22="SLAB",$G$247=2), K68, IF(AND($B$22="SLAB",$G$247=3), L68, M68))))) -> 6 | Q68: 0.1 | R68: 4 | S68: < 4 | T68: =COUNTIFS(P$68:P$125,">="&Q68, P$68:P$125,"<"&R68) -> 0
D69: Saw | F69: Center | G69: Max Next | J69: =J28 -> 6 | K69: =B116 -> 6 | L69: =B163 -> 10.00580911 | M69: =B256 -> 10.00580911 | N69: =B351 -> 9.417236662 | O69: =B472 -> 10.00580911 | P69: =IF(AND($B$22="GRADE",$B$19="SPLIT"), N69, IF(AND($B$22="GRADE",$B$19="FULL"), O69, IF(AND(OR($B$22="SLAB",$B$22="LIVE"), $G$247=1), J69, IF(AND($B$22="SLAB",$G$247=2), K69, IF(AND($B$22="SLAB",$G$247=3), L69, M69))))) -> 9.417236662 | Q69: 4 | R69: 5 | S69: 4<= wid <5 | T69: =COUNTIFS(P$68:P$125,">="&Q69, P$68:P$125,"<"&R69) -> 0
A70: Board | B70: Width | C70: Board Feet | D70: Depth | E70: Next | F70: Remaining | G70: Position | J70: =B27 -> 9.417236662 | K70: =B122 -> 6 | L70: 12.25600599 | M70: 12.25600599 | N70: 0 | O70: 0 | P70: 0 | Q70: 5 | R70: 6 | S70: 5<= wid <6 | T70: 0
A71: 1 | B71: =IF(D71<MIN(K55,L55),$B$8,$B$64) -> 6 | C71: =IF(B71/12*$B$16*$B$7<$B$21, 0, B71/12*$B$16*$B$7) -> 8 | D71: =$Q$52 -> 1.704752723 | E71: =D71+$C$18 -> 3.028702723 | F71: =$B$5-E71 -> 11.68150603 | G71: =IF(F71>0,D71+$C$18,0) -> 3.028702723 | J71: =B28 -> 11.8961858 | K71: =B123 -> 9.417236662 | L71: 0 | M71: 0 | N71: 0 | O71: 0 | P71: 0 | Q71: 6 | R71: 7 | S71: 6<= wid <7 | T71: 9
A72: =A71+1 -> 2 | B72: =IF(F72-$C$18>=$B$11,IF(D72<MIN($K$55,$L$55),$B$8,$B$64),0) -> 6 | C72: =IF(B72/12*$B$16*$B$7<$B$21, 0, B72/12*$B$16*$B$7) -> 8 | D72: =D71+$C$18 -> 3.028702723 | E72: =D72+$C$18 -> 4.352652723 | F72: =IF($B$5-(E72+E100)>$B$11,$B$5-(E72+E100),0) -> 7.328853311 | G72: =IF(F72>0,D72+$C$18,0) -> 4.352652723 | J72: 0 | K72: 9.417236662 | L72: 0 | M72: 0 | N72: =B359 -> 6 | O72: =B471 -> 6 | P72: 6 | Q72: 7 | R72: 8 | S72: 7<= wid <8 | T72: 2
A73: 3 | B73: =IF(F73-$C$18>=$B$11,IF(D73<MIN($K$55,$L$55),$B$8,$B$64),0) -> 6 | C73: 8 | D73: =D72+$C$18 -> 4.352652723 | E73: =D73+$C$18 -> 5.676602723 | F73: =IF($B$5-(E73+E99)>$B$11,$B$5-(E73+E99),0) -> 4.680953311 | G73: 5.676602723 | J73: 0 | K73: 9.417236662 | L73: 0 | M73: 0 | N73: =B360 -> 9.417236662 | O73: =B472 -> 10.00580911 | P73: 9.417236662 | Q73: 8 | R73: 9 | S73: 8<= wid <9 | T73: 1
A74: 4 | B74: 6 | C74: 8 | D74: 5.676602723 | E74: 7.000552723 | F74: =IF($B$5-(E74+E98)>$B$11,$B$5-(E74+E98),0) -> 2.033053311 | G74: 7.000552723 | J74: 0 | K74: 9.417236662 | L74: 0 | M74: 0 | N74: 0 | O74: 0 | P74: 0 | Q74: 9 | R74: 10 | S74: 9<= wid <10 | T74: 4
A75: 5 | B75: 0 | C75: 0 | D75: 7.000552723 | E75: 8.324502723 | F75: =IF($B$5-(E75+E97)>$B$11,$B$5-(E75+E97),0) -> 0 | G75: 0 | J75: 0 | K75: 0 | L75: 0 | M75: 0 | N75: 0 | O75: 0 | P75: 0 | Q75: 10 | R75: 11 | S75: 10<= wid <11 | T75: 0
A76: 6 | B76: 0 | C76: 0 | D76: 8.324502723 | E76: 9.648452723 | F76: =IF($B$5-(E76+E96)>$B$11,$B$5-(E76+E96),0) -> 0 | G76: 0 | J76: 0 | K76: 0 | L76: 0 | M76: 0 | N76: =B359 -> 6 | O76: =B489 -> 6 | P76: 6 | Q76: 11 | R76: 12 | S76: 11<= wid <12 | T76: 0
A77: 7 | B77: 0 | C77: 0 | D77: 9.648452723 | E77: 10.97240272 | F77: =IF($B$5-(E77+E95)>$B$11,$B$5-(E77+E95),0) -> 0 | G77: 0 | J77: 0 | K77: 0 | L77: 0 | M77: 0 | N77: =B360 -> 9.417236662 | O77: =B490 -> 10.00580911 | P77: 9.417236662 | Q77: 12 | R77: 13 | S77: 12<= wid <13 | T77: 0
A78: 8 | B78: 0 | C78: 0 | D78: 10.97240272 | E78: 12.29635272 | F78: =IF($B$5-(E78+E94)>$B$11,$B$5-(E78+E94),0) -> 0 | G78: 0 | J78: 0 | K78: 0 | L78: 0 | M78: 0 | N78: 0 | O78: 0 | P78: 0 | Q78: 13 | R78: 14 | S78: 13<= wid <14 | T78: 0
A79: 9 | B79: 0 | C79: 0 | D79: 12.29635272 | E79: 13.62030272 | F79: =IF($B$5-(E79+E93)>$B$11,$B$5-(E79+E93),0) -> 0 | G79: 0 | J79: 0 | K79: 0 | L79: 0 | M79: 0 | N79: 0 | O79: 0 | P79: 0 | Q79: 14 | R79: 15 | S79: 14<= wid <15 | T79: 0
A80: 10 | B80: 0 | C80: 0 | D80: 13.62030272 | E80: 14.94425272 | F80: =IF($B$5-(E80+E92)>$B$11,$B$5-(E80+E92),0) -> 0 | G80: 0 | J80: 0 | K80: 0 | L80: 0 | M80: 0 | N80: =B377 -> 6 | O80: =B498 -> 6 | P80: 6 | Q80: 15 | R80: 16 | S80: 15<= wid <16 | T80: 0
A81: 11 | B81: 0 | C81: 0 | D81: 14.94425272 | E81: 16.26820272 | F81: =IF($B$5-(E81+E91)>$B$11,$B$5-(E81+E91),0) -> 0 | G81: 0 | J81: 0 | K81: 0 | L81: 0 | M81: 0 | N81: =B378 -> 9.417236662 | O81: =B499 -> 10.00580911 | P81: 9.417236662 | Q81: 16 | R81: 17 | S81: 16<= wid <17 | T81: 0
A82: 12 | B82: 0 | C82: 0 | D82: 16.26820272 | E82: 17.59215272 | F82: =IF($B$5-(E82+E90)>$B$11,$B$5-(E82+E90),0) -> 0 | G82: 0 | J82: 0 | K82: 0 | L82: =B180 -> 0 | M82: =B273 -> 0 | N82: 0 | O82: 0 | P82: 0 | Q82: 17 | R82: 18 | S82: 17<= wid <18 | T82: 0
A83: 13 | B83: 0 | C83: 0 | D83: 17.59215272 | E83: 18.91610272 | F83: =IF($B$5-(E83+E89)>$B$11,$B$5-(E83+E89),0) -> 0 | G83: 0 | J83: 0 | K83: 0 | L83: =B181 -> 0 | M83: =B274 -> 0 | N83: 0 | O83: 0 | P83: 0 | Q83: 18 | R83: 30 | S83: 18<= wid <30 | T83: 0
A84: 14 | B84: 0 | C84: 0 | D84: 18.91610272 | E84: 20.24005272 | F84: =IF($B$5-(E84+E88)>$B$11,$B$5-(E84+E88),0) -> 0 | G84: 0 | J84: =B45 -> 0 | K84: =B138 -> 0 | L84: 0 | M84: 0 | N84: =B387 -> 8.652803311 | O84: =B508 -> 8.652803311 | P84: 8.652803311
J85: =B46 -> 0 | K85: =B139 -> 0 | L85: 0 | M85: 0 | N85: =B388 -> 7.328853311 | O85: =B509 -> 6.811193439 | P85: 7.328853311
J86: 0 | K86: 0 | L86: 0 | M86: 0 | N86: 7.328853311 | O86: 0 | P86: 7.328853311
A87: =A88+1 -> 14 | B87: =IF(F87-$C$18>=$B$11,IF(D87<MIN($K$55,$L$55),$B$8,$B$64),0) -> 0 | C87: =IF(B87/12*$B$16*$B$7<$B$21, 0, B87/12*$B$16*$B$7) -> 0 | D87: =D88+$C$18 -> 18.91610272 | E87: =D87+$C$18 -> 20.24005272 | F87: =IF($B$5-(E87+E84)>=$B$11,$B$5-(E87+E84),0) -> 0 | G87: =IF(F87>0,D87+$C$18,0) -> 0 | J87: 0 | K87: 0 | L87: 0 | M87: 0 | N87: 6.004903311 | O87: 6.811193439 | P87: 6.004903311
A88: 13 | B88: 0 | C88: 0 | D88: 17.59215272 | E88: 18.91610272 | F88: =IF($B$5-(E88+E83)>=$B$11,$B$5-(E88+E83),0) -> 0 | G88: 0 | J88: 0 | K88: 0 | L88: 0 | M88: 0 | N88: =B394 -> 0 | O88: =B515 -> 0 | P88: 0
A89: 12 | B89: 0 | C89: 0 | D89: 16.26820272 | E89: 17.59215272 | F89: =IF($B$5-(E89+E82)>=$B$11,$B$5-(E89+E82),0) -> 0 | G89: 0 | J89: 0 | K89: 0 | L89: 0 | M89: 0 | N89: =B395 -> 6.004903311 | O89: =B516 -> 6.811193439 | P89: 6.004903311
A90: 11 | B90: 0 | C90: 0 | D90: 14.94425272 | E90: 16.26820272 | F90: =IF($B$5-(E90+E81)>=$B$11,$B$5-(E90+E81),0) -> 0 | G90: 0 | J90: 0 | K90: 0 | L90: 0 | M90: 0 | N90: 0 | O90: 0 | P90: 0
A91: 10 | B91: 0 | C91: 0 | D91: 13.62030272 | E91: 14.94425272 | F91: =IF($B$5-(E91+E80)>=$B$11,$B$5-(E91+E80),0) -> 0 | G91: 0 | J91: 0 | K91: 0 | L91: 0 | M91: 0 | N91: 6.004903311 | O91: 6.811193439 | P91: 6.004903311
A92: 9 | B92: 0 | C92: 0 | D92: 12.29635272 | E92: 13.62030272 | F92: =IF($B$5-(E92+E79)>=$B$11,$B$5-(E92+E79),0) -> 0 | G92: 0 | J92: 0 | K92: 0 | L92: 0 | M92: 0 | N92: =B401 -> 0 | O92: =B522 -> 0 | P92: 0
A93: 8 | B93: 0 | C93: 0 | D93: 10.97240272 | E93: 12.29635272 | F93: =IF($B$5-(E93+E78)>=$B$11,$B$5-(E93+E78),0) -> 0 | G93: 0 | J93: 0 | K93: 0 | L93: 0 | M93: 0 | N93: =B402 -> 6.004903311 | O93: =B523 -> 6.811193439 | P93: 6.004903311
A94: 7 | B94: 0 | C94: 0 | D94: 9.648452723 | E94: 10.97240272 | F94: =IF($B$5-(E94+E77)>=$B$11,$B$5-(E94+E77),0) -> 0 | G94: 0 | J94: 0 | K94: 9.417236662 | L94: 10.00580911 | M94: 10.00580911 | N94: 0 | O94: 0 | P94: 0
A95: 6 | B95: 0 | C95: 0 | D95: 8.324502723 | E95: 9.648452723 | F95: =IF($B$5-(E95+E76)>=$B$11,$B$5-(E95+E76),0) -> 0 | G95: 0 | J95: 0 | K95: 9.417236662 | L95: =B193 -> 6 | M95: 6 | N95: 6.004903311 | O95: 6.811193439 | P95: 6.004903311
A96: 5 | B96: 0 | C96: 0 | D96: 7.000552723 | E96: 8.324502723 | F96: =IF($B$5-(E96+E75)>=$B$11,$B$5-(E96+E75),0) -> 0 | G96: 0 | J96: 11.8961858 | K96: 9.417236662 | L96: =B206 -> 6 | M96: =B299 -> 6 | N96: =B408 -> 0 | O96: =B529 -> 0 | P96: 0
A97: 4 | B97: 0 | C97: 0 | D97: 5.676602723 | E97: 7.000552723 | F97: =IF($B$5-(E97+E74)>=$B$11,$B$5-(E97+E74),0) -> 0.7091033109 | G97: 7.000552723 | J97: 9.417236662 | K97: 6 | L97: =B207 -> 6 | M97: =B300 -> 6 | N97: =B409 -> 0 | O97: =B530 -> 0 | P97: 0
A98: 3 | B98: 6 | C98: 8 | D98: 4.352652723 | E98: 5.676602723 | F98: =IF($B$5-(E98+E73)>=$B$11,$B$5-(E98+E73),0) -> 3.357003311 | G98: 5.676602723 | J98: =B71 -> 6 | L98: 6 | M98: 6 | N98: 0 | O98: 0 | P98: 0
A99: 2 | B99: =IF(F99-$C$18>=$B$11,IF(D99<MIN($K$55,$L$55),$B$8,$B$64),0) -> 6 | C99: 8 | D99: =D100+$C$18 -> 3.028702723 | E99: 4.352652723 | F99: =IF($B$5-(E99+E72)>=$B$11,$B$5-(E99+E72),0) -> 6.004903311 | G99: 4.352652723 | J99: =B72 -> 6 | L99: 6 | M99: 6 | N99: 0 | O99: 0 | P99: 0
A100: 1 | B100: =IF(D100<MIN(I100,J103),$B$8,$B$64) -> 6 | C100: =IF(B100/12*$B$16*$B$7<$B$21, 0, B100/12*$B$16*$B$7) -> 8 | D100: =$Q$52 -> 1.704752723 | E100: =D100+$C$18 -> 3.028702723 | F100: =$B$5-(E100+E71) -> 8.652803311 | G100: =IF(F100>0,D100+$C$18,0) -> 3.028702723 | J100: 6 | L100: 6 | M100: 0 | N100: =B415 -> 0 | O100: =B536 -> 0 | P100: 0
J101: 6 | L101: 0 | M101: 0 | N101: =B416 -> 0 | O101: =B537 -> 0 | P101: 0
A102: Board Feet | B102: =IF(B22="LIVE",0, IF(MIN(F45:F58),0,SUM(C71:C100)+Q54)) -> 64 | J102: 0 | L102: 0 | M102: 0 | N102: 0 | O102: 0 | P102: 0
A103: Boards Sawn | B103: =IF(B22="LIVE",0, IF(MIN(F45:F58),0,COUNTIF(B71:B100,">0")+Q53)) -> 9 | J103: 0 | L103: 0 | M103: 0 | N103: 0 | O103: 0 | P103: 0
A104: Actual Cant Width | B104: =IF(B105+B106<C14, 0, IF(B105+B106>=B11,B11,0)) -> 0 | J104: 0 | L104: 0 | M104: 0 | N104: =B422 -> 0 | O104: =B543 -> 0 | P104: 0
A105: Cant Left X Position | B105: =$C$5-MAX(G71:G84) -> 0.3545516554 | J105: 0 | L105: 0 | M105: 0 | N105: =B423 -> 0 | O105: =B544 -> 0 | P105: 0
A106: Cant Right X Position | B106: =$C$5-MAX(G87:G100) -> 0.3545516554 | J106: 0 | L106: 0 | M106: 0 | N106: 0 | O106: 0 | P106: 0
J107: 0 | L107: 0 | M107: 0 | N107: 0 | O107: 0 | P107: 0
A108: Split Taper Sawing Method With Min Open Face Cuts | J108: 0 | L108: 0 | M108: 0 | N108: =B429 -> 0 | O108: =B550 -> 0 | P108: 0
A109: Small Diameter Log method that makes only minimal opening cheek cuts | J109: 0 | L109: 0 | M109: 0 | N109: =B430 -> 0 | O109: =B551 -> 0 | P109: 0
A110: Faces 1 & 3 | J110: 0 | L110: =B222 -> 0 | M110: =B315 -> 0 | N110: 0 | O110: 0 | P110: 0
J111: 0 | L111: =B223 -> 0 | M111: =B316 -> 0 | N111: 0 | O111: 0 | P111: 0
D112: Saw | F112: Center | G112: Max Next | J112: =B87 -> 0 | L112: 0 | M112: 0 | N112: =B436 -> 0 | O112: =B557 -> 0 | P112: 0
A113: Board | B113: Width | C113: Board Feet | D113: Depth | E113: Next | F113: Remaining | G113: Position | J113: =B88 -> 0 | L113: 0 | M113: 0 | N113: =B437 -> 0 | O113: =B558 -> 0 | P113: 0
A114: 1 | B114: =$J$28 -> 6 | C114: =$L$28 -> 4 | D114: =$M$28 -> 0.6178576936 | E114: =$N$28 -> 1.941807694 | F114: =$B$5-E114 -> 12.76840106 | G114: =IF(F114>0,D114+$C$15,0) -> 1.941807694 | J114: 0 | L114: 0 | M114: 0 | N114: 0 | O114: 0 | P114: 0
J115: 0 | L115: 0 | M115: 0 | N115: 0 | O115: 0 | P115: 0
A116: 1 | B116: =J28 -> 6 | C116: =$L$28 -> 4 | D116: =$M$28 -> 0.6178576936 | E116: =$N$28 -> 1.941807694 | F116: =$B$5-(E116+E114) -> 10.82659337 | G116: =IF(F116>0,D116+$C$15,0) -> 1.941807694 | J116: 0 | L116: 0 | M116: 0 | N116: =B443 -> 0 | O116: =B564 -> 0 | P116: 0
J117: 0 | L117: 0 | M117: 0 | N117: =B444 -> 0 | O117: =B565 -> 0 | P117: 0
A118: Faces 2 & 4 | B118: Billet Thickness: | C118: =F116 -> 10.82659337 | J118: 0 | L118: 0 | M118: 0 | N118: 0 | O118: 0 | P118: 0
J119: 0 | L119: 0 | M119: 0 | N119: 0 | O119: 0 | P119: 0
D120: Saw | F120: Center | G120: Max Next | J120: 0 | L120: 6 | M120: 6 | P120: 0
A121: Board | B121: Width | C121: Board Feet | D121: Depth | E121: Next | F121: Remaining | G121: Position | J121: 0 | L121: 6 | M121: 6 | P121: 0
A122: 1 | B122: =IF($J$46<$C$118,$J$46, $C$118) -> 6 | C122: =B122/12*$B$13*$K$46 -> 4 | D122: =M46 -> 0.6178576936 | E122: =P46 -> 1.941807694 | F122: =$B$5-E122 -> 12.76840106 | G122: =$B$5-F122 -> 1.941807694 | J122: 0 | L122: 6 | M122: 6 | P122: 0
A123: =A122+1 -> 2 | B123: =IF(F123<$C$15, 0, IF($C$118<$J$47, $C$118, $J$47)) -> 9.417236662 | C123: =B123/12*$B$13*$K$47 -> 12.55631555 | D123: =D122+$C$15 -> 1.941807694 | E123: =D123+$C$15 -> 3.265757694 | F123: =IF($B$5-(E123+E151)>$B$11,$B$5-(E123+E151),0) -> 9.50264337 | G123: =IF(F123>0,D123+$C$13,0) -> 1.941807694 | J123: 6 | L123: 6 | M123: 6 | P123: 0
A124: 3 | B124: 9.417236662 | C124: =B124/12*$B$13*$K$47 -> 12.55631555 | D124: =D123+$C$15 -> 3.265757694 | E124: =D124+$C$15 -> 4.589707694 | F124: =IF($B$5-(E124+E150)>$B$11,$B$5-(E124+E150),0) -> 6.85474337 | G124: 3.265757694 | J124: 6 | P124: 0
A125: 4 | B125: 9.417236662 | C125: 12.55631555 | D125: 4.589707694 | E125: 5.913657694 | F125: =IF($B$5-(E125+E149)>$B$11,$B$5-(E125+E149),0) -> 4.20684337 | G125: 4.589707694 | J125: 6 | P125: 0
A126: 5 | B126: 9.417236662 | C126: 12.55631555 | D126: 5.913657694 | E126: 7.237607694 | F126: =IF($B$5-(E126+E148)>$B$11,$B$5-(E126+E148),0) -> 1.55894337 | G126: 5.913657694
A127: 6 | B127: 0 | C127: 0 | D127: 7.237607694 | E127: 8.561557694 | F127: =IF($B$5-(E127+E147)>$B$11,$B$5-(E127+E147),0) -> 0 | G127: 0
A128: 7 | B128: 0 | C128: 0 | D128: 8.561557694 | E128: 9.885507694 | F128: =IF($B$5-(E128+E146)>$B$11,$B$5-(E128+E146),0) -> 0 | G128: 0
A129: 8 | B129: 0 | C129: 0 | D129: 9.885507694 | E129: 11.20945769 | F129: =IF($B$5-(E129+E145)>$B$11,$B$5-(E129+E145),0) -> 0 | G129: 0
A130: 9 | B130: 0 | C130: 0 | D130: 11.20945769 | E130: 12.53340769 | F130: =IF($B$5-(E130+E144)>$B$11,$B$5-(E130+E144),0) -> 0 | G130: 0
A131: 10 | B131: 0 | C131: 0 | D131: 12.53340769 | E131: 13.85735769 | F131: =IF($B$5-(E131+E143)>$B$11,$B$5-(E131+E143),0) -> 0 | G131: 0
A132: 11 | B132: 0 | C132: 0 | D132: 13.85735769 | E132: 15.18130769 | F132: =IF($B$5-(E132+E142)>$B$11,$B$5-(E132+E142),0) -> 0 | G132: 0
A133: 12 | B133: 0 | C133: 0 | D133: 15.18130769 | E133: 16.50525769 | F133: =IF($B$5-(E133+E141)>$B$11,$B$5-(E133+E141),0) -> 0 | G133: 0
A134: 13 | B134: 0 | C134: 0 | D134: 16.50525769 | E134: 17.82920769 | F134: =IF($B$5-(E134+E140)>$B$11,$B$5-(E134+E140),0) -> 0 | G134: 0
A135: 14 | B135: 0 | C135: 0 | D135: 17.82920769 | E135: 19.15315769 | F135: =IF($B$5-(E135+E139)>$B$11,$B$5-(E135+E139),0) -> 0 | G135: 0
A138: =A139+1 -> 14 | B138: =IF(F138<$C$15, 0, IF($C$118<$J$47, $C$118, $J$47)) -> 0 | C138: =B138/12*$B$12*$B$7 -> 0 | D138: =D139+$C$15 -> 17.82920769 | E138: =D138+$C$15 -> 19.15315769 | F138: =IF($B$5-(E138+E135)>=$B$11,$B$5-(E138+E135),0) -> 0 | G138: =IF(F138>0,D138+$C$15,0) -> 0
A139: 13 | B139: 0 | C139: 0 | D139: 16.50525769 | E139: 17.82920769 | F139: =IF($B$5-(E139+E134)>=$B$11,$B$5-(E139+E134),0) -> 0 | G139: 0
A140: 12 | B140: 0 | C140: 0 | D140: 15.18130769 | E140: 16.50525769 | F140: =IF($B$5-(E140+E133)>=$B$11,$B$5-(E140+E133),0) -> 0 | G140: 0
A141: 11 | B141: 0 | C141: 0 | D141: 13.85735769 | E141: 15.18130769 | F141: =IF($B$5-(E141+E132)>=$B$11,$B$5-(E141+E132),0) -> 0 | G141: 0
A142: 10 | B142: 0 | C142: 0 | D142: 12.53340769 | E142: 13.85735769 | F142: =IF($B$5-(E142+E131)>=$B$11,$B$5-(E142+E131),0) -> 0 | G142: 0
A143: 9 | B143: 0 | C143: 0 | D143: 11.20945769 | E143: 12.53340769 | F143: =IF($B$5-(E143+E130)>=$B$11,$B$5-(E143+E130),0) -> 0 | G143: 0
A144: 8 | B144: 0 | C144: 0 | D144: 9.885507694 | E144: 11.20945769 | F144: =IF($B$5-(E144+E129)>=$B$11,$B$5-(E144+E129),0) -> 0 | G144: 0
A145: 7 | B145: 0 | C145: 0 | D145: 8.561557694 | E145: 9.885507694 | F145: =IF($B$5-(E145+E128)>=$B$11,$B$5-(E145+E128),0) -> 0 | G145: 0
A146: 6 | B146: 0 | C146: 0 | D146: 7.237607694 | E146: 8.561557694 | F146: =IF($B$5-(E146+E127)>=$B$11,$B$5-(E146+E127),0) -> 0 | G146: 0
A147: 5 | B147: 0 | C147: =B147/12*$B$13*$K$47 -> 0 | D147: 5.913657694 | E147: 7.237607694 | F147: =IF($B$5-(E147+E126)>=$B$11,$B$5-(E147+E126),0) -> 0.2349933697 | G147: 7.237607694
A148: 4 | B148: 9.417236662 | C148: 12.55631555 | D148: 4.589707694 | E148: 5.913657694 | F148: =IF($B$5-(E148+E125)>=$B$11,$B$5-(E148+E125),0) -> 2.88289337 | G148: 5.913657694
A149: 3 | B149: 9.417236662 | C149: 12.55631555 | D149: 3.265757694 | E149: 4.589707694 | F149: =IF($B$5-(E149+E124)>=$B$11,$B$5-(E149+E124),0) -> 5.53079337 | G149: 4.589707694
A150: 2 | B150: 9.417236662 | C150: =B150/12*$B$13*$K$47 -> 12.55631555 | D150: =D151+$C$15 -> 1.941807694 | E150: =D150+$C$15 -> 3.265757694 | F150: =IF($B$5-(E150+E123)>=$B$11,$B$5-(E150+E123),0) -> 8.17869337 | G150: 3.265757694
A151: 1 | B151: =IF($J$46<$C$118,$J$46, $C$118) -> 6 | C151: =B151/12*$B$13*$K$46 -> 4 | D151: =M46 -> 0.6178576936 | E151: =P46 -> 1.941807694 | F151: =$B$5-(E151+E122) -> 10.82659337 | G151: =IF(F151>0,D151+$C$15,0) -> 1.941807694
A154: Board Feet | B154: =IF(MAX(B122:B151) > B10+(2*C15),0,SUM(C122:C151)+C114+C116) -> 0
A155: Boards Sawn | B155: =COUNTIF(B114:B151,">0") -> 11
A156: Cant Height | B156: =IF(MIN(F114:F116)<0, 0, $B$10) -> 6
A157: Cant Width | B157: =IF($C$5-MAX(G138:G151) + $C$5-MAX(G122:G135)<0,0,$B$11) -> 0
A158: Cant Volume | B158: =B7*B157/12*B156 -> 0
A159: Split Taper Sawing Method | E159: Faces 1 and 3
D160: Saw | F160: Center | G160: Max Next
A161: Board | B161: Width | C161: Board Feet | D161: Depth | E161: Next | F161: Remaining | G161: Position
A162: 1 | B162: =2*SQRT(POWER($C$5,2)-POWER($C$5-D162,2)) -> 6 | C162: =B162/12*$B$13*$B$7 -> 8 | D162: =$C$5-SQRT(POWER($C$5,2)-POWER($C$8,2)) -> 0.6396326588 | E162: =D162+$C$15 -> 1.963582659 | F162: =$B$5-E162 -> 12.7466261 | G162: =IF(F162>0,D162+$C$15,0) -> 1.963582659
A163: =A162+1 -> 2 | B163: =IF((F193-$C$15)>$B$10,(2*SQRT(POWER($C$5,2)-POWER($C$5-D163,2))),0) -> 10.00580911 | C163: =B163/12*$B$13*$B$7 -> 13.34107881 | D163: =D162+$C$15 -> 1.963582659 | E163: 3.287532659 | F163: =IF($B$5-(E163+E193)>$B$10,$B$5-(E163+E193),0) -> 9.459093439 | G163: 3.287532659
A164: 3 | B164: =IF((F192-$C$15)>$B$10,(2*SQRT(POWER($C$5,2)-POWER($C$5-D164,2))),0) -> 12.25600599 | C164: 16.34134132 | D164: 3.287532659 | E164: 4.611482659 | F164: =IF($B$5-(E164+E192)>$B$10,$B$5-(E164+E192),0) -> 6.811193439 | G164: 4.611482659
A165: 4 | B165: =IF((F191-$C$15)>$B$10,(2*SQRT(POWER($C$5,2)-POWER($C$5-D165,2))),0) -> 0 | C165: 0 | D165: 4.611482659 | E165: 5.935432659 | F165: =IF($B$5-(E165+E191)>$B$10,$B$5-(E165+E191),0) -> 0 | G165: 0
A166: 5 | B166: =IF((F190-$C$15)>$B$10,(2*SQRT(POWER($C$5,2)-POWER($C$5-D166,2))),0) -> 0 | C166: 0 | D166: 5.935432659 | E166: 7.259382659 | F166: =IF($B$5-(E166+E190)>$B$10,$B$5-(E166+E190),0) -> 0 | G166: 0
A167: 6 | B167: =IF((F189-$C$15)>$B$10,(2*SQRT(POWER($C$5,2)-POWER($C$5-D167,2))),0) -> 0 | C167: 0 | D167: 7.259382659 | E167: 8.583332659 | F167: =IF($B$5-(E167+E189)>$B$10,$B$5-(E167+E189),0) -> 0 | G167: 0
A168: 7 | B168: =IF((F188-$C$15)>$B$10,(2*SQRT(POWER($C$5,2)-POWER($C$5-D168,2))),0) -> 0 | C168: 0 | D168: 8.583332659 | E168: 9.907282659 | F168: =IF($B$5-(E168+E188)>$B$10,$B$5-(E168+E188),0) -> 0 | G168: 0
A169: 8 | B169: =IF((F187-$C$15)>$B$10,(2*SQRT(POWER($C$5,2)-POWER($C$5-D169,2))),0) -> 0 | C169: 0 | D169: 9.907282659 | E169: 11.23123266 | F169: =IF($B$5-(E169+E187)>$B$10,$B$5-(E169+E187),0) -> 0 | G169: 0
A170: 9 | B170: =IF((F186-$C$15)>$B$10,(2*SQRT(POWER($C$5,2)-POWER($C$5-D170,2))),0) -> 0 | C170: 0 | D170: 11.23123266 | E170: 12.55518266 | F170: =IF($B$5-(E170+E186)>$B$10,$B$5-(E170+E186),0) -> 0 | G170: 0
A171: 10 | B171: =IF((F185-$C$15)>$B$10,(2*SQRT(POWER($C$5,2)-POWER($C$5-D171,2))),0) -> 0 | C171: 0 | D171: 12.55518266 | E171: 13.87913266 | F171: =IF($B$5-(E171+E185)>$B$10,$B$5-(E171+E185),0) -> 0 | G171: 0
A172: 11 | B172: =IF((F184-$C$15)>$B$10,(2*SQRT(POWER($C$5,2)-POWER($C$5-D172,2))),0) -> 0 | C172: 0 | D172: 13.87913266 | E172: 15.20308266 | F172: =IF($B$5-(E172+E184)>$B$10,$B$5-(E172+E184),0) -> 0 | G172: 0
A173: 12 | B173: =IF((F183-$C$15)>$B$10,(2*SQRT(POWER($C$5,2)-POWER($C$5-D173,2))),0) -> 0 | C173: 0 | D173: 15.20308266 | E173: 16.52703266 | F173: =IF($B$5-(E173+E183)>$B$10,$B$5-(E173+E183),0) -> 0 | G173: 0
A174: 13 | B174: =IF((F182-$C$15)>$B$10,(2*SQRT(POWER($C$5,2)-POWER($C$5-D174,2))),0) -> 0 | C174: 0 | D174: 16.52703266 | E174: 17.85098266 | F174: =IF($B$5-(E174+E182)>$B$10,$B$5-(E174+E182),0) -> 0 | G174: 0
A175: 14 | B175: =IF((F181-$C$15)>$B$10,(2*SQRT(POWER($C$5,2)-POWER($C$5-D175,2))),0) -> 0 | C175: 0 | D175: 17.85098266 | E175: 19.17493266 | F175: =IF($B$5-(E175+E181)>$B$10,$B$5-(E175+E181),0) -> 0 | G175: 0
A180: =A181+1 -> 14 | B180: =IF((F175-$C$15)>=$B$10,2*SQRT(POWER($C$5,2)-POWER($C$5-D180,2)),0) -> 0 | C180: =B180/12*$B$13*$B$7 -> 0 | D180: =D181+$C$15 -> 17.85098266 | E180: =D180+$C$15 -> 19.17493266 | F180: =IF($B$5-(E180+E175)>=$B$10,$B$5-(E180+E175),0) -> 0 | G180: =IF(F180>0,D180+$C$15,0) -> 0
A181: 13 | B181: =IF((F174-$C$15)>=$B$10,2*SQRT(POWER($C$5,2)-POWER($C$5-D181,2)),0) -> 0 | C181: 0 | D181: 16.52703266 | E181: 17.85098266 | F181: =IF($B$5-(E181+E174)>=$B$10,$B$5-(E181+E174),0) -> 0 | G181: 0
A182: 12 | B182: =IF((F173-$C$15)>=$B$10,2*SQRT(POWER($C$5,2)-POWER($C$5-D182,2)),0) -> 0 | C182: 0 | D182: 15.20308266 | E182: 16.52703266 | F182: =IF($B$5-(E182+E173)>=$B$10,$B$5-(E182+E173),0) -> 0 | G182: 0
A183: 11 | B183: =IF((F172-$C$15)>=$B$10,2*SQRT(POWER($C$5,2)-POWER($C$5-D183,2)),0) -> 0 | C183: 0 | D183: 13.87913266 | E183: 15.20308266 | F183: =IF($B$5-(E183+E172)>=$B$10,$B$5-(E183+E172),0) -> 0 | G183: 0
A184: 10 | B184: =IF((F171-$C$15)>=$B$10,2*SQRT(POWER($C$5,2)-POWER($C$5-D184,2)),0) -> 0 | C184: 0 | D184: 12.55518266 | E184: 13.87913266 | F184: =IF($B$5-(E184+E171)>=$B$10,$B$5-(E184+E171),0) -> 0 | G184: 0
A185: 9 | B185: =IF((F170-$C$15)>=$B$10,2*SQRT(POWER($C$5,2)-POWER($C$5-D185,2)),0) -> 0 | C185: 0 | D185: 11.23123266 | E185: 12.55518266 | F185: =IF($B$5-(E185+E170)>=$B$10,$B$5-(E185+E170),0) -> 0 | G185: 0
A186: 8 | B186: =IF((F169-$C$15)>=$B$10,2*SQRT(POWER($C$5,2)-POWER($C$5-D186,2)),0) -> 0 | C186: 0 | D186: 9.907282659 | E186: 11.23123266 | F186: =IF($B$5-(E186+E169)>=$B$10,$B$5-(E186+E169),0) -> 0 | G186: 0
A187: 7 | B187: =IF((F168-$C$15)>=$B$10,2*SQRT(POWER($C$5,2)-POWER($C$5-D187,2)),0) -> 0 | C187: 0 | D187: 8.583332659 | E187: 9.907282659 | F187: =IF($B$5-(E187+E168)>=$B$10,$B$5-(E187+E168),0) -> 0 | G187: 0
A188: 6 | B188: =IF((F167-$C$15)>=$B$10,2*SQRT(POWER($C$5,2)-POWER($C$5-D188,2)),0) -> 0 | C188: 0 | D188: 7.259382659 | E188: 8.583332659 | F188: =IF($B$5-(E188+E167)>=$B$10,$B$5-(E188+E167),0) -> 0 | G188: 0
A189: 5 | B189: =IF((F166-$C$15)>=$B$10,2*SQRT(POWER($C$5,2)-POWER($C$5-D189,2)),0) -> 0 | C189: 0 | D189: 5.935432659 | E189: 7.259382659 | F189: =IF($B$5-(E189+E166)>=$B$10,$B$5-(E189+E166),0) -> 0 | G189: 0
A190: 4 | B190: =IF((F165-$C$15)>=$B$10,2*SQRT(POWER($C$5,2)-POWER($C$5-D190,2)),0) -> 0 | C190: 0 | D190: 4.611482659 | E190: 5.935432659 | F190: =IF($B$5-(E190+E165)>=$B$10,$B$5-(E190+E165),0) -> 0 | G190: 0
A191: 3 | B191: =IF((F164-$C$15)>=$B$10,2*SQRT(POWER($C$5,2)-POWER($C$5-D191,2)),0) -> 0 | C191: 0 | D191: 3.287532659 | E191: 4.611482659 | F191: =IF($B$5-(E191+E164)>=$B$10,$B$5-(E191+E164),0) -> 0 | G191: 0
A192: 2 | B192: =IF((F163-$C$15)>=$B$10,2*SQRT(POWER($C$5,2)-POWER($C$5-D192,2)),0) -> 10.00580911 | C192: 13.34107881 | D192: 1.963582659 | E192: 3.287532659 | F192: =IF($B$5-(E192+E163)>=$B$10,$B$5-(E192+E163),0) -> 8.135143439 | G192: 3.287532659
A193: 1 | B193: =IF(F193>0,2*SQRT(POWER($C$5,2)-POWER($C$5-D193,2)),0) -> 6 | C193: =B193/12*$B$13*$B$7 -> 8 | D193: =$C$5-SQRT(POWER($C$5,2)-POWER($C$8,2)) -> 0.6396326588 | E193: 1.963582659 | F193: =$B$5-(E193+E162) -> 10.78304344 | G193: 1.963582659
A195: Board Feet | B195: =SUM(C162:C193) -> 59.02349894
A196: Boards Sawn | B196: =COUNTIF(B162:B193,">0") -> 5
A197: Cant Top Y Position | B197: =$C$5-MAX(G162:G175) -> 2.74362172
A198: Cant Bot Y Position | B198: =$C$5-MAX(G180:G193) -> 4.06757172
A199: Actual Cant Height | B199: =IF(B197+B198>=B10, B10, IF(B197+B198 < B10, 0, B197+B198)) -> 6
C203: Faces 2 and 4
D204: Saw | F204: Center | G204: Max Next
A205: Board | B205: Width | C205: Board Feet | D205: Depth | E205: Next | F205: Remaining | G205: Position
A206: 1 | B206: =IF(D206<MIN(K55,L55),$B$8,$B$199) -> 6 | C206: =IF(B206/12*$B$16*$B$7<$B$21, 0, B206/12*$B$16*$B$7) -> 8 | D206: =$M$55 -> 0.6407284227 | E206: =D206+$C$18 -> 1.964678423 | F206: =$B$5-E206 -> 12.74553033 | G206: =IF(F206>0,D206+$C$18,0) -> 1.964678423
A207: =A206+1 -> 2 | B207: =IF(F207-$C$18>=$B$14,IF(D207<MIN($K$55,$L$55),$B$8,$B$199),0) -> 6 | C207: =IF(B207/12*$B$16*$B$7<$B$21, 0, B207/12*$B$16*$B$7) -> 8 | D207: =D206+$C$18 -> 1.964678423 | E207: =D207+$C$18 -> 3.288628423 | F207: =IF($B$5-(E207+E235)>$B$11,$B$5-(E207+E235),0) -> 9.456901911 | G207: =IF(F207>0,D207+$C$18,0) -> 3.288628423
A208: 3 | B208: =IF(F208-$C$18>=$B$14,IF(D208<MIN($K$55,$L$55),$B$8,$B$199),0) -> 6 | C208: 8 | D208: =D207+$C$18 -> 3.288628423 | E208: 4.612578423 | F208: =IF($B$5-(E208+E234)>$B$11,$B$5-(E208+E234),0) -> 6.809001911 | G208: 4.612578423
A209: 4 | B209: 6 | C209: 8 | D209: 4.612578423 | E209: 5.936528423 | F209: =IF($B$5-(E209+E233)>$B$11,$B$5-(E209+E233),0) -> 4.161101911 | G209: 5.936528423
A210: 5 | B210: 6 | C210: 8 | D210: 5.936528423 | E210: 7.260478423 | F210: =IF($B$5-(E210+E232)>$B$11,$B$5-(E210+E232),0) -> 1.513201911 | G210: 7.260478423
A211: 6 | B211: 0 | C211: 0 | D211: 7.260478423 | E211: 8.584428423 | F211: =IF($B$5-(E211+E231)>$B$11,$B$5-(E211+E231),0) -> 0 | G211: 0
A212: 7 | B212: 0 | C212: 0 | D212: 8.584428423 | E212: 9.908378423 | F212: =IF($B$5-(E212+E230)>$B$11,$B$5-(E212+E230),0) -> 0 | G212: 0
A213: 8 | B213: 0 | C213: 0 | D213: 9.908378423 | E213: 11.23232842 | F213: =IF($B$5-(E213+E229)>$B$11,$B$5-(E213+E229),0) -> 0 | G213: 0
A214: 9 | B214: 0 | C214: 0 | D214: 11.23232842 | E214: 12.55627842 | F214: =IF($B$5-(E214+E228)>$B$11,$B$5-(E214+E228),0) -> 0 | G214: 0
A215: 10 | B215: 0 | C215: 0 | D215: 12.55627842 | E215: 13.88022842 | F215: =IF($B$5-(E215+E227)>$B$11,$B$5-(E215+E227),0) -> 0 | G215: 0
... 320 more rows

Sheet InteractiveProcess (hidden)
A3: Small End Diameter | B3: ='Interactive Sawing'!D9 -> 20 | C3: =B3/2 -> 10 | E3: Boards Sawn | G3: =IF(OR(B20="SLAB",B20="LIVE"), IF(B17="SPLIT",B245, B328+B286),IF(B20="GRADE",IF(B17="SPLIT",B449,B570))) -> 26
A4: Large End Diameter | B4: ='Interactive Sawing'!D10 -> 23.5 | C4: =IF(B3>B4,"ERROR"," ") ->  | E4: Board Feet | G4: =IF(OR(B20="SLAB",B20="LIVE"), IF(B17="SPLIT",C245, B327+B285), IF(B20="GRADE",IF(B17="SPLIT",B450,B571))) -> 300.855723
A5: Log Length | B5: ='Interactive Sawing'!D11 -> 16 | E5: Cant Height | G5: =IF(OR(B20="SLAB",B20="LIVE"), IF(B17="SPLIT",D244, B289), IF(B20="GRADE",IF(B17="SPLIT",B452,B573))) -> 6
A6: Opening Face Width | B6: ='Interactive Sawing'!D12 -> 6 | C6: =B6/2 -> 3 | E6: Cant Width | G6: =IF(OR(B20="SLAB",B20="LIVE"), IF(B17="SPLIT", E244, B329), IF(B20="GRADE",IF(B17="SPLIT",B451,B572))) -> 0
A7: Opening Face Length | B7: ='Interactive Sawing'!D13 -> 8 | E7: Cant Volume | G7: =IF(G6>1,G5/12*$B$5*G6,0) -> 0
A8: Cant Height | B8: =IF('Interactive Sawing'!D26="LIVE", 0, 'Interactive Sawing'!D14) -> 6 | E8: Total BDFT | G8: =G7+G4 -> 300.855723
A9: Cant Width | B9: =IF('Interactive Sawing'!D26="LIVE",0, 'Interactive Sawing'!D15) -> 0 | E9: LRF | G9: =$G$8/(((3.145926*POWER(($B$3/24),2) + 3.145926*POWER(($B$4/24),2))/2)*$B$5) -> 7.230882254
A10: Green Allowance | B10: ='Interactive Sawing'!D16 -> 0.125
A11: Thickness | B11: ='Interactive Sawing'!D17 -> 1 | D11: Headrig | E11: Int 1/4 | I11: =LogScale!$J$5 -> 290
A12: Sawing Variation | B12: ='Interactive Sawing'!D18 -> 0.03 | C12: =B11+(B12*1.97)+(B11*B10) -> 1.1841 | E12: Doyle | I12: =LogScale!$K$5 -> 256
A13: Saw Kerf | B13: ='Interactive Sawing'!D19 -> 0.125 | C13: =B10*B11+B11+B12*1.97+B13 -> 1.3091 | E13: Scribner | I13: =LogScale!$L$5 -> 270
A14: Thickness | B14: ='Interactive Sawing'!D21 -> 1 | D14: Resaw | E14: Recovery-Based Processing Cost | I14: =Costs!$H$18/1000*G4 -> 61.97627894
A15: Sawing Variation | B15: ='Interactive Sawing'!D22 -> 0.03 | C15: =B14+(B15*1.97)+(B14*B10) -> 1.1841 | E15: Log-Volume-Based Processing Cost | I15: =IF(Costs!$D$4="International 1/4", I11*(Costs!H23/1000),IF(Costs!$D$4="Doyle",I12*(Costs!H23/1000), IF(Costs!$D$4="Scribner", I13*(Costs!H23/1000), "ERROR" ) ) ) -> 23.94991408
A16: Saw Kerf | B16: ='Interactive Sawing'!D23 -> 0.125 | C16: =B10*B14+B14+B15*1.97+B16 -> 1.3091
A17: Split/Full Taper Mode | B17: ='Interactive Sawing'!D25 -> SPLIT
A18: Fit Min Length Boards | B18: AUTO
A19: Scrap Board Threshold(bdft) | B19: 2
A20: Sawing Method | B20: ='Interactive Sawing'!D26 -> GRADE
U21: Second Cut Lookup | AA21: Third Cut Lookup | AF21: Fourth Cut Lookup
A22: Split Taper Sawing Method With Min Open Face Cuts | E22: Faces 1 and 3 | J22: Note, the formulas below perform a split-taper sawing solution | U22: =T25-M27 -> 9.143919899
D23: Saw | F23: Center | G23: Max Next | J23: Faces 1 and 3 Opening Face Calculations | S23: Distance | T23: Radius | U23: Relative Saw | V23: Width | W23: Min Scale | X23: Min Scale | Y23: Radius | Z23: Relative Saw | AA23: Width | AB23: Min Scale | AC23: Min Scale | AD23: Radius | AE23: Relative Saw | AF23: Width | AG23: Min Scale | AH23: Min Scale
A24: Board | B24: Width | C24: Board Feet | D24: Depth | E24: Next | F24: Remaining | G24: Position | J24: Width | K24: Length | L24: Board | M24: Saw | O24: SE Adjusted | P24: SE Adjusted | S24: from LE | T24: @ distance | U24: Depth | V24: @ Depth | W24: Width | X24: Length | Y24: @ distance | Z24: Depth | AA24: @ Depth | AB24: Width | AC24: Length | AD24: @ distance | AE24: Depth | AF24: @ Depth | AG24: Width | AH24: Length
A25: 1 | B25: =2*SQRT(POWER($C$3,2)-POWER($C$3-D25,2)) -> 8.096599012 | C25: =B25/12*$B$11*$B$5 -> 10.79546535 | D25: =$Q$33 -> 0.8560801014 | E25: =D25+$C$13 -> 2.165180101 | F25: =$B$3-E25 -> 17.8348199 | G25: =IF(F25>0,D25+$C$13,0) -> 2.165180101 | J25: (inches) | K25: (feet) | L25: Feet | M25: Depth | N25: Next | O25: Depth | P25: Next | S25: =B7 -> 8 | T25: =($B$4-2*$K$33*S25)/2 -> 10.875 | U25: =IF(T25-$U$22>0, T25-$U$22, 0) -> 1.731080101 | V25: =IF(U25>0, 2*SQRT(POWER(T25,2)-POWER(T25-U25,2)), 0) -> 11.77358975 | W25: =IF(V25>$B$6, V25, " ") -> 11.77358975 | X25: =IF(V25>$B$6, S25, " ") -> 8 | Y25: =($B$4-2*$K$33*S25)/2 -> 10.875 | Z25: =$M$28 -> 3.040180101 | AA25: =IF(Z25>0, 2*SQRT(POWER(Y25,2)-POWER(Y25-Z25,2)), 0) -> 15.08392816 | AB25: =IF(AA25>$B$6, AA25, " ") -> 15.08392816 | AC25: =IF(AA25>$B$6, S25, " ") -> 8 | AD25: =($B$4-2*$K$33*S25)/2 -> 10.875 | AE25: =$M$29 -> 4.349280101 | AF25: =IF(AE25>0, 2*SQRT(POWER(AD25,2)-POWER(AD25-AE25,2)), 0) -> 17.39892006 | AG25: =IF(AF25>$B$6, AF25, " ") -> 17.39892006 | AH25: =IF(AF25>$B$6, S25, " ") -> 8
A26: =A25+1 -> 2 | B26: =IF((F56-$C$13)>$B$8,(2*SQRT(POWER($C$3,2)-POWER($C$3-D26,2))),0) -> 12.42828985 | C26: 16.57105314 | D26: =D25+$C$13 -> 2.165180101 | E26: 3.474280101 | F26: =IF($B$3-(E26+E56)>$B$8,$B$3-(E26+E56),0) -> 14.3605398 | G26: 3.474280101 | J26: =2*SQRT(POWER($L$35,2)-POWER($L$35-$M$26,2)) -> 6 | K26: =B7 -> 8 | L26: =J26/12*$B$11*K26 -> 4 | M26: =$L$35-SQRT(POWER($L$35,2)-POWER($C$6,2)) -> 0.4219801014 | N26: =M26+$C$13 -> 1.731080101 | O26: =M26-$K$36 -> -0.4530198986 | P26: =O26+$C$13 -> 0.8560801014 | S26: =IF(AND(S25+1<=$B$5, S25 > 0 ), S25+1, 0) -> 9 | T26: =IF(S26>0,($B$4-2*$K$33*S26)/2,0) -> 10.765625 | U26: 1.621705101 | V26: 11.36440241 | W26: 11.36440241 | X26: 9 | Y26: =IF(S26>0,($B$4-2*$K$33*S26)/2,0) -> 10.765625 | Z26: =IF(Y26>0,$M$28,0) -> 3.040180101 | AA26: 14.99549036 | AB26: 14.99549036 | AC26: 9 | AD26: =IF(S26>0,($B$4-2*$K$33*S26)/2,0) -> 10.765625 | AE26: =IF(AD26>0,$M$29,0) -> 4.349280101 | AF26: 17.28921048 | AG26: 17.28921048 | AH26: =IF(AF26>$B$6, S26, " ") -> 9
A27: 3 | B27: =IF((F55-$C$13)>$B$8,(2*SQRT(POWER($C$3,2)-POWER($C$3-D27,2))),0) -> 15.15453461 | C27: 20.20604615 | D27: 3.474280101 | E27: 4.783380101 | F27: =IF($B$3-(E27+E55)>$B$8,$B$3-(E27+E55),0) -> 11.7423398 | G27: 4.783380101 | J27: =MIN(IF(W25:W38>0,W25:W38)) -> 8.096599012 | K27: =MAX(X25:X38) -> 16 | L27: =J27/12*$B$11*K27 -> 10.79546535 | M27: =M26+C13 -> 1.731080101 | N27: =M27+$C$13 -> 3.040180101 | O27: =M27-$K$36 -> 0.8560801014 | P27: =O27+$C$13 -> 2.165180101 | S27: 10 | T27: 10.65625 | U27: 1.512330101 | V27: 10.94429403 | W27: 10.94429403 | X27: 10 | Y27: 10.65625 | Z27: 3.040180101 | AA27: 14.90652788 | AB27: 14.90652788 | AC27: 10 | AD27: 10.65625 | AE27: =IF(AD27>0,$M$29,0) -> 4.349280101 | AF27: 17.17880028 | AG27: 17.17880028 | AH27: 10
A28: 4 | B28: =IF((F54-$C$13)>$B$8,(2*SQRT(POWER($C$3,2)-POWER($C$3-D28,2))),0) -> 17.06304508 | C28: 22.75072677 | D28: 4.783380101 | E28: 6.092480101 | F28: =IF($B$3-(E28+E54)>$B$8,$B$3-(E28+E54),0) -> 9.124139797 | G28: 6.092480101 | J28: =MIN(IF(AB25:AB38>0,AB25:AB38)) -> 14.36118477 | K28: =MAX(AC25:AC38) -> 16 | L28: =J28/12*$B$11*K28 -> 19.14824636 | M28: =M27+C13 -> 3.040180101 | N28: =M28+$C$13 -> 4.349280101 | O28: =M28-$K$36 -> 2.165180101 | P28: =O28+$C$13 -> 3.474280101 | S28: 11 | T28: 10.546875 | U28: 1.402955101 | V28: 10.51195532 | W28: 10.51195532 | X28: 11 | Y28: 10.546875 | Z28: 3.040180101 | AA28: 14.81703128 | AB28: 14.81703128 | AC28: 11 | AD28: 10.546875 | AE28: 4.349280101 | AF28: 17.06767585 | AG28: 17.06767585 | AH28: 11
A29: 5 | B29: =IF((F53-$C$13)>$B$8,(2*SQRT(POWER($C$3,2)-POWER($C$3-D29,2))),0) -> 18.40991996 | C29: 24.54655995 | D29: 6.092480101 | E29: 7.401580101 | F29: =IF($B$3-(E29+E53)>$B$8,$B$3-(E29+E53),0) -> 6.505939797 | G29: 7.401580101 | J29: =MIN(IF(AG25:AG38>0,AG25:AG38)) -> 16.50083206 | K29: =MAX(AH25:AH38) -> 16 | L29: =J29/12*$B$11*K29 -> 22.00110941 | M29: =M28+C13 -> 4.349280101 | N29: =M29+$C$13 -> 5.658380101 | O29: =M29-$K$36 -> 3.474280101 | P29: 4.783380101 | S29: 12 | T29: 10.4375 | U29: 1.293580101 | V29: 10.06581048 | W29: 10.06581048 | X29: 12 | Y29: 10.4375 | Z29: 3.040180101 | AA29: 14.72699081 | AB29: 14.72699081 | AC29: 12 | AD29: 10.4375 | AE29: 4.349280101 | AF29: 16.95582316 | AG29: 16.95582316 | AH29: 12
A30: 6 | B30: =IF((F52-$C$13)>$B$8,(2*SQRT(POWER($C$3,2)-POWER($C$3-D30,2))),0) -> 0 | C30: 0 | D30: 7.401580101 | E30: 8.710680101 | F30: =IF($B$3-(E30+E52)>$B$8,$B$3-(E30+E52),0) -> 0 | G30: 0 | S30: 13 | T30: 10.328125 | U30: 1.184205101 | V30: 9.603935632 | W30: 9.603935632 | X30: 13 | Y30: 10.328125 | Z30: 3.040180101 | AA30: 14.63639644 | AB30: 14.63639644 | AC30: 13 | AD30: 10.328125 | AE30: 4.349280101 | AF30: 16.84322768 | AG30: 16.84322768 | AH30: 13
A31: 7 | B31: =IF((F51-$C$13)>$B$8,(2*SQRT(POWER($C$3,2)-POWER($C$3-D31,2))),0) -> 0 | C31: 0 | D31: 8.710680101 | E31: 10.0197801 | F31: =IF($B$3-(E31+E51)>$B$8,$B$3-(E31+E51),0) -> 0 | G31: 0 | S31: 14 | T31: 10.21875 | U31: 1.074830101 | V31: 9.123942229 | W31: 9.123942229 | X31: 14 | Y31: 10.21875 | Z31: 3.040180101 | AA31: 14.54523782 | AB31: 14.54523782 | AC31: 14 | AD31: 10.21875 | AE31: 4.349280101 | AF31: 16.72987444 | AG31: 16.72987444 | AH31: 14
A32: 8 | B32: =IF((F50-$C$13)>$B$8,(2*SQRT(POWER($C$3,2)-POWER($C$3-D32,2))),0) -> 0 | C32: 0 | D32: 10.0197801 | E32: 11.3288801 | F32: =IF($B$3-(E32+E50)>$B$8,$B$3-(E32+E50),0) -> 0 | G32: 0 | J32: LE SE difference | K32: =B4-B3 -> 3.5 | P32: Face 1 & 3 Taper Result Summary | S32: 15 | T32: 10.109375 | U32: 0.9654551014 | V32: 8.622805061 | W32: 8.622805061 | X32: 15 | Y32: 10.109375 | Z32: 3.040180101 | AA32: 14.45350426 | AB32: 14.45350426 | AC32: 15 | AD32: 10.109375 | AE32: 4.349280101 | AF32: 16.61574791 | AG32: 16.61574791 | AH32: 15
A33: 9 | B33: =IF((F49-$C$13)>$B$8,(2*SQRT(POWER($C$3,2)-POWER($C$3-D33,2))),0) -> 0 | C33: 0 | D33: 11.3288801 | E33: 12.6379801 | F33: =IF($B$3-(E33+E49)>$B$8,$B$3-(E33+E49),0) -> 0 | G33: 0 | J33: '1/2 taper per foot | K33: =((B4-B3)/2)/B5 -> 0.109375 | P33: Full Face Depth | Q33: =IF(O27>0, O27, O28) -> 0.8560801014 | S33: 16 | T33: 10 | U33: 0.8560801014 | V33: 8.096599012 | W33: 8.096599012 | X33: 16 | Y33: 10 | Z33: 3.040180101 | AA33: 14.36118477 | AB33: 14.36118477 | AC33: 16 | AD33: 10 | AE33: 4.349280101 | AF33: 16.50083206 | AG33: 16.50083206 | AH33: 16
A34: 10 | B34: =IF((F48-$C$13)>$B$8,(2*SQRT(POWER($C$3,2)-POWER($C$3-D34,2))),0) -> 0 | C34: 0 | D34: 12.6379801 | E34: 13.9470801 | F34: =IF($B$3-(E34+E48)>$B$8,$B$3-(E34+E48),0) -> 0 | G34: 0 | J34: tot. taper from LE | K34: =B7*K33 -> 0.875 | P34: Board Count | Q34: =IF(O27<0,4, 2) -> 2 | S34: 0 | T34: 0 | U34: 0 | V34: 0 | Y34: 0 | Z34: 0 | AA34: 0 | AD34: 0 | AE34: 0 | AF34: 0
A35: 11 | B35: =IF((F47-$C$13)>$B$8,(2*SQRT(POWER($C$3,2)-POWER($C$3-D35,2))),0) -> 0 | C35: 0 | D35: 13.9470801 | E35: 15.2561801 | F35: =IF($B$3-(E35+E47)>$B$8,$B$3-(E35+E47),0) -> 0 | G35: 0 | J35: Dia @ min face length | K35: =B4-2*K34 -> 21.75 | L35: =K35/2 -> 10.875 | P35: Board Feet | Q35: =IF(O27<0, 2*SUM(L26:L27), 2*L26) -> 8 | S35: 0 | T35: 0 | U35: 0 | V35: 0 | Y35: 0 | Z35: 0 | AA35: 0 | AD35: 0 | AE35: 0 | AF35: 0
A36: 12 | B36: =IF((F46-$C$13)>$B$8,(2*SQRT(POWER($C$3,2)-POWER($C$3-D36,2))),0) -> 0 | C36: 0 | D36: 15.2561801 | E36: 16.5652801 | F36: =IF($B$3-(E36+E46)>$B$8,$B$3-(E36+E46),0) -> 0 | G36: 0 | J36: SE depth adjustment | K36: =L35-C3 -> 0.875 | S36: 0 | T36: 0 | U36: 0 | V36: 0 | Y36: 0 | Z36: 0 | AA36: 0 | AD36: 0 | AE36: 0 | AF36: 0
A37: 13 | B37: =IF((F45-$C$13)>$B$8,(2*SQRT(POWER($C$3,2)-POWER($C$3-D37,2))),0) -> 0 | C37: 0 | D37: 16.5652801 | E37: 17.8743801 | F37: =IF($B$3-(E37+E45)>$B$8,$B$3-(E37+E45),0) -> 0 | G37: 0 | S37: 0 | T37: 0 | U37: 0 | V37: 0 | Y37: 0 | Z37: 0 | AA37: 0 | AD37: 0 | AE37: 0 | AF37: 0
A38: 14 | B38: =IF((F44-$C$13)>$B$8,(2*SQRT(POWER($C$3,2)-POWER($C$3-D38,2))),0) -> 0 | C38: 0 | D38: 17.8743801 | E38: 19.1834801 | F38: =IF($B$3-(E38+E44)>$B$8,$B$3-(E38+E44),0) -> 0 | G38: 0 | S38: 0 | T38: 0 | U38: 0 | V38: 0 | Y38: 0 | Z38: 0 | AA38: 0 | AD38: 0 | AE38: 0 | AF38: 0
J40: Faces 2 and 4 Opening Face Calculations
U41: =T44-M45 -> 9.143919899
J42: Width | K42: Length | L42: Board | M42: Radial | N42: Lower Cant | O42: Upper Cant | Q42: SE Adjusted | R42: SE Adjusted | S42: Distance | T42: Radius | U42: Relative Saw | V42: Width | W42: Min Scale | X42: Min Scale
A43: =A44+1 -> 14 | B43: =IF((F38-$C$13)>=$B$8,2*SQRT(POWER($C$3,2)-POWER($C$3-D43,2)),0) -> 0 | C43: =B43/12*$B$11*$B$5 -> 0 | D43: =D44+$C$13 -> 17.8743801 | E43: =D43+$C$13 -> 19.1834801 | F43: =IF($B$3-(E43+E38)>=$B$8,$B$3-(E43+E38),0) -> 0 | G43: =IF(F43>0,D43+$C$13,0) -> 0 | J43: (inches) | K43: (feet) | L43: Feet | M43: Depth | N43: Face Depth | O43: Face Depth | P43: Next | Q43: Depth | R43: Next | S43: from LE | T43: @ distance | U43: Depth | V43: @ Depth | W43: Width | X43: Length
A44: 13 | B44: =IF((F37-$C$13)>=$B$8,2*SQRT(POWER($C$3,2)-POWER($C$3-D44,2)),0) -> 0 | C44: 0 | D44: 16.5652801 | E44: 17.8743801 | F44: =IF($B$3-(E44+E37)>=$B$8,$B$3-(E44+E37),0) -> 0 | G44: 0 | J44: =2*SQRT(POWER($L$35,2)-POWER($L$35-$M$26,2)) -> 6 | K44: =B7 -> 8 | L44: =J44/12*$B$11*$B$7 -> 4 | M44: =$L$35-SQRT(POWER($L$35,2)-POWER($C$6,2)) -> 0.4219801014 | N44: =($L$35-SQRT(POWER($L$35,2)-POWER(B61,2)))-$K$36 -> -0.1487394903 | O44: =($L$35-SQRT(POWER($L$35,2)-POWER($B$60,2)))-$K$36 -> -0.5600113177 | P44: =MAX(M44:O44)+$C$13 -> 1.731080101 | Q44: =M44-$K$36 -> -0.4530198986 | R44: =Q44+$C$13 -> 0.8560801014 | S44: =B7 -> 8 | T44: =($B$4-2*$K$33*S44)/2 -> 10.875 | U44: =IF(T44-$U$41>0, T44-$U$41, 0) -> 1.731080101 | V44: =IF(U44>0, 2*SQRT(POWER(T44,2)-POWER(T44-U44,2)), 0) -> 11.77358975 | W44: =IF(V44>$B$6, V44, " ") -> 11.77358975 | X44: =IF(V44>$B$6, S44, " ") -> 8
A45: 12 | B45: =IF((F36-$C$13)>=$B$8,2*SQRT(POWER($C$3,2)-POWER($C$3-D45,2)),0) -> 0 | C45: 0 | D45: 15.2561801 | E45: 16.5652801 | F45: =IF($B$3-(E45+E36)>=$B$8,$B$3-(E45+E36),0) -> 0 | G45: 0 | J45: =MIN(W44:W57) -> 8.096599012 | K45: =MAX(X44:X57) -> 16 | L45: =J45/12*$B$11*K45 -> 10.79546535 | M45: =M44+C13 -> 1.731080101 | N45: =($L$35-SQRT(POWER($L$35,2)-POWER(B62,2)))-$K$36 -> 0.9299600332 | O45: =($L$35-SQRT(POWER($L$35,2)-POWER($B$60,2)))-$K$36 -> -0.5600113177 | P45: =MAX(M45:O45)+$C$13 -> 3.040180101 | Q45: =M45-$K$36 -> 0.8560801014 | R45: =Q45+$C$13 -> 2.165180101 | S45: =IF(AND(S44+1<=$B$5, S44 > 0 ), S44+1, 0) -> 9 | T45: =IF(S45>0,($B$4-2*$K$33*S45)/2,0) -> 10.765625 | U45: =IF(T45-$U$41>0, T45-$U$41, 0) -> 1.621705101 | V45: =IF(U45>0, 2*SQRT(POWER(T45,2)-POWER(T45-U45,2)), 0) -> 11.36440241 | W45: 11.36440241 | X45: 9
A46: 11 | B46: =IF((F35-$C$13)>=$B$8,2*SQRT(POWER($C$3,2)-POWER($C$3-D46,2)),0) -> 0 | C46: 0 | D46: 13.9470801 | E46: 15.2561801 | F46: =IF($B$3-(E46+E35)>=$B$8,$B$3-(E46+E35),0) -> 0 | G46: 0 | S46: =IF(AND(S45+1<=$B$5, S45 > 0 ), S45+1, 0) -> 10 | T46: 10.65625 | U46: 1.512330101 | V46: 10.94429403 | W46: 10.94429403 | X46: 10
A47: 10 | B47: =IF((F34-$C$13)>=$B$8,2*SQRT(POWER($C$3,2)-POWER($C$3-D47,2)),0) -> 0 | C47: 0 | D47: 12.6379801 | E47: 13.9470801 | F47: =IF($B$3-(E47+E34)>=$B$8,$B$3-(E47+E34),0) -> 0 | G47: 0 | S47: 11 | T47: 10.546875 | U47: 1.402955101 | V47: 10.51195532 | W47: 10.51195532 | X47: 11
A48: 9 | B48: =IF((F33-$C$13)>=$B$8,2*SQRT(POWER($C$3,2)-POWER($C$3-D48,2)),0) -> 0 | C48: 0 | D48: 11.3288801 | E48: 12.6379801 | F48: =IF($B$3-(E48+E33)>=$B$8,$B$3-(E48+E33),0) -> 0 | G48: 0 | S48: 12 | T48: 10.4375 | U48: 1.293580101 | V48: 10.06581048 | W48: 10.06581048 | X48: 12
A49: 8 | B49: =IF((F32-$C$13)>=$B$8,2*SQRT(POWER($C$3,2)-POWER($C$3-D49,2)),0) -> 0 | C49: 0 | D49: 10.0197801 | E49: 11.3288801 | F49: =IF($B$3-(E49+E32)>=$B$8,$B$3-(E49+E32),0) -> 0 | G49: 0 | J49: Faces 2 and 4 Full length Cant opening Face Calculations | P49: Face 2 & 4 Taper Result Summary | S49: 13 | T49: 10.328125 | U49: 1.184205101 | V49: 9.603935632 | W49: 9.603935632 | X49: 13
A50: 7 | B50: =IF((F31-$C$13)>=$B$8,2*SQRT(POWER($C$3,2)-POWER($C$3-D50,2)),0) -> 0 | C50: 0 | D50: 8.710680101 | E50: 10.0197801 | F50: =IF($B$3-(E50+E31)>=$B$8,$B$3-(E50+E31),0) -> 0 | G50: 0 | P50: Full Face Depth | Q50: =IF(R44>0, R44, R45) -> 0.8560801014 | S50: 14 | T50: 10.21875 | U50: 1.074830101 | V50: 9.123942229 | W50: 9.123942229 | X50: 14
A51: 6 | B51: =IF((F30-$C$13)>=$B$8,2*SQRT(POWER($C$3,2)-POWER($C$3-D51,2)),0) -> 0 | C51: 0 | D51: 7.401580101 | E51: 8.710680101 | F51: =IF($B$3-(E51+E30)>=$B$8,$B$3-(E51+E30),0) -> 0 | G51: 0 | J51: depth | K51: Upper | L51: Lower | M51: Maximum | P51: Board Count | Q51: =IF(R44<0,4, IF(MIN(F43:F56)<0,0,2)) -> 2 | S51: 15 | T51: 10.109375 | U51: 0.9654551014 | V51: 8.622805061 | W51: 8.622805061 | X51: 15
A52: 5 | B52: =IF((F29-$C$13)>=$B$8,2*SQRT(POWER($C$3,2)-POWER($C$3-D52,2)),0) -> 0 | C52: 0 | D52: 6.092480101 | E52: 7.401580101 | F52: =IF($B$3-(E52+E29)>=$B$8,$B$3-(E52+E29),0) -> 0 | G52: 0 | J52: F | K52: T | L52: B | M52: Position | P52: Board Feet | Q52: =IF(R44<0, 2*SUM(L44:L45),IF(MIN(F43:F56)<0,0, 2*L44)) -> 8 | S52: 16 | T52: 10 | U52: 0.8560801014 | V52: 8.096599012 | W52: 8.096599012 | X52: 16
A53: 4 | B53: =IF((F28-$C$13)>=$B$8,2*SQRT(POWER($C$3,2)-POWER($C$3-D53,2)),0) -> 17.06304508 | C53: 22.75072677 | D53: 4.783380101 | E53: 6.092480101 | F53: =IF($B$3-(E53+E28)>=$B$8,$B$3-(E53+E28),0) -> 7.815039797 | G53: 6.092480101 | J53: =$C$3-SQRT(POWER($C$3,2)-POWER($C$6,2)) -> 0.4606079858 | K53: =$C$3-SQRT(POWER($C$3,2)-POWER($B$60,2)) -> 0.3434885165 | L53: =$C$3-SQRT(POWER($C$3,2)-POWER($B$61,2)) -> 0.7950400195 | M53: =MAX(J53:L53) -> 0.7950400195 | S53: 0 | T53: 0 | U53: 0 | V53: 0
A54: 3 | B54: =IF((F27-$C$13)>=$B$8,2*SQRT(POWER($C$3,2)-POWER($C$3-D54,2)),0) -> 15.15453461 | C54: 20.20604615 | D54: 3.474280101 | E54: 4.783380101 | F54: =IF($B$3-(E54+E27)>=$B$8,$B$3-(E54+E27),0) -> 10.4332398 | G54: 4.783380101 | S54: 0 | T54: 0 | U54: 0 | V54: 0
A55: 2 | B55: =IF((F26-$C$13)>=$B$8,2*SQRT(POWER($C$3,2)-POWER($C$3-D55,2)),0) -> 12.42828985 | C55: 16.57105314 | D55: 2.165180101 | E55: 3.474280101 | F55: =IF($B$3-(E55+E26)>=$B$8,$B$3-(E55+E26),0) -> 13.0514398 | G55: 3.474280101 | S55: 0 | T55: 0 | U55: 0 | V55: 0
A56: 1 | B56: =IF(F56>0,2*SQRT(POWER($C$3,2)-POWER($C$3-D56,2)),0) -> 8.096599012 | C56: 10.79546535 | D56: =$Q$33 -> 0.8560801014 | E56: 2.165180101 | F56: =$B$3-(E56+E25) -> 15.6696398 | G56: 2.165180101 | S56: 0 | T56: 0 | U56: 0 | V56: 0
S57: 0 | T57: 0 | U57: 0 | V57: 0
A58: Board Feet | B58: =SUM(C25:C56)+Q35 -> 173.1931427
A59: Boards Sawn | B59: =COUNTIF(B25:B56,">0")+Q34 -> 11
A60: Cant Top Y Position | B60: =$C$3-MAX(G25:G38) -> 2.598419899
A61: Cant Bot Y Position | B61: =$C$3-MAX(G43:G56) -> 3.907519899
A62: Actual Cant Height | B62: =IF(B60+B61>=B8, B8, IF(B60+B61 < B8, 0, B60+B61)) -> 6
C66: Faces 2 and 4
D67: Saw | F67: Center | G67: Max Next
A68: Board | B68: Width | C68: Board Feet | D68: Depth | E68: Next | F68: Remaining | G68: Position
A69: 1 | B69: =IF(D69<MIN(K53,L53),$B$6,$B$62) -> 6 | C69: =IF(B69/12*$B$14*$B$5<$B$19, 0, B69/12*$B$14*$B$5) -> 8 | D69: =$M$53 -> 0.7950400195 | E69: =D69+$C$16 -> 2.10414002 | F69: =$B$3-E69 -> 17.89585998 | G69: =IF(F69>0,D69+$C$16,0) -> 2.10414002
A70: =A69+1 -> 2 | B70: =IF(F70-$C$16>=$B$9,IF(D70<MIN($K$53,$L$53),$B$6,$B$62),0) -> 6 | C70: =IF(B70/12*$B$14*$B$5<$B$19, 0, B70/12*$B$14*$B$5) -> 8 | D70: =D69+$C$16 -> 2.10414002 | E70: =D70+$C$16 -> 3.41324002 | F70: =IF($B$3-(E70+E98)>$B$9,$B$3-(E70+E98),0) -> 14.48261996 | G70: =IF(F70>0,D70+$C$16,0) -> 3.41324002
A71: 3 | B71: =IF(F71-$C$16>=$B$9,IF(D71<MIN($K$53,$L$53),$B$6,$B$62),0) -> 6 | C71: 8 | D71: =D70+$C$16 -> 3.41324002 | E71: 4.72234002 | F71: =IF($B$3-(E71+E97)>$B$9,$B$3-(E71+E97),0) -> 11.86441996 | G71: 4.72234002
A72: 4 | B72: 6 | C72: 8 | D72: 4.72234002 | E72: 6.03144002 | F72: =IF($B$3-(E72+E96)>$B$9,$B$3-(E72+E96),0) -> 9.246219961 | G72: 6.03144002
A73: 5 | B73: 6 | C73: 8 | D73: 6.03144002 | E73: 7.34054002 | F73: =IF($B$3-(E73+E95)>$B$9,$B$3-(E73+E95),0) -> 6.628019961 | G73: 7.34054002
A74: 6 | B74: 6 | C74: 8 | D74: 7.34054002 | E74: 8.64964002 | F74: =IF($B$3-(E74+E94)>$B$9,$B$3-(E74+E94),0) -> 4.009819961 | G74: 8.64964002
A75: 7 | B75: 6 | C75: 8 | D75: 8.64964002 | E75: 9.95874002 | F75: =IF($B$3-(E75+E93)>$B$9,$B$3-(E75+E93),0) -> 1.391619961 | G75: 9.95874002
A76: 8 | B76: 0 | C76: 0 | D76: 9.95874002 | E76: 11.26784002 | F76: =IF($B$3-(E76+E92)>$B$9,$B$3-(E76+E92),0) -> 0 | G76: 0
A77: 9 | B77: 0 | C77: 0 | D77: 11.26784002 | E77: 12.57694002 | F77: =IF($B$3-(E77+E91)>$B$9,$B$3-(E77+E91),0) -> 0 | G77: 0
A78: 10 | B78: 0 | C78: 0 | D78: 12.57694002 | E78: 13.88604002 | F78: =IF($B$3-(E78+E90)>$B$9,$B$3-(E78+E90),0) -> 0 | G78: 0
A79: 11 | B79: 0 | C79: 0 | D79: 13.88604002 | E79: 15.19514002 | F79: =IF($B$3-(E79+E89)>$B$9,$B$3-(E79+E89),0) -> 0 | G79: 0
A80: 12 | B80: 0 | C80: 0 | D80: 15.19514002 | E80: 16.50424002 | F80: =IF($B$3-(E80+E88)>$B$9,$B$3-(E80+E88),0) -> 0 | G80: 0
A81: 13 | B81: 0 | C81: 0 | D81: 16.50424002 | E81: 17.81334002 | F81: =IF($B$3-(E81+E87)>$B$9,$B$3-(E81+E87),0) -> 0 | G81: 0
A82: 14 | B82: 0 | C82: 0 | D82: 17.81334002 | E82: 19.12244002 | F82: =IF($B$3-(E82+E86)>$B$9,$B$3-(E82+E86),0) -> 0 | G82: 0
A85: =A86+1 -> 14 | B85: =IF(F85-$C$16>=$B$9,IF(D85<MIN($K$53,$L$53),$B$6,$B$62),0) -> 0 | C85: =IF(B85/12*$B$14*$B$5<$B$19, 0, B85/12*$B$14*$B$5) -> 0 | D85: =D86+$C$16 -> 17.81334002 | E85: =D85+$C$16 -> 19.12244002 | F85: =IF($B$3-(E85+E82)>=$B$9,$B$3-(E85+E82),0) -> 0 | G85: =IF(F85>0,D85+$C$16,0) -> 0
A86: 13 | B86: 0 | C86: 0 | D86: 16.50424002 | E86: 17.81334002 | F86: =IF($B$3-(E86+E81)>=$B$9,$B$3-(E86+E81),0) -> 0 | G86: 0
A87: 12 | B87: 0 | C87: 0 | D87: 15.19514002 | E87: 16.50424002 | F87: =IF($B$3-(E87+E80)>=$B$9,$B$3-(E87+E80),0) -> 0 | G87: 0
A88: 11 | B88: 0 | C88: 0 | D88: 13.88604002 | E88: 15.19514002 | F88: =IF($B$3-(E88+E79)>=$B$9,$B$3-(E88+E79),0) -> 0 | G88: 0
A89: 10 | B89: 0 | C89: 0 | D89: 12.57694002 | E89: 13.88604002 | F89: =IF($B$3-(E89+E78)>=$B$9,$B$3-(E89+E78),0) -> 0 | G89: 0
A90: 9 | B90: 0 | C90: 0 | D90: 11.26784002 | E90: 12.57694002 | F90: =IF($B$3-(E90+E77)>=$B$9,$B$3-(E90+E77),0) -> 0 | G90: 0
A91: 8 | B91: 0 | C91: 0 | D91: 9.95874002 | E91: 11.26784002 | F91: =IF($B$3-(E91+E76)>=$B$9,$B$3-(E91+E76),0) -> 0 | G91: 0
A92: 7 | B92: 0 | C92: 0 | D92: 8.64964002 | E92: 9.95874002 | F92: =IF($B$3-(E92+E75)>=$B$9,$B$3-(E92+E75),0) -> 0.08251996096 | G92: 9.95874002
A93: 6 | B93: 6 | C93: 8 | D93: 7.34054002 | E93: 8.64964002 | F93: =IF($B$3-(E93+E74)>=$B$9,$B$3-(E93+E74),0) -> 2.700719961 | G93: 8.64964002
A94: 5 | B94: 6 | C94: 8 | D94: 6.03144002 | E94: 7.34054002 | F94: =IF($B$3-(E94+E73)>=$B$9,$B$3-(E94+E73),0) -> 5.318919961 | G94: 7.34054002
A95: 4 | B95: 6 | C95: 8 | D95: 4.72234002 | E95: 6.03144002 | F95: =IF($B$3-(E95+E72)>=$B$9,$B$3-(E95+E72),0) -> 7.937119961 | G95: 6.03144002
A96: 3 | B96: 6 | C96: 8 | D96: 3.41324002 | E96: 4.72234002 | F96: =IF($B$3-(E96+E71)>=$B$9,$B$3-(E96+E71),0) -> 10.55531996 | G96: 4.72234002
A97: 2 | B97: =IF(F97-$C$16>=$B$9,IF(D97<MIN($K$53,$L$53),$B$6,$B$62),0) -> 6 | C97: 8 | D97: =D98+$C$16 -> 2.10414002 | E97: 3.41324002 | F97: =IF($B$3-(E97+E70)>=$B$9,$B$3-(E97+E70),0) -> 13.17351996 | G97: 3.41324002
A98: 1 | B98: =IF(D98<MIN(K53,L53),$B$6,$B$62) -> 6 | C98: =IF(B98/12*$B$14*$B$5<$B$19, 0, B98/12*$B$14*$B$5) -> 8 | D98: =$M$53 -> 0.7950400195 | E98: =D98+$C$16 -> 2.10414002 | F98: =$B$3-(E98+E69) -> 15.79171996 | G98: =IF(F98>0,D98+$C$16,0) -> 2.10414002
A100: Board Feet | B100: =IF(B20="LIVE", 0, IF(MIN(F43:F56),0,SUM(C69:C98)+Q52)) -> 112
A101: Boards Sawn | B101: =IF(B20="LIVE", 0, IF(MIN(F43:F56),0, COUNTIF(B69:B98,">0")+Q51)) -> 15
A102: Actual Cant Width | B102: =IF(B103+B104<C12, 0,IF(B103+B104>=B9, B9, 0)) -> 0
A103: Cant Left X Position | B103: =$C$3-MAX(G69:G82) -> 0.04125998048
A104: Cant Right X Position | B104: =$C$3-MAX(G85:G98) -> 0.04125998048
A105: Split Taper Sawing Method With Min Open Face Cuts
A106: Small Diameter Log method that makes only minimal opening cheek cuts
A107: Faces 1 & 3
D109: Saw | F109: Center | G109: Max Next
A110: Board | B110: Width | C110: Board Feet | D110: Depth | E110: Next | F110: Remaining | G110: Position
A111: 1 | B111: =$J$26 -> 6 | C111: =$L$26 -> 4 | D111: =$M$26 -> 0.4219801014 | E111: =$N$26 -> 1.731080101 | F111: =$B$3-E111 -> 18.2689199 | G111: =IF(F111>0,D111+$C$13,0) -> 1.731080101
A113: 1 | B113: =J26 -> 6 | C113: =$L$26 -> 4 | D113: =$M$26 -> 0.4219801014 | E113: =$N$26 -> 1.731080101 | F113: =$B$3-(E113+E111) -> 16.5378398 | G113: =IF(F113>0,D113+$C$13,0) -> 1.731080101
A115: Faces 2 & 4 | B115: Billet Thickness: | C115: =F113 -> 16.5378398
D117: Saw | F117: Center | G117: Max Next
A118: Board | B118: Width | C118: Board Feet | D118: Depth | E118: Next | F118: Remaining | G118: Position
A119: 1 | B119: =IF($J$44<$C$115,$J$44, $C$115) -> 6 | C119: =B119/12*$B$11*$K$44 -> 4 | D119: =$M$44 -> 0.4219801014 | E119: =$P$44 -> 1.731080101 | F119: =$B$3-E119 -> 18.2689199 | G119: =$B$3-F119 -> 1.731080101
A120: =A119+1 -> 2 | B120: =IF(F120<$C$16, 0, IF($C$115<$J$45, $C$115, $J$45)) -> 8.096599012 | C120: =B120/12*$B$11*$K$45 -> 10.79546535 | D120: =D119+$C$13 -> 1.731080101 | E120: =D120+$C$13 -> 3.040180101 | F120: =IF($B$3-(E120+E148)>$B$9,$B$3-(E120+E148),0) -> 15.2287398 | G120: =IF(F120>0,D120+$C$13,0) -> 3.040180101
A121: 3 | B121: =IF(F121<$C$16, 0, IF($C$115<$J$45, $C$115, $J$45)) -> 8.096599012 | C121: =B121/12*$B$11*$B$5 -> 10.79546535 | D121: 3.040180101 | E121: 4.349280101 | F121: =IF($B$3-(E121+E147)>$B$9,$B$3-(E121+E147),0) -> 12.6105398 | G121: 4.349280101
A122: 4 | B122: 8.096599012 | C122: 10.79546535 | D122: 4.349280101 | E122: 5.658380101 | F122: =IF($B$3-(E122+E146)>$B$9,$B$3-(E122+E146),0) -> 9.992339797 | G122: 5.658380101
A123: 5 | B123: 8.096599012 | C123: 10.79546535 | D123: 5.658380101 | E123: 6.967480101 | F123: =IF($B$3-(E123+E145)>$B$9,$B$3-(E123+E145),0) -> 7.374139797 | G123: 6.967480101
A124: 6 | B124: 8.096599012 | C124: 10.79546535 | D124: 6.967480101 | E124: 8.276580101 | F124: =IF($B$3-(E124+E144)>$B$9,$B$3-(E124+E144),0) -> 4.755939797 | G124: 8.276580101
A125: 7 | B125: 8.096599012 | C125: 10.79546535 | D125: 8.276580101 | E125: 9.585680101 | F125: =IF($B$3-(E125+E143)>$B$9,$B$3-(E125+E143),0) -> 2.137739797 | G125: 9.585680101
A126: 8 | B126: 0 | C126: 0 | D126: 9.585680101 | E126: 10.8947801 | F126: =IF($B$3-(E126+E142)>$B$9,$B$3-(E126+E142),0) -> 0 | G126: 0
A127: 9 | B127: 0 | C127: 0 | D127: 10.8947801 | E127: 12.2038801 | F127: =IF($B$3-(E127+E141)>$B$9,$B$3-(E127+E141),0) -> 0 | G127: 0
A128: 10 | B128: 0 | C128: 0 | D128: 12.2038801 | E128: 13.5129801 | F128: =IF($B$3-(E128+E140)>$B$9,$B$3-(E128+E140),0) -> 0 | G128: 0
A129: 11 | B129: 0 | C129: 0 | D129: 13.5129801 | E129: 14.8220801 | F129: =IF($B$3-(E129+E139)>$B$9,$B$3-(E129+E139),0) -> 0 | G129: 0
A130: 12 | B130: 0 | C130: 0 | D130: 14.8220801 | E130: 16.1311801 | F130: =IF($B$3-(E130+E138)>$B$9,$B$3-(E130+E138),0) -> 0 | G130: 0
A131: 13 | B131: 0 | C131: 0 | D131: 16.1311801 | E131: 17.4402801 | F131: =IF($B$3-(E131+E137)>$B$9,$B$3-(E131+E137),0) -> 0 | G131: 0
A132: 14 | B132: 0 | C132: 0 | D132: 17.4402801 | E132: 18.7493801 | F132: =IF($B$3-(E132+E136)>$B$9,$B$3-(E132+E136),0) -> 0 | G132: 0
A135: =A136+1 -> 14 | B135: =IF(F135<$C$13, 0, IF($C$115<$J$45, $C$115, $J$45)) -> 0 | C135: =B135/12*$B$11*$B$5 -> 0 | D135: =D136+$C$13 -> 17.4402801 | E135: =D135+$C$13 -> 18.7493801 | F135: =IF($B$3-(E135+E132)>=$B$9,$B$3-(E135+E132),0) -> 0 | G135: =IF(F135>0,D135+$C$13,0) -> 0
A136: 13 | B136: 0 | C136: 0 | D136: 16.1311801 | E136: 17.4402801 | F136: =IF($B$3-(E136+E131)>=$B$9,$B$3-(E136+E131),0) -> 0 | G136: 0
A137: 12 | B137: 0 | C137: 0 | D137: 14.8220801 | E137: 16.1311801 | F137: =IF($B$3-(E137+E130)>=$B$9,$B$3-(E137+E130),0) -> 0 | G137: 0
A138: 11 | B138: 0 | C138: 0 | D138: 13.5129801 | E138: 14.8220801 | F138: =IF($B$3-(E138+E129)>=$B$9,$B$3-(E138+E129),0) -> 0 | G138: 0
A139: 10 | B139: 0 | C139: 0 | D139: 12.2038801 | E139: 13.5129801 | F139: =IF($B$3-(E139+E128)>=$B$9,$B$3-(E139+E128),0) -> 0 | G139: 0
A140: 9 | B140: 0 | C140: 0 | D140: 10.8947801 | E140: 12.2038801 | F140: =IF($B$3-(E140+E127)>=$B$9,$B$3-(E140+E127),0) -> 0 | G140: 0
A141: 8 | B141: 0 | C141: 0 | D141: 9.585680101 | E141: 10.8947801 | F141: =IF($B$3-(E141+E126)>=$B$9,$B$3-(E141+E126),0) -> 0 | G141: 0
A142: 7 | B142: 0 | C142: 0 | D142: 8.276580101 | E142: 9.585680101 | F142: =IF($B$3-(E142+E125)>=$B$9,$B$3-(E142+E125),0) -> 0.8286397971 | G142: 9.585680101
A143: 6 | B143: 8.096599012 | C143: 10.79546535 | D143: 6.967480101 | E143: 8.276580101 | F143: =IF($B$3-(E143+E124)>=$B$9,$B$3-(E143+E124),0) -> 3.446839797 | G143: 8.276580101
A144: 5 | B144: 8.096599012 | C144: 10.79546535 | D144: 5.658380101 | E144: 6.967480101 | F144: =IF($B$3-(E144+E123)>=$B$9,$B$3-(E144+E123),0) -> 6.065039797 | G144: 6.967480101
A145: 4 | B145: 8.096599012 | C145: 10.79546535 | D145: 4.349280101 | E145: 5.658380101 | F145: =IF($B$3-(E145+E122)>=$B$9,$B$3-(E145+E122),0) -> 8.683239797 | G145: 5.658380101
A146: 3 | B146: 8.096599012 | C146: 10.79546535 | D146: 3.040180101 | E146: 4.349280101 | F146: =IF($B$3-(E146+E121)>=$B$9,$B$3-(E146+E121),0) -> 11.3014398 | G146: 4.349280101
A147: 2 | B147: 8.096599012 | C147: =B147/12*$B$11*$K$45 -> 10.79546535 | D147: 1.731080101 | E147: 3.040180101 | F147: =IF($B$3-(E147+E120)>=$B$9,$B$3-(E147+E120),0) -> 13.9196398 | G147: 3.040180101
A148: 1 | B148: =IF($J$44<$C$115,$J$44, $C$115) -> 6 | C148: =B148/12*$B$11*$K$44 -> 4 | D148: =$M$44 -> 0.4219801014 | E148: =$P$44 -> 1.731080101 | F148: =$B$3-(E148+E119) -> 16.5378398 | G148: =IF(F148>0,D148+$C$13,0) -> 1.731080101
A151: Board Feet | B151: =IF(MAX(B119:B148)>B8+2*C13,0,SUM(C111:C148)) -> 151.2879586
A152: Boards Sawn | B152: =COUNTIF(B111:B148,">0") -> 15
A153: Cant Height | B153: =MIN(F111:F113) -> 16.5378398
A154: Cant Width | B154: =SMALL(F119:F148,COUNTIF(F119:F148,0)+1) -> 0.8286397971
A156: Split Taper Sawing Method | E156: Faces 1 and 3
D157: Saw | F157: Center | G157: Max Next
A158: Board | B158: Width | C158: Board Feet | D158: Depth | E158: Next | F158: Remaining | G158: Position
A159: 1 | B159: =2*SQRT(POWER($C$3,2)-POWER($C$3-D159,2)) -> 6 | C159: =B159/12*$B$11*$B$5 -> 8 | D159: =$C$3-SQRT(POWER($C$3,2)-POWER($C$6,2)) -> 0.4606079858 | E159: =D159+$C$13 -> 1.769707986 | F159: =$B$3-E159 -> 18.23029201 | G159: =IF(F159>0,D159+$C$13,0) -> 1.769707986
A160: =A159+1 -> 2 | B160: =IF((F190-$C$13)>$B$8,(2*SQRT(POWER($C$3,2)-POWER($C$3-D160,2))),0) -> 11.35998123 | C160: 15.14664163 | D160: =D159+$C$13 -> 1.769707986 | E160: 3.078807986 | F160: =IF($B$3-(E160+E190)>$B$8,$B$3-(E160+E190),0) -> 15.15148403 | G160: 3.078807986
A161: 3 | B161: =IF((F189-$C$13)>$B$8,(2*SQRT(POWER($C$3,2)-POWER($C$3-D161,2))),0) -> 14.43566432 | C161: 19.24755243 | D161: 3.078807986 | E161: 4.387907986 | F161: =IF($B$3-(E161+E189)>$B$8,$B$3-(E161+E189),0) -> 12.53328403 | G161: 4.387907986
A162: 4 | B162: =IF((F188-$C$13)>$B$8,(2*SQRT(POWER($C$3,2)-POWER($C$3-D162,2))),0) -> 16.55347978 | C162: 22.07130638 | D162: 4.387907986 | E162: 5.697007986 | F162: =IF($B$3-(E162+E188)>$B$8,$B$3-(E162+E188),0) -> 9.915084028 | G162: 5.697007986
A163: 5 | B163: =IF((F187-$C$13)>$B$8,(2*SQRT(POWER($C$3,2)-POWER($C$3-D163,2))),0) -> 18.05372645 | C163: 24.07163527 | D163: 5.697007986 | E163: 7.006107986 | F163: =IF($B$3-(E163+E187)>$B$8,$B$3-(E163+E187),0) -> 7.296884028 | G163: 7.006107986
A164: 6 | B164: =IF((F186-$C$13)>$B$8,(2*SQRT(POWER($C$3,2)-POWER($C$3-D164,2))),0) -> 0 | C164: 0 | D164: 7.006107986 | E164: 8.315207986 | F164: =IF($B$3-(E164+E186)>$B$8,$B$3-(E164+E186),0) -> 0 | G164: 0
A165: 7 | B165: =IF((F185-$C$13)>$B$8,(2*SQRT(POWER($C$3,2)-POWER($C$3-D165,2))),0) -> 0 | C165: 0 | D165: 8.315207986 | E165: 9.624307986 | F165: =IF($B$3-(E165+E185)>$B$8,$B$3-(E165+E185),0) -> 0 | G165: 0
A166: 8 | B166: =IF((F184-$C$13)>$B$8,(2*SQRT(POWER($C$3,2)-POWER($C$3-D166,2))),0) -> 0 | C166: 0 | D166: 9.624307986 | E166: 10.93340799 | F166: =IF($B$3-(E166+E184)>$B$8,$B$3-(E166+E184),0) -> 0 | G166: 0
A167: 9 | B167: =IF((F183-$C$13)>$B$8,(2*SQRT(POWER($C$3,2)-POWER($C$3-D167,2))),0) -> 0 | C167: 0 | D167: 10.93340799 | E167: 12.24250799 | F167: =IF($B$3-(E167+E183)>$B$8,$B$3-(E167+E183),0) -> 0 | G167: 0
A168: 10 | B168: =IF((F182-$C$13)>$B$8,(2*SQRT(POWER($C$3,2)-POWER($C$3-D168,2))),0) -> 0 | C168: 0 | D168: 12.24250799 | E168: 13.55160799 | F168: =IF($B$3-(E168+E182)>$B$8,$B$3-(E168+E182),0) -> 0 | G168: 0
A169: 11 | B169: =IF((F181-$C$13)>$B$8,(2*SQRT(POWER($C$3,2)-POWER($C$3-D169,2))),0) -> 0 | C169: 0 | D169: 13.55160799 | E169: 14.86070799 | F169: =IF($B$3-(E169+E181)>$B$8,$B$3-(E169+E181),0) -> 0 | G169: 0
A170: 12 | B170: =IF((F180-$C$13)>$B$8,(2*SQRT(POWER($C$3,2)-POWER($C$3-D170,2))),0) -> 0 | C170: 0 | D170: 14.86070799 | E170: 16.16980799 | F170: =IF($B$3-(E170+E180)>$B$8,$B$3-(E170+E180),0) -> 0 | G170: 0
A171: 13 | B171: =IF((F179-$C$13)>$B$8,(2*SQRT(POWER($C$3,2)-POWER($C$3-D171,2))),0) -> 0 | C171: 0 | D171: 16.16980799 | E171: 17.47890799 | F171: =IF($B$3-(E171+E179)>$B$8,$B$3-(E171+E179),0) -> 0 | G171: 0
A172: 14 | B172: =IF((F178-$C$13)>$B$8,(2*SQRT(POWER($C$3,2)-POWER($C$3-D172,2))),0) -> 0 | C172: 0 | D172: 17.47890799 | E172: 18.78800799 | F172: =IF($B$3-(E172+E178)>$B$8,$B$3-(E172+E178),0) -> 0 | G172: 0
A177: =A178+1 -> 14 | B177: =IF((F172-$C$13)>=$B$8,2*SQRT(POWER($C$3,2)-POWER($C$3-D177,2)),0) -> 0 | C177: =B177/12*$B$11*$B$5 -> 0 | D177: =D178+$C$13 -> 17.47890799 | E177: =D177+$C$13 -> 18.78800799 | F177: =IF($B$3-(E177+E172)>=$B$8,$B$3-(E177+E172),0) -> 0 | G177: =IF(F177>0,D177+$C$13,0) -> 0
A178: 13 | B178: =IF((F171-$C$13)>=$B$8,2*SQRT(POWER($C$3,2)-POWER($C$3-D178,2)),0) -> 0 | C178: 0 | D178: 16.16980799 | E178: 17.47890799 | F178: =IF($B$3-(E178+E171)>=$B$8,$B$3-(E178+E171),0) -> 0 | G178: 0
A179: 12 | B179: =IF((F170-$C$13)>=$B$8,2*SQRT(POWER($C$3,2)-POWER($C$3-D179,2)),0) -> 0 | C179: 0 | D179: 14.86070799 | E179: 16.16980799 | F179: =IF($B$3-(E179+E170)>=$B$8,$B$3-(E179+E170),0) -> 0 | G179: 0
A180: 11 | B180: =IF((F169-$C$13)>=$B$8,2*SQRT(POWER($C$3,2)-POWER($C$3-D180,2)),0) -> 0 | C180: 0 | D180: 13.55160799 | E180: 14.86070799 | F180: =IF($B$3-(E180+E169)>=$B$8,$B$3-(E180+E169),0) -> 0 | G180: 0
A181: 10 | B181: =IF((F168-$C$13)>=$B$8,2*SQRT(POWER($C$3,2)-POWER($C$3-D181,2)),0) -> 0 | C181: 0 | D181: 12.24250799 | E181: 13.55160799 | F181: =IF($B$3-(E181+E168)>=$B$8,$B$3-(E181+E168),0) -> 0 | G181: 0
A182: 9 | B182: =IF((F167-$C$13)>=$B$8,2*SQRT(POWER($C$3,2)-POWER($C$3-D182,2)),0) -> 0 | C182: 0 | D182: 10.93340799 | E182: 12.24250799 | F182: =IF($B$3-(E182+E167)>=$B$8,$B$3-(E182+E167),0) -> 0 | G182: 0
A183: 8 | B183: =IF((F166-$C$13)>=$B$8,2*SQRT(POWER($C$3,2)-POWER($C$3-D183,2)),0) -> 0 | C183: 0 | D183: 9.624307986 | E183: 10.93340799 | F183: =IF($B$3-(E183+E166)>=$B$8,$B$3-(E183+E166),0) -> 0 | G183: 0
A184: 7 | B184: =IF((F165-$C$13)>=$B$8,2*SQRT(POWER($C$3,2)-POWER($C$3-D184,2)),0) -> 0 | C184: 0 | D184: 8.315207986 | E184: 9.624307986 | F184: =IF($B$3-(E184+E165)>=$B$8,$B$3-(E184+E165),0) -> 0 | G184: 0
A185: 6 | B185: =IF((F164-$C$13)>=$B$8,2*SQRT(POWER($C$3,2)-POWER($C$3-D185,2)),0) -> 0 | C185: 0 | D185: 7.006107986 | E185: 8.315207986 | F185: =IF($B$3-(E185+E164)>=$B$8,$B$3-(E185+E164),0) -> 0 | G185: 0
A186: 5 | B186: =IF((F163-$C$13)>=$B$8,2*SQRT(POWER($C$3,2)-POWER($C$3-D186,2)),0) -> 0 | C186: 0 | D186: 5.697007986 | E186: 7.006107986 | F186: =IF($B$3-(E186+E163)>=$B$8,$B$3-(E186+E163),0) -> 0 | G186: 0
A187: 4 | B187: =IF((F162-$C$13)>=$B$8,2*SQRT(POWER($C$3,2)-POWER($C$3-D187,2)),0) -> 16.55347978 | C187: 22.07130638 | D187: 4.387907986 | E187: 5.697007986 | F187: =IF($B$3-(E187+E162)>=$B$8,$B$3-(E187+E162),0) -> 8.605984028 | G187: 5.697007986
A188: 3 | B188: =IF((F161-$C$13)>=$B$8,2*SQRT(POWER($C$3,2)-POWER($C$3-D188,2)),0) -> 14.43566432 | C188: 19.24755243 | D188: 3.078807986 | E188: 4.387907986 | F188: =IF($B$3-(E188+E161)>=$B$8,$B$3-(E188+E161),0) -> 11.22418403 | G188: 4.387907986
A189: 2 | B189: =IF((F160-$C$13)>=$B$8,2*SQRT(POWER($C$3,2)-POWER($C$3-D189,2)),0) -> 11.35998123 | C189: 15.14664163 | D189: 1.769707986 | E189: 3.078807986 | F189: =IF($B$3-(E189+E160)>=$B$8,$B$3-(E189+E160),0) -> 13.84238403 | G189: 3.078807986
A190: 1 | B190: =IF(F190>0,2*SQRT(POWER($C$3,2)-POWER($C$3-D190,2)),0) -> 6 | C190: 8 | D190: =IF($B$18="yes",$Q$33,$C$3-SQRT(POWER($C$3,2)-POWER($C$6,2))) -> 0.4606079858 | E190: 1.769707986 | F190: =$B$3-(E190+E159) -> 16.46058403 | G190: 1.769707986
A192: Board Feet | B192: =SUM(C159:C190) -> 153.0026362
A193: Boards Sawn | B193: =COUNTIF(B159:B190,">0") -> 9
A194: Cant Top Y Position | B194: =$C$3-MAX(G159:G172) -> 2.993892014
A195: Cant Bot Y Position | B195: =$C$3-MAX(G177:G190) -> 4.302992014
A196: Actual Cant Height | B196: =IF(B194+B195>=B8, B8, IF(B194+B195 < B8, 0, B194+B195)) -> 6
C200: Faces 2 and 4
D201: Saw | F201: Center | G201: Max Next
A202: Board | B202: Width | C202: Board Feet | D202: Depth | E202: Next | F202: Remaining | G202: Position
A203: 1 | B203: =IF(D203<MIN($K$53,$L$53),$B$6,$B$196) -> 6 | C203: =IF(B203/12*$B$14*$B$5<$B$19, 0, B203/12*$B$14*$B$5) -> 8 | D203: =IF($B$18="yes", $Q$50, $M$53) -> 0.7950400195 | E203: =D203+$C$16 -> 2.10414002 | F203: =$B$3-E203 -> 17.89585998 | G203: =IF(F203>0,D203+$C$16,0) -> 2.10414002
A204: =A203+1 -> 2 | B204: =IF(F204-$C$16>=$B$9,IF(D204<MIN($K$53,$L$53),$B$6,$B$196),0) -> 6 | C204: =IF(B204/12*$B$14*$B$5<$B$19, 0, B204/12*$B$14*$B$5) -> 8 | D204: =D203+$C$16 -> 2.10414002 | E204: =D204+$C$16 -> 3.41324002 | F204: =IF($B$3-(E204+E232)>$B$9,$B$3-(E204+E232),0) -> 14.48261996 | G204: =IF(F204>0,D204+$C$16,0) -> 3.41324002
A205: 3 | B205: =IF(F205-$C$16>=$B$9,IF(D205<MIN($K$53,$L$53),$B$6,$B$196),0) -> 6 | C205: 8 | D205: =D204+$C$16 -> 3.41324002 | E205: 4.72234002 | F205: =IF($B$3-(E205+E231)>$B$9,$B$3-(E205+E231),0) -> 11.86441996 | G205: 4.72234002
A206: 4 | B206: 6 | C206: 8 | D206: 4.72234002 | E206: 6.03144002 | F206: =IF($B$3-(E206+E230)>$B$9,$B$3-(E206+E230),0) -> 9.246219961 | G206: 6.03144002
A207: 5 | B207: 6 | C207: 8 | D207: 6.03144002 | E207: 7.34054002 | F207: =IF($B$3-(E207+E229)>$B$9,$B$3-(E207+E229),0) -> 6.628019961 | G207: 7.34054002
A208: 6 | B208: 6 | C208: 8 | D208: 7.34054002 | E208: 8.64964002 | F208: =IF($B$3-(E208+E228)>$B$9,$B$3-(E208+E228),0) -> 4.009819961 | G208: 8.64964002
A209: 7 | B209: 6 | C209: 8 | D209: 8.64964002 | E209: 9.95874002 | F209: =IF($B$3-(E209+E227)>$B$9,$B$3-(E209+E227),0) -> 1.391619961 | G209: 9.95874002
A210: 8 | B210: 0 | C210: 0 | D210: 9.95874002 | E210: 11.26784002 | F210: =IF($B$3-(E210+E226)>$B$9,$B$3-(E210+E226),0) -> 0 | G210: 0
A211: 9 | B211: 0 | C211: 0 | D211: 11.26784002 | E211: 12.57694002 | F211: =IF($B$3-(E211+E225)>$B$9,$B$3-(E211+E225),0) -> 0 | G211: 0
A212: 10 | B212: 0 | C212: 0 | D212: 12.57694002 | E212: 13.88604002 | F212: =IF($B$3-(E212+E224)>$B$9,$B$3-(E212+E224),0) -> 0 | G212: 0
A213: 11 | B213: 0 | C213: 0 | D213: 13.88604002 | E213: 15.19514002 | F213: =IF($B$3-(E213+E223)>$B$9,$B$3-(E213+E223),0) -> 0 | G213: 0
A214: 12 | B214: 0 | C214: 0 | D214: 15.19514002 | E214: 16.50424002 | F214: =IF($B$3-(E214+E222)>$B$9,$B$3-(E214+E222),0) -> 0 | G214: 0
A215: 13 | B215: 0 | C215: 0 | D215: 16.50424002 | E215: 17.81334002 | F215: =IF($B$3-(E215+E221)>$B$9,$B$3-(E215+E221),0) -> 0 | G215: 0
A216: 14 | B216: 0 | C216: 0 | D216: 17.81334002 | E216: 19.12244002 | F216: =IF($B$3-(E216+E220)>$B$9,$B$3-(E216+E220),0) -> 0 | G216: 0
A219: =A220+1 -> 14 | B219: =IF(F219-$C$16>=$B$9,IF(D219<MIN($K$53,$L$53),$B$6,$B$196),0) -> 0 | C219: =IF(B219/12*$B$14*$B$5<$B$19, 0, B219/12*$B$14*$B$5) -> 0 | D219: =D220+$C$16 -> 17.81334002 | E219: =D219+$C$16 -> 19.12244002 | F219: =IF($B$3-(E219+E216)>=$B$9,$B$3-(E219+E216),0) -> 0 | G219: =IF(F219>0,D219+$C$16,0) -> 0
A220: 13 | B220: 0 | C220: 0 | D220: 16.50424002 | E220: 17.81334002 | F220: =IF($B$3-(E220+E215)>=$B$9,$B$3-(E220+E215),0) -> 0 | G220: 0
A221: 12 | B221: 0 | C221: 0 | D221: 15.19514002 | E221: 16.50424002 | F221: =IF($B$3-(E221+E214)>=$B$9,$B$3-(E221+E214),0) -> 0 | G221: 0
A222: 11 | B222: 0 | C222: 0 | D222: 13.88604002 | E222: 15.19514002 | F222: =IF($B$3-(E222+E213)>=$B$9,$B$3-(E222+E213),0) -> 0 | G222: 0
A223: 10 | B223: 0 | C223: 0 | D223: 12.57694002 | E223: 13.88604002 | F223: =IF($B$3-(E223+E212)>=$B$9,$B$3-(E223+E212),0) -> 0 | G223: 0
A224: 9 | B224: 0 | C224: 0 | D224: 11.26784002 | E224: 12.57694002 | F224: =IF($B$3-(E224+E211)>=$B$9,$B$3-(E224+E211),0) -> 0 | G224: 0
A225: 8 | B225: 0 | C225: 0 | D225: 9.95874002 | E225: 11.26784002 | F225: =IF($B$3-(E225+E210)>=$B$9,$B$3-(E225+E210),0) -> 0 | G225: 0
A226: 7 | B226: 0 | C226: 0 | D226: 8.64964002 | E226: 9.95874002 | F226: =IF($B$3-(E226+E209)>=$B$9,$B$3-(E226+E209),0) -> 0.08251996096 | G226: 9.95874002
A227: 6 | B227: 6 | C227: 8 | D227: 7.34054002 | E227: 8.64964002 | F227: =IF($B$3-(E227+E208)>=$B$9,$B$3-(E227+E208),0) -> 2.700719961 | G227: 8.64964002
A228: 5 | B228: 6 | C228: 8 | D228: 6.03144002 | E228: 7.34054002 | F228: =IF($B$3-(E228+E207)>=$B$9,$B$3-(E228+E207),0) -> 5.318919961 | G228: 7.34054002
... 306 more rows

Sheet Grade Yield Lookup (hidden)
L2: Interactive Grade Recovery Lookup | U2: Batch Sawing Grade Recovery Lookup
A4: Note: Orange data in the recovery lookup tableindicates that the values | L4: Diameter | M4: =FLOOR('Interactive Sawing'!D9,1) -> 20 | Q4: Method | R4: =Costs!F5 -> Revised | T4: Diameter | U4: =FLOOR(BatchProcess!B5,1) -> 14
B5: are average values over the range within the same species and grade. | L5: Log Grade | M5: ='USFS-TCF-Converter'!B6 -> Factory-2 | T5: Log Grade | U5: =BatchProcess!B4 -> Factory-2
B6: This is meant to compensate for missing data for some diameters | L6: Species | M6: ='Interactive Sawing'!D7 -> ROAK | T6: Species | U6: =BatchProcess!B3 -> ROAK
B7: and low sample count for others. | L7: Total BDFT | M7: ='Interactive Sawing'!H9 -> 300.855723 | T7: Total BDFT | U7: =BatchProcess!G6 -> 137.3386308
L9: Total Board Feet by NHLA Grade
L10: =MAX(L13:L769) -> 40.64624759 | M10: =MAX(M13:M769) -> 30.61266155 | N10: 5.025001647 | O10: 114.721413 | P10: 62.87682301 | Q10: 29.05481118 | R10: 17.91876508 | T10: =MAX(T13:T769) -> 10.89200947 | U10: 10.73134944 | V10: 4.096821228 | W10: 42.69636435 | X10: 38.00186486 | Y10: 22.91834457 | Z10: 8.001876925
A12: Diameter | B12: Grade | C12: Model | D12: Species | E12: FAS | F12: F1F | G12: SEL | H12: 1C | I12: 2C | J12: 3A | K12: 3B | L12: FAS | M12: F1F | N12: SEL | O12: 1C | P12: 2C | Q12: 3A | R12: 3B | T12: FAS | U12: F1F | V12: SEL | W12: 1C | X12: 2C | Y12: 3A | Z12: 3B
A13: 13 | B13: Factory-1 | C13: Original | D13: ROAK | E13: 0.185 | F13: 0.165 | G13: 0.051 | H13: 0.214 | I13: 0.226 | J13: 0.15 | K13: 0.009 | L13: =IF(AND($B13=$M$5,$D13=$M$6,$A13=$M$4,C13=$R$4),E13*$M$7,0) -> 0 | M13: =IF(AND($B13=$M$5,$D13=$M$6,$A13=$M$4,C13=$R$4),F13*$M$7,0) -> 0 | N13: =IF(AND($B13=$M$5,$D13=$M$6,$A13=$M$4,C13=$R$4),G13*$M$7,0) -> 0 | O13: =IF(AND($B13=$M$5,$D13=$M$6,$A13=$M$4,C13=$R$4),H13*$M$7,0) -> 0 | P13: =IF(AND($B13=$M$5,$D13=$M$6,$A13=$M$4,C13=$R$4),I13*$M$7,0) -> 0 | Q13: =IF(AND($B13=$M$5,$D13=$M$6,$A13=$M$4,C13=$R$4),J13*$M$7,0) -> 0 | R13: =IF(AND($B13=$M$5,$D13=$M$6,$A13=$M$4,C13=$R$4),K13*$M$7,0) -> 0 | T13: =IF(AND($B13=$U$5,$D13=$U$6,$A13=$U$4,C13=$R$4),E13*$U$7,0) -> 0 | U13: =IF(AND($B13=$U$5,$D13=$U$6,$A13=$U$4,C13=$R$4),F13*$U$7,0) -> 0 | V13: =IF(AND($B13=$U$5,$D13=$U$6,$A13=$U$4,C13=$R$4),G13*$U$7,0) -> 0 | W13: =IF(AND($B13=$U$5,$D13=$U$6,$A13=$U$4,C13=$R$4),H13*$U$7,0) -> 0 | X13: =IF(AND($B13=$U$5,$D13=$U$6,$A13=$U$4,C13=$R$4),I13*$U$7,0) -> 0 | Y13: =IF(AND($B13=$U$5,$D13=$U$6,$A13=$U$4,C13=$R$4),J13*$U$7,0) -> 0 | Z13: =IF(AND($B13=$U$5,$D13=$U$6,$A13=$U$4,C13=$R$4),K13*$U$7,0) -> 0
A14: =A13+1 -> 14 | B14: Factory-1 | C14: Original | D14: ROAK | E14: 0.247 | F14: 0.15 | G14: 0.033 | H14: 0.277 | I14: 0.178 | J14: 0.094 | K14: 0.021 | L14: =IF(AND($B14=$M$5,$D14=$M$6,$A14=$M$4,C14=$R$4),E14*$M$7,0) -> 0 | M14: =IF(AND($B14=$M$5,$D14=$M$6,$A14=$M$4,C14=$R$4),F14*$M$7,0) -> 0 | N14: =IF(AND($B14=$M$5,$D14=$M$6,$A14=$M$4,C14=$R$4),G14*$M$7,0) -> 0 | O14: =IF(AND($B14=$M$5,$D14=$M$6,$A14=$M$4,C14=$R$4),H14*$M$7,0) -> 0 | P14: =IF(AND($B14=$M$5,$D14=$M$6,$A14=$M$4,C14=$R$4),I14*$M$7,0) -> 0 | Q14: =IF(AND($B14=$M$5,$D14=$M$6,$A14=$M$4,C14=$R$4),J14*$M$7,0) -> 0 | R14: =IF(AND($B14=$M$5,$D14=$M$6,$A14=$M$4,C14=$R$4),K14*$M$7,0) -> 0 | T14: =IF(AND($B14=$U$5,$D14=$U$6,$A14=$U$4,C14=$R$4),E14*$U$7,0) -> 0 | U14: =IF(AND($B14=$U$5,$D14=$U$6,$A14=$U$4,C14=$R$4),F14*$U$7,0) -> 0 | V14: =IF(AND($B14=$U$5,$D14=$U$6,$A14=$U$4,C14=$R$4),G14*$U$7,0) -> 0 | W14: =IF(AND($B14=$U$5,$D14=$U$6,$A14=$U$4,C14=$R$4),H14*$U$7,0) -> 0 | X14: =IF(AND($B14=$U$5,$D14=$U$6,$A14=$U$4,C14=$R$4),I14*$U$7,0) -> 0 | Y14: =IF(AND($B14=$U$5,$D14=$U$6,$A14=$U$4,C14=$R$4),J14*$U$7,0) -> 0 | Z14: =IF(AND($B14=$U$5,$D14=$U$6,$A14=$U$4,C14=$R$4),K14*$U$7,0) -> 0
A15: 15 | B15: Factory-1 | C15: Original | D15: ROAK | E15: 0.252 | F15: 0.15 | G15: 0.035 | H15: 0.245 | I15: 0.219 | J15: 0.08 | K15: 0.019 | L15: 0 | M15: 0 | N15: 0 | O15: 0 | P15: 0 | Q15: 0 | R15: 0 | T15: 0 | U15: 0 | V15: 0 | W15: 0 | X15: 0 | Y15: 0 | Z15: 0
A16: 16 | B16: Factory-1 | C16: Original | D16: ROAK | E16: 0.247 | F16: 0.126 | G16: 0.033 | H16: 0.274 | I16: 0.222 | J16: 0.088 | K16: 0.01 | L16: 0 | M16: 0 | N16: 0 | O16: 0 | P16: 0 | Q16: 0 | R16: 0 | T16: 0 | U16: 0 | V16: 0 | W16: 0 | X16: 0 | Y16: 0 | Z16: 0
A17: 17 | B17: Factory-1 | C17: Original | D17: ROAK | E17: 0.321 | F17: 0.148 | G17: 0.037 | H17: 0.261 | I17: 0.167 | J17: 0.055 | K17: 0.011 | L17: 0 | M17: 0 | N17: 0 | O17: 0 | P17: 0 | Q17: 0 | R17: 0 | T17: 0 | U17: 0 | V17: 0 | W17: 0 | X17: 0 | Y17: 0 | Z17: 0
A18: 18 | B18: Factory-1 | C18: Original | D18: ROAK | E18: 0.287 | F18: 0.161 | G18: 0.025 | H18: 0.273 | I18: 0.154 | J18: 0.083 | K18: 0.017 | L18: 0 | M18: 0 | N18: 0 | O18: 0 | P18: 0 | Q18: 0 | R18: 0 | T18: 0 | U18: 0 | V18: 0 | W18: 0 | X18: 0 | Y18: 0 | Z18: 0
A19: 19 | B19: Factory-1 | C19: Original | D19: ROAK | E19: 0.379 | F19: 0.133 | G19: 0.028 | H19: 0.236 | I19: 0.154 | J19: 0.053 | K19: 0.017 | L19: 0 | M19: 0 | N19: 0 | O19: 0 | P19: 0 | Q19: 0 | R19: 0 | T19: 0 | U19: 0 | V19: 0 | W19: 0 | X19: 0 | Y19: 0 | Z19: 0
A20: 20 | B20: Factory-1 | C20: Original | D20: ROAK | E20: 0.338 | F20: 0.15 | G20: 0.017 | H20: 0.286 | I20: 0.135 | J20: 0.059 | K20: 0.015 | L20: 0 | M20: 0 | N20: 0 | O20: 0 | P20: 0 | Q20: 0 | R20: 0 | T20: 0 | U20: 0 | V20: 0 | W20: 0 | X20: 0 | Y20: 0 | Z20: 0
A21: 21 | B21: Factory-1 | C21: Original | D21: ROAK | E21: 0.309 | F21: 0.136 | G21: 0.014 | H21: 0.33 | I21: 0.138 | J21: 0.048 | K21: 0.025 | L21: 0 | M21: 0 | N21: 0 | O21: 0 | P21: 0 | Q21: 0 | R21: 0 | T21: 0 | U21: 0 | V21: 0 | W21: 0 | X21: 0 | Y21: 0 | Z21: 0
A22: 22 | B22: Factory-1 | C22: Original | D22: ROAK | E22: 0.33 | F22: 0.164 | G22: 0.017 | H22: 0.252 | I22: 0.154 | J22: 0.052 | K22: 0.031 | L22: 0 | M22: 0 | N22: 0 | O22: 0 | P22: 0 | Q22: 0 | R22: 0 | T22: 0 | U22: 0 | V22: 0 | W22: 0 | X22: 0 | Y22: 0 | Z22: 0
A23: 23 | B23: Factory-1 | C23: Original | D23: ROAK | E23: 0.346 | F23: 0.154 | G23: 0.032 | H23: 0.264 | I23: 0.129 | J23: 0.051 | K23: 0.024 | L23: 0 | M23: 0 | N23: 0 | O23: 0 | P23: 0 | Q23: 0 | R23: 0 | T23: 0 | U23: 0 | V23: 0 | W23: 0 | X23: 0 | Y23: 0 | Z23: 0
A24: 24 | B24: Factory-1 | C24: Original | D24: ROAK | E24: 0.309 | F24: 0.136 | G24: 0.035 | H24: 0.317 | I24: 0.102 | J24: 0.073 | K24: 0.028 | L24: 0 | M24: 0 | N24: 0 | O24: 0 | P24: 0 | Q24: 0 | R24: 0 | T24: 0 | U24: 0 | V24: 0 | W24: 0 | X24: 0 | Y24: 0 | Z24: 0
A25: 25 | B25: Factory-1 | C25: Original | D25: ROAK | E25: 0.407 | F25: 0.123 | G25: 0.04 | H25: 0.264 | I25: 0.088 | J25: 0.053 | K25: 0.025 | L25: 0 | M25: 0 | N25: 0 | O25: 0 | P25: 0 | Q25: 0 | R25: 0 | T25: 0 | U25: 0 | V25: 0 | W25: 0 | X25: 0 | Y25: 0 | Z25: 0
A26: 26 | B26: Factory-1 | C26: Original | D26: ROAK | E26: 0.258 | F26: 0.105 | G26: 0.042 | H26: 0.38 | I26: 0.142 | J26: 0.049 | K26: 0.024 | L26: 0 | M26: 0 | N26: 0 | O26: 0 | P26: 0 | Q26: 0 | R26: 0 | T26: 0 | U26: 0 | V26: 0 | W26: 0 | X26: 0 | Y26: 0 | Z26: 0
A27: 27 | B27: Factory-1 | C27: Original | D27: ROAK | E27: 0.241 | F27: 0.096 | G27: 0.079 | H27: 0.405 | I27: 0.118 | J27: 0.061 | K27: 0 | L27: 0 | M27: 0 | N27: 0 | O27: 0 | P27: 0 | Q27: 0 | R27: 0 | T27: 0 | U27: 0 | V27: 0 | W27: 0 | X27: 0 | Y27: 0 | Z27: 0
A28: 28 | B28: Factory-1 | C28: Original | D28: ROAK | E28: 0.401 | F28: 0.124 | G28: 0.014 | H28: 0.308 | I28: 0.112 | J28: 0.035 | K28: 0.006 | L28: 0 | M28: 0 | N28: 0 | O28: 0 | P28: 0 | Q28: 0 | R28: 0 | T28: 0 | U28: 0 | V28: 0 | W28: 0 | X28: 0 | Y28: 0 | Z28: 0
A29: 29 | B29: Factory-1 | C29: Original | D29: ROAK | E29: 0.269 | F29: 0.189 | G29: 0 | H29: 0.384 | I29: 0.084 | J29: 0.052 | K29: 0.022 | L29: 0 | M29: 0 | N29: 0 | O29: 0 | P29: 0 | Q29: 0 | R29: 0 | T29: 0 | U29: 0 | V29: 0 | W29: 0 | X29: 0 | Y29: 0 | Z29: 0
A30: 30 | B30: Factory-1 | C30: Original | D30: ROAK | E30: 0.229 | F30: 0.093 | G30: 0.075 | H30: 0.503 | I30: 0.052 | J30: 0.048 | K30: 0 | L30: 0 | M30: 0 | N30: 0 | O30: 0 | P30: 0 | Q30: 0 | R30: 0 | T30: 0 | U30: 0 | V30: 0 | W30: 0 | X30: 0 | Y30: 0 | Z30: 0
A31: 31 | B31: Factory-1 | C31: Original | D31: ROAK | E31: 0.561 | F31: 0.112 | G31: 0.05 | H31: 0.201 | I31: 0.054 | J31: 0.022 | K31: 0 | L31: 0 | M31: 0 | N31: 0 | O31: 0 | P31: 0 | Q31: 0 | R31: 0 | T31: 0 | U31: 0 | V31: 0 | W31: 0 | X31: 0 | Y31: 0 | Z31: 0
A32: 10 | B32: Factory-2 | C32: Original | D32: ROAK | E32: 0.024 | F32: 0.069 | G32: 0.051 | H32: 0.328 | I32: 0.265 | J32: 0.236 | K32: 0.027 | L32: 0 | M32: 0 | N32: 0 | O32: 0 | P32: 0 | Q32: 0 | R32: 0 | T32: 0 | U32: 0 | V32: 0 | W32: 0 | X32: 0 | Y32: 0 | Z32: 0
A33: =A32+1 -> 11 | B33: Factory-2 | C33: Original | D33: ROAK | E33: 0.051 | F33: 0.058 | G33: 0.048 | H33: 0.203 | I33: 0.334 | J33: 0.225 | K33: 0.081 | L33: 0 | M33: 0 | N33: 0 | O33: 0 | P33: 0 | Q33: 0 | R33: 0 | T33: 0 | U33: 0 | V33: 0 | W33: 0 | X33: 0 | Y33: 0 | Z33: 0
A34: 12 | B34: Factory-2 | C34: Original | D34: ROAK | E34: 0.064 | F34: 0.069 | G34: 0.028 | H34: 0.25 | I34: 0.341 | J34: 0.189 | K34: 0.059 | L34: 0 | M34: 0 | N34: 0 | O34: 0 | P34: 0 | Q34: 0 | R34: 0 | T34: 0 | U34: 0 | V34: 0 | W34: 0 | X34: 0 | Y34: 0 | Z34: 0
A35: 13 | B35: Factory-2 | C35: Original | D35: ROAK | E35: 0.047 | F35: 0.052 | G35: 0.029 | H35: 0.316 | I35: 0.313 | J35: 0.174 | K35: 0.069 | L35: 0 | M35: 0 | N35: 0 | O35: 0 | P35: 0 | Q35: 0 | R35: 0 | T35: 0 | U35: 0 | V35: 0 | W35: 0 | X35: 0 | Y35: 0 | Z35: 0
A36: 14 | B36: Factory-2 | C36: Original | D36: ROAK | E36: 0.092 | F36: 0.084 | G36: 0.032 | H36: 0.304 | I36: 0.285 | J36: 0.172 | K36: 0.031 | L36: 0 | M36: 0 | N36: 0 | O36: 0 | P36: 0 | Q36: 0 | R36: 0 | T36: 0 | U36: 0 | V36: 0 | W36: 0 | X36: 0 | Y36: 0 | Z36: 0
A37: 15 | B37: Factory-2 | C37: Original | D37: ROAK | E37: 0.117 | F37: 0.075 | G37: 0.023 | H37: 0.296 | I37: 0.295 | J37: 0.149 | K37: 0.045 | L37: 0 | M37: 0 | N37: 0 | O37: 0 | P37: 0 | Q37: 0 | R37: 0 | T37: 0 | U37: 0 | V37: 0 | W37: 0 | X37: 0 | Y37: 0 | Z37: 0
A38: 16 | B38: Factory-2 | C38: Original | D38: ROAK | E38: 0.098 | F38: 0.112 | G38: 0.029 | H38: 0.341 | I38: 0.267 | J38: 0.109 | K38: 0.044 | L38: 0 | M38: 0 | N38: 0 | O38: 0 | P38: 0 | Q38: 0 | R38: 0 | T38: 0 | U38: 0 | V38: 0 | W38: 0 | X38: 0 | Y38: 0 | Z38: 0
A39: 17 | B39: Factory-2 | C39: Original | D39: ROAK | E39: 0.123 | F39: 0.08 | G39: 0.016 | H39: 0.369 | I39: 0.225 | J39: 0.124 | K39: 0.063 | L39: 0 | M39: 0 | N39: 0 | O39: 0 | P39: 0 | Q39: 0 | R39: 0 | T39: 0 | U39: 0 | V39: 0 | W39: 0 | X39: 0 | Y39: 0 | Z39: 0
A40: 18 | B40: Factory-2 | C40: Original | D40: ROAK | E40: =(E39+E41)/2 -> 0.121 | F40: =(F39+F41)/2 -> 0.0745 | G40: 0.0205 | H40: 0.382 | I40: 0.2305 | J40: 0.113 | K40: 0.0585 | L40: 0 | M40: 0 | N40: 0 | O40: 0 | P40: 0 | Q40: 0 | R40: 0 | T40: 0 | U40: 0 | V40: 0 | W40: 0 | X40: 0 | Y40: 0 | Z40: 0
A41: 19 | B41: Factory-2 | C41: Original | D41: ROAK | E41: 0.119 | F41: 0.069 | G41: 0.025 | H41: 0.395 | I41: 0.236 | J41: 0.102 | K41: 0.054 | L41: 0 | M41: 0 | N41: 0 | O41: 0 | P41: 0 | Q41: 0 | R41: 0 | T41: 0 | U41: 0 | V41: 0 | W41: 0 | X41: 0 | Y41: 0 | Z41: 0
A42: 20 | B42: Factory-2 | C42: Original | D42: ROAK | E42: 0.107 | F42: 0.117 | G42: 0.012 | H42: 0.325 | I42: 0.217 | J42: 0.116 | K42: 0.106 | L42: 0 | M42: 0 | N42: 0 | O42: 0 | P42: 0 | Q42: 0 | R42: 0 | T42: 0 | U42: 0 | V42: 0 | W42: 0 | X42: 0 | Y42: 0 | Z42: 0
A43: 21 | B43: Factory-2 | C43: Original | D43: ROAK | E43: =(E42+E44)/2 -> 0.126 | F43: =(F42+F44)/2 -> 0.1095 | G43: 0.0145 | H43: 0.3545 | I43: 0.219 | J43: 0.103 | K43: 0.0735 | L43: 0 | M43: 0 | N43: 0 | O43: 0 | P43: 0 | Q43: 0 | R43: 0 | T43: 0 | U43: 0 | V43: 0 | W43: 0 | X43: 0 | Y43: 0 | Z43: 0
A44: 22 | B44: Factory-2 | C44: Original | D44: ROAK | E44: 0.145 | F44: 0.102 | G44: 0.017 | H44: 0.384 | I44: 0.221 | J44: 0.09 | K44: 0.041 | L44: 0 | M44: 0 | N44: 0 | O44: 0 | P44: 0 | Q44: 0 | R44: 0 | T44: 0 | U44: 0 | V44: 0 | W44: 0 | X44: 0 | Y44: 0 | Z44: 0
A45: 23 | B45: Factory-2 | C45: Original | D45: ROAK | E45: =AVERAGE(E43:E44) -> 0.1355 | F45: =AVERAGE(F43:F44) -> 0.10575 | G45: 0.01575 | H45: 0.36925 | I45: 0.22 | J45: 0.0965 | K45: 0.05725 | L45: 0 | M45: 0 | N45: 0 | O45: 0 | P45: 0 | Q45: 0 | R45: 0 | T45: 0 | U45: 0 | V45: 0 | W45: 0 | X45: 0 | Y45: 0 | Z45: 0
A46: 24 | B46: Factory-2 | C46: Original | D46: ROAK | E46: =AVERAGE(E44:E45) -> 0.14025 | F46: 0.103875 | G46: 0.016375 | H46: 0.376625 | I46: 0.2205 | J46: 0.09325 | K46: 0.049125 | L46: 0 | M46: 0 | N46: 0 | O46: 0 | P46: 0 | Q46: 0 | R46: 0 | T46: 0 | U46: 0 | V46: 0 | W46: 0 | X46: 0 | Y46: 0 | Z46: 0
A47: 25 | B47: Factory-2 | C47: Original | D47: ROAK | E47: 0.221 | F47: 0.152 | G47: 0.004 | H47: 0.39 | I47: 0.2 | J47: 0.033 | K47: 0 | L47: 0 | M47: 0 | N47: 0 | O47: 0 | P47: 0 | Q47: 0 | R47: 0 | T47: 0 | U47: 0 | V47: 0 | W47: 0 | X47: 0 | Y47: 0 | Z47: 0
A48: 26 | B48: Factory-2 | C48: Original | D48: ROAK | E48: =AVERAGE(E46:E47) -> 0.180625 | F48: =AVERAGE(F46:F47) -> 0.1279375 | G48: 0.0101875 | H48: 0.3833125 | I48: 0.21025 | J48: 0.063125 | K48: 0.0245625 | L48: 0 | M48: 0 | N48: 0 | O48: 0 | P48: 0 | Q48: 0 | R48: 0 | T48: 0 | U48: 0 | V48: 0 | W48: 0 | X48: 0 | Y48: 0 | Z48: 0
A49: 27 | B49: Factory-2 | C49: Original | D49: ROAK | E49: =AVERAGE(E47:E48) -> 0.2008125 | F49: =AVERAGE(F47:F48) -> 0.13996875 | G49: 0.00709375 | H49: 0.38665625 | I49: 0.205125 | J49: 0.0480625 | K49: 0.01228125 | L49: 0 | M49: 0 | N49: 0 | O49: 0 | P49: 0 | Q49: 0 | R49: 0 | T49: 0 | U49: 0 | V49: 0 | W49: 0 | X49: 0 | Y49: 0 | Z49: 0
A50: 28 | B50: Factory-2 | C50: Original | D50: ROAK | E50: =AVERAGE(E46:E49) -> 0.185671875 | F50: 0.1309453125 | G50: 0.0094140625 | H50: 0.3841484375 | I50: 0.20896875 | J50: 0.059359375 | K50: 0.0214921875 | L50: 0 | M50: 0 | N50: 0 | O50: 0 | P50: 0 | Q50: 0 | R50: 0 | T50: 0 | U50: 0 | V50: 0 | W50: 0 | X50: 0 | Y50: 0 | Z50: 0
A51: 29 | B51: Factory-2 | C51: Original | D51: ROAK | E51: =AVERAGE(E47:E50) -> 0.1970273437 | F51: 0.1377128906 | G51: 0.007673828125 | H51: 0.3860292969 | I51: 0.2060859375 | J51: 0.05088671875 | K51: 0.01458398438 | L51: 0 | M51: 0 | N51: 0 | O51: 0 | P51: 0 | Q51: 0 | R51: 0 | T51: 0 | U51: 0 | V51: 0 | W51: 0 | X51: 0 | Y51: 0 | Z51: 0
A52: 30 | B52: Factory-2 | C52: Original | D52: ROAK | E52: 0.206 | F52: 0.154 | G52: 0.035 | H52: 0.364 | I52: 0.197 | J52: 0.031 | K52: 0.013 | L52: 0 | M52: 0 | N52: 0 | O52: 0 | P52: 0 | Q52: 0 | R52: 0 | T52: 0 | U52: 0 | V52: 0 | W52: 0 | X52: 0 | Y52: 0 | Z52: 0
A53: 8 | B53: Factory-3 | C53: Original | D53: ROAK | E53: 0 | F53: 0 | G53: 0.031 | H53: 0.049 | I53: 0.277 | J53: 0.42 | K53: 0.223 | L53: 0 | M53: 0 | N53: 0 | O53: 0 | P53: 0 | Q53: 0 | R53: 0 | T53: 0 | U53: 0 | V53: 0 | W53: 0 | X53: 0 | Y53: 0 | Z53: 0
A54: =A53+1 -> 9 | B54: Factory-3 | C54: Original | D54: ROAK | E54: 0 | F54: 0.01 | G54: 0.016 | H54: 0.126 | I54: 0.358 | J54: 0.364 | K54: 0.126 | L54: 0 | M54: 0 | N54: 0 | O54: 0 | P54: 0 | Q54: 0 | R54: 0 | T54: 0 | U54: 0 | V54: 0 | W54: 0 | X54: 0 | Y54: 0 | Z54: 0
A55: 10 | B55: Factory-3 | C55: Original | D55: ROAK | E55: 0.014 | F55: 0.005 | G55: 0.011 | H55: 0.088 | I55: 0.38 | J55: 0.374 | K55: 0.128 | L55: 0 | M55: 0 | N55: 0 | O55: 0 | P55: 0 | Q55: 0 | R55: 0 | T55: 0 | U55: 0 | V55: 0 | W55: 0 | X55: 0 | Y55: 0 | Z55: 0
A56: 11 | B56: Factory-3 | C56: Original | D56: ROAK | E56: 0.006 | F56: 0.012 | G56: 0.012 | H56: 0.143 | I56: 0.403 | J56: 0.317 | K56: 0.107 | L56: 0 | M56: 0 | N56: 0 | O56: 0 | P56: 0 | Q56: 0 | R56: 0 | T56: 0 | U56: 0 | V56: 0 | W56: 0 | X56: 0 | Y56: 0 | Z56: 0
A57: 12 | B57: Factory-3 | C57: Original | D57: ROAK | E57: 0.003 | F57: 0.012 | G57: 0.011 | H57: 0.149 | I57: 0.347 | J57: 0.351 | K57: 0.127 | L57: 0 | M57: 0 | N57: 0 | O57: 0 | P57: 0 | Q57: 0 | R57: 0 | T57: 0 | U57: 0 | V57: 0 | W57: 0 | X57: 0 | Y57: 0 | Z57: 0
A58: 13 | B58: Factory-3 | C58: Original | D58: ROAK | E58: 0.012 | F58: 0.03 | G58: 0.008 | H58: 0.227 | I58: 0.351 | J58: 0.253 | K58: 0.119 | L58: 0 | M58: 0 | N58: 0 | O58: 0 | P58: 0 | Q58: 0 | R58: 0 | T58: 0 | U58: 0 | V58: 0 | W58: 0 | X58: 0 | Y58: 0 | Z58: 0
A59: 14 | B59: Factory-3 | C59: Original | D59: ROAK | E59: 0.01 | F59: 0.016 | G59: 0.013 | H59: 0.214 | I59: 0.375 | J59: 0.215 | K59: 0.157 | L59: 0 | M59: 0 | N59: 0 | O59: 0 | P59: 0 | Q59: 0 | R59: 0 | T59: 0 | U59: 0 | V59: 0 | W59: 0 | X59: 0 | Y59: 0 | Z59: 0
A60: 15 | B60: Factory-3 | C60: Original | D60: ROAK | E60: 0 | F60: 0.034 | G60: 0.008 | H60: 0.276 | I60: 0.344 | J60: 0.237 | K60: 0.101 | L60: 0 | M60: 0 | N60: 0 | O60: 0 | P60: 0 | Q60: 0 | R60: 0 | T60: 0 | U60: 0 | V60: 0 | W60: 0 | X60: 0 | Y60: 0 | Z60: 0
A61: 16 | B61: Factory-3 | C61: Original | D61: ROAK | E61: 0.035 | F61: 0.06 | G61: 0.011 | H61: 0.274 | I61: 0.319 | J61: 0.184 | K61: 0.117 | L61: 0 | M61: 0 | N61: 0 | O61: 0 | P61: 0 | Q61: 0 | R61: 0 | T61: 0 | U61: 0 | V61: 0 | W61: 0 | X61: 0 | Y61: 0 | Z61: 0
A62: 17 | B62: Factory-3 | C62: Original | D62: ROAK | E62: 0.094 | F62: 0.084 | G62: 0.015 | H62: 0.296 | I62: 0.348 | J62: 0.098 | K62: 0.065 | L62: 0 | M62: 0 | N62: 0 | O62: 0 | P62: 0 | Q62: 0 | R62: 0 | T62: 0 | U62: 0 | V62: 0 | W62: 0 | X62: 0 | Y62: 0 | Z62: 0
A63: 18 | B63: Factory-3 | C63: Original | D63: ROAK | E63: 0.051 | F63: 0.049 | G63: 0 | H63: 0.253 | I63: 0.32 | J63: 0.133 | K63: 0.194 | L63: 0 | M63: 0 | N63: 0 | O63: 0 | P63: 0 | Q63: 0 | R63: 0 | T63: 0 | U63: 0 | V63: 0 | W63: 0 | X63: 0 | Y63: 0 | Z63: 0
A64: 19 | B64: Factory-3 | C64: Original | D64: ROAK | E64: 0.109 | F64: 0.043 | G64: 0 | H64: 0.198 | I64: 0.353 | J64: 0.224 | K64: 0.073 | L64: 0 | M64: 0 | N64: 0 | O64: 0 | P64: 0 | Q64: 0 | R64: 0 | T64: 0 | U64: 0 | V64: 0 | W64: 0 | X64: 0 | Y64: 0 | Z64: 0
A65: 20 | B65: Factory-3 | C65: Original | D65: ROAK | E65: 0.058 | F65: 0.036 | G65: 0.016 | H65: 0.289 | I65: 0.295 | J65: 0.164 | K65: 0.142 | L65: 0 | M65: 0 | N65: 0 | O65: 0 | P65: 0 | Q65: 0 | R65: 0 | T65: 0 | U65: 0 | V65: 0 | W65: 0 | X65: 0 | Y65: 0 | Z65: 0
A66: 21 | B66: Factory-3 | C66: Original | D66: ROAK | E66: 0.012 | F66: 0.028 | G66: 0 | H66: 0.355 | I66: 0.303 | J66: 0.134 | K66: 0.168 | L66: 0 | M66: 0 | N66: 0 | O66: 0 | P66: 0 | Q66: 0 | R66: 0 | T66: 0 | U66: 0 | V66: 0 | W66: 0 | X66: 0 | Y66: 0 | Z66: 0
A67: 22 | B67: Factory-3 | C67: Original | D67: ROAK | E67: 0 | F67: 0 | G67: 0 | H67: 0.125 | I67: 0.319 | J67: 0.483 | K67: 0.073 | L67: 0 | M67: 0 | N67: 0 | O67: 0 | P67: 0 | Q67: 0 | R67: 0 | T67: 0 | U67: 0 | V67: 0 | W67: 0 | X67: 0 | Y67: 0 | Z67: 0
A68: 23 | B68: Factory-3 | C68: Original | D68: ROAK | E68: 0 | F68: 0.054 | G68: 0 | H68: 0.403 | I68: 0.388 | J68: 0.116 | K68: 0.039 | L68: 0 | M68: 0 | N68: 0 | O68: 0 | P68: 0 | Q68: 0 | R68: 0 | T68: 0 | U68: 0 | V68: 0 | W68: 0 | X68: 0 | Y68: 0 | Z68: 0
A69: 24 | B69: Factory-3 | C69: Original | D69: ROAK | E69: 0 | F69: 0 | G69: 0.02 | H69: 0.275 | I69: 0.325 | J69: 0.19 | K69: 0.19 | L69: 0 | M69: 0 | N69: 0 | O69: 0 | P69: 0 | Q69: 0 | R69: 0 | T69: 0 | U69: 0 | V69: 0 | W69: 0 | X69: 0 | Y69: 0 | Z69: 0
A70: 25 | B70: Factory-3 | C70: Original | D70: ROAK | E70: 0.102 | F70: 0.098 | G70: 0 | H70: 0.526 | I70: 0.214 | J70: 0.06 | K70: 0 | L70: 0 | M70: 0 | N70: 0 | O70: 0 | P70: 0 | Q70: 0 | R70: 0 | T70: 0 | U70: 0 | V70: 0 | W70: 0 | X70: 0 | Y70: 0 | Z70: 0
A71: 26 | B71: Factory-3 | C71: Original | D71: ROAK | E71: 0.054 | F71: 0.04 | G71: 0 | H71: 0.386 | I71: 0.332 | J71: 0.074 | K71: 0.114 | L71: 0 | M71: 0 | N71: 0 | O71: 0 | P71: 0 | Q71: 0 | R71: 0 | T71: 0 | U71: 0 | V71: 0 | W71: 0 | X71: 0 | Y71: 0 | Z71: 0
A72: 27 | B72: Factory-3 | C72: Original | D72: ROAK | E72: 0 | F72: 0.184 | G72: 0 | H72: 0.397 | I72: 0.259 | J72: 0.085 | K72: 0.075 | L72: 0 | M72: 0 | N72: 0 | O72: 0 | P72: 0 | Q72: 0 | R72: 0 | T72: 0 | U72: 0 | V72: 0 | W72: 0 | X72: 0 | Y72: 0 | Z72: 0
A73: 28 | B73: Factory-3 | C73: Original | D73: ROAK | E73: =AVERAGE(E$65:E$72) -> 0.02825 | F73: 0.055 | G73: 0.0045 | H73: 0.3445 | I73: 0.304375 | J73: 0.16325 | K73: 0.100125 | L73: 0 | M73: 0 | N73: 0 | O73: 0 | P73: 0 | Q73: 0 | R73: 0 | T73: 0 | U73: 0 | V73: 0 | W73: 0 | X73: 0 | Y73: 0 | Z73: 0
A74: 29 | B74: Factory-3 | C74: Original | D74: ROAK | E74: 0.02825 | F74: 0.055 | G74: 0.0045 | H74: 0.3445 | I74: 0.304375 | J74: 0.16325 | K74: 0.100125 | L74: 0 | M74: 0 | N74: 0 | O74: 0 | P74: 0 | Q74: 0 | R74: 0 | T74: 0 | U74: 0 | V74: 0 | W74: 0 | X74: 0 | Y74: 0 | Z74: 0
A75: 30 | B75: Factory-3 | C75: Original | D75: ROAK | E75: 0.02825 | F75: 0.055 | G75: 0.0045 | H75: 0.3445 | I75: 0.304375 | J75: 0.16325 | K75: 0.100125 | L75: 0 | M75: 0 | N75: 0 | O75: 0 | P75: 0 | Q75: 0 | R75: 0 | T75: 0 | U75: 0 | V75: 0 | W75: 0 | X75: 0 | Y75: 0 | Z75: 0
A76: 13 | B76: Factory-1 | C76: Original | D76: WOAK | E76: 0.13 | F76: 0.133 | G76: 0.034 | H76: 0.302 | I76: 0.193 | J76: 0.14 | K76: 0.068 | L76: 0 | M76: 0 | N76: 0 | O76: 0 | P76: 0 | Q76: 0 | R76: 0 | T76: 0 | U76: 0 | V76: 0 | W76: 0 | X76: 0 | Y76: 0 | Z76: 0
A77: 14 | B77: Factory-1 | C77: Original | D77: WOAK | E77: 0.21 | F77: 0.169 | G77: 0.056 | H77: 0.219 | I77: 0.183 | J77: 0.126 | K77: 0.034 | L77: 0 | M77: 0 | N77: 0 | O77: 0 | P77: 0 | Q77: 0 | R77: 0 | T77: 0 | U77: 0 | V77: 0 | W77: 0 | X77: 0 | Y77: 0 | Z77: 0
A78: 15 | B78: Factory-1 | C78: Original | D78: WOAK | E78: 0.153 | F78: 0.119 | G78: 0.033 | H78: 0.252 | I78: 0.252 | J78: 0.126 | K78: 0.061 | L78: =IF(AND($B78=$M$5,$D78=$M$6,$A78=$M$4,C78=$R$4),E78*$M$7,0) -> 0 | M78: =IF(AND($B78=$M$5,$D78=$M$6,$A78=$M$4,C78=$R$4),F78*$M$7,0) -> 0 | N78: =IF(AND($B78=$M$5,$D78=$M$6,$A78=$M$4,C78=$R$4),G78*$M$7,0) -> 0 | O78: =IF(AND($B78=$M$5,$D78=$M$6,$A78=$M$4,C78=$R$4),H78*$M$7,0) -> 0 | P78: =IF(AND($B78=$M$5,$D78=$M$6,$A78=$M$4,C78=$R$4),I78*$M$7,0) -> 0 | Q78: =IF(AND($B78=$M$5,$D78=$M$6,$A78=$M$4,C78=$R$4),J78*$M$7,0) -> 0 | R78: =IF(AND($B78=$M$5,$D78=$M$6,$A78=$M$4,C78=$R$4),K78*$M$7,0) -> 0 | T78: =IF(AND($B78=$U$5,$D78=$U$6,$A78=$U$4,C78=$R$4),E78*$U$7,0) -> 0 | U78: =IF(AND($B78=$U$5,$D78=$U$6,$A78=$U$4,C78=$R$4),F78*$U$7,0) -> 0 | V78: =IF(AND($B78=$U$5,$D78=$U$6,$A78=$U$4,C78=$R$4),G78*$U$7,0) -> 0 | W78: =IF(AND($B78=$U$5,$D78=$U$6,$A78=$U$4,C78=$R$4),H78*$U$7,0) -> 0 | X78: =IF(AND($B78=$U$5,$D78=$U$6,$A78=$U$4,C78=$R$4),I78*$U$7,0) -> 0 | Y78: =IF(AND($B78=$U$5,$D78=$U$6,$A78=$U$4,C78=$R$4),J78*$U$7,0) -> 0 | Z78: =IF(AND($B78=$U$5,$D78=$U$6,$A78=$U$4,C78=$R$4),K78*$U$7,0) -> 0
A79: 16 | B79: Factory-1 | C79: Original | D79: WOAK | E79: 0.224 | F79: 0.135 | G79: 0.035 | H79: 0.283 | I79: 0.191 | J79: 0.075 | K79: 0.057 | L79: 0 | M79: 0 | N79: 0 | O79: 0 | P79: 0 | Q79: 0 | R79: 0 | T79: 0 | U79: 0 | V79: 0 | W79: 0 | X79: 0 | Y79: 0 | Z79: 0
A80: 17 | B80: Factory-1 | C80: Original | D80: WOAK | E80: 0.188 | F80: 0.107 | G80: 0.071 | H80: 0.222 | I80: 0.281 | J80: 0.094 | K80: 0.037 | L80: 0 | M80: 0 | N80: 0 | O80: 0 | P80: 0 | Q80: 0 | R80: 0 | T80: 0 | U80: 0 | V80: 0 | W80: 0 | X80: 0 | Y80: 0 | Z80: 0
A81: 18 | B81: Factory-1 | C81: Original | D81: WOAK | E81: 0.137 | F81: 0.085 | G81: 0.028 | H81: 0.218 | I81: 0.294 | J81: 0.139 | K81: 0.099 | L81: 0 | M81: 0 | N81: 0 | O81: 0 | P81: 0 | Q81: 0 | R81: 0 | T81: 0 | U81: 0 | V81: 0 | W81: 0 | X81: 0 | Y81: 0 | Z81: 0
A82: 19 | B82: Factory-1 | C82: Original | D82: WOAK | E82: 0.154 | F82: 0.092 | G82: 0.033 | H82: 0.365 | I82: 0.264 | J82: 0.071 | K82: 0.021 | L82: 0 | M82: 0 | N82: 0 | O82: 0 | P82: 0 | Q82: 0 | R82: 0 | T82: 0 | U82: 0 | V82: 0 | W82: 0 | X82: 0 | Y82: 0 | Z82: 0
A83: 20 | B83: Factory-1 | C83: Original | D83: WOAK | E83: 0.202 | F83: 0.135 | G83: 0.042 | H83: 0.255 | I83: 0.214 | J83: 0.085 | K83: 0.067 | L83: 0 | M83: 0 | N83: 0 | O83: 0 | P83: 0 | Q83: 0 | R83: 0 | T83: 0 | U83: 0 | V83: 0 | W83: 0 | X83: 0 | Y83: 0 | Z83: 0
A84: 21 | B84: Factory-1 | C84: Original | D84: WOAK | E84: 0.168 | F84: 0.151 | G84: 0.058 | H84: 0.282 | I84: 0.184 | J84: 0.095 | K84: 0.062 | L84: 0 | M84: 0 | N84: 0 | O84: 0 | P84: 0 | Q84: 0 | R84: 0 | T84: 0 | U84: 0 | V84: 0 | W84: 0 | X84: 0 | Y84: 0 | Z84: 0
A85: 22 | B85: Factory-1 | C85: Original | D85: WOAK | E85: 0.142 | F85: 0.194 | G85: 0.032 | H85: 0.403 | I85: 0.168 | J85: 0.044 | K85: 0.017 | L85: 0 | M85: 0 | N85: 0 | O85: 0 | P85: 0 | Q85: 0 | R85: 0 | T85: 0 | U85: 0 | V85: 0 | W85: 0 | X85: 0 | Y85: 0 | Z85: 0
A86: 23 | B86: Factory-1 | C86: Original | D86: WOAK | E86: 0.17 | F86: 0.09 | G86: 0.046 | H86: 0.29 | I86: 0.338 | J86: 0.044 | K86: 0.022 | L86: 0 | M86: 0 | N86: 0 | O86: 0 | P86: 0 | Q86: 0 | R86: 0 | T86: 0 | U86: 0 | V86: 0 | W86: 0 | X86: 0 | Y86: 0 | Z86: 0
A87: 24 | B87: Factory-1 | C87: Original | D87: WOAK | E87: 0.131 | F87: 0.166 | G87: 0.009 | H87: 0.411 | I87: 0.202 | J87: 0.053 | K87: 0.028 | L87: 0 | M87: 0 | N87: 0 | O87: 0 | P87: 0 | Q87: 0 | R87: 0 | T87: 0 | U87: 0 | V87: 0 | W87: 0 | X87: 0 | Y87: 0 | Z87: 0
A88: 26 | B88: Factory-1 | C88: Original | D88: WOAK | E88: 0.19 | F88: 0.114 | G88: 0.031 | H88: 0.351 | I88: 0.148 | J88: 0.135 | K88: 0.031 | L88: 0 | M88: 0 | N88: 0 | O88: 0 | P88: 0 | Q88: 0 | R88: 0 | T88: 0 | U88: 0 | V88: 0 | W88: 0 | X88: 0 | Y88: 0 | Z88: 0
A89: 27 | B89: Factory-1 | C89: Original | D89: WOAK | E89: 0.227 | F89: 0.023 | G89: 0.031 | H89: 0.577 | I89: 0.142 | J89: 0 | K89: 0 | L89: 0 | M89: 0 | N89: 0 | O89: 0 | P89: 0 | Q89: 0 | R89: 0 | T89: 0 | U89: 0 | V89: 0 | W89: 0 | X89: 0 | Y89: 0 | Z89: 0
A90: 28 | B90: Factory-1 | C90: Original | D90: WOAK | E90: =AVERAGE(E$86:E$89) -> 0.1795 | F90: 0.09825 | G90: 0.02925 | H90: 0.40725 | I90: 0.2075 | J90: 0.058 | K90: 0.02025 | L90: 0 | M90: 0 | N90: 0 | O90: 0 | P90: 0 | Q90: 0 | R90: 0 | T90: 0 | U90: 0 | V90: 0 | W90: 0 | X90: 0 | Y90: 0 | Z90: 0
A91: 29 | B91: Factory-1 | C91: Original | D91: WOAK | E91: 0.1795 | F91: 0.09825 | G91: 0.02925 | H91: 0.40725 | I91: 0.2075 | J91: 0.058 | K91: 0.02025 | L91: 0 | M91: 0 | N91: 0 | O91: 0 | P91: 0 | Q91: 0 | R91: 0 | T91: 0 | U91: 0 | V91: 0 | W91: 0 | X91: 0 | Y91: 0 | Z91: 0
A92: 30 | B92: Factory-1 | C92: Original | D92: WOAK | E92: 0.1795 | F92: 0.09825 | G92: 0.02925 | H92: 0.40725 | I92: 0.2075 | J92: 0.058 | K92: 0.02025 | L92: 0 | M92: 0 | N92: 0 | O92: 0 | P92: 0 | Q92: 0 | R92: 0 | T92: 0 | U92: 0 | V92: 0 | W92: 0 | X92: 0 | Y92: 0 | Z92: 0
A93: 10 | B93: Factory-2 | C93: Original | D93: WOAK | E93: 0 | F93: 0 | G93: 0.045 | H93: 0.095 | I93: 0.412 | J93: 0.244 | K93: 0.204 | L93: 0 | M93: 0 | N93: 0 | O93: 0 | P93: 0 | Q93: 0 | R93: 0 | T93: 0 | U93: 0 | V93: 0 | W93: 0 | X93: 0 | Y93: 0 | Z93: 0
A94: 11 | B94: Factory-2 | C94: Original | D94: WOAK | E94: 0.015 | F94: 0.042 | G94: 0.042 | H94: 0.135 | I94: 0.337 | J94: 0.22 | K94: 0.209 | L94: 0 | M94: 0 | N94: 0 | O94: 0 | P94: 0 | Q94: 0 | R94: 0 | T94: 0 | U94: 0 | V94: 0 | W94: 0 | X94: 0 | Y94: 0 | Z94: 0
A95: 12 | B95: Factory-2 | C95: Original | D95: WOAK | E95: 0.011 | F95: 0.062 | G95: 0.013 | H95: 0.194 | I95: 0.392 | J95: 0.181 | K95: 0.147 | L95: 0 | M95: 0 | N95: 0 | O95: 0 | P95: 0 | Q95: 0 | R95: 0 | T95: 0 | U95: 0 | V95: 0 | W95: 0 | X95: 0 | Y95: 0 | Z95: 0
A96: 13 | B96: Factory-2 | C96: Original | D96: WOAK | E96: 0.023 | F96: 0.044 | G96: 0.011 | H96: 0.177 | I96: 0.395 | J96: 0.215 | K96: 0.135 | L96: 0 | M96: 0 | N96: 0 | O96: 0 | P96: 0 | Q96: 0 | R96: 0 | T96: 0 | U96: 0 | V96: 0 | W96: 0 | X96: 0 | Y96: 0 | Z96: 0
A97: 14 | B97: Factory-2 | C97: Original | D97: WOAK | E97: 0.034 | F97: 0.042 | G97: 0.012 | H97: 0.221 | I97: 0.38 | J97: 0.208 | K97: 0.103 | L97: 0 | M97: 0 | N97: 0 | O97: 0 | P97: 0 | Q97: 0 | R97: 0 | T97: 0 | U97: 0 | V97: 0 | W97: 0 | X97: 0 | Y97: 0 | Z97: 0
A98: 15 | B98: Factory-2 | C98: Original | D98: WOAK | E98: 0.038 | F98: 0.044 | G98: 0.035 | H98: 0.26 | I98: 0.367 | J98: 0.151 | K98: 0.105 | L98: 0 | M98: 0 | N98: 0 | O98: 0 | P98: 0 | Q98: 0 | R98: 0 | T98: 0 | U98: 0 | V98: 0 | W98: 0 | X98: 0 | Y98: 0 | Z98: 0
A99: 16 | B99: Factory-2 | C99: Original | D99: WOAK | E99: 0.068 | F99: 0.079 | G99: 0.022 | H99: 0.271 | I99: 0.349 | J99: 0.13 | K99: 0.081 | L99: 0 | M99: 0 | N99: 0 | O99: 0 | P99: 0 | Q99: 0 | R99: 0 | T99: 0 | U99: 0 | V99: 0 | W99: 0 | X99: 0 | Y99: 0 | Z99: 0
A100: 17 | B100: Factory-2 | C100: Original | D100: WOAK | E100: 0.064 | F100: 0.05 | G100: 0.018 | H100: 0.31 | I100: 0.337 | J100: 0.113 | K100: 0.108 | L100: 0 | M100: 0 | N100: 0 | O100: 0 | P100: 0 | Q100: 0 | R100: 0 | T100: 0 | U100: 0 | V100: 0 | W100: 0 | X100: 0 | Y100: 0 | Z100: 0
A101: 18 | B101: Factory-2 | C101: Original | D101: WOAK | E101: 0.051 | F101: 0.038 | G101: 0.027 | H101: 0.34 | I101: 0.348 | J101: 0.122 | K101: 0.074 | L101: 0 | M101: 0 | N101: 0 | O101: 0 | P101: 0 | Q101: 0 | R101: 0 | T101: 0 | U101: 0 | V101: 0 | W101: 0 | X101: 0 | Y101: 0 | Z101: 0
A102: 19 | B102: Factory-2 | C102: Original | D102: WOAK | E102: 0.096 | F102: 0.042 | G102: 0.02 | H102: 0.329 | I102: 0.336 | J102: 0.124 | K102: 0.053 | L102: 0 | M102: 0 | N102: 0 | O102: 0 | P102: 0 | Q102: 0 | R102: 0 | T102: 0 | U102: 0 | V102: 0 | W102: 0 | X102: 0 | Y102: 0 | Z102: 0
A103: 20 | B103: Factory-2 | C103: Original | D103: WOAK | E103: 0.072 | F103: 0.047 | G103: 0.014 | H103: 0.43 | I103: 0.288 | J103: 0.087 | K103: 0.062 | L103: 0 | M103: 0 | N103: 0 | O103: 0 | P103: 0 | Q103: 0 | R103: 0 | T103: 0 | U103: 0 | V103: 0 | W103: 0 | X103: 0 | Y103: 0 | Z103: 0
A104: 21 | B104: Factory-2 | C104: Original | D104: WOAK | E104: 0.056 | F104: 0.09 | G104: 0.027 | H104: 0.367 | I104: 0.319 | J104: 0.083 | K104: 0.058 | L104: 0 | M104: 0 | N104: 0 | O104: 0 | P104: 0 | Q104: 0 | R104: 0 | T104: 0 | U104: 0 | V104: 0 | W104: 0 | X104: 0 | Y104: 0 | Z104: 0
A105: 22 | B105: Factory-2 | C105: Original | D105: WOAK | E105: 0.082 | F105: 0.063 | G105: 0.018 | H105: 0.345 | I105: 0.295 | J105: 0.143 | K105: 0.054 | L105: 0 | M105: 0 | N105: 0 | O105: 0 | P105: 0 | Q105: 0 | R105: 0 | T105: 0 | U105: 0 | V105: 0 | W105: 0 | X105: 0 | Y105: 0 | Z105: 0
A106: 23 | B106: Factory-2 | C106: Original | D106: WOAK | E106: 0.011 | F106: 0.033 | G106: 0.01 | H106: 0.373 | I106: 0.486 | J106: 0.087 | K106: 0 | L106: 0 | M106: 0 | N106: 0 | O106: 0 | P106: 0 | Q106: 0 | R106: 0 | T106: 0 | U106: 0 | V106: 0 | W106: 0 | X106: 0 | Y106: 0 | Z106: 0
A107: 24 | B107: Factory-2 | C107: Original | D107: WOAK | E107: 0.068 | F107: 0.078 | G107: 0 | H107: 0.338 | I107: 0.423 | J107: 0.033 | K107: 0.06 | L107: 0 | M107: 0 | N107: 0 | O107: 0 | P107: 0 | Q107: 0 | R107: 0 | T107: 0 | U107: 0 | V107: 0 | W107: 0 | X107: 0 | Y107: 0 | Z107: 0
A108: 25 | B108: Factory-2 | C108: Original | D108: WOAK | E108: 0.034 | F108: 0.069 | G108: 0 | H108: 0.428 | I108: 0.233 | J108: 0.153 | K108: 0.083 | L108: 0 | M108: 0 | N108: 0 | O108: 0 | P108: 0 | Q108: 0 | R108: 0 | T108: 0 | U108: 0 | V108: 0 | W108: 0 | X108: 0 | Y108: 0 | Z108: 0
A109: 26 | B109: Factory-2 | C109: Original | D109: WOAK | E109: =AVERAGE(E$103:E$108) -> 0.05383333333 | F109: 0.06333333333 | G109: 0.0115 | H109: 0.3801666667 | I109: 0.3406666667 | J109: 0.09766666667 | K109: 0.05283333333 | L109: 0 | M109: 0 | N109: 0 | O109: 0 | P109: 0 | Q109: 0 | R109: 0 | T109: 0 | U109: 0 | V109: 0 | W109: 0 | X109: 0 | Y109: 0 | Z109: 0
A110: 27 | B110: Factory-2 | C110: Original | D110: WOAK | E110: 0.05383333333 | F110: 0.06333333333 | G110: 0.0115 | H110: 0.3801666667 | I110: 0.3406666667 | J110: 0.09766666667 | K110: 0.05283333333 | L110: 0 | M110: 0 | N110: 0 | O110: 0 | P110: 0 | Q110: 0 | R110: 0 | T110: 0 | U110: 0 | V110: 0 | W110: 0 | X110: 0 | Y110: 0 | Z110: 0
A111: 28 | B111: Factory-2 | C111: Original | D111: WOAK | E111: 0.05383333333 | F111: 0.06333333333 | G111: 0.0115 | H111: 0.3801666667 | I111: 0.3406666667 | J111: 0.09766666667 | K111: 0.05283333333 | L111: 0 | M111: 0 | N111: 0 | O111: 0 | P111: 0 | Q111: 0 | R111: 0 | T111: 0 | U111: 0 | V111: 0 | W111: 0 | X111: 0 | Y111: 0 | Z111: 0
A112: 29 | B112: Factory-2 | C112: Original | D112: WOAK | E112: 0.05383333333 | F112: 0.06333333333 | G112: 0.0115 | H112: 0.3801666667 | I112: 0.3406666667 | J112: 0.09766666667 | K112: 0.05283333333 | L112: 0 | M112: 0 | N112: 0 | O112: 0 | P112: 0 | Q112: 0 | R112: 0 | T112: 0 | U112: 0 | V112: 0 | W112: 0 | X112: 0 | Y112: 0 | Z112: 0
A113: 30 | B113: Factory-2 | C113: Original | D113: WOAK | E113: 0.05383333333 | F113: 0.06333333333 | G113: 0.0115 | H113: 0.3801666667 | I113: 0.3406666667 | J113: 0.09766666667 | K113: 0.05283333333 | L113: 0 | M113: 0 | N113: 0 | O113: 0 | P113: 0 | Q113: 0 | R113: 0 | T113: 0 | U113: 0 | V113: 0 | W113: 0 | X113: 0 | Y113: 0 | Z113: 0
A114: 8 | B114: Factory-3 | C114: Original | D114: WOAK | E114: 0 | F114: 0 | G114: 0 | H114: 0.017 | I114: 0.097 | J114: 0.251 | K114: 0.635 | L114: 0 | M114: 0 | N114: 0 | O114: 0 | P114: 0 | Q114: 0 | R114: 0 | T114: 0 | U114: 0 | V114: 0 | W114: 0 | X114: 0 | Y114: 0 | Z114: 0
A115: 9 | B115: Factory-3 | C115: Original | D115: WOAK | E115: 0.003 | F115: 0.016 | G115: 0.002 | H115: 0.022 | I115: 0.184 | J115: 0.246 | K115: 0.527 | L115: 0 | M115: 0 | N115: 0 | O115: 0 | P115: 0 | Q115: 0 | R115: 0 | T115: 0 | U115: 0 | V115: 0 | W115: 0 | X115: 0 | Y115: 0 | Z115: 0
A116: 10 | B116: Factory-3 | C116: Original | D116: WOAK | E116: 0 | F116: 0.006 | G116: 0.009 | H116: 0.047 | I116: 0.275 | J116: 0.275 | K116: 0.388 | L116: 0 | M116: 0 | N116: 0 | O116: 0 | P116: 0 | Q116: 0 | R116: 0 | T116: 0 | U116: 0 | V116: 0 | W116: 0 | X116: 0 | Y116: 0 | Z116: 0
A117: 11 | B117: Factory-3 | C117: Original | D117: WOAK | E117: 0 | F117: 0 | G117: 0.003 | H117: 0.059 | I117: 0.398 | J117: 0.292 | K117: 0.248 | L117: 0 | M117: 0 | N117: 0 | O117: 0 | P117: 0 | Q117: 0 | R117: 0 | T117: 0 | U117: 0 | V117: 0 | W117: 0 | X117: 0 | Y117: 0 | Z117: 0
A118: 12 | B118: Factory-3 | C118: Original | D118: WOAK | E118: 0.008 | F118: 0.011 | G118: 0.001 | H118: 0.079 | I118: 0.376 | J118: 0.297 | K118: 0.228 | L118: 0 | M118: 0 | N118: 0 | O118: 0 | P118: 0 | Q118: 0 | R118: 0 | T118: 0 | U118: 0 | V118: 0 | W118: 0 | X118: 0 | Y118: 0 | Z118: 0
A119: 13 | B119: Factory-3 | C119: Original | D119: WOAK | E119: 0.007 | F119: 0.005 | G119: 0.002 | H119: 0.088 | I119: 0.436 | J119: 0.225 | K119: 0.237 | L119: 0 | M119: 0 | N119: 0 | O119: 0 | P119: 0 | Q119: 0 | R119: 0 | T119: 0 | U119: 0 | V119: 0 | W119: 0 | X119: 0 | Y119: 0 | Z119: 0
A120: 14 | B120: Factory-3 | C120: Original | D120: WOAK | E120: 0.013 | F120: 0.016 | G120: 0.008 | H120: 0.131 | I120: 0.436 | J120: 0.22 | K120: 0.176 | L120: 0 | M120: 0 | N120: 0 | O120: 0 | P120: 0 | Q120: 0 | R120: 0 | T120: 0 | U120: 0 | V120: 0 | W120: 0 | X120: 0 | Y120: 0 | Z120: 0
A121: 15 | B121: Factory-3 | C121: Original | D121: WOAK | E121: 0.007 | F121: 0.019 | G121: 0.001 | H121: 0.183 | I121: 0.476 | J121: 0.183 | K121: 0.131 | L121: 0 | M121: 0 | N121: 0 | O121: 0 | P121: 0 | Q121: 0 | R121: 0 | T121: 0 | U121: 0 | V121: 0 | W121: 0 | X121: 0 | Y121: 0 | Z121: 0
A122: 16 | B122: Factory-3 | C122: Original | D122: WOAK | E122: 0.01 | F122: 0.009 | G122: 0.016 | H122: 0.17 | I122: 0.488 | J122: 0.17 | K122: 0.137 | L122: 0 | M122: 0 | N122: 0 | O122: 0 | P122: 0 | Q122: 0 | R122: 0 | T122: 0 | U122: 0 | V122: 0 | W122: 0 | X122: 0 | Y122: 0 | Z122: 0
A123: 17 | B123: Factory-3 | C123: Original | D123: WOAK | E123: 0.01 | F123: 0.029 | G123: 0.013 | H123: 0.197 | I123: 0.471 | J123: 0.167 | K123: 0.113 | L123: 0 | M123: 0 | N123: 0 | O123: 0 | P123: 0 | Q123: 0 | R123: 0 | T123: 0 | U123: 0 | V123: 0 | W123: 0 | X123: 0 | Y123: 0 | Z123: 0
A124: 18 | B124: Factory-3 | C124: Original | D124: WOAK | E124: 0.007 | F124: 0.015 | G124: 0 | H124: 0.31 | I124: 0.416 | J124: 0.154 | K124: 0.098 | L124: 0 | M124: 0 | N124: 0 | O124: 0 | P124: 0 | Q124: 0 | R124: 0 | T124: 0 | U124: 0 | V124: 0 | W124: 0 | X124: 0 | Y124: 0 | Z124: 0
A125: 19 | B125: Factory-3 | C125: Original | D125: WOAK | E125: 0.041 | F125: 0.055 | G125: 0.003 | H125: 0.297 | I125: 0.307 | J125: 0.145 | K125: 0.152 | L125: 0 | M125: 0 | N125: 0 | O125: 0 | P125: 0 | Q125: 0 | R125: 0 | T125: 0 | U125: 0 | V125: 0 | W125: 0 | X125: 0 | Y125: 0 | Z125: 0
A126: 20 | B126: Factory-3 | C126: Original | D126: WOAK | E126: 0.016 | F126: 0.038 | G126: 0 | H126: 0.255 | I126: 0.434 | J126: 0.147 | K126: 0.11 | L126: 0 | M126: 0 | N126: 0 | O126: 0 | P126: 0 | Q126: 0 | R126: 0 | T126: 0 | U126: 0 | V126: 0 | W126: 0 | X126: 0 | Y126: 0 | Z126: 0
A127: 21 | B127: Factory-3 | C127: Original | D127: WOAK | E127: 0.036 | F127: 0.072 | G127: 0.008 | H127: 0.423 | I127: 0.418 | J127: 0.043 | K127: 0 | L127: 0 | M127: 0 | N127: 0 | O127: 0 | P127: 0 | Q127: 0 | R127: 0 | T127: 0 | U127: 0 | V127: 0 | W127: 0 | X127: 0 | Y127: 0 | Z127: 0
A128: 22 | B128: Factory-3 | C128: Original | D128: WOAK | E128: 0.031 | F128: 0.079 | G128: 0 | H128: 0.282 | I128: 0.402 | J128: 0.175 | K128: 0.031 | L128: 0 | M128: 0 | N128: 0 | O128: 0 | P128: 0 | Q128: 0 | R128: 0 | T128: 0 | U128: 0 | V128: 0 | W128: 0 | X128: 0 | Y128: 0 | Z128: 0
A129: 23 | B129: Factory-3 | C129: Original | D129: WOAK | E129: 0 | F129: 0 | G129: 0 | H129: 0.051 | I129: 0.051 | J129: 0.55 | K129: 0.348 | L129: 0 | M129: 0 | N129: 0 | O129: 0 | P129: 0 | Q129: 0 | R129: 0 | T129: 0 | U129: 0 | V129: 0 | W129: 0 | X129: 0 | Y129: 0 | Z129: 0
A130: 24 | B130: Factory-3 | C130: Original | D130: WOAK | E130: 0 | F130: 0.066 | G130: 0 | H130: 0.385 | I130: 0.348 | J130: 0.131 | K130: 0.07 | L130: 0 | M130: 0 | N130: 0 | O130: 0 | P130: 0 | Q130: 0 | R130: 0 | T130: 0 | U130: 0 | V130: 0 | W130: 0 | X130: 0 | Y130: 0 | Z130: 0
A131: 25 | B131: Factory-3 | C131: Original | D131: WOAK | E131: =AVERAGE(E$126:E$130) -> 0.0166 | F131: 0.051 | G131: 0.0016 | H131: 0.2792 | I131: 0.3306 | J131: 0.2092 | K131: 0.1118 | L131: 0 | M131: 0 | N131: 0 | O131: 0 | P131: 0 | Q131: 0 | R131: 0 | T131: 0 | U131: 0 | V131: 0 | W131: 0 | X131: 0 | Y131: 0 | Z131: 0
A132: 26 | B132: Factory-3 | C132: Original | D132: WOAK | E132: 0.0166 | F132: 0.051 | G132: 0.0016 | H132: 0.2792 | I132: 0.3306 | J132: 0.2092 | K132: 0.1118 | L132: 0 | M132: 0 | N132: 0 | O132: 0 | P132: 0 | Q132: 0 | R132: 0 | T132: 0 | U132: 0 | V132: 0 | W132: 0 | X132: 0 | Y132: 0 | Z132: 0
A133: 27 | B133: Factory-3 | C133: Original | D133: WOAK | E133: 0.0166 | F133: 0.051 | G133: 0.0016 | H133: 0.2792 | I133: 0.3306 | J133: 0.2092 | K133: 0.1118 | L133: 0 | M133: 0 | N133: 0 | O133: 0 | P133: 0 | Q133: 0 | R133: 0 | T133: 0 | U133: 0 | V133: 0 | W133: 0 | X133: 0 | Y133: 0 | Z133: 0
A134: 28 | B134: Factory-3 | C134: Original | D134: WOAK | E134: 0.0166 | F134: 0.051 | G134: 0.0016 | H134: 0.2792 | I134: 0.3306 | J134: 0.2092 | K134: 0.1118 | L134: 0 | M134: 0 | N134: 0 | O134: 0 | P134: 0 | Q134: 0 | R134: 0 | T134: 0 | U134: 0 | V134: 0 | W134: 0 | X134: 0 | Y134: 0 | Z134: 0
A135: 29 | B135: Factory-3 | C135: Original | D135: WOAK | E135: 0.0166 | F135: 0.051 | G135: 0.0016 | H135: 0.2792 | I135: 0.3306 | J135: 0.2092 | K135: 0.1118 | L135: 0 | M135: 0 | N135: 0 | O135: 0 | P135: 0 | Q135: 0 | R135: 0 | T135: 0 | U135: 0 | V135: 0 | W135: 0 | X135: 0 | Y135: 0 | Z135: 0
A136: 30 | B136: Factory-3 | C136: Original | D136: WOAK | E136: 0.0166 | F136: 0.051 | G136: 0.0016 | H136: 0.2792 | I136: 0.3306 | J136: 0.2092 | K136: 0.1118 | L136: 0 | M136: 0 | N136: 0 | O136: 0 | P136: 0 | Q136: 0 | R136: 0 | T136: 0 | U136: 0 | V136: 0 | W136: 0 | X136: 0 | Y136: 0 | Z136: 0
A137: 13 | B137: Factory-1 | C137: Original | D137: YPOP | E137: 0.008 | F137: 0.081 | G137: 0.055 | H137: 0.359 | I137: 0.263 | J137: 0.158 | K137: 0.076 | L137: 0 | M137: 0 | N137: 0 | O137: 0 | P137: 0 | Q137: 0 | R137: 0 | T137: 0 | U137: 0 | V137: 0 | W137: 0 | X137: 0 | Y137: 0 | Z137: 0
A138: 14 | B138: Factory-1 | C138: Original | D138: YPOP | E138: 0.028 | F138: 0.115 | G138: 0.065 | H138: 0.39 | I138: 0.319 | J138: 0.058 | K138: 0.025 | L138: 0 | M138: 0 | N138: 0 | O138: 0 | P138: 0 | Q138: 0 | R138: 0 | T138: 0 | U138: 0 | V138: 0 | W138: 0 | X138: 0 | Y138: 0 | Z138: 0
A139: 15 | B139: Factory-1 | C139: Original | D139: YPOP | E139: 0.031 | F139: 0.056 | G139: 0.083 | H139: 0.393 | I139: 0.344 | J139: 0.065 | K139: 0.028 | L139: 0 | M139: 0 | N139: 0 | O139: 0 | P139: 0 | Q139: 0 | R139: 0 | T139: 0 | U139: 0 | V139: 0 | W139: 0 | X139: 0 | Y139: 0 | Z139: 0
A140: 16 | B140: Factory-1 | C140: Original | D140: YPOP | E140: 0.06 | F140: 0.112 | G140: 0.072 | H140: 0.385 | I140: 0.252 | J140: 0.076 | K140: 0.043 | L140: 0 | M140: 0 | N140: 0 | O140: 0 | P140: 0 | Q140: 0 | R140: 0 | T140: 0 | U140: 0 | V140: 0 | W140: 0 | X140: 0 | Y140: 0 | Z140: 0
A141: 17 | B141: Factory-1 | C141: Original | D141: YPOP | E141: 0.064 | F141: 0.044 | G141: 0.085 | H141: 0.413 | I141: 0.269 | J141: 0.072 | K141: 0.053 | L141: 0 | M141: 0 | N141: 0 | O141: 0 | P141: 0 | Q141: 0 | R141: 0 | T141: 0 | U141: 0 | V141: 0 | W141: 0 | X141: 0 | Y141: 0 | Z141: 0
A142: 18 | B142: Factory-1 | C142: Original | D142: YPOP | E142: 0.037 | F142: 0.103 | G142: 0.095 | H142: 0.378 | I142: 0.282 | J142: 0.069 | K142: 0.036 | L142: =IF(AND($B142=$M$5,$D142=$M$6,$A142=$M$4,C142=$R$4),E142*$M$7,0) -> 0 | M142: =IF(AND($B142=$M$5,$D142=$M$6,$A142=$M$4,C142=$R$4),F142*$M$7,0) -> 0 | N142: =IF(AND($B142=$M$5,$D142=$M$6,$A142=$M$4,C142=$R$4),G142*$M$7,0) -> 0 | O142: =IF(AND($B142=$M$5,$D142=$M$6,$A142=$M$4,C142=$R$4),H142*$M$7,0) -> 0 | P142: =IF(AND($B142=$M$5,$D142=$M$6,$A142=$M$4,C142=$R$4),I142*$M$7,0) -> 0 | Q142: =IF(AND($B142=$M$5,$D142=$M$6,$A142=$M$4,C142=$R$4),J142*$M$7,0) -> 0 | R142: =IF(AND($B142=$M$5,$D142=$M$6,$A142=$M$4,C142=$R$4),K142*$M$7,0) -> 0 | T142: =IF(AND($B142=$U$5,$D142=$U$6,$A142=$U$4,C142=$R$4),E142*$U$7,0) -> 0 | U142: =IF(AND($B142=$U$5,$D142=$U$6,$A142=$U$4,C142=$R$4),F142*$U$7,0) -> 0 | V142: =IF(AND($B142=$U$5,$D142=$U$6,$A142=$U$4,C142=$R$4),G142*$U$7,0) -> 0 | W142: =IF(AND($B142=$U$5,$D142=$U$6,$A142=$U$4,C142=$R$4),H142*$U$7,0) -> 0 | X142: =IF(AND($B142=$U$5,$D142=$U$6,$A142=$U$4,C142=$R$4),I142*$U$7,0) -> 0 | Y142: =IF(AND($B142=$U$5,$D142=$U$6,$A142=$U$4,C142=$R$4),J142*$U$7,0) -> 0 | Z142: =IF(AND($B142=$U$5,$D142=$U$6,$A142=$U$4,C142=$R$4),K142*$U$7,0) -> 0
A143: 19 | B143: Factory-1 | C143: Original | D143: YPOP | E143: 0.063 | F143: 0.056 | G143: 0.118 | H143: 0.429 | I143: 0.234 | J143: 0.059 | K143: 0.041 | L143: 0 | M143: 0 | N143: 0 | O143: 0 | P143: 0 | Q143: 0 | R143: 0 | T143: 0 | U143: 0 | V143: 0 | W143: 0 | X143: 0 | Y143: 0 | Z143: 0
A144: 20 | B144: Factory-1 | C144: Original | D144: YPOP | E144: 0.076 | F144: 0.08 | G144: 0.14 | H144: 0.439 | I144: 0.177 | J144: 0.068 | K144: 0.02 | L144: 0 | M144: 0 | N144: 0 | O144: 0 | P144: 0 | Q144: 0 | R144: 0 | T144: 0 | U144: 0 | V144: 0 | W144: 0 | X144: 0 | Y144: 0 | Z144: 0
A145: 21 | B145: Factory-1 | C145: Original | D145: YPOP | E145: 0.114 | F145: 0.04 | G145: 0.103 | H145: 0.418 | I145: 0.188 | J145: 0.112 | K145: 0.025 | L145: 0 | M145: 0 | N145: 0 | O145: 0 | P145: 0 | Q145: 0 | R145: 0 | T145: 0 | U145: 0 | V145: 0 | W145: 0 | X145: 0 | Y145: 0 | Z145: 0
A146: 22 | B146: Factory-1 | C146: Original | D146: YPOP | E146: 0.064 | F146: 0.078 | G146: 0.034 | H146: 0.444 | I146: 0.288 | J146: 0.064 | K146: 0.028 | L146: 0 | M146: 0 | N146: 0 | O146: 0 | P146: 0 | Q146: 0 | R146: 0 | T146: 0 | U146: 0 | V146: 0 | W146: 0 | X146: 0 | Y146: 0 | Z146: 0
A147: 23 | B147: Factory-1 | C147: Original | D147: YPOP | E147: 0.111 | F147: 0.024 | G147: 0.086 | H147: 0.469 | I147: 0.203 | J147: 0.028 | K147: 0.079 | L147: 0 | M147: 0 | N147: 0 | O147: 0 | P147: 0 | Q147: 0 | R147: 0 | T147: 0 | U147: 0 | V147: 0 | W147: 0 | X147: 0 | Y147: 0 | Z147: 0
A148: 24 | B148: Factory-1 | C148: Original | D148: YPOP | E148: 0.078 | F148: 0.059 | G148: 0.081 | H148: 0.368 | I148: 0.356 | J148: 0.033 | K148: 0.025 | L148: 0 | M148: 0 | N148: 0 | O148: 0 | P148: 0 | Q148: 0 | R148: 0 | T148: 0 | U148: 0 | V148: 0 | W148: 0 | X148: 0 | Y148: 0 | Z148: 0
A149: 25 | B149: Factory-1 | C149: Original | D149: YPOP | E149: 0.188 | F149: 0.115 | G149: 0.037 | H149: 0.521 | I149: 0.112 | J149: 0.006 | K149: 0.021 | L149: 0 | M149: 0 | N149: 0 | O149: 0 | P149: 0 | Q149: 0 | R149: 0 | T149: 0 | U149: 0 | V149: 0 | W149: 0 | X149: 0 | Y149: 0 | Z149: 0
A150: 26 | B150: Factory-1 | C150: Original | D150: YPOP | E150: 0.188 | F150: 0.115 | G150: 0.037 | H150: 0.521 | I150: 0.112 | J150: 0.006 | K150: 0.021 | L150: 0 | M150: 0 | N150: 0 | O150: 0 | P150: 0 | Q150: 0 | R150: 0 | T150: 0 | U150: 0 | V150: 0 | W150: 0 | X150: 0 | Y150: 0 | Z150: 0
A151: 27 | B151: Factory-1 | C151: Original | D151: YPOP | E151: 0.188 | F151: 0.115 | G151: 0.037 | H151: 0.521 | I151: 0.112 | J151: 0.006 | K151: 0.021 | L151: 0 | M151: 0 | N151: 0 | O151: 0 | P151: 0 | Q151: 0 | R151: 0 | T151: 0 | U151: 0 | V151: 0 | W151: 0 | X151: 0 | Y151: 0 | Z151: 0
A152: 28 | B152: Factory-1 | C152: Original | D152: YPOP | E152: 0.188 | F152: 0.115 | G152: 0.037 | H152: 0.521 | I152: 0.112 | J152: 0.006 | K152: 0.021 | L152: 0 | M152: 0 | N152: 0 | O152: 0 | P152: 0 | Q152: 0 | R152: 0 | T152: 0 | U152: 0 | V152: 0 | W152: 0 | X152: 0 | Y152: 0 | Z152: 0
A153: 29 | B153: Factory-1 | C153: Original | D153: YPOP | E153: 0.188 | F153: 0.115 | G153: 0.037 | H153: 0.521 | I153: 0.112 | J153: 0.006 | K153: 0.021 | L153: 0 | M153: 0 | N153: 0 | O153: 0 | P153: 0 | Q153: 0 | R153: 0 | T153: 0 | U153: 0 | V153: 0 | W153: 0 | X153: 0 | Y153: 0 | Z153: 0
A154: 30 | B154: Factory-1 | C154: Original | D154: YPOP | E154: 0.188 | F154: 0.115 | G154: 0.037 | H154: 0.521 | I154: 0.112 | J154: 0.006 | K154: 0.021 | L154: 0 | M154: 0 | N154: 0 | O154: 0 | P154: 0 | Q154: 0 | R154: 0 | T154: 0 | U154: 0 | V154: 0 | W154: 0 | X154: 0 | Y154: 0 | Z154: 0
A155: 10 | B155: Factory-2 | C155: Original | D155: YPOP | E155: 0.014 | F155: 0.01 | G155: 0.034 | H155: 0.309 | I155: 0.327 | J155: 0.206 | K155: 0.1 | L155: 0 | M155: 0 | N155: 0 | O155: 0 | P155: 0 | Q155: 0 | R155: 0 | T155: 0 | U155: 0 | V155: 0 | W155: 0 | X155: 0 | Y155: 0 | Z155: 0
A156: 11 | B156: Factory-2 | C156: Original | D156: YPOP | E156: 0.004 | F156: 0.032 | G156: 0.007 | H156: 0.271 | I156: 0.326 | J156: 0.236 | K156: 0.124 | L156: 0 | M156: 0 | N156: 0 | O156: 0 | P156: 0 | Q156: 0 | R156: 0 | T156: 0 | U156: 0 | V156: 0 | W156: 0 | X156: 0 | Y156: 0 | Z156: 0
A157: 12 | B157: Factory-2 | C157: Original | D157: YPOP | E157: 0.007 | F157: 0.028 | G157: 0.029 | H157: 0.292 | I157: 0.367 | J157: 0.203 | K157: 0.074 | L157: 0 | M157: 0 | N157: 0 | O157: 0 | P157: 0 | Q157: 0 | R157: 0 | T157: 0 | U157: 0 | V157: 0 | W157: 0 | X157: 0 | Y157: 0 | Z157: 0
A158: 13 | B158: Factory-2 | C158: Original | D158: YPOP | E158: 0.009 | F158: 0.026 | G158: 0.031 | H158: 0.309 | I158: 0.369 | J158: 0.196 | K158: 0.06 | L158: 0 | M158: 0 | N158: 0 | O158: 0 | P158: 0 | Q158: 0 | R158: 0 | T158: 0 | U158: 0 | V158: 0 | W158: 0 | X158: 0 | Y158: 0 | Z158: 0
A159: 14 | B159: Factory-2 | C159: Original | D159: YPOP | E159: 0.009 | F159: 0.038 | G159: 0.027 | H159: 0.318 | I159: 0.365 | J159: 0.162 | K159: 0.081 | L159: 0 | M159: 0 | N159: 0 | O159: 0 | P159: 0 | Q159: 0 | R159: 0 | T159: 0 | U159: 0 | V159: 0 | W159: 0 | X159: 0 | Y159: 0 | Z159: 0
A160: 15 | B160: Factory-2 | C160: Original | D160: YPOP | E160: 0.019 | F160: 0.035 | G160: 0.048 | H160: 0.328 | I160: 0.311 | J160: 0.197 | K160: 0.062 | L160: 0 | M160: 0 | N160: 0 | O160: 0 | P160: 0 | Q160: 0 | R160: 0 | T160: 0 | U160: 0 | V160: 0 | W160: 0 | X160: 0 | Y160: 0 | Z160: 0
A161: 16 | B161: Factory-2 | C161: Original | D161: YPOP | E161: 0.016 | F161: 0.026 | G161: 0.061 | H161: 0.341 | I161: 0.308 | J161: 0.209 | K161: 0.039 | L161: 0 | M161: 0 | N161: 0 | O161: 0 | P161: 0 | Q161: 0 | R161: 0 | T161: 0 | U161: 0 | V161: 0 | W161: 0 | X161: 0 | Y161: 0 | Z161: 0
A162: 17 | B162: Factory-2 | C162: Original | D162: YPOP | E162: 0.023 | F162: 0.036 | G162: 0.025 | H162: 0.463 | I162: 0.299 | J162: 0.118 | K162: 0.036 | L162: 0 | M162: 0 | N162: 0 | O162: 0 | P162: 0 | Q162: 0 | R162: 0 | T162: 0 | U162: 0 | V162: 0 | W162: 0 | X162: 0 | Y162: 0 | Z162: 0
A163: 18 | B163: Factory-2 | C163: Original | D163: YPOP | E163: 0.027 | F163: 0.033 | G163: 0.06 | H163: 0.389 | I163: 0.317 | J163: 0.11 | K163: 0.064 | L163: 0 | M163: 0 | N163: 0 | O163: 0 | P163: 0 | Q163: 0 | R163: 0 | T163: 0 | U163: 0 | V163: 0 | W163: 0 | X163: 0 | Y163: 0 | Z163: 0
A164: 19 | B164: Factory-2 | C164: Original | D164: YPOP | E164: 0.059 | F164: 0.04 | G164: 0.084 | H164: 0.395 | I164: 0.312 | J164: 0.093 | K164: 0.017 | L164: 0 | M164: 0 | N164: 0 | O164: 0 | P164: 0 | Q164: 0 | R164: 0 | T164: 0 | U164: 0 | V164: 0 | W164: 0 | X164: 0 | Y164: 0 | Z164: 0
A165: 20 | B165: Factory-2 | C165: Original | D165: YPOP | E165: 0.03 | F165: 0.01 | G165: 0.042 | H165: 0.412 | I165: 0.365 | J165: 0.095 | K165: 0.046 | L165: 0 | M165: 0 | N165: 0 | O165: 0 | P165: 0 | Q165: 0 | R165: 0 | T165: 0 | U165: 0 | V165: 0 | W165: 0 | X165: 0 | Y165: 0 | Z165: 0
A166: 21 | B166: Factory-2 | C166: Original | D166: YPOP | E166: 0.023 | F166: 0.031 | G166: 0.046 | H166: 0.517 | I166: 0.275 | J166: 0.091 | K166: 0.017 | L166: 0 | M166: 0 | N166: 0 | O166: 0 | P166: 0 | Q166: 0 | R166: 0 | T166: 0 | U166: 0 | V166: 0 | W166: 0 | X166: 0 | Y166: 0 | Z166: 0
A167: 22 | B167: Factory-2 | C167: Original | D167: YPOP | E167: 0.022 | F167: 0.008 | G167: 0.022 | H167: 0.352 | I167: 0.391 | J167: 0.143 | K167: 0.062 | L167: 0 | M167: 0 | N167: 0 | O167: 0 | P167: 0 | Q167: 0 | R167: 0 | T167: 0 | U167: 0 | V167: 0 | W167: 0 | X167: 0 | Y167: 0 | Z167: 0
A168: 23 | B168: Factory-2 | C168: Original | D168: YPOP | E168: 0.022 | F168: 0.008 | G168: 0.022 | H168: 0.352 | I168: 0.391 | J168: 0.143 | K168: 0.062 | L168: 0 | M168: 0 | N168: 0 | O168: 0 | P168: 0 | Q168: 0 | R168: 0 | T168: 0 | U168: 0 | V168: 0 | W168: 0 | X168: 0 | Y168: 0 | Z168: 0
A169: 24 | B169: Factory-2 | C169: Original | D169: YPOP | E169: 0.014 | F169: 0 | G169: 0.05 | H169: 0.484 | I169: 0.345 | J169: 0.07 | K169: 0.037 | L169: 0 | M169: 0 | N169: 0 | O169: 0 | P169: 0 | Q169: 0 | R169: 0 | T169: 0 | U169: 0 | V169: 0 | W169: 0 | X169: 0 | Y169: 0 | Z169: 0
A170: 25 | B170: Factory-2 | C170: Original | D170: YPOP | E170: 0.014 | F170: 0 | G170: 0.05 | H170: 0.484 | I170: 0.345 | J170: 0.07 | K170: 0.037 | L170: 0 | M170: 0 | N170: 0 | O170: 0 | P170: 0 | Q170: 0 | R170: 0 | T170: 0 | U170: 0 | V170: 0 | W170: 0 | X170: 0 | Y170: 0 | Z170: 0
A171: 26 | B171: Factory-2 | C171: Original | D171: YPOP | E171: =AVERAGE(E$172,E$170,E$169,E$168,E$167,E$166) -> 0.03916666667 | F171: 0.01216666667 | G171: 0.0725 | H171: 0.4388333333 | I171: 0.3048333333 | J171: 0.08766666667 | K171: 0.04483333333 | L171: 0 | M171: 0 | N171: 0 | O171: 0 | P171: 0 | Q171: 0 | R171: 0 | T171: 0 | U171: 0 | V171: 0 | W171: 0 | X171: 0 | Y171: 0 | Z171: 0
A172: 27 | B172: Factory-2 | C172: Original | D172: YPOP | E172: 0.14 | F172: 0.026 | G172: 0.245 | H172: 0.444 | I172: 0.082 | J172: 0.009 | K172: 0.054 | L172: 0 | M172: 0 | N172: 0 | O172: 0 | P172: 0 | Q172: 0 | R172: 0 | T172: 0 | U172: 0 | V172: 0 | W172: 0 | X172: 0 | Y172: 0 | Z172: 0
A173: 28 | B173: Factory-2 | C173: Original | D173: YPOP | E173: =AVERAGE(E$172,E$170,E$169,E$168,E$167,E$166) -> 0.03916666667 | F173: 0.01216666667 | G173: 0.0725 | H173: 0.4388333333 | I173: 0.3048333333 | J173: 0.08766666667 | K173: 0.04483333333 | L173: 0 | M173: 0 | N173: 0 | O173: 0 | P173: 0 | Q173: 0 | R173: 0 | T173: 0 | U173: 0 | V173: 0 | W173: 0 | X173: 0 | Y173: 0 | Z173: 0
A174: 29 | B174: Factory-2 | C174: Original | D174: YPOP | E174: 0.03916666667 | F174: 0.01216666667 | G174: 0.0725 | H174: 0.4388333333 | I174: 0.3048333333 | J174: 0.08766666667 | K174: 0.04483333333 | L174: 0 | M174: 0 | N174: 0 | O174: 0 | P174: 0 | Q174: 0 | R174: 0 | T174: 0 | U174: 0 | V174: 0 | W174: 0 | X174: 0 | Y174: 0 | Z174: 0
A175: 20 | B175: Factory-2 | C175: Original | D175: YPOP | E175: 0.03916666667 | F175: 0.01216666667 | G175: 0.0725 | H175: 0.4388333333 | I175: 0.3048333333 | J175: 0.08766666667 | K175: 0.04483333333 | L175: 0 | M175: 0 | N175: 0 | O175: 0 | P175: 0 | Q175: 0 | R175: 0 | T175: 0 | U175: 0 | V175: 0 | W175: 0 | X175: 0 | Y175: 0 | Z175: 0
A176: 8 | B176: Factory-3 | C176: Original | D176: YPOP | E176: 0 | F176: 0.002 | G176: 0.002 | H176: 0.05 | I176: 0.172 | J176: 0.541 | K176: 0.233 | L176: 0 | M176: 0 | N176: 0 | O176: 0 | P176: 0 | Q176: 0 | R176: 0 | T176: 0 | U176: 0 | V176: 0 | W176: 0 | X176: 0 | Y176: 0 | Z176: 0
A177: 9 | B177: Factory-3 | C177: Original | D177: YPOP | E177: 0 | F177: 0.002 | G177: 0.003 | H177: 0.071 | I177: 0.206 | J177: 0.497 | K177: 0.221 | L177: 0 | M177: 0 | N177: 0 | O177: 0 | P177: 0 | Q177: 0 | R177: 0 | T177: 0 | U177: 0 | V177: 0 | W177: 0 | X177: 0 | Y177: 0 | Z177: 0
A178: 10 | B178: Factory-3 | C178: Original | D178: YPOP | E178: 0 | F178: 0.001 | G178: 0 | H178: 0.1 | I178: 0.303 | J178: 0.471 | K178: 0.125 | L178: 0 | M178: 0 | N178: 0 | O178: 0 | P178: 0 | Q178: 0 | R178: 0 | T178: 0 | U178: 0 | V178: 0 | W178: 0 | X178: 0 | Y178: 0 | Z178: 0
A179: 11 | B179: Factory-3 | C179: Original | D179: YPOP | E179: 0.001 | F179: 0.004 | G179: 0.003 | H179: 0.115 | I179: 0.309 | J179: 0.419 | K179: 0.149 | L179: 0 | M179: 0 | N179: 0 | O179: 0 | P179: 0 | Q179: 0 | R179: 0 | T179: 0 | U179: 0 | V179: 0 | W179: 0 | X179: 0 | Y179: 0 | Z179: 0
A180: 12 | B180: Factory-3 | C180: Original | D180: YPOP | E180: 0 | F180: 0.009 | G180: 0.005 | H180: 0.143 | I180: 0.351 | J180: 0.385 | K180: 0.107 | L180: 0 | M180: 0 | N180: 0 | O180: 0 | P180: 0 | Q180: 0 | R180: 0 | T180: 0 | U180: 0 | V180: 0 | W180: 0 | X180: 0 | Y180: 0 | Z180: 0
A181: 13 | B181: Factory-3 | C181: Original | D181: YPOP | E181: 0 | F181: 0.01 | G181: 0.001 | H181: 0.186 | I181: 0.379 | J181: 0.349 | K181: 0.075 | L181: 0 | M181: 0 | N181: 0 | O181: 0 | P181: 0 | Q181: 0 | R181: 0 | T181: 0 | U181: 0 | V181: 0 | W181: 0 | X181: 0 | Y181: 0 | Z181: 0
A182: 14 | B182: Factory-3 | C182: Original | D182: YPOP | E182: 0.001 | F182: 0.005 | G182: 0.007 | H182: 0.217 | I182: 0.369 | J182: 0.337 | K182: 0.064 | L182: 0 | M182: 0 | N182: 0 | O182: 0 | P182: 0 | Q182: 0 | R182: 0 | T182: 0 | U182: 0 | V182: 0 | W182: 0 | X182: 0 | Y182: 0 | Z182: 0
A183: 15 | B183: Factory-3 | C183: Original | D183: YPOP | E183: 0.001 | F183: 0.013 | G183: 0.007 | H183: 0.24 | I183: 0.419 | J183: 0.263 | K183: 0.057 | L183: 0 | M183: 0 | N183: 0 | O183: 0 | P183: 0 | Q183: 0 | R183: 0 | T183: 0 | U183: 0 | V183: 0 | W183: 0 | X183: 0 | Y183: 0 | Z183: 0
A184: 16 | B184: Factory-3 | C184: Original | D184: YPOP | E184: 0.002 | F184: 0.011 | G184: 0.025 | H184: 0.311 | I184: 0.387 | J184: 0.211 | K184: 0.053 | L184: 0 | M184: 0 | N184: 0 | O184: 0 | P184: 0 | Q184: 0 | R184: 0 | T184: 0 | U184: 0 | V184: 0 | W184: 0 | X184: 0 | Y184: 0 | Z184: 0
A185: 17 | B185: Factory-3 | C185: Original | D185: YPOP | E185: 0.011 | F185: 0.007 | G185: 0.018 | H185: 0.401 | I185: 0.359 | J185: 0.15 | K185: 0.054 | L185: 0 | M185: 0 | N185: 0 | O185: 0 | P185: 0 | Q185: 0 | R185: 0 | T185: 0 | U185: 0 | V185: 0 | W185: 0 | X185: 0 | Y185: 0 | Z185: 0
A186: 18 | B186: Factory-3 | C186: Original | D186: YPOP | E186: 0.01 | F186: 0.026 | G186: 0.025 | H186: 0.403 | I186: 0.296 | J186: 0.219 | K186: 0.021 | L186: 0 | M186: 0 | N186: 0 | O186: 0 | P186: 0 | Q186: 0 | R186: 0 | T186: 0 | U186: 0 | V186: 0 | W186: 0 | X186: 0 | Y186: 0 | Z186: 0
A187: 19 | B187: Factory-3 | C187: Original | D187: YPOP | E187: 0.004 | F187: 0.018 | G187: 0.025 | H187: 0.356 | I187: 0.356 | J187: 0.206 | K187: 0.035 | L187: 0 | M187: 0 | N187: 0 | O187: 0 | P187: 0 | Q187: 0 | R187: 0 | T187: 0 | U187: 0 | V187: 0 | W187: 0 | X187: 0 | Y187: 0 | Z187: 0
A188: 20 | B188: Factory-3 | C188: Original | D188: YPOP | E188: 0.035 | F188: 0.005 | G188: 0.026 | H188: 0.542 | I188: 0.236 | J188: 0.144 | K188: 0.012 | L188: 0 | M188: 0 | N188: 0 | O188: 0 | P188: 0 | Q188: 0 | R188: 0 | T188: 0 | U188: 0 | V188: 0 | W188: 0 | X188: 0 | Y188: 0 | Z188: 0
A189: 21 | B189: Factory-3 | C189: Original | D189: YPOP | E189: 0 | F189: 0.215 | G189: 0 | H189: 0.433 | I189: 0.333 | J189: 0.019 | K189: 0 | L189: 0 | M189: 0 | N189: 0 | O189: 0 | P189: 0 | Q189: 0 | R189: 0 | T189: 0 | U189: 0 | V189: 0 | W189: 0 | X189: 0 | Y189: 0 | Z189: 0
A190: 22 | B190: Factory-3 | C190: Original | D190: YPOP | E190: 0.09 | F190: 0.093 | G190: 0.049 | H190: 0.379 | I190: 0.168 | J190: 0.129 | K190: 0.092 | L190: 0 | M190: 0 | N190: 0 | O190: 0 | P190: 0 | Q190: 0 | R190: 0 | T190: 0 | U190: 0 | V190: 0 | W190: 0 | X190: 0 | Y190: 0 | Z190: 0
A191: 23 | B191: Factory-3 | C191: Original | D191: YPOP | E191: 0 | F191: 0 | G191: 0 | H191: 0.292 | I191: 0.413 | J191: 0.24 | K191: 0.055 | L191: 0 | M191: 0 | N191: 0 | O191: 0 | P191: 0 | Q191: 0 | R191: 0 | T191: 0 | U191: 0 | V191: 0 | W191: 0 | X191: 0 | Y191: 0 | Z191: 0
A192: 24 | B192: Factory-3 | C192: Original | D192: YPOP | E192: 0 | F192: 0 | G192: 0 | H192: 0.381 | I192: 0.495 | J192: 0.124 | K192: 0 | L192: 0 | M192: 0 | N192: 0 | O192: 0 | P192: 0 | Q192: 0 | R192: 0 | T192: 0 | U192: 0 | V192: 0 | W192: 0 | X192: 0 | Y192: 0 | Z192: 0
A193: 25 | B193: Factory-3 | C193: Original | D193: YPOP | E193: 0 | F193: 0 | G193: 0 | H193: 0.381 | I193: 0.495 | J193: 0.124 | K193: 0 | L193: 0 | M193: 0 | N193: 0 | O193: 0 | P193: 0 | Q193: 0 | R193: 0 | T193: 0 | U193: 0 | V193: 0 | W193: 0 | X193: 0 | Y193: 0 | Z193: 0
A194: 26 | B194: Factory-3 | C194: Original | D194: YPOP | E194: 0 | F194: 0 | G194: 0 | H194: 0.217 | I194: 0.503 | J194: 0.063 | K194: 0.217 | L194: 0 | M194: 0 | N194: 0 | O194: 0 | P194: 0 | Q194: 0 | R194: 0 | T194: 0 | U194: 0 | V194: 0 | W194: 0 | X194: 0 | Y194: 0 | Z194: 0
A195: 27 | B195: Factory-3 | C195: Original | D195: YPOP | E195: 0 | F195: 0.04 | G195: 0.02 | H195: 0.439 | I195: 0.34 | J195: 0.111 | K195: 0.05 | L195: 0 | M195: 0 | N195: 0 | O195: 0 | P195: 0 | Q195: 0 | R195: 0 | T195: 0 | U195: 0 | V195: 0 | W195: 0 | X195: 0 | Y195: 0 | Z195: 0
A196: 28 | B196: Factory-3 | C196: Original | D196: YPOP | E196: =AVERAGE(E$189:E$195) -> 0.01285714286 | F196: 0.04971428571 | G196: 0.009857142857 | H196: 0.3602857143 | I196: 0.3924285714 | J196: 0.1157142857 | K196: 0.05914285714 | L196: 0 | M196: 0 | N196: 0 | O196: 0 | P196: 0 | Q196: 0 | R196: 0 | T196: 0 | U196: 0 | V196: 0 | W196: 0 | X196: 0 | Y196: 0 | Z196: 0
A197: 29 | B197: Factory-3 | C197: Original | D197: YPOP | E197: 0.01285714286 | F197: 0.04971428571 | G197: 0.009857142857 | H197: 0.3602857143 | I197: 0.3924285714 | J197: 0.1157142857 | K197: 0.05914285714 | L197: 0 | M197: 0 | N197: 0 | O197: 0 | P197: 0 | Q197: 0 | R197: 0 | T197: 0 | U197: 0 | V197: 0 | W197: 0 | X197: 0 | Y197: 0 | Z197: 0
A198: 30 | B198: Factory-3 | C198: Original | D198: YPOP | E198: 0.01285714286 | F198: 0.04971428571 | G198: 0.009857142857 | H198: 0.3602857143 | I198: 0.3924285714 | J198: 0.1157142857 | K198: 0.05914285714 | L198: 0 | M198: 0 | N198: 0 | O198: 0 | P198: 0 | Q198: 0 | R198: 0 | T198: 0 | U198: 0 | V198: 0 | W198: 0 | X198: 0 | Y198: 0 | Z198: 0
A199: 13 | B199: Factory-1 | C199: Original | D199: HMAP | E199: 0.147 | F199: 0.132 | G199: 0.041 | H199: 0.267 | I199: 0.142 | J199: 0.105 | K199: 0.166 | L199: 0 | M199: 0 | N199: 0 | O199: 0 | P199: 0 | Q199: 0 | R199: 0 | T199: 0 | U199: 0 | V199: 0 | W199: 0 | X199: 0 | Y199: 0 | Z199: 0
A200: 14 | B200: Factory-1 | C200: Original | D200: HMAP | E200: 0.232 | F200: 0.127 | G200: 0.044 | H200: 0.247 | I200: 0.151 | J200: 0.07 | K200: 0.129 | L200: 0 | M200: 0 | N200: 0 | O200: 0 | P200: 0 | Q200: 0 | R200: 0 | T200: 0 | U200: 0 | V200: 0 | W200: 0 | X200: 0 | Y200: 0 | Z200: 0
A201: 15 | B201: Factory-1 | C201: Original | D201: HMAP | E201: 0.242 | F201: 0.117 | G201: 0.035 | H201: 0.237 | I201: 0.141 | J201: 0.085 | K201: 0.143 | L201: 0 | M201: 0 | N201: 0 | O201: 0 | P201: 0 | Q201: 0 | R201: 0 | T201: 0 | U201: 0 | V201: 0 | W201: 0 | X201: 0 | Y201: 0 | Z201: 0
A202: 16 | B202: Factory-1 | C202: Original | D202: HMAP | E202: 0.195 | F202: 0.115 | G202: 0.031 | H202: 0.275 | I202: 0.17 | J202: 0.069 | K202: 0.145 | L202: 0 | M202: 0 | N202: 0 | O202: 0 | P202: 0 | Q202: 0 | R202: 0 | T202: 0 | U202: 0 | V202: 0 | W202: 0 | X202: 0 | Y202: 0 | Z202: 0
A203: 17 | B203: Factory-1 | C203: Original | D203: HMAP | E203: 0.209 | F203: 0.13 | G203: 0.034 | H203: 0.281 | I203: 0.166 | J203: 0.059 | K203: 0.121 | L203: 0 | M203: 0 | N203: 0 | O203: 0 | P203: 0 | Q203: 0 | R203: 0 | T203: 0 | U203: 0 | V203: 0 | W203: 0 | X203: 0 | Y203: 0 | Z203: 0
A204: 18 | B204: Factory-1 | C204: Original | D204: HMAP | E204: 0.243 | F204: 0.133 | G204: 0.031 | H204: 0.25 | I204: 0.157 | J204: 0.06 | K204: 0.127 | L204: 0 | M204: 0 | N204: 0 | O204: 0 | P204: 0 | Q204: 0 | R204: 0 | T204: 0 | U204: 0 | V204: 0 | W204: 0 | X204: 0 | Y204: 0 | Z204: 0
... 565 more rows

Sheet Batch Summaries
A1: Summarized Batch Analyses Results
B6: Total | C6: Total | D6: Log | G6: Average | P6: Total | R6: Total | S6: Total | W6: Total | X6: Average | Y6: Total | Z6: Average | AA6: Total | AB6: Average | AC6: Board Width Distribution
B7: Logs | C7: Log | D7: Recovery | E7: Boards | F7: Total | G7: Recovery | P7: Product | Q7: Cant | R7: Lumber | S7: Associated | T7: Log | U7: Processing | V7: Profit | W7: Int 1/4 | X7: Int 1/4 | Y7: Scribner | Z7: Scriber | AA7: Doyle | AB7: Doyle | AD7: >= 4 | AE7: >= 5 | AF7: >=6 | AG7: >=7 | AH7: >=8 | AI7: >=9 | AJ7: >=10 | AK7: >=11 | AL7: >=12 | AM7: >=13 | AN7: >=14 | AO7: >=15 | AP7: >=16 | AQ7: >=17 | AR7: >=18
A8: Summary Name | B8: Processed | C8: Volume | D8: Factor | E8: Sawn | F8: Recovery | G8: Per Log | H8: Cant | I8: FAS | J8: F1F | K8: Selects | L8: 1C | M8: 2AC | N8: 3AC | O8: 3BC | P8: Value | Q8: Value | R8: Value | S8: Costs | T8: Cost | U8: Cost | V8: Loss | W8: Scale | X8: Over-run | Y8: Scale | Z8: Over-run | AA8: Scale | AB8: Over-run | AC8: < 4 | AD8: < 5 | AE8: < 6 | AF8: < 7 | AG8: < 8 | AH8: <9 | AI8: < 10 | AJ8: < 11 | AK8: < 12 | AL8: < 13 | AM8: < 14 | AN8: < 15 | AO8: < 16 | AP8: < 17 | AQ8: < 18 | AR8: < 30
C9: (ft3) | F9: (bdft) | G9: (bdft) | H9: (bdft) | I9: (bdft) | J9: (bdft) | K9: (bdft) | L9: (bdft) | M9: (bdft) | N9: (bdft) | O9: (bdft) | P9: ($) | Q9: ($) | R9: ($) | S9: ($) | T9: ($) | U9: ($) | V9: ($) | W9: (bdft) | Y9: (bdft) | AA9: (bdft)
A10: 0.020 Sawing Variation | B10: 50 | C10: 1246.20809 | D10: 6.559408136 | E10: 907 | F10: 9456.321667 | G10: 189.1264333 | H10: 1032 | I10: 208.453552 | J10: 157.9493158 | K10: 361.1256237 | L10: 2964.722071 | M10: 2451.699565 | N10: 955.0951369 | O10: 377.5171091 | P10: 2982.510653 | Q10: 350.88 | R10: 2631.630653 | S10: 2131.691891 | T10: 1786.875 | U10: 344.816891 | V10: 850.8187617 | W10: 8110 | X10: 0.05662250791 | Y10: 7720 | Z10: 0.1337341959 | AA10: 7147.5 | AB10: 0.317283806 | AC10: 0 | AD10: 1 | AE10: 18 | AF10: 265 | AG10: 94 | AH10: 118 | AI10: 140 | AJ10: 141 | AK10: 48 | AL10: 30 | AM10: 22 | AN10: 17 | AO10: 7 | AP10: 5 | AQ10: 1 | AR10: 0
A11: 0.030 Sawing Variation | B11: 50 | C11: 1246.20809 | D11: 6.494497985 | E11: 890 | F11: 9325.014626 | G11: 186.5002925 | H11: 1056 | I11: 205.4164957 | J11: 155.0441893 | K11: 355.585519 | L11: 2910.503359 | M11: 2406.307532 | N11: 935.5236807 | O11: 370.019024 | P11: 2942.941715 | Q11: 359.04 | R11: 2583.901715 | S11: 2131.691891 | T11: 1786.875 | U11: 344.816891 | V11: 811.2498242 | W11: 8110 | X11: 0.04715262899 | Y11: 7720 | Z11: 0.1239554765 | AA11: 7147.5 | AB11: 0.3074404408 | AC11: 0 | AD11: 1 | AE11: 17 | AF11: 260 | AG11: 93 | AH11: 114 | AI11: 149 | AJ11: 121 | AK11: 55 | AL11: 29 | AM11: 25 | AN11: 13 | AO11: 10 | AP11: 2 | AQ11: 1 | AR11: 0
A12: ROAK-3CF-Recovery-Test | B12: 100 | C12: 2428.692556 | D12: 6.866062916 | E12: 2075 | F12: 17102.05364 | G12: 171.0205364 | H12: 0 | I12: 4928.55957 | J12: 2391.854392 | K12: 533.3184787 | L12: 4599.471108 | M12: 2953.545373 | N12: 1342.731791 | O12: 352.5729304 | P12: 15365.0894 | Q12: 0 | R12: 15365.0894 | S12: 6792.260863 | T12: 5687.1375 | U12: 1105.123363 | V12: 8572.828533 | W12: 15485 | X12: 0.1179673401 | Y12: 14660 | Z12: 0.1953564015 | AA12: 13381.5 | AB12: 0.3858959535 | AC12: 0 | AD12: 3 | AE12: 17 | AF12: 795 | AG12: 269 | AH12: 248 | AI12: 228 | AJ12: 158 | AK12: 78 | AL12: 58 | AM12: 53 | AN12: 86 | AO12: 61 | AP12: 20 | AQ12: 0 | AR12: 1
A13: 0.030 SV 200 Log Sample | B13: 200 | C13: 7118.364893 | D13: 7.157293852 | E13: 4642 | F13: 52153.84452 | G13: 260.7692226 | H13: 0 | I13: 6656.826236 | J13: 5095.073781 | K13: 1053.005418 | L13: 19256.73683 | M13: 11510.25891 | N13: 5636.939425 | O13: 2945.003922 | P13: 26277.95921 | Q13: 0 | R13: 26277.95921 | S13: 22369.24002 | T13: 10634.625 | U13: 11734.61502 | V13: 3908.719194 | W13: 47265 | X13: 0.1062625058 | Y13: 44120 | Z13: 0.1924292792 | AA13: 40744 | AB13: 0.3576261765 | AC13: 0 | AD13: 3 | AE13: 808 | AF13: 834 | AG13: 758 | AH13: 548 | AI13: 382 | AJ13: 215 | AK13: 157 | AL13: 186 | AM13: 276 | AN13: 248 | AO13: 104 | AP13: 57 | AQ13: 17 | AR13: 49
A14: 0.050 SV 200 Log Sample | B14: 200 | C14: 7118.364893 | D14: 6.93261532 | E14: 4506 | F14: 50444.51342 | G14: 252.2225671 | H14: 0 | I14: 6434.378529 | J14: 4926.295833 | K14: 1019.460132 | L14: 18620.26798 | M14: 11138.13786 | N14: 5457.525636 | O14: 2848.447444 | P14: 25414.16175 | Q14: 0 | R14: 25414.16175 | S14: 21984.64052 | T14: 10634.625 | U14: 11350.01552 | V14: 3429.521232 | W14: 47265 | X14: 0.07195252912 | Y14: 44120 | Z14: 0.1554652207 | AA14: 40744 | AB14: 0.3165974721 | AC14: 0 | AD14: 3 | AE14: 816 | AF14: 849 | AG14: 651 | AH14: 535 | AI14: 386 | AJ14: 268 | AK14: 139 | AL14: 123 | AM14: 242 | AN14: 245 | AO14: 128 | AP14: 63 | AQ14: 10 | AR14: 48
A15: 0.065 SV 200 Log Sample | B15: 200 | C15: 7118.364893 | D15: 6.745890411 | E15: 4413 | F15: 49125.26004 | G15: 245.6263002 | H15: 0 | I15: 6270.488337 | J15: 4798.99742 | K15: 992.3810716 | L15: 18137.89076 | M15: 10842.46416 | N15: 5310.018304 | O15: 2773.019985 | P15: 24752.10941 | Q15: 0 | R15: 24752.10941 | S15: 21687.80851 | T15: 10634.625 | U15: 11053.18351 | V15: 3064.300903 | W15: 47265 | X15: 0.04294310458 | Y15: 44120 | Z15: 0.1242898759 | AA15: 40744 | AB15: 0.2809655496 | AC15: 0 | AD15: 3 | AE15: 820 | AF15: 790 | AG15: 675 | AH15: 507 | AI15: 403 | AJ15: 262 | AK15: 162 | AL15: 99 | AM15: 172 | AN15: 255 | AO15: 146 | AP15: 68 | AQ15: 12 | AR15: 39
A16: Factory-2-Sample | B16: 125 | C16: 3712.141125 | D16: 7.059315082 | E16: 2553 | F16: 26586.65404 | G16: 212.6932323 | H16: 0 | I16: 2982.138928 | J16: 2454.327492 | K16: 573.7514504 | L16: 9389.392418 | M16: 6275.351723 | N16: 3319.145013 | O16: 1592.547014 | P16: 16828.07114 | Q16: 0 | R16: 16828.07114 | S16: 10565.23073 | T16: 5088.38 | U16: 5476.850732 | V16: 6262.840404 | W16: 25190 | X16: 0.05494705032 | Y16: 23340 | Z16: 0.1446277592 | AA16: 20887 | AB16: 0.3139691384 | AC16: 0 | AD16: 0 | AE16: 8 | AF16: 1003 | AG16: 339 | AH16: 362 | AI16: 282 | AJ16: 202 | AK16: 78 | AL16: 49 | AM16: 110 | AN16: 89 | AO16: 31 | AP16: 0 | AQ16: 0 | AR16: 0

Sheet LogScale (hidden)
B1: Log Scale Tables
C3: Interactive | D3: Batch Input | G3: Batch Processing Lookup Results | J3: Interactive Processing Lookup Results
B4: Diameter | C4: ='Interactive Sawing'!D9 -> 20 | D4: 14.71020876 | G4: Int ¼ | H4: Doyle | I4: Scribner | J4: Int ¼ | K4: Doyle | L4: Scribner
B5: Length | C5: ='Interactive Sawing'!D11 -> 16 | D5: 16 | E5: Volume in Board Feet | G5: =MAX(G9:G386) -> 135 | H5: 100 | I5: 120 | J5: 290 | K5: 256 | L5: 270
A6: Small
A7: End | B7: Log | G7: Volume Look-up Table | J7: Volume Look-up Table
A8: Diameter | B8: Length | C8: Int ¼ | D8: Doyle | E8: Scribner | G8: Int ¼ | H8: Doyle | I8: Scribner | J8: Int ¼ | K8: Doyle | L8: Scribner
A9: 8 | B9: 8 | C9: =ROUND((0.398*POWER(A9,2)-1.086*A9-0.271)/5,0)*5 -> 15 | D9: =(POWER(A9-4,2)*B9)/16 -> 8 | E9: =ROUND(((0.79*POWER(A9,2)-2*A9 -4)*B9/16)/10,0)*10 -> 20 | G9: =IF(AND(($A9=FLOOR($D$4,1)),($B9=FLOOR($D$5,1))),C9,0) -> 0 | H9: =IF(AND(($A9=FLOOR($D$4,1)),($B9=FLOOR($D$5,1))),D9,0) -> 0 | I9: =IF(AND(($A9=FLOOR($D$4,1)),($B9=FLOOR($D$5,1))),E9,0) -> 0 | J9: =IF(AND(($A9=FLOOR($C$4,1)),($B9=FLOOR($C$5,1))),C9,0) -> 0 | K9: =IF(AND(($A9=FLOOR($C$4,1)),($B9=FLOOR($C$5,1))),D9,0) -> 0 | L9: =IF(AND(($A9=FLOOR($C$4,1)),($B9=FLOOR($C$5,1))),E9,0) -> 0
A10: 8 | B10: 9 | C10: =FLOOR((C9+C11)/2,1) -> 17 | D10: 9 | E10: 20 | G10: =IF(AND(($A10=FLOOR($D$4,1)),($B10=FLOOR($D$5,1))),C10,0) -> 0 | H10: =IF(AND(($A10=FLOOR($D$4,1)),($B10=FLOOR($D$5,1))),D10,0) -> 0 | I10: =IF(AND(($A10=FLOOR($D$4,1)),($B10=FLOOR($D$5,1))),E10,0) -> 0 | J10: =IF(AND(($A10=FLOOR($C$4,1)),($B10=FLOOR($C$5,1))),C10,0) -> 0 | K10: =IF(AND(($A10=FLOOR($C$4,1)),($B10=FLOOR($C$5,1))),D10,0) -> 0 | L10: =IF(AND(($A10=FLOOR($C$4,1)),($B10=FLOOR($C$5,1))),E10,0) -> 0
A11: 8 | B11: 10 | C11: =ROUND(((C9+C13)/2)/5,0) * 5 -> 20 | D11: 10 | E11: 20 | G11: 0 | H11: 0 | I11: 0 | J11: 0 | K11: 0 | L11: 0
A12: 8 | B12: 11 | C12: =FLOOR((C11+C13)/2,1) -> 22 | D12: 11 | E12: 20 | G12: 0 | H12: 0 | I12: 0 | J12: 0 | K12: 0 | L12: 0
A13: 8 | B13: 12 | C13: =ROUND((0.597*POWER(A13,2)-1.33*A13-0.715)/5,0)*5 -> 25 | D13: 12 | E13: 20 | G13: 0 | H13: 0 | I13: 0 | J13: 0 | K13: 0 | L13: 0
A14: 8 | B14: 13 | C14: =FLOOR((C13+C15)/2,1) -> 30 | D14: 13 | E14: 20 | G14: 0 | H14: 0 | I14: 0 | J14: 0 | K14: 0 | L14: 0
A15: 8 | B15: 14 | C15: =ROUND(((C13+C17)/2)/5,0) * 5 -> 35 | D15: 14 | E15: 30 | G15: 0 | H15: 0 | I15: 0 | J15: 0 | K15: 0 | L15: 0
A16: 8 | B16: 15 | C16: =FLOOR((C15+C17)/2,1) -> 37 | D16: 15 | E16: 30 | G16: 0 | H16: 0 | I16: 0 | J16: 0 | K16: 0 | L16: 0
A17: 8 | B17: 16 | C17: =ROUND((0.796* POWER(A17,2)-1.375*A17-1.23)/5,0)*5 -> 40 | D17: 16 | E17: 30 | G17: 0 | H17: 0 | I17: 0 | J17: 0 | K17: 0 | L17: 0
A18: 8 | B18: 17 | C18: =FLOOR((C17+C19)/2,1) -> 42 | D18: 17 | E18: 30 | G18: 0 | H18: 0 | I18: 0 | J18: 0 | K18: 0 | L18: 0
A19: 8 | B19: 18 | C19: =ROUND(((C17+C21)/2)/5,0) * 5 -> 45 | D19: 18 | E19: 30 | G19: 0 | H19: 0 | I19: 0 | J19: 0 | K19: 0 | L19: 0
A20: 8 | B20: 19 | C20: =FLOOR((C19+C21)/2,1) -> 47 | D20: 19 | E20: 40 | G20: 0 | H20: 0 | I20: 0 | J20: 0 | K20: 0 | L20: 0
A21: 8 | B21: 20 | C21: =ROUND((0.995*POWER(A21,2) - 1.221*A21 - 1.719)/5,0)*5 -> 50 | D21: 20 | E21: 40 | G21: 0 | H21: 0 | I21: 0 | J21: 0 | K21: 0 | L21: 0
A22: 9 | B22: 8 | C22: =ROUND((0.398*POWER(A22,2)-1.086*A22-0.271)/5,0)*5 -> 20 | D22: 12.5 | E22: 20 | G22: 0 | H22: 0 | I22: 0 | J22: 0 | K22: 0 | L22: 0
A23: 9 | B23: 9 | C23: =FLOOR((C22+C24)/2,1) -> 25 | D23: =(POWER(A23-4,2)*B23)/16 -> 14.0625 | E23: =ROUND(((0.79*POWER(A23,2)-2*A23 -4)*B23/16)/10,0)*10 -> 20 | G23: 0 | H23: 0 | I23: 0 | J23: 0 | K23: 0 | L23: 0
A24: 9 | B24: 10 | C24: =ROUND(((C22+C26)/2)/5,0) * 5 -> 30 | D24: 15.625 | E24: 30 | G24: 0 | H24: 0 | I24: 0 | J24: 0 | K24: 0 | L24: 0
A25: 9 | B25: 11 | C25: =FLOOR((C24+C26)/2,1) -> 32 | D25: 17.1875 | E25: 30 | G25: 0 | H25: 0 | I25: 0 | J25: 0 | K25: 0 | L25: 0
A26: 9 | B26: 12 | C26: =ROUND((0.597*POWER(A26,2)-1.33*A26-0.715)/5,0)*5 -> 35 | D26: 18.75 | E26: 30 | G26: 0 | H26: 0 | I26: 0 | J26: 0 | K26: 0 | L26: 0
A27: 9 | B27: 13 | C27: =FLOOR((C26+C28)/2,1) -> 40 | D27: 20.3125 | E27: 30 | G27: 0 | H27: 0 | I27: 0 | J27: 0 | K27: 0 | L27: 0
A28: 9 | B28: 14 | C28: =ROUND(((C26+C30)/2)/5,0) * 5 -> 45 | D28: 21.875 | E28: 40 | G28: 0 | H28: 0 | I28: 0 | J28: 0 | K28: 0 | L28: 0
A29: 9 | B29: 15 | C29: =FLOOR((C28+C30)/2,1) -> 47 | D29: 23.4375 | E29: 40 | G29: 0 | H29: 0 | I29: 0 | J29: 0 | K29: 0 | L29: 0
A30: 9 | B30: 16 | C30: =ROUND((0.796* POWER(A30,2)-1.375*A30-1.23)/5,0)*5 -> 50 | D30: 25 | E30: 40 | G30: 0 | H30: 0 | I30: 0 | J30: 0 | K30: 0 | L30: 0
A31: 9 | B31: 17 | C31: =FLOOR((C30+C32)/2,1) -> 55 | D31: 26.5625 | E31: 40 | G31: 0 | H31: 0 | I31: 0 | J31: 0 | K31: 0 | L31: 0
A32: 9 | B32: 18 | C32: =ROUND(((C30+C34)/2)/5,0) * 5 -> 60 | D32: 28.125 | E32: 50 | G32: 0 | H32: 0 | I32: 0 | J32: 0 | K32: 0 | L32: 0
A33: 9 | B33: 19 | C33: =FLOOR((C32+C34)/2,1) -> 65 | D33: 29.6875 | E33: 50 | G33: 0 | H33: 0 | I33: 0 | J33: 0 | K33: 0 | L33: 0
A34: 9 | B34: 20 | C34: =ROUND((0.995*POWER(A34,2) - 1.221*A34 - 1.719)/5,0)*5 -> 70 | D34: 31.25 | E34: 50 | G34: 0 | H34: 0 | I34: 0 | J34: 0 | K34: 0 | L34: 0
A35: 10 | B35: 8 | C35: =ROUND((0.398*POWER(A35,2)-1.086*A35-0.271)/5,0)*5 -> 30 | D35: 18 | E35: 30 | G35: 0 | H35: 0 | I35: 0 | J35: 0 | K35: 0 | L35: 0
A36: 10 | B36: 9 | C36: =FLOOR((C35+C37)/2,1) -> 35 | D36: 20.25 | E36: 30 | G36: 0 | H36: 0 | I36: 0 | J36: 0 | K36: 0 | L36: 0
A37: 10 | B37: 10 | C37: =ROUND(((C35+C39)/2)/5,0) * 5 -> 40 | D37: 22.5 | E37: 30 | G37: 0 | H37: 0 | I37: 0 | J37: 0 | K37: 0 | L37: 0
A38: 10 | B38: 11 | C38: =FLOOR((C37+C39)/2,1) -> 42 | D38: 24.75 | E38: 40 | G38: 0 | H38: 0 | I38: 0 | J38: 0 | K38: 0 | L38: 0
A39: 10 | B39: 12 | C39: =ROUND((0.597*POWER(A39,2)-1.33*A39-0.715)/5,0)*5 -> 45 | D39: 27 | E39: 40 | G39: 0 | H39: 0 | I39: 0 | J39: 0 | K39: 0 | L39: 0
A40: 10 | B40: 13 | C40: =FLOOR((C39+C41)/2,1) -> 50 | D40: 29.25 | E40: 40 | G40: 0 | H40: 0 | I40: 0 | J40: 0 | K40: 0 | L40: 0
A41: 10 | B41: 14 | C41: =ROUND(((C39+C43)/2)/5,0) * 5 -> 55 | D41: 31.5 | E41: 50 | G41: 0 | H41: 0 | I41: 0 | J41: 0 | K41: 0 | L41: 0
A42: 10 | B42: 15 | C42: =FLOOR((C41+C43)/2,1) -> 60 | D42: 33.75 | E42: 50 | G42: 0 | H42: 0 | I42: 0 | J42: 0 | K42: 0 | L42: 0
A43: 10 | B43: 16 | C43: =ROUND((0.796* POWER(A43,2)-1.375*A43-1.23)/5,0)*5 -> 65 | D43: 36 | E43: 60 | G43: 0 | H43: 0 | I43: 0 | J43: 0 | K43: 0 | L43: 0
A44: 10 | B44: 17 | C44: =FLOOR((C43+C45)/2,1) -> 70 | D44: 38.25 | E44: 60 | G44: 0 | H44: 0 | I44: 0 | J44: 0 | K44: 0 | L44: 0
A45: 10 | B45: 18 | C45: =ROUND(((C43+C47)/2)/5,0) * 5 -> 75 | D45: 40.5 | E45: 60 | G45: 0 | H45: 0 | I45: 0 | J45: 0 | K45: 0 | L45: 0
A46: 10 | B46: 19 | C46: =FLOOR((C45+C47)/2,1) -> 80 | D46: 42.75 | E46: 70 | G46: 0 | H46: 0 | I46: 0 | J46: 0 | K46: 0 | L46: 0
A47: 10 | B47: 20 | C47: =ROUND((0.995*POWER(A47,2) - 1.221*A47 - 1.719)/5,0)*5 -> 85 | D47: 45 | E47: 70 | G47: 0 | H47: 0 | I47: 0 | J47: 0 | K47: 0 | L47: 0
A48: 11 | B48: 8 | C48: =ROUND((0.398*POWER(A48,2)-1.086*A48-0.271)/5,0)*5 -> 35 | D48: 24.5 | E48: 30 | G48: 0 | H48: 0 | I48: 0 | J48: 0 | K48: 0 | L48: 0
A49: 11 | B49: 9 | C49: =FLOOR((C48+C50)/2,1) -> 40 | D49: 27.5625 | E49: 40 | G49: 0 | H49: 0 | I49: 0 | J49: 0 | K49: 0 | L49: 0
A50: 11 | B50: 10 | C50: =ROUND(((C48+C52)/2)/5,0) * 5 -> 45 | D50: 30.625 | E50: 40 | G50: 0 | H50: 0 | I50: 0 | J50: 0 | K50: 0 | L50: 0
A51: 11 | B51: 11 | C51: =FLOOR((C50+C52)/2,1) -> 50 | D51: 33.6875 | E51: 50 | G51: 0 | H51: 0 | I51: 0 | J51: 0 | K51: 0 | L51: 0
A52: 11 | B52: 12 | C52: =ROUND((0.597*POWER(A52,2)-1.33*A52-0.715)/5,0)*5 -> 55 | D52: 36.75 | E52: 50 | G52: 0 | H52: 0 | I52: 0 | J52: 0 | K52: 0 | L52: 0
A53: 11 | B53: 13 | C53: =FLOOR((C52+C54)/2,1) -> 62 | D53: 39.8125 | E53: 60 | G53: 0 | H53: 0 | I53: 0 | J53: 0 | K53: 0 | L53: 0
A54: 11 | B54: 14 | C54: =ROUND(((C52+C56)/2)/5,0) * 5 -> 70 | D54: 42.875 | E54: 60 | G54: 0 | H54: 0 | I54: 0 | J54: 0 | K54: 0 | L54: 0
A55: 11 | B55: 15 | C55: =FLOOR((C54+C56)/2,1) -> 75 | D55: 45.9375 | E55: 70 | G55: 0 | H55: 0 | I55: 0 | J55: 0 | K55: 0 | L55: 0
A56: 11 | B56: 16 | C56: =ROUND((0.796* POWER(A56,2)-1.375*A56-1.23)/5,0)*5 -> 80 | D56: 49 | E56: 70 | G56: 0 | H56: 0 | I56: 0 | J56: 0 | K56: 0 | L56: 0
A57: 11 | B57: 17 | C57: =FLOOR((C56+C58)/2,1) -> 87 | D57: 52.0625 | E57: 70 | G57: 0 | H57: 0 | I57: 0 | J57: 0 | K57: 0 | L57: 0
A58: 11 | B58: 18 | C58: =ROUND(((C56+C60)/2)/5,0) * 5 -> 95 | D58: 55.125 | E58: 80 | G58: 0 | H58: 0 | I58: 0 | J58: 0 | K58: 0 | L58: 0
A59: 11 | B59: 19 | C59: =FLOOR((C58+C60)/2,1) -> 100 | D59: 58.1875 | E59: 80 | G59: 0 | H59: 0 | I59: 0 | J59: 0 | K59: 0 | L59: 0
A60: 11 | B60: 20 | C60: =ROUND((0.995*POWER(A60,2) - 1.221*A60 - 1.719)/5,0)*5 -> 105 | D60: 61.25 | E60: 90 | G60: 0 | H60: 0 | I60: 0 | J60: 0 | K60: 0 | L60: 0
A61: 12 | B61: 8 | C61: =ROUND((0.398*POWER(A61,2)-1.086*A61-0.271)/5,0)*5 -> 45 | D61: 32 | E61: 40 | G61: 0 | H61: 0 | I61: 0 | J61: 0 | K61: 0 | L61: 0
A62: 12 | B62: 9 | C62: =FLOOR((C61+C63)/2,1) -> 52 | D62: 36 | E62: 50 | G62: 0 | H62: 0 | I62: 0 | J62: 0 | K62: 0 | L62: 0
A63: 12 | B63: 10 | C63: =ROUND(((C61+C65)/2)/5,0) * 5 -> 60 | D63: 40 | E63: 50 | G63: 0 | H63: 0 | I63: 0 | J63: 0 | K63: 0 | L63: 0
A64: 12 | B64: 11 | C64: =FLOOR((C63+C65)/2,1) -> 65 | D64: 44 | E64: 60 | G64: 0 | H64: 0 | I64: 0 | J64: 0 | K64: 0 | L64: 0
A65: 12 | B65: 12 | C65: =ROUND((0.597*POWER(A65,2)-1.33*A65-0.715)/5,0)*5 -> 70 | D65: 48 | E65: 60 | G65: 0 | H65: 0 | I65: 0 | J65: 0 | K65: 0 | L65: 0
A66: 12 | B66: 13 | C66: =FLOOR((C65+C67)/2,1) -> 77 | D66: 52 | E66: 70 | G66: 0 | H66: 0 | I66: 0 | J66: 0 | K66: 0 | L66: 0
A67: 12 | B67: 14 | C67: =ROUND(((C65+C69)/2)/5,0) * 5 -> 85 | D67: 56 | E67: 80 | G67: 0 | H67: 0 | I67: 0 | J67: 0 | K67: 0 | L67: 0
A68: 12 | B68: 15 | C68: =FLOOR((C67+C69)/2,1) -> 90 | D68: 60 | E68: 80 | G68: 0 | H68: 0 | I68: 0 | J68: 0 | K68: 0 | L68: 0
A69: 12 | B69: 16 | C69: =ROUND((0.796* POWER(A69,2)-1.375*A69-1.23)/5,0)*5 -> 95 | D69: 64 | E69: 90 | G69: 0 | H69: 0 | I69: 0 | J69: 0 | K69: 0 | L69: 0
A70: 12 | B70: 17 | C70: =FLOOR((C69+C71)/2,1) -> 102 | D70: 68 | E70: 90 | G70: 0 | H70: 0 | I70: 0 | J70: 0 | K70: 0 | L70: 0
A71: 12 | B71: 18 | C71: =ROUND(((C69+C73)/2)/5,0) * 5 -> 110 | D71: 72 | E71: 100 | G71: 0 | H71: 0 | I71: 0 | J71: 0 | K71: 0 | L71: 0
A72: 12 | B72: 19 | C72: =FLOOR((C71+C73)/2,1) -> 117 | D72: 76 | E72: 100 | G72: 0 | H72: 0 | I72: 0 | J72: 0 | K72: 0 | L72: 0
A73: 12 | B73: 20 | C73: =ROUND((0.995*POWER(A73,2) - 1.221*A73 - 1.719)/5,0)*5 -> 125 | D73: 80 | E73: 110 | G73: 0 | H73: 0 | I73: 0 | J73: 0 | K73: 0 | L73: 0
A74: 13 | B74: 8 | C74: =ROUND((0.398*POWER(A74,2)-1.086*A74-0.271)/5,0)*5 -> 55 | D74: 40.5 | E74: 50 | G74: =IF(AND(($A74=FLOOR($D$4,1)),($B74=FLOOR($D$5,1))),C74,0) -> 0 | H74: =IF(AND(($A74=FLOOR($D$4,1)),($B74=FLOOR($D$5,1))),D74,0) -> 0 | I74: =IF(AND(($A74=FLOOR($D$4,1)),($B74=FLOOR($D$5,1))),E74,0) -> 0 | J74: =IF(AND(($A74=FLOOR($C$4,1)),($B74=FLOOR($C$5,1))),C74,0) -> 0 | K74: =IF(AND(($A74=FLOOR($C$4,1)),($B74=FLOOR($C$5,1))),D74,0) -> 0 | L74: =IF(AND(($A74=FLOOR($C$4,1)),($B74=FLOOR($C$5,1))),E74,0) -> 0
A75: 13 | B75: 9 | C75: =FLOOR((C74+C76)/2,1) -> 62 | D75: 45.5625 | E75: 60 | G75: 0 | H75: 0 | I75: 0 | J75: 0 | K75: 0 | L75: 0
A76: 13 | B76: 10 | C76: =ROUND(((C74+C78)/2)/5,0) * 5 -> 70 | D76: 50.625 | E76: 60 | G76: 0 | H76: 0 | I76: 0 | J76: 0 | K76: 0 | L76: 0
A77: 13 | B77: 11 | C77: =FLOOR((C76+C78)/2,1) -> 77 | D77: 55.6875 | E77: 70 | G77: 0 | H77: 0 | I77: 0 | J77: 0 | K77: 0 | L77: 0
A78: 13 | B78: 12 | C78: =ROUND((0.597*POWER(A78,2)-1.33*A78-0.715)/5,0)*5 -> 85 | D78: 60.75 | E78: 80 | G78: 0 | H78: 0 | I78: 0 | J78: 0 | K78: 0 | L78: 0
A79: 13 | B79: 13 | C79: =FLOOR((C78+C80)/2,1) -> 92 | D79: 65.8125 | E79: 80 | G79: 0 | H79: 0 | I79: 0 | J79: 0 | K79: 0 | L79: 0
A80: 13 | B80: 14 | C80: =ROUND(((C78+C82)/2)/5,0) * 5 -> 100 | D80: 70.875 | E80: 90 | G80: 0 | H80: 0 | I80: 0 | J80: 0 | K80: 0 | L80: 0
A81: 13 | B81: 15 | C81: =FLOOR((C80+C82)/2,1) -> 107 | D81: 75.9375 | E81: 100 | G81: 0 | H81: 0 | I81: 0 | J81: 0 | K81: 0 | L81: 0
A82: 13 | B82: 16 | C82: =ROUND((0.796* POWER(A82,2)-1.375*A82-1.23)/5,0)*5 -> 115 | D82: 81 | E82: 100 | G82: 0 | H82: 0 | I82: 0 | J82: 0 | K82: 0 | L82: 0
A83: 13 | B83: 17 | C83: =FLOOR((C82+C84)/2,1) -> 125 | D83: 86.0625 | E83: 110 | G83: 0 | H83: 0 | I83: 0 | J83: 0 | K83: 0 | L83: 0
A84: 13 | B84: 18 | C84: =ROUND(((C82+C86)/2)/5,0) * 5 -> 135 | D84: 91.125 | E84: 120 | G84: 0 | H84: 0 | I84: 0 | J84: 0 | K84: 0 | L84: 0
A85: 13 | B85: 19 | C85: =FLOOR((C84+C86)/2,1) -> 142 | D85: 96.1875 | E85: 120 | G85: 0 | H85: 0 | I85: 0 | J85: 0 | K85: 0 | L85: 0
A86: 13 | B86: 20 | C86: =ROUND((0.995*POWER(A86,2) - 1.221*A86 - 1.719)/5,0)*5 -> 150 | D86: 101.25 | E86: 130 | G86: 0 | H86: 0 | I86: 0 | J86: 0 | K86: 0 | L86: 0
A87: 14 | B87: 8 | C87: =ROUND((0.398*POWER(A87,2)-1.086*A87-0.271)/5,0)*5 -> 65 | D87: =(POWER(A87-4,2)*B87)/16 -> 50 | E87: =ROUND(((0.79*POWER(A87,2)-2*A87 -4)*B87/16)/10,0)*10 -> 60 | G87: 0 | H87: 0 | I87: 0 | J87: 0 | K87: 0 | L87: 0
A88: 14 | B88: 9 | C88: =FLOOR((C87+C89)/2,1) -> 75 | D88: 56.25 | E88: 70 | G88: 0 | H88: 0 | I88: 0 | J88: 0 | K88: 0 | L88: 0
A89: 14 | B89: 10 | C89: =ROUND(((C87+C91)/2)/5,0) * 5 -> 85 | D89: 62.5 | E89: 80 | G89: 0 | H89: 0 | I89: 0 | J89: 0 | K89: 0 | L89: 0
A90: 14 | B90: 11 | C90: =FLOOR((C89+C91)/2,1) -> 92 | D90: 68.75 | E90: 80 | G90: 0 | H90: 0 | I90: 0 | J90: 0 | K90: 0 | L90: 0
A91: 14 | B91: 12 | C91: =ROUND((0.597*POWER(A91,2)-1.33*A91-0.715)/5,0)*5 -> 100 | D91: 75 | E91: 90 | G91: 0 | H91: 0 | I91: 0 | J91: 0 | K91: 0 | L91: 0
A92: 14 | B92: 13 | C92: =FLOOR((C91+C93)/2,1) -> 110 | D92: 81.25 | E92: 100 | G92: 0 | H92: 0 | I92: 0 | J92: 0 | K92: 0 | L92: 0
A93: 14 | B93: 14 | C93: =ROUND(((C91+C95)/2)/5,0) * 5 -> 120 | D93: 87.5 | E93: 110 | G93: 0 | H93: 0 | I93: 0 | J93: 0 | K93: 0 | L93: 0
A94: 14 | B94: 15 | C94: =FLOOR((C93+C95)/2,1) -> 127 | D94: 93.75 | E94: 120 | G94: 0 | H94: 0 | I94: 0 | J94: 0 | K94: 0 | L94: 0
A95: 14 | B95: 16 | C95: =ROUND((0.796* POWER(A95,2)-1.375*A95-1.23)/5,0)*5 -> 135 | D95: 100 | E95: 120 | G95: 135 | H95: 100 | I95: 120 | J95: 0 | K95: 0 | L95: 0
A96: 14 | B96: 17 | C96: =FLOOR((C95+C97)/2,1) -> 145 | D96: 106.25 | E96: 130 | G96: 0 | H96: 0 | I96: 0 | J96: 0 | K96: 0 | L96: 0
A97: 14 | B97: 18 | C97: =ROUND(((C95+C99)/2)/5,0) * 5 -> 155 | D97: 112.5 | E97: 140 | G97: 0 | H97: 0 | I97: 0 | J97: 0 | K97: 0 | L97: 0
A98: 14 | B98: 19 | C98: =FLOOR((C97+C99)/2,1) -> 165 | D98: 118.75 | E98: 150 | G98: 0 | H98: 0 | I98: 0 | J98: 0 | K98: 0 | L98: 0
A99: 14 | B99: 20 | C99: =ROUND((0.995*POWER(A99,2) - 1.221*A99 - 1.719)/5,0)*5 -> 175 | D99: 125 | E99: 150 | G99: 0 | H99: 0 | I99: 0 | J99: 0 | K99: 0 | L99: 0
A100: 15 | B100: 8 | C100: =ROUND((0.398*POWER(A100,2)-1.086*A100-0.271)/5,0)*5 -> 75 | D100: 60.5 | E100: 70 | G100: 0 | H100: 0 | I100: 0 | J100: 0 | K100: 0 | L100: 0
A101: 15 | B101: 9 | C101: =FLOOR((C100+C102)/2,1) -> 85 | D101: 68.0625 | E101: 80 | G101: 0 | H101: 0 | I101: 0 | J101: 0 | K101: 0 | L101: 0
A102: 15 | B102: 10 | C102: =ROUND(((C100+C104)/2)/5,0) * 5 -> 95 | D102: 75.625 | E102: 90 | G102: 0 | H102: 0 | I102: 0 | J102: 0 | K102: 0 | L102: 0
A103: 15 | B103: 11 | C103: =FLOOR((C102+C104)/2,1) -> 105 | D103: 83.1875 | E103: 100 | G103: 0 | H103: 0 | I103: 0 | J103: 0 | K103: 0 | L103: 0
A104: 15 | B104: 12 | C104: =ROUND((0.597*POWER(A104,2)-1.33*A104-0.715)/5,0)*5 -> 115 | D104: 90.75 | E104: 110 | G104: 0 | H104: 0 | I104: 0 | J104: 0 | K104: 0 | L104: 0
A105: 15 | B105: 13 | C105: =FLOOR((C104+C106)/2,1) -> 125 | D105: 98.3125 | E105: 120 | G105: 0 | H105: 0 | I105: 0 | J105: 0 | K105: 0 | L105: 0
A106: 15 | B106: 14 | C106: =ROUND(((C104+C108)/2)/5,0) * 5 -> 135 | D106: 105.875 | E106: 130 | G106: 0 | H106: 0 | I106: 0 | J106: 0 | K106: 0 | L106: 0
A107: 15 | B107: 15 | C107: =FLOOR((C106+C108)/2,1) -> 145 | D107: 113.4375 | E107: 130 | G107: 0 | H107: 0 | I107: 0 | J107: 0 | K107: 0 | L107: 0
A108: 15 | B108: 16 | C108: =ROUND((0.796* POWER(A108,2)-1.375*A108-1.23)/5,0)*5 -> 155 | D108: 121 | E108: 140 | G108: 0 | H108: 0 | I108: 0 | J108: 0 | K108: 0 | L108: 0
A109: 15 | B109: 17 | C109: =FLOOR((C108+C110)/2,1) -> 167 | D109: 128.5625 | E109: 150 | G109: 0 | H109: 0 | I109: 0 | J109: 0 | K109: 0 | L109: 0
A110: 15 | B110: 18 | C110: =ROUND(((C108+C112)/2)/5,0) * 5 -> 180 | D110: 136.125 | E110: 160 | G110: 0 | H110: 0 | I110: 0 | J110: 0 | K110: 0 | L110: 0
A111: 15 | B111: 19 | C111: =FLOOR((C110+C112)/2,1) -> 192 | D111: 143.6875 | E111: 170 | G111: 0 | H111: 0 | I111: 0 | J111: 0 | K111: 0 | L111: 0
A112: 15 | B112: 20 | C112: =ROUND((0.995*POWER(A112,2) - 1.221*A112 - 1.719)/5,0)*5 -> 205 | D112: 151.25 | E112: 180 | G112: 0 | H112: 0 | I112: 0 | J112: 0 | K112: 0 | L112: 0
A113: 16 | B113: 8 | C113: =ROUND((0.398*POWER(A113,2)-1.086*A113-0.271)/5,0)*5 -> 85 | D113: 72 | E113: 80 | G113: 0 | H113: 0 | I113: 0 | J113: 0 | K113: 0 | L113: 0
A114: 16 | B114: 9 | C114: =FLOOR((C113+C115)/2,1) -> 97 | D114: 81 | E114: 90 | G114: 0 | H114: 0 | I114: 0 | J114: 0 | K114: 0 | L114: 0
A115: 16 | B115: 10 | C115: =ROUND(((C113+C117)/2)/5,0) * 5 -> 110 | D115: 90 | E115: 100 | G115: 0 | H115: 0 | I115: 0 | J115: 0 | K115: 0 | L115: 0
A116: 16 | B116: 11 | C116: =FLOOR((C115+C117)/2,1) -> 120 | D116: 99 | E116: 110 | G116: 0 | H116: 0 | I116: 0 | J116: 0 | K116: 0 | L116: 0
A117: 16 | B117: 12 | C117: =ROUND((0.597*POWER(A117,2)-1.33*A117-0.715)/5,0)*5 -> 130 | D117: 108 | E117: 120 | G117: 0 | H117: 0 | I117: 0 | J117: 0 | K117: 0 | L117: 0
A118: 16 | B118: 13 | C118: =FLOOR((C117+C119)/2,1) -> 142 | D118: 117 | E118: 140 | G118: 0 | H118: 0 | I118: 0 | J118: 0 | K118: 0 | L118: 0
A119: 16 | B119: 14 | C119: =ROUND(((C117+C121)/2)/5,0) * 5 -> 155 | D119: 126 | E119: 150 | G119: 0 | H119: 0 | I119: 0 | J119: 0 | K119: 0 | L119: 0
A120: 16 | B120: 15 | C120: =FLOOR((C119+C121)/2,1) -> 167 | D120: 135 | E120: 160 | G120: 0 | H120: 0 | I120: 0 | J120: 0 | K120: 0 | L120: 0
A121: 16 | B121: 16 | C121: =ROUND((0.796* POWER(A121,2)-1.375*A121-1.23)/5,0)*5 -> 180 | D121: 144 | E121: 170 | G121: 0 | H121: 0 | I121: 0 | J121: 0 | K121: 0 | L121: 0
A122: 16 | B122: 17 | C122: =FLOOR((C121+C123)/2,1) -> 195 | D122: 153 | E122: 180 | G122: 0 | H122: 0 | I122: 0 | J122: 0 | K122: 0 | L122: 0
A123: 16 | B123: 18 | C123: =ROUND(((C121+C125)/2)/5,0) * 5 -> 210 | D123: 162 | E123: 190 | G123: 0 | H123: 0 | I123: 0 | J123: 0 | K123: 0 | L123: 0
A124: 16 | B124: 19 | C124: =FLOOR((C123+C125)/2,1) -> 222 | D124: 171 | E124: 200 | G124: 0 | H124: 0 | I124: 0 | J124: 0 | K124: 0 | L124: 0
A125: 16 | B125: 20 | C125: =ROUND((0.995*POWER(A125,2) - 1.221*A125 - 1.719)/5,0)*5 -> 235 | D125: 180 | E125: 210 | G125: 0 | H125: 0 | I125: 0 | J125: 0 | K125: 0 | L125: 0
A126: 17 | B126: 8 | C126: =ROUND((0.398*POWER(A126,2)-1.086*A126-0.271)/5,0)*5 -> 95 | D126: 84.5 | E126: 100 | G126: 0 | H126: 0 | I126: 0 | J126: 0 | K126: 0 | L126: 0
A127: 17 | B127: 9 | C127: =FLOOR((C126+C128)/2,1) -> 110 | D127: 95.0625 | E127: 110 | G127: 0 | H127: 0 | I127: 0 | J127: 0 | K127: 0 | L127: 0
A128: 17 | B128: 10 | C128: =ROUND(((C126+C130)/2)/5,0) * 5 -> 125 | D128: 105.625 | E128: 120 | G128: 0 | H128: 0 | I128: 0 | J128: 0 | K128: 0 | L128: 0
A129: 17 | B129: 11 | C129: =FLOOR((C128+C130)/2,1) -> 137 | D129: 116.1875 | E129: 130 | G129: 0 | H129: 0 | I129: 0 | J129: 0 | K129: 0 | L129: 0
A130: 17 | B130: 12 | C130: =ROUND((0.597*POWER(A130,2)-1.33*A130-0.715)/5,0)*5 -> 150 | D130: 126.75 | E130: 140 | G130: 0 | H130: 0 | I130: 0 | J130: 0 | K130: 0 | L130: 0
A131: 17 | B131: 13 | C131: =FLOOR((C130+C132)/2,1) -> 165 | D131: 137.3125 | E131: 150 | G131: 0 | H131: 0 | I131: 0 | J131: 0 | K131: 0 | L131: 0
A132: 17 | B132: 14 | C132: =ROUND(((C130+C134)/2)/5,0) * 5 -> 180 | D132: 147.875 | E132: 170 | G132: 0 | H132: 0 | I132: 0 | J132: 0 | K132: 0 | L132: 0
A133: 17 | B133: 15 | C133: =FLOOR((C132+C134)/2,1) -> 192 | D133: 158.4375 | E133: 180 | G133: 0 | H133: 0 | I133: 0 | J133: 0 | K133: 0 | L133: 0
A134: 17 | B134: 16 | C134: =ROUND((0.796* POWER(A134,2)-1.375*A134-1.23)/5,0)*5 -> 205 | D134: 169 | E134: 190 | G134: 0 | H134: 0 | I134: 0 | J134: 0 | K134: 0 | L134: 0
A135: 17 | B135: 17 | C135: =FLOOR((C134+C136)/2,1) -> 220 | D135: 179.5625 | E135: 200 | G135: 0 | H135: 0 | I135: 0 | J135: 0 | K135: 0 | L135: 0
A136: 17 | B136: 18 | C136: =ROUND(((C134+C138)/2)/5,0) * 5 -> 235 | D136: 190.125 | E136: 210 | G136: 0 | H136: 0 | I136: 0 | J136: 0 | K136: 0 | L136: 0
A137: 17 | B137: 19 | C137: =FLOOR((C136+C138)/2,1) -> 250 | D137: 200.6875 | E137: 230 | G137: 0 | H137: 0 | I137: 0 | J137: 0 | K137: 0 | L137: 0
A138: 17 | B138: 20 | C138: =ROUND((0.995*POWER(A138,2) - 1.221*A138 - 1.719)/5,0)*5 -> 265 | D138: 211.25 | E138: 240 | G138: =IF(AND(($A138=FLOOR($D$4,1)),($B138=FLOOR($D$5,1))),C138,0) -> 0 | H138: =IF(AND(($A138=FLOOR($D$4,1)),($B138=FLOOR($D$5,1))),D138,0) -> 0 | I138: =IF(AND(($A138=FLOOR($D$4,1)),($B138=FLOOR($D$5,1))),E138,0) -> 0 | J138: =IF(AND(($A138=FLOOR($C$4,1)),($B138=FLOOR($C$5,1))),C138,0) -> 0 | K138: =IF(AND(($A138=FLOOR($C$4,1)),($B138=FLOOR($C$5,1))),D138,0) -> 0 | L138: =IF(AND(($A138=FLOOR($C$4,1)),($B138=FLOOR($C$5,1))),E138,0) -> 0
A139: 18 | B139: 8 | C139: =ROUND((0.398*POWER(A139,2)-1.086*A139-0.271)/5,0)*5 -> 110 | D139: 98 | E139: 110 | G139: 0 | H139: 0 | I139: 0 | J139: 0 | K139: 0 | L139: 0
A140: 18 | B140: 9 | C140: =FLOOR((C139+C141)/2,1) -> 125 | D140: 110.25 | E140: 120 | G140: 0 | H140: 0 | I140: 0 | J140: 0 | K140: 0 | L140: 0
A141: 18 | B141: 10 | C141: =ROUND(((C139+C143)/2)/5,0) * 5 -> 140 | D141: 122.5 | E141: 130 | G141: 0 | H141: 0 | I141: 0 | J141: 0 | K141: 0 | L141: 0
A142: 18 | B142: 11 | C142: =FLOOR((C141+C143)/2,1) -> 155 | D142: 134.75 | E142: 150 | G142: 0 | H142: 0 | I142: 0 | J142: 0 | K142: 0 | L142: 0
A143: 18 | B143: 12 | C143: =ROUND((0.597*POWER(A143,2)-1.33*A143-0.715)/5,0)*5 -> 170 | D143: 147 | E143: 160 | G143: 0 | H143: 0 | I143: 0 | J143: 0 | K143: 0 | L143: 0
A144: 18 | B144: 13 | C144: =FLOOR((C143+C145)/2,1) -> 185 | D144: 159.25 | E144: 180 | G144: 0 | H144: 0 | I144: 0 | J144: 0 | K144: 0 | L144: 0
A145: 18 | B145: 14 | C145: =ROUND(((C143+C147)/2)/5,0) * 5 -> 200 | D145: 171.5 | E145: 190 | G145: 0 | H145: 0 | I145: 0 | J145: 0 | K145: 0 | L145: 0
A146: 18 | B146: 15 | C146: =FLOOR((C145+C147)/2,1) -> 215 | D146: 183.75 | E146: 200 | G146: 0 | H146: 0 | I146: 0 | J146: 0 | K146: 0 | L146: 0
A147: 18 | B147: 16 | C147: =ROUND((0.796* POWER(A147,2)-1.375*A147-1.23)/5,0)*5 -> 230 | D147: 196 | E147: 220 | G147: 0 | H147: 0 | I147: 0 | J147: 0 | K147: 0 | L147: 0
A148: 18 | B148: 17 | C148: =FLOOR((C147+C149)/2,1) -> 247 | D148: 208.25 | E148: 230 | G148: 0 | H148: 0 | I148: 0 | J148: 0 | K148: 0 | L148: 0
A149: 18 | B149: 18 | C149: =ROUND(((C147+C151)/2)/5,0) * 5 -> 265 | D149: 220.5 | E149: 240 | G149: 0 | H149: 0 | I149: 0 | J149: 0 | K149: 0 | L149: 0
A150: 18 | B150: 19 | C150: =FLOOR((C149+C151)/2,1) -> 282 | D150: 232.75 | E150: 260 | G150: 0 | H150: 0 | I150: 0 | J150: 0 | K150: 0 | L150: 0
A151: 18 | B151: 20 | C151: =ROUND((0.995*POWER(A151,2) - 1.221*A151 - 1.719)/5,0)*5 -> 300 | D151: =(POWER(A151-4,2)*B151)/16 -> 245 | E151: =ROUND(((0.79*POWER(A151,2)-2*A151 -4)*B151/16)/10,0)*10 -> 270 | G151: 0 | H151: 0 | I151: 0 | J151: 0 | K151: 0 | L151: 0
A152: 19 | B152: 8 | C152: =ROUND((0.398*POWER(A152,2)-1.086*A152-0.271)/5,0)*5 -> 125 | D152: 112.5 | E152: 120 | G152: 0 | H152: 0 | I152: 0 | J152: 0 | K152: 0 | L152: 0
A153: 19 | B153: 9 | C153: =FLOOR((C152+C154)/2,1) -> 142 | D153: 126.5625 | E153: 140 | G153: 0 | H153: 0 | I153: 0 | J153: 0 | K153: 0 | L153: 0
A154: 19 | B154: 10 | C154: =ROUND(((C152+C156)/2)/5,0) * 5 -> 160 | D154: 140.625 | E154: 150 | G154: 0 | H154: 0 | I154: 0 | J154: 0 | K154: 0 | L154: 0
A155: 19 | B155: 11 | C155: =FLOOR((C154+C156)/2,1) -> 175 | D155: 154.6875 | E155: 170 | G155: 0 | H155: 0 | I155: 0 | J155: 0 | K155: 0 | L155: 0
A156: 19 | B156: 12 | C156: =ROUND((0.597*POWER(A156,2)-1.33*A156-0.715)/5,0)*5 -> 190 | D156: 168.75 | E156: 180 | G156: 0 | H156: 0 | I156: 0 | J156: 0 | K156: 0 | L156: 0
A157: 19 | B157: 13 | C157: =FLOOR((C156+C158)/2,1) -> 207 | D157: 182.8125 | E157: 200 | G157: 0 | H157: 0 | I157: 0 | J157: 0 | K157: 0 | L157: 0
A158: 19 | B158: 14 | C158: =ROUND(((C156+C160)/2)/5,0) * 5 -> 225 | D158: 196.875 | E158: 210 | G158: 0 | H158: 0 | I158: 0 | J158: 0 | K158: 0 | L158: 0
A159: 19 | B159: 15 | C159: =FLOOR((C158+C160)/2,1) -> 242 | D159: 210.9375 | E159: 230 | G159: 0 | H159: 0 | I159: 0 | J159: 0 | K159: 0 | L159: 0
A160: 19 | B160: 16 | C160: =ROUND((0.796* POWER(A160,2)-1.375*A160-1.23)/5,0)*5 -> 260 | D160: 225 | E160: 240 | G160: 0 | H160: 0 | I160: 0 | J160: 0 | K160: 0 | L160: 0
A161: 19 | B161: 17 | C161: =FLOOR((C160+C162)/2,1) -> 280 | D161: 239.0625 | E161: 260 | G161: 0 | H161: 0 | I161: 0 | J161: 0 | K161: 0 | L161: 0
A162: 19 | B162: 18 | C162: =ROUND(((C160+C164)/2)/5,0) * 5 -> 300 | D162: 253.125 | E162: 270 | G162: 0 | H162: 0 | I162: 0 | J162: 0 | K162: 0 | L162: 0
A163: 19 | B163: 19 | C163: =FLOOR((C162+C164)/2,1) -> 317 | D163: 267.1875 | E163: 290 | G163: 0 | H163: 0 | I163: 0 | J163: 0 | K163: 0 | L163: 0
A164: 19 | B164: 20 | C164: =ROUND((0.995*POWER(A164,2) - 1.221*A164 - 1.719)/5,0)*5 -> 335 | D164: 281.25 | E164: 300 | G164: 0 | H164: 0 | I164: 0 | J164: 0 | K164: 0 | L164: 0
A165: 20 | B165: 8 | C165: =ROUND((0.398*POWER(A165,2)-1.086*A165-0.271)/5,0)*5 -> 135 | D165: 128 | E165: 140 | G165: 0 | H165: 0 | I165: 0 | J165: 0 | K165: 0 | L165: 0
A166: 20 | B166: 9 | C166: =FLOOR((C165+C167)/2,1) -> 155 | D166: 144 | E166: 150 | G166: 0 | H166: 0 | I166: 0 | J166: 0 | K166: 0 | L166: 0
A167: 20 | B167: 10 | C167: =ROUND(((C165+C169)/2)/5,0) * 5 -> 175 | D167: 160 | E167: 170 | G167: 0 | H167: 0 | I167: 0 | J167: 0 | K167: 0 | L167: 0
A168: 20 | B168: 11 | C168: =FLOOR((C167+C169)/2,1) -> 192 | D168: 176 | E168: 190 | G168: 0 | H168: 0 | I168: 0 | J168: 0 | K168: 0 | L168: 0
A169: 20 | B169: 12 | C169: =ROUND((0.597*POWER(A169,2)-1.33*A169-0.715)/5,0)*5 -> 210 | D169: 192 | E169: 200 | G169: 0 | H169: 0 | I169: 0 | J169: 0 | K169: 0 | L169: 0
A170: 20 | B170: 13 | C170: =FLOOR((C169+C171)/2,1) -> 230 | D170: 208 | E170: 220 | G170: 0 | H170: 0 | I170: 0 | J170: 0 | K170: 0 | L170: 0
A171: 20 | B171: 14 | C171: =ROUND(((C169+C173)/2)/5,0) * 5 -> 250 | D171: 224 | E171: 240 | G171: 0 | H171: 0 | I171: 0 | J171: 0 | K171: 0 | L171: 0
A172: 20 | B172: 15 | C172: =FLOOR((C171+C173)/2,1) -> 270 | D172: 240 | E172: 260 | G172: 0 | H172: 0 | I172: 0 | J172: 0 | K172: 0 | L172: 0
A173: 20 | B173: 16 | C173: =ROUND((0.796* POWER(A173,2)-1.375*A173-1.23)/5,0)*5 -> 290 | D173: 256 | E173: 270 | G173: 0 | H173: 0 | I173: 0 | J173: 290 | K173: 256 | L173: 270
A174: 20 | B174: 17 | C174: =FLOOR((C173+C175)/2,1) -> 310 | D174: 272 | E174: 290 | G174: 0 | H174: 0 | I174: 0 | J174: 0 | K174: 0 | L174: 0
A175: 20 | B175: 18 | C175: =ROUND(((C173+C177)/2)/5,0) * 5 -> 330 | D175: 288 | E175: 310 | G175: 0 | H175: 0 | I175: 0 | J175: 0 | K175: 0 | L175: 0
A176: 20 | B176: 19 | C176: =FLOOR((C175+C177)/2,1) -> 350 | D176: 304 | E176: 320 | G176: 0 | H176: 0 | I176: 0 | J176: 0 | K176: 0 | L176: 0
A177: 20 | B177: 20 | C177: =ROUND((0.995*POWER(A177,2) - 1.221*A177 - 1.719)/5,0)*5 -> 370 | D177: 320 | E177: 340 | G177: 0 | H177: 0 | I177: 0 | J177: 0 | K177: 0 | L177: 0
A178: 21 | B178: 8 | C178: =ROUND((0.398*POWER(A178,2)-1.086*A178-0.271)/5,0)*5 -> 150 | D178: 144.5 | E178: 150 | G178: 0 | H178: 0 | I178: 0 | J178: 0 | K178: 0 | L178: 0
A179: 21 | B179: 9 | C179: =FLOOR((C178+C180)/2,1) -> 172 | D179: 162.5625 | E179: 170 | G179: 0 | H179: 0 | I179: 0 | J179: 0 | K179: 0 | L179: 0
A180: 21 | B180: 10 | C180: =ROUND(((C178+C182)/2)/5,0) * 5 -> 195 | D180: 180.625 | E180: 190 | G180: 0 | H180: 0 | I180: 0 | J180: 0 | K180: 0 | L180: 0
A181: 21 | B181: 11 | C181: =FLOOR((C180+C182)/2,1) -> 215 | D181: 198.6875 | E181: 210 | G181: 0 | H181: 0 | I181: 0 | J181: 0 | K181: 0 | L181: 0
A182: 21 | B182: 12 | C182: =ROUND((0.597*POWER(A182,2)-1.33*A182-0.715)/5,0)*5 -> 235 | D182: 216.75 | E182: 230 | G182: 0 | H182: 0 | I182: 0 | J182: 0 | K182: 0 | L182: 0
A183: 21 | B183: 13 | C183: =FLOOR((C182+C184)/2,1) -> 257 | D183: 234.8125 | E183: 250 | G183: 0 | H183: 0 | I183: 0 | J183: 0 | K183: 0 | L183: 0
A184: 21 | B184: 14 | C184: =ROUND(((C182+C186)/2)/5,0) * 5 -> 280 | D184: 252.875 | E184: 260 | G184: 0 | H184: 0 | I184: 0 | J184: 0 | K184: 0 | L184: 0
A185: 21 | B185: 15 | C185: =FLOOR((C184+C186)/2,1) -> 300 | D185: 270.9375 | E185: 280 | G185: 0 | H185: 0 | I185: 0 | J185: 0 | K185: 0 | L185: 0
A186: 21 | B186: 16 | C186: =ROUND((0.796* POWER(A186,2)-1.375*A186-1.23)/5,0)*5 -> 320 | D186: 289 | E186: 300 | G186: 0 | H186: 0 | I186: 0 | J186: 0 | K186: 0 | L186: 0
A187: 21 | B187: 17 | C187: =FLOOR((C186+C188)/2,1) -> 342 | D187: 307.0625 | E187: 320 | G187: 0 | H187: 0 | I187: 0 | J187: 0 | K187: 0 | L187: 0
A188: 21 | B188: 18 | C188: =ROUND(((C186+C190)/2)/5,0) * 5 -> 365 | D188: 325.125 | E188: 340 | G188: 0 | H188: 0 | I188: 0 | J188: 0 | K188: 0 | L188: 0
A189: 21 | B189: 19 | C189: =FLOOR((C188+C190)/2,1) -> 387 | D189: 343.1875 | E189: 360 | G189: 0 | H189: 0 | I189: 0 | J189: 0 | K189: 0 | L189: 0
A190: 21 | B190: 20 | C190: =ROUND((0.995*POWER(A190,2) - 1.221*A190 - 1.719)/5,0)*5 -> 410 | D190: 361.25 | E190: 380 | G190: 0 | H190: 0 | I190: 0 | J190: 0 | K190: 0 | L190: 0
A191: 22 | B191: 8 | C191: =ROUND((0.398*POWER(A191,2)-1.086*A191-0.271)/5,0)*5 -> 170 | D191: 162 | E191: 170 | G191: 0 | H191: 0 | I191: 0 | J191: 0 | K191: 0 | L191: 0
A192: 22 | B192: 9 | C192: =FLOOR((C191+C193)/2,1) -> 192 | D192: 182.25 | E192: 190 | G192: 0 | H192: 0 | I192: 0 | J192: 0 | K192: 0 | L192: 0
A193: 22 | B193: 10 | C193: =ROUND(((C191+C195)/2)/5,0) * 5 -> 215 | D193: 202.5 | E193: 210 | G193: 0 | H193: 0 | I193: 0 | J193: 0 | K193: 0 | L193: 0
A194: 22 | B194: 11 | C194: =FLOOR((C193+C195)/2,1) -> 237 | D194: 222.75 | E194: 230 | G194: 0 | H194: 0 | I194: 0 | J194: 0 | K194: 0 | L194: 0
A195: 22 | B195: 12 | C195: =ROUND((0.597*POWER(A195,2)-1.33*A195-0.715)/5,0)*5 -> 260 | D195: 243 | E195: 250 | G195: 0 | H195: 0 | I195: 0 | J195: 0 | K195: 0 | L195: 0
A196: 22 | B196: 13 | C196: =FLOOR((C195+C197)/2,1) -> 285 | D196: 263.25 | E196: 270 | G196: 0 | H196: 0 | I196: 0 | J196: 0 | K196: 0 | L196: 0
A197: 22 | B197: 14 | C197: =ROUND(((C195+C199)/2)/5,0) * 5 -> 310 | D197: 283.5 | E197: 290 | G197: 0 | H197: 0 | I197: 0 | J197: 0 | K197: 0 | L197: 0
A198: 22 | B198: 15 | C198: =FLOOR((C197+C199)/2,1) -> 332 | D198: 303.75 | E198: 310 | G198: 0 | H198: 0 | I198: 0 | J198: 0 | K198: 0 | L198: 0
A199: 22 | B199: 16 | C199: =ROUND((0.796* POWER(A199,2)-1.375*A199-1.23)/5,0)*5 -> 355 | D199: 324 | E199: 330 | G199: 0 | H199: 0 | I199: 0 | J199: 0 | K199: 0 | L199: 0
A200: 22 | B200: 17 | C200: =FLOOR((C199+C201)/2,1) -> 380 | D200: 344.25 | E200: 360 | G200: 0 | H200: 0 | I200: 0 | J200: 0 | K200: 0 | L200: 0
